Workbook

Sheet Template_old (hidden)
A1: Cost Estimate for HP-III
B2: Component
B3: Sub-Component
B4: Major Activities
B5: Sr. No
C6: Go To Abstract | E6: Go to Legend
B7: Cost Summary | E7: Total cost | F7: Procurement Categories (₹ lakhs) | K7: Remarks/ description
B8: Decription | E8: ₹ lakhs | F8: Goods | G8: Civil Works | H8: Consultant Services | I8: Training | J8: Operation Costs
B9: Summary of Activities | E9: =SUM(F9:J9) -> 0 | F9: =SUM(F10:F13) -> 0 | G9: =SUM(G10:G13) -> 0 | H9: =SUM(H10:H13) -> 0 | I9: =SUM(I10:I13) -> 0 | J9: =SUM(J10:J13) -> 0
B10: Activity 1 | E10: =SUM(F10:J10) -> 0 | F10: =SUBTOTAL(9,G20:G38) -> 0 | G10: =SUBTOTAL(9,G40:G48) -> 0 | H10: =SUBTOTAL(9,G51:G59) -> 0 | I10: =SUBTOTAL(9,G62:G70) -> 0 | J10: =SUBTOTAL(9,G73:G81) -> 0
B11: Activity 2 | E11: =SUM(F11:J11) -> 0 | F11: =SUBTOTAL(9,G84:G101) -> 0 | G11: =SUBTOTAL(9,G104:G112) -> 0 | H11: =SUBTOTAL(9,G115:G123) -> 0 | I11: =SUBTOTAL(9,G126:G134) -> 0 | J11: =SUBTOTAL(9,G74:G82) -> 0
B12: Activity 3 | E12: =SUM(F12:J12) -> 0 | F12: =SUBTOTAL(9,G148:G165) -> 0 | G12: =SUBTOTAL(9,G168:G176) -> 0 | H12: =SUBTOTAL(9,G179:G187) -> 0 | I12: =SUBTOTAL(9,G179:G187) -> 0 | J12: =SUBTOTAL(9,G201:G209) -> 0
B13: Activity 4 | E13: =SUM(F13:J13) -> 0 | F13: =SUBTOTAL(9,G212:G229) -> 0 | G13: =SUBTOTAL(9,G232:G240) -> 0 | H13: =SUBTOTAL(9,G243:G251) -> 0 | I13: =SUBTOTAL(9,G254:G262) -> 0 | J13: =SUBTOTAL(9,G265:G273) -> 0
C14: Financial Year | D14: FY 15 | E14: FY 16 | F14: FY 17 | G14: FY 18 | H14: FY 19 | I14: FY 20 | J14: FY 21 | K14: FY 22 | L14: FY 23
C15: Cost Outlay | D15: =N20+N40+N51+N62+N73+N84+N104+N115+N126+N137+N148+N168+N179+N190+N201+N212+N232+N243+N254+N265 -> 0 | E15: =O20+O40+O51+O62+O73+O84+O104+O115+O126+O137+O148+O168+O179+O190+O201+O212+O232+O243+O254+O265 -> 0 | F15: 0 | G15: 0 | H15: 0 | I15: 0 | J15: 0 | K15: 0 | L15: =V20+V40+V51+V62+V73 -> 0
B17: Worksheets
B18: Activity 1. Goods
B19: =B$10 -> Activity 1 | F19: Cost per Unit (₹ lakhs) | G19: Total | H19: Telemetry Type | N19: FY15 | O19: FY16 | P19: FY17 | Q19: FY18 | R19: FY19 | S19: FY20 | T19: FY21 | U19: FY22 | V19: FY23 | W19: Total
C20: Items | E20: Number | G20: =SUBTOTAL(9,G21:G36) -> 0 | H20: Telemetry Type | I20: Remarks | N20: =SUM(G21:G36*N21:N36) -> 0 | O20: =SUM(G21:G36*O21:O36) -> 0 | P20: =SUM(G21:G36*P21:P36) -> 0 | Q20: =SUM(G21:G36*Q21:Q36) -> 0 | R20: =SUM(G21:G36*R21:R36) -> 0 | S20: =SUM(G21:G36*S21:S36) -> 0 | T20: =SUM(G21:G36*T21:T36) -> 0 | U20: =SUM(G21:G36*U21:U36) -> 0 | V20: =SUM(G21:G36*V21:V36) -> 0 | W20: =SUM(N20:V20) -> 0
B21: 1.01 | E21: 0 | F21: 0 | G21: =E21*F21 -> 0 | H21: n/a | N21: 0 | O21: 0 | P21: 0 | Q21: 0 | R21: 0 | S21: 0 | T21: 0 | U21: 0 | W21: =SUM(N21:V21) -> 0
B22: =B21+0.01 -> 1.02 | E22: 0 | F22: 0 | G22: 0 | H22: n/a | N22: 0 | O22: 0 | P22: 0 | Q22: 0 | R22: 0 | S22: 0 | T22: 0 | U22: 0 | W22: =SUM(N22:V22) -> 0
B23: =B22+0.01 -> 1.03 | E23: 0 | F23: 0 | G23: 0 | H23: n/a | N23: 0 | O23: 0 | P23: 0 | Q23: 0 | R23: 0 | S23: 0 | T23: 0 | U23: 0 | W23: 0
B24: 1.04 | E24: 0 | F24: 0 | G24: 0 | H24: n/a | N24: 0 | O24: 0 | P24: 0 | Q24: 0 | R24: 0 | S24: 0 | T24: 0 | U24: 0 | W24: 0
B25: 1.05 | E25: 0 | F25: 0 | G25: 0 | H25: n/a | N25: 0 | O25: 0 | P25: 0 | Q25: 0 | R25: 0 | S25: 0 | T25: 0 | U25: 0 | W25: 0
B26: 1.06 | E26: 0 | F26: 0 | G26: 0 | H26: n/a | N26: 0 | O26: 0 | P26: 0 | Q26: 0 | R26: 0 | S26: 0 | T26: 0 | U26: 0 | W26: 0
B27: 1.07 | E27: 0 | F27: 0 | G27: 0 | H27: n/a | N27: 0 | O27: 0 | P27: 0 | Q27: 0 | R27: 0 | S27: 0 | T27: 0 | U27: 0 | W27: 0
B28: 1.08 | E28: 0 | F28: 0 | G28: 0 | H28: n/a | N28: 0 | O28: 0 | P28: 0 | Q28: 0 | R28: 0 | S28: 0 | T28: 0 | U28: 0 | W28: 0
B29: 1.09 | E29: 0 | F29: 0 | G29: 0 | H29: n/a | N29: 0 | O29: 0 | P29: 0 | Q29: 0 | R29: 0 | S29: 0 | T29: 0 | U29: 0 | W29: 0
B30: 1.1 | E30: 0 | F30: 0 | G30: 0 | H30: n/a | N30: 0 | O30: 0 | P30: 0 | Q30: 0 | R30: 0 | S30: 0 | T30: 0 | U30: 0 | W30: 0
B31: 1.11 | E31: 0 | F31: 0 | G31: 0 | H31: n/a | N31: 0 | O31: 0 | P31: 0 | Q31: 0 | R31: 0 | S31: 0 | T31: 0 | U31: 0 | W31: 0
B32: 1.12 | E32: 0 | F32: 0 | G32: 0 | H32: n/a | N32: 0 | O32: 0 | P32: 0 | Q32: 0 | R32: 0 | S32: 0 | T32: 0 | U32: 0 | W32: 0
B33: 1.13 | E33: 0 | F33: 0 | G33: 0 | H33: n/a | N33: 0 | O33: 0 | P33: 0 | Q33: 0 | R33: 0 | S33: 0 | T33: 0 | U33: 0 | W33: 0
B34: 1.14 | E34: 0 | F34: 0 | G34: 0 | H34: n/a | N34: 0 | O34: 0 | P34: 0 | Q34: 0 | R34: 0 | S34: 0 | T34: 0 | U34: 0 | W34: 0
B35: 1.15 | E35: 0 | F35: 0 | G35: 0 | H35: n/a | N35: 0 | O35: 0 | P35: 0 | Q35: 0 | R35: 0 | S35: 0 | T35: 0 | U35: 0 | W35: 0
B36: 1.16 | E36: 0 | F36: 0 | G36: 0 | H36: n/a | N36: 0 | O36: 0 | P36: 0 | Q36: 0 | R36: 0 | S36: 0 | T36: 0 | U36: 0 | W36: 0
B38: Activity 1. Civil Works
B39: =B$10 -> Activity 1 | F39: Cost per Unit (₹ lakhs) | G39: Total | N39: FY15 | O39: FY16 | P39: FY17 | Q39: FY18 | R39: FY19 | S39: FY20 | T39: FY21 | U39: FY22 | V39: FY23 | W39: Total
D40: Item | E40: Number | G40: =SUBTOTAL(9,G41:G47) -> 0 | H40: Remarks | N40: =SUM(G41:G47*N41:N47) -> 0 | O40: =SUM(G41:G47*O41:O47) -> 0 | P40: =SUM(G41:G47*P41:P47) -> 0 | Q40: =SUM(G41:G47*Q41:Q47) -> 0 | R40: =SUM(G41:G47*R41:R47) -> 0 | S40: =SUM(G41:G47*S41:S47) -> 0 | T40: =SUM(G41:G47*T41:T47) -> 0 | U40: =SUM(G41:G47*U41:U47) -> 0 | V40: =SUM(G41:G47*V41:V47) -> 0 | W40: =SUM(N40:V40) -> 0
B41: =B36+0.01 -> 1.17 | E41: 0 | F41: 0 | G41: =E41*F41 -> 0 | N41: 0 | O41: 0 | P41: 0 | Q41: 0 | R41: 0 | S41: 0 | T41: 0 | U41: 0 | W41: =SUM(N41:V41) -> 0
B42: =B41+0.01 -> 1.18 | E42: 0 | F42: 0 | G42: 0 | N42: 0 | O42: 0 | P42: 0 | Q42: 0 | R42: 0 | S42: 0 | T42: 0 | U42: 0 | W42: =SUM(N42:V42) -> 0
B43: 1.19 | E43: 0 | F43: 0 | G43: 0 | N43: 0 | O43: 0 | P43: 0 | Q43: 0 | R43: 0 | S43: 0 | T43: 0 | U43: 0 | W43: 0
B44: 1.2 | E44: 0 | F44: 0 | G44: 0 | N44: 0 | O44: 0 | P44: 0 | Q44: 0 | R44: 0 | S44: 0 | T44: 0 | U44: 0 | W44: 0
B45: 1.21 | E45: 0 | F45: 0 | G45: 0 | N45: 0 | O45: 0 | P45: 0 | Q45: 0 | R45: 0 | S45: 0 | T45: 0 | U45: 0 | W45: 0
B46: 1.22 | E46: 0 | F46: 0 | G46: 0 | N46: 0 | O46: 0 | P46: 0 | Q46: 0 | R46: 0 | S46: 0 | T46: 0 | U46: 0 | W46: 0
B47: 1.23 | E47: 0 | F47: 0 | G47: 0 | N47: 0 | O47: 0 | P47: 0 | Q47: 0 | R47: 0 | S47: 0 | T47: 0 | U47: 0 | W47: 0
B49: Activity 1. Consultant Services
B50: =B$10 -> Activity 1 | F50: Cost per Unit (₹ lakhs) | G50: Total | N50: FY15 | O50: FY16 | P50: FY17 | Q50: FY18 | R50: FY19 | S50: FY20 | T50: FY21 | U50: FY22 | V50: FY23 | W50: Total
E51: Number | G51: =SUBTOTAL(9,G52:G58) -> 0 | H51: Remarks | N51: =SUM(G52:G58*N52:N58) -> 0 | O51: =SUM(G52:G58*O52:O58) -> 0 | P51: =SUM(G52:G58*P52:P58) -> 0 | Q51: =SUM(G52:G58*Q52:Q58) -> 0 | R51: =SUM(G52:G58*R52:R58) -> 0 | S51: =SUM(G52:G58*S52:S58) -> 0 | T51: =SUM(G52:G58*T52:T58) -> 0 | U51: =SUM(G52:G58*U52:U58) -> 0 | V51: =SUM(G52:G58*V52:V58) -> 0 | W51: =SUM(N51:V51) -> 0
B52: =B47+0.01 -> 1.24 | E52: 0 | F52: 0 | G52: =E52*F52 -> 0 | N52: 0 | O52: 0 | P52: 0 | Q52: 0 | R52: 0 | S52: 0 | T52: 0 | U52: 0 | W52: =SUM(N52:V52) -> 0
B53: =B52+0.01 -> 1.25 | E53: 0 | F53: 0 | G53: 0 | N53: 0 | O53: 0 | P53: 0 | Q53: 0 | R53: 0 | S53: 0 | T53: 0 | U53: 0 | W53: =SUM(N53:V53) -> 0
B54: 1.26 | E54: 0 | F54: 0 | G54: 0 | N54: 0 | O54: 0 | P54: 0 | Q54: 0 | R54: 0 | S54: 0 | T54: 0 | U54: 0 | W54: 0
B55: 1.27 | E55: 0 | F55: 0 | G55: 0 | N55: 0 | O55: 0 | P55: 0 | Q55: 0 | R55: 0 | S55: 0 | T55: 0 | U55: 0 | W55: 0
B56: 1.28 | E56: 0 | F56: 0 | G56: 0 | N56: 0 | O56: 0 | P56: 0 | Q56: 0 | R56: 0 | S56: 0 | T56: 0 | U56: 0 | W56: 0
B57: 1.29 | E57: 0 | F57: 0 | G57: 0 | N57: 0 | O57: 0 | P57: 0 | Q57: 0 | R57: 0 | S57: 0 | T57: 0 | U57: 0 | W57: 0
B58: 1.3 | E58: 0 | F58: 0 | G58: 0 | N58: 0 | O58: 0 | P58: 0 | Q58: 0 | R58: 0 | S58: 0 | T58: 0 | U58: 0 | W58: 0
B60: Activity 1. Training
B61: =B$10 -> Activity 1 | F61: Cost per Unit (₹ lakhs) | G61: Total | N61: FY15 | O61: FY16 | P61: FY17 | Q61: FY18 | R61: FY19 | S61: FY20 | T61: FY21 | U61: FY22 | V61: FY23 | W61: Total
E62: Number | G62: =SUBTOTAL(9,G63:G69) -> 0 | H62: Remarks | N62: =SUM(G63:G69*N63:N69) -> 0 | O62: =SUM(G63:G69*O63:O69) -> 0 | P62: =SUM(G63:G69*P63:P69) -> 0 | Q62: =SUM(G63:G69*Q63:Q69) -> 0 | R62: =SUM(G63:G69*R63:R69) -> 0 | S62: =SUM(G63:G69*S63:S69) -> 0 | T62: =SUM(G63:G69*T63:T69) -> 0 | U62: =SUM(G63:G69*U63:U69) -> 0 | V62: =SUM(G63:G69*V63:V69) -> 0 | W62: =SUM(N62:V62) -> 0
B63: =B58+0.01 -> 1.31 | E63: 0 | F63: 0 | G63: =E63*F63 -> 0 | N63: 0 | O63: 0 | P63: 0 | Q63: 0 | R63: 0 | S63: 0 | T63: 0 | U63: 0 | W63: =SUM(N63:V63) -> 0
B64: =B63+0.01 -> 1.32 | E64: 0 | F64: 0 | G64: 0 | N64: 0 | O64: 0 | P64: 0 | Q64: 0 | R64: 0 | S64: 0 | T64: 0 | U64: 0 | W64: =SUM(N64:V64) -> 0
B65: 1.33 | E65: 0 | F65: 0 | G65: 0 | N65: 0 | O65: 0 | P65: 0 | Q65: 0 | R65: 0 | S65: 0 | T65: 0 | U65: 0 | W65: 0
B66: 1.34 | E66: 0 | F66: 0 | G66: 0 | N66: 0 | O66: 0 | P66: 0 | Q66: 0 | R66: 0 | S66: 0 | T66: 0 | U66: 0 | W66: 0
B67: 1.35 | E67: 0 | F67: 0 | G67: 0 | N67: 0 | O67: 0 | P67: 0 | Q67: 0 | R67: 0 | S67: 0 | T67: 0 | U67: 0 | W67: 0
B68: 1.36 | E68: 0 | F68: 0 | G68: 0 | N68: 0 | O68: 0 | P68: 0 | Q68: 0 | R68: 0 | S68: 0 | T68: 0 | U68: 0 | W68: 0
B69: 1.37 | E69: 0 | F69: 0 | G69: 0 | N69: 0 | O69: 0 | P69: 0 | Q69: 0 | R69: 0 | S69: 0 | T69: 0 | U69: 0 | W69: 0
B71: Activity 1. Operational Costs
B72: =B$10 -> Activity 1 | F72: Cost per Unit (₹ lakhs) | G72: Total | N72: FY15 | O72: FY16 | P72: FY17 | Q72: FY18 | R72: FY19 | S72: FY20 | T72: FY21 | U72: FY22 | V72: FY23 | W72: Total
E73: Number | G73: =SUBTOTAL(9,G74:G80) -> 0 | H73: Remarks | N73: =SUM(G74:G80*N74:N80) -> 0 | O73: =SUM(G74:G80*O74:O80) -> 0 | P73: =SUM(G74:G80*P74:P80) -> 0 | Q73: =SUM(G74:G80*Q74:Q80) -> 0 | R73: =SUM(G74:G80*R74:R80) -> 0 | S73: =SUM(G74:G80*S74:S80) -> 0 | T73: =SUM(G74:G80*T74:T80) -> 0 | U73: =SUM(G74:G80*U74:U80) -> 0 | V73: =SUM(G74:G80*V74:V80) -> 0 | W73: =SUM(N73:V73) -> 0
B74: =B69+0.01 -> 1.38 | E74: 0 | F74: 0 | G74: =E74*F74 -> 0 | N74: 0 | O74: 0 | P74: 0 | Q74: 0 | R74: 0 | S74: 0 | T74: 0 | U74: 0 | W74: =SUM(N74:V74) -> 0
B75: =B74+0.01 -> 1.39 | E75: 0 | F75: 0 | G75: 0 | N75: 0 | O75: 0 | P75: 0 | Q75: 0 | R75: 0 | S75: 0 | T75: 0 | U75: 0 | W75: =SUM(N75:V75) -> 0
B76: 1.4 | E76: 0 | F76: 0 | G76: 0 | N76: 0 | O76: 0 | P76: 0 | Q76: 0 | R76: 0 | S76: 0 | T76: 0 | U76: 0 | W76: 0
B77: 1.41 | E77: 0 | F77: 0 | G77: 0 | N77: 0 | O77: 0 | P77: 0 | Q77: 0 | R77: 0 | S77: 0 | T77: 0 | U77: 0 | W77: 0
B78: 1.42 | E78: 0 | F78: 0 | G78: 0 | N78: 0 | O78: 0 | P78: 0 | Q78: 0 | R78: 0 | S78: 0 | T78: 0 | U78: 0 | W78: 0
B79: 1.43 | E79: 0 | F79: 0 | G79: 0 | N79: 0 | O79: 0 | P79: 0 | Q79: 0 | R79: 0 | S79: 0 | T79: 0 | U79: 0 | W79: 0
B80: 1.44 | E80: 0 | F80: 0 | G80: 0 | N80: 0 | O80: 0 | P80: 0 | Q80: 0 | R80: 0 | S80: 0 | T80: 0 | U80: 0 | W80: 0
B82: Activity 2. Goods
B83: =B$11 -> Activity 2 | F83: Cost per Unit (₹ lakhs) | G83: Total | H83: Telemetry Type | N83: FY15 | O83: FY16 | P83: FY17 | Q83: FY18 | R83: FY19 | S83: FY20 | T83: FY21 | U83: FY22 | V83: FY23 | W83: Total
C84: Items | E84: Number | G84: =SUBTOTAL(9,G85:G100) -> 0 | H84: Telemetry Type | I84: Remarks | N84: =SUM(G85:G100*N85:N100) -> 0 | O84: =SUM(G85:G100*O85:O100) -> 0 | P84: =SUM(G85:G100*P85:P100) -> 0 | Q84: =SUM(G85:G100*Q85:Q100) -> 0 | R84: =SUM(G85:G100*R85:R100) -> 0 | S84: =SUM(G85:G100*S85:S100) -> 0 | T84: =SUM(G85:G100*T85:T100) -> 0 | U84: =SUM(G85:G100*U85:U100) -> 0 | V84: =SUM(G85:G100*V85:V100) -> 0 | W84: =SUM(N84:V84) -> 0
B85: 2.01 | E85: 0 | F85: 0 | G85: =E85*F85 -> 0 | H85: n/a | N85: 0 | O85: 0 | P85: 0 | Q85: 0 | R85: 0 | S85: 0 | T85: 0 | U85: 0 | W85: =SUM(N85:V85) -> 0
B86: =B85+0.01 -> 2.02 | E86: 0 | F86: 0 | G86: 0 | H86: n/a | N86: 0 | O86: 0 | P86: 0 | Q86: 0 | R86: 0 | S86: 0 | T86: 0 | U86: 0 | W86: =SUM(N86:V86) -> 0
B87: =B86+0.01 -> 2.03 | E87: 0 | F87: 0 | G87: 0 | H87: n/a | N87: 0 | O87: 0 | P87: 0 | Q87: 0 | R87: 0 | S87: 0 | T87: 0 | U87: 0 | W87: 0
B88: 2.04 | E88: 0 | F88: 0 | G88: 0 | H88: n/a | N88: 0 | O88: 0 | P88: 0 | Q88: 0 | R88: 0 | S88: 0 | T88: 0 | U88: 0 | W88: 0
B89: 2.05 | E89: 0 | F89: 0 | G89: 0 | H89: n/a | N89: 0 | O89: 0 | P89: 0 | Q89: 0 | R89: 0 | S89: 0 | T89: 0 | U89: 0 | W89: 0
B90: 2.06 | E90: 0 | F90: 0 | G90: 0 | H90: n/a | N90: 0 | O90: 0 | P90: 0 | Q90: 0 | R90: 0 | S90: 0 | T90: 0 | U90: 0 | W90: 0
B91: 2.07 | E91: 0 | F91: 0 | G91: 0 | H91: n/a | N91: 0 | O91: 0 | P91: 0 | Q91: 0 | R91: 0 | S91: 0 | T91: 0 | U91: 0 | W91: 0
B92: 2.08 | E92: 0 | F92: 0 | G92: 0 | H92: n/a | N92: 0 | O92: 0 | P92: 0 | Q92: 0 | R92: 0 | S92: 0 | T92: 0 | U92: 0 | W92: 0
B93: 2.09 | E93: 0 | F93: 0 | G93: 0 | H93: n/a | N93: 0 | O93: 0 | P93: 0 | Q93: 0 | R93: 0 | S93: 0 | T93: 0 | U93: 0 | W93: 0
B94: 2.1 | E94: 0 | F94: 0 | G94: 0 | H94: n/a | N94: 0 | O94: 0 | P94: 0 | Q94: 0 | R94: 0 | S94: 0 | T94: 0 | U94: 0 | W94: 0
B95: 2.11 | E95: 0 | F95: 0 | G95: 0 | H95: n/a | N95: 0 | O95: 0 | P95: 0 | Q95: 0 | R95: 0 | S95: 0 | T95: 0 | U95: 0 | W95: 0
B96: 2.12 | E96: 0 | F96: 0 | G96: 0 | H96: n/a | N96: 0 | O96: 0 | P96: 0 | Q96: 0 | R96: 0 | S96: 0 | T96: 0 | U96: 0 | W96: 0
B97: 2.13 | E97: 0 | F97: 0 | G97: 0 | H97: n/a | N97: 0 | O97: 0 | P97: 0 | Q97: 0 | R97: 0 | S97: 0 | T97: 0 | U97: 0 | W97: 0
B98: 2.14 | E98: 0 | F98: 0 | G98: 0 | H98: n/a | N98: 0 | O98: 0 | P98: 0 | Q98: 0 | R98: 0 | S98: 0 | T98: 0 | U98: 0 | W98: 0
B99: 2.15 | E99: 0 | F99: 0 | G99: 0 | H99: n/a | N99: 0 | O99: 0 | P99: 0 | Q99: 0 | R99: 0 | S99: 0 | T99: 0 | U99: 0 | W99: 0
B100: 2.16 | E100: 0 | F100: 0 | G100: 0 | H100: n/a | N100: 0 | O100: 0 | P100: 0 | Q100: 0 | R100: 0 | S100: 0 | T100: 0 | U100: 0 | W100: 0
B102: Activity 2. Civil Works
B103: =B$11 -> Activity 2 | F103: Cost per Unit (₹ lakhs) | G103: Total | N103: FY15 | O103: FY16 | P103: FY17 | Q103: FY18 | R103: FY19 | S103: FY20 | T103: FY21 | U103: FY22 | V103: FY23 | W103: Total
D104: Item | E104: Number | G104: =SUBTOTAL(9,G105:G111) -> 0 | H104: Remarks | N104: =SUM(G105:G111*N105:N111) -> 0 | O104: =SUM(G105:G111*O105:O111) -> 0 | P104: =SUM(G105:G111*P105:P111) -> 0 | Q104: =SUM(G105:G111*Q105:Q111) -> 0 | R104: =SUM(G105:G111*R105:R111) -> 0 | S104: =SUM(G105:G111*S105:S111) -> 0 | T104: =SUM(G105:G111*T105:T111) -> 0 | U104: =SUM(G105:G111*U105:U111) -> 0 | V104: =SUM(G105:G111*V105:V111) -> 0 | W104: =SUM(N104:V104) -> 0
B105: =B100+0.01 -> 2.17 | E105: 0 | F105: 0 | G105: =E105*F105 -> 0 | N105: 0 | O105: 0 | P105: 0 | Q105: 0 | R105: 0 | S105: 0 | T105: 0 | U105: 0 | W105: =SUM(N105:V105) -> 0
B106: =B105+0.01 -> 2.18 | E106: 0 | F106: 0 | G106: 0 | N106: 0 | O106: 0 | P106: 0 | Q106: 0 | R106: 0 | S106: 0 | T106: 0 | U106: 0 | W106: =SUM(N106:V106) -> 0
B107: 2.19 | E107: 0 | F107: 0 | G107: 0 | N107: 0 | O107: 0 | P107: 0 | Q107: 0 | R107: 0 | S107: 0 | T107: 0 | U107: 0 | W107: 0
B108: 2.2 | E108: 0 | F108: 0 | G108: 0 | N108: 0 | O108: 0 | P108: 0 | Q108: 0 | R108: 0 | S108: 0 | T108: 0 | U108: 0 | W108: 0
B109: 2.21 | E109: 0 | F109: 0 | G109: 0 | N109: 0 | O109: 0 | P109: 0 | Q109: 0 | R109: 0 | S109: 0 | T109: 0 | U109: 0 | W109: 0
B110: 2.22 | E110: 0 | F110: 0 | G110: 0 | N110: 0 | O110: 0 | P110: 0 | Q110: 0 | R110: 0 | S110: 0 | T110: 0 | U110: 0 | W110: 0
B111: 2.23 | E111: 0 | F111: 0 | G111: 0 | N111: 0 | O111: 0 | P111: 0 | Q111: 0 | R111: 0 | S111: 0 | T111: 0 | U111: 0 | W111: 0
B113: Activity 2. Consultant Services
B114: =B$11 -> Activity 2 | F114: Cost per Unit (₹ lakhs) | G114: Total | N114: FY15 | O114: FY16 | P114: FY17 | Q114: FY18 | R114: FY19 | S114: FY20 | T114: FY21 | U114: FY22 | V114: FY23 | W114: Total
E115: Number | G115: =SUBTOTAL(9,G116:G122) -> 0 | H115: Remarks | N115: =SUM(G116:G122*N116:N122) -> 0 | O115: =SUM(G116:G122*O116:O122) -> 0 | P115: =SUM(G116:G122*P116:P122) -> 0 | Q115: =SUM(G116:G122*Q116:Q122) -> 0 | R115: =SUM(G116:G122*R116:R122) -> 0 | S115: =SUM(G116:G122*S116:S122) -> 0 | T115: =SUM(G116:G122*T116:T122) -> 0 | U115: =SUM(G116:G122*U116:U122) -> 0 | V115: =SUM(G116:G122*V116:V122) -> 0 | W115: =SUM(N115:V115) -> 0
B116: =B111+0.01 -> 2.24 | E116: 0 | F116: 0 | G116: =E116*F116 -> 0 | N116: 0 | O116: 0 | P116: 0 | Q116: 0 | R116: 0 | S116: 0 | T116: 0 | U116: 0 | W116: =SUM(N116:V116) -> 0
B117: =B116+0.01 -> 2.25 | E117: 0 | F117: 0 | G117: 0 | N117: 0 | O117: 0 | P117: 0 | Q117: 0 | R117: 0 | S117: 0 | T117: 0 | U117: 0 | W117: =SUM(N117:V117) -> 0
B118: 2.26 | E118: 0 | F118: 0 | G118: 0 | N118: 0 | O118: 0 | P118: 0 | Q118: 0 | R118: 0 | S118: 0 | T118: 0 | U118: 0 | W118: 0
B119: 2.27 | E119: 0 | F119: 0 | G119: 0 | N119: 0 | O119: 0 | P119: 0 | Q119: 0 | R119: 0 | S119: 0 | T119: 0 | U119: 0 | W119: 0
B120: 2.28 | E120: 0 | F120: 0 | G120: 0 | N120: 0 | O120: 0 | P120: 0 | Q120: 0 | R120: 0 | S120: 0 | T120: 0 | U120: 0 | W120: 0
B121: 2.29 | E121: 0 | F121: 0 | G121: 0 | N121: 0 | O121: 0 | P121: 0 | Q121: 0 | R121: 0 | S121: 0 | T121: 0 | U121: 0 | W121: 0
B122: 2.3 | E122: 0 | F122: 0 | G122: 0 | N122: 0 | O122: 0 | P122: 0 | Q122: 0 | R122: 0 | S122: 0 | T122: 0 | U122: 0 | W122: 0
B124: Activity 2. Training
B125: =B$11 -> Activity 2 | F125: Cost per Unit (₹ lakhs) | G125: Total | N125: FY15 | O125: FY16 | P125: FY17 | Q125: FY18 | R125: FY19 | S125: FY20 | T125: FY21 | U125: FY22 | V125: FY23 | W125: Total
E126: Number | G126: =SUBTOTAL(9,G127:G133) -> 0 | H126: Remarks | N126: =SUM(G127:G133*N127:N133) -> 0 | O126: =SUM(G127:G133*O127:O133) -> 0 | P126: =SUM(G127:G133*P127:P133) -> 0 | Q126: =SUM(G127:G133*Q127:Q133) -> 0 | R126: =SUM(G127:G133*R127:R133) -> 0 | S126: =SUM(G127:G133*S127:S133) -> 0 | T126: =SUM(G127:G133*T127:T133) -> 0 | U126: =SUM(G127:G133*U127:U133) -> 0 | V126: =SUM(G127:G133*V127:V133) -> 0 | W126: =SUM(N126:V126) -> 0
B127: =B122+0.01 -> 2.31 | E127: 0 | F127: 0 | G127: =E127*F127 -> 0 | N127: 0 | O127: 0 | P127: 0 | Q127: 0 | R127: 0 | S127: 0 | T127: 0 | U127: 0 | W127: =SUM(N127:V127) -> 0
B128: =B127+0.01 -> 2.32 | E128: 0 | F128: 0 | G128: 0 | N128: 0 | O128: 0 | P128: 0 | Q128: 0 | R128: 0 | S128: 0 | T128: 0 | U128: 0 | W128: =SUM(N128:V128) -> 0
B129: 2.33 | E129: 0 | F129: 0 | G129: 0 | N129: 0 | O129: 0 | P129: 0 | Q129: 0 | R129: 0 | S129: 0 | T129: 0 | U129: 0 | W129: 0
B130: 2.34 | E130: 0 | F130: 0 | G130: 0 | N130: 0 | O130: 0 | P130: 0 | Q130: 0 | R130: 0 | S130: 0 | T130: 0 | U130: 0 | W130: 0
B131: 2.35 | E131: 0 | F131: 0 | G131: 0 | N131: 0 | O131: 0 | P131: 0 | Q131: 0 | R131: 0 | S131: 0 | T131: 0 | U131: 0 | W131: 0
B132: 2.36 | E132: 0 | F132: 0 | G132: 0 | N132: 0 | O132: 0 | P132: 0 | Q132: 0 | R132: 0 | S132: 0 | T132: 0 | U132: 0 | W132: 0
B133: 2.37 | E133: 0 | F133: 0 | G133: 0 | N133: 0 | O133: 0 | P133: 0 | Q133: 0 | R133: 0 | S133: 0 | T133: 0 | U133: 0 | W133: 0
B135: Activity 2. Operational Costs
B136: =B$11 -> Activity 2 | F136: Cost per Unit (₹ lakhs) | G136: Total | N136: FY15 | O136: FY16 | P136: FY17 | Q136: FY18 | R136: FY19 | S136: FY20 | T136: FY21 | U136: FY22 | V136: FY23 | W136: Total
E137: Number | G137: =SUBTOTAL(9,G138:G144) -> 0 | H137: Remarks | N137: =SUM(G138:G144*N138:N144) -> 0 | O137: =SUM(G138:G144*O138:O144) -> 0 | P137: =SUM(G138:G144*P138:P144) -> 0 | Q137: =SUM(G138:G144*Q138:Q144) -> 0 | R137: =SUM(G138:G144*R138:R144) -> 0 | S137: =SUM(G138:G144*S138:S144) -> 0 | T137: =SUM(G138:G144*T138:T144) -> 0 | U137: =SUM(G138:G144*U138:U144) -> 0 | V137: =SUM(G138:G144*V138:V144) -> 0 | W137: =SUM(N137:V137) -> 0
B138: =B133+0.01 -> 2.38 | E138: 0 | F138: 0 | G138: =E138*F138 -> 0 | N138: 0 | O138: 0 | P138: 0 | Q138: 0 | R138: 0 | S138: 0 | T138: 0 | U138: 0 | W138: =SUM(N138:V138) -> 0
B139: =B138+0.01 -> 2.39 | E139: 0 | F139: 0 | G139: 0 | N139: 0 | O139: 0 | P139: 0 | Q139: 0 | R139: 0 | S139: 0 | T139: 0 | U139: 0 | W139: =SUM(N139:V139) -> 0
B140: 2.4 | E140: 0 | F140: 0 | G140: 0 | N140: 0 | O140: 0 | P140: 0 | Q140: 0 | R140: 0 | S140: 0 | T140: 0 | U140: 0 | W140: 0
B141: 2.41 | E141: 0 | F141: 0 | G141: 0 | N141: 0 | O141: 0 | P141: 0 | Q141: 0 | R141: 0 | S141: 0 | T141: 0 | U141: 0 | W141: 0
B142: 2.42 | E142: 0 | F142: 0 | G142: 0 | N142: 0 | O142: 0 | P142: 0 | Q142: 0 | R142: 0 | S142: 0 | T142: 0 | U142: 0 | W142: 0
B143: 2.43 | E143: 0 | F143: 0 | G143: 0 | N143: 0 | O143: 0 | P143: 0 | Q143: 0 | R143: 0 | S143: 0 | T143: 0 | U143: 0 | W143: 0
B144: 2.44 | E144: 0 | F144: 0 | G144: 0 | N144: 0 | O144: 0 | P144: 0 | Q144: 0 | R144: 0 | S144: 0 | T144: 0 | U144: 0 | W144: 0
B146: Activity 3. Goods
B147: =B$12 -> Activity 3 | F147: Cost per Unit (₹ lakhs) | G147: Total | H147: Telemetry Type | N147: FY15 | O147: FY16 | P147: FY17 | Q147: FY18 | R147: FY19 | S147: FY20 | T147: FY21 | U147: FY22 | V147: FY23 | W147: Total
C148: Items | E148: Number | G148: =SUBTOTAL(9,G149:G164) -> 0 | H148: Telemetry Type | I148: Remarks | N148: =SUM(G149:G164*N149:N164) -> 0 | O148: =SUM(G149:G164*O149:O164) -> 0 | P148: =SUM(G149:G164*P149:P164) -> 0 | Q148: =SUM(G149:G164*Q149:Q164) -> 0 | R148: =SUM(G149:G164*R149:R164) -> 0 | S148: =SUM(G149:G164*S149:S164) -> 0 | T148: =SUM(G149:G164*T149:T164) -> 0 | U148: =SUM(G149:G164*U149:U164) -> 0 | V148: =SUM(G149:G164*V149:V164) -> 0 | W148: =SUM(N148:V148) -> 0
B149: 3.01 | E149: 0 | F149: 0 | G149: =E149*F149 -> 0 | H149: n/a | N149: 0 | O149: 0 | P149: 0 | Q149: 0 | R149: 0 | S149: 0 | T149: 0 | U149: 0 | W149: =SUM(N149:V149) -> 0
B150: =B149+0.01 -> 3.02 | E150: 0 | F150: 0 | G150: 0 | H150: n/a | N150: 0 | O150: 0 | P150: 0 | Q150: 0 | R150: 0 | S150: 0 | T150: 0 | U150: 0 | W150: =SUM(N150:V150) -> 0
B151: =B150+0.01 -> 3.03 | E151: 0 | F151: 0 | G151: 0 | H151: n/a | N151: 0 | O151: 0 | P151: 0 | Q151: 0 | R151: 0 | S151: 0 | T151: 0 | U151: 0 | W151: 0
B152: 3.04 | E152: 0 | F152: 0 | G152: 0 | H152: n/a | N152: 0 | O152: 0 | P152: 0 | Q152: 0 | R152: 0 | S152: 0 | T152: 0 | U152: 0 | W152: 0
B153: 3.05 | E153: 0 | F153: 0 | G153: 0 | H153: n/a | N153: 0 | O153: 0 | P153: 0 | Q153: 0 | R153: 0 | S153: 0 | T153: 0 | U153: 0 | W153: 0
B154: 3.06 | E154: 0 | F154: 0 | G154: 0 | H154: n/a | N154: 0 | O154: 0 | P154: 0 | Q154: 0 | R154: 0 | S154: 0 | T154: 0 | U154: 0 | W154: 0
B155: 3.07 | E155: 0 | F155: 0 | G155: 0 | H155: n/a | N155: 0 | O155: 0 | P155: 0 | Q155: 0 | R155: 0 | S155: 0 | T155: 0 | U155: 0 | W155: 0
B156: 3.08 | E156: 0 | F156: 0 | G156: 0 | H156: n/a | N156: 0 | O156: 0 | P156: 0 | Q156: 0 | R156: 0 | S156: 0 | T156: 0 | U156: 0 | W156: 0
B157: 3.09 | E157: 0 | F157: 0 | G157: 0 | H157: n/a | N157: 0 | O157: 0 | P157: 0 | Q157: 0 | R157: 0 | S157: 0 | T157: 0 | U157: 0 | W157: 0
B158: 3.1 | E158: 0 | F158: 0 | G158: 0 | H158: n/a | N158: 0 | O158: 0 | P158: 0 | Q158: 0 | R158: 0 | S158: 0 | T158: 0 | U158: 0 | W158: 0
B159: 3.11 | E159: 0 | F159: 0 | G159: 0 | H159: n/a | N159: 0 | O159: 0 | P159: 0 | Q159: 0 | R159: 0 | S159: 0 | T159: 0 | U159: 0 | W159: 0
B160: 3.12 | E160: 0 | F160: 0 | G160: 0 | H160: n/a | N160: 0 | O160: 0 | P160: 0 | Q160: 0 | R160: 0 | S160: 0 | T160: 0 | U160: 0 | W160: 0
B161: 3.13 | E161: 0 | F161: 0 | G161: 0 | H161: n/a | N161: 0 | O161: 0 | P161: 0 | Q161: 0 | R161: 0 | S161: 0 | T161: 0 | U161: 0 | W161: 0
B162: 3.14 | E162: 0 | F162: 0 | G162: 0 | H162: n/a | N162: 0 | O162: 0 | P162: 0 | Q162: 0 | R162: 0 | S162: 0 | T162: 0 | U162: 0 | W162: 0
B163: 3.15 | E163: 0 | F163: 0 | G163: 0 | H163: n/a | N163: 0 | O163: 0 | P163: 0 | Q163: 0 | R163: 0 | S163: 0 | T163: 0 | U163: 0 | W163: 0
B164: 3.16 | E164: 0 | F164: 0 | G164: 0 | H164: n/a | N164: 0 | O164: 0 | P164: 0 | Q164: 0 | R164: 0 | S164: 0 | T164: 0 | U164: 0 | W164: 0
B166: Activity 3. Civil Works
B167: =B$12 -> Activity 3 | F167: Cost per Unit (₹ lakhs) | G167: Total | N167: FY15 | O167: FY16 | P167: FY17 | Q167: FY18 | R167: FY19 | S167: FY20 | T167: FY21 | U167: FY22 | V167: FY23 | W167: Total
D168: Item | E168: Number | G168: =SUBTOTAL(9,G169:G175) -> 0 | H168: Remarks | N168: =SUM(G169:G175*N169:N175) -> 0 | O168: =SUM(G169:G175*O169:O175) -> 0 | P168: =SUM(G169:G175*P169:P175) -> 0 | Q168: =SUM(G169:G175*Q169:Q175) -> 0 | R168: =SUM(G169:G175*R169:R175) -> 0 | S168: =SUM(G169:G175*S169:S175) -> 0 | T168: =SUM(G169:G175*T169:T175) -> 0 | U168: =SUM(G169:G175*U169:U175) -> 0 | V168: =SUM(G169:G175*V169:V175) -> 0 | W168: =SUM(N168:V168) -> 0
B169: =B164+0.01 -> 3.17 | E169: 0 | F169: 0 | G169: =E169*F169 -> 0 | N169: 0 | O169: 0 | P169: 0 | Q169: 0 | R169: 0 | S169: 0 | T169: 0 | U169: 0 | W169: =SUM(N169:V169) -> 0
B170: =B169+0.01 -> 3.18 | E170: 0 | F170: 0 | G170: 0 | N170: 0 | O170: 0 | P170: 0 | Q170: 0 | R170: 0 | S170: 0 | T170: 0 | U170: 0 | W170: =SUM(N170:V170) -> 0
B171: 3.19 | E171: 0 | F171: 0 | G171: 0 | N171: 0 | O171: 0 | P171: 0 | Q171: 0 | R171: 0 | S171: 0 | T171: 0 | U171: 0 | W171: 0
B172: 3.2 | E172: 0 | F172: 0 | G172: 0 | N172: 0 | O172: 0 | P172: 0 | Q172: 0 | R172: 0 | S172: 0 | T172: 0 | U172: 0 | W172: 0
B173: 3.21 | E173: 0 | F173: 0 | G173: 0 | N173: 0 | O173: 0 | P173: 0 | Q173: 0 | R173: 0 | S173: 0 | T173: 0 | U173: 0 | W173: 0
B174: 3.22 | E174: 0 | F174: 0 | G174: 0 | N174: 0 | O174: 0 | P174: 0 | Q174: 0 | R174: 0 | S174: 0 | T174: 0 | U174: 0 | W174: 0
B175: 3.23 | E175: 0 | F175: 0 | G175: 0 | N175: 0 | O175: 0 | P175: 0 | Q175: 0 | R175: 0 | S175: 0 | T175: 0 | U175: 0 | W175: 0
B177: Activity 3. Consultant Services
B178: =B$12 -> Activity 3 | F178: Cost per Unit (₹ lakhs) | G178: Total | N178: FY15 | O178: FY16 | P178: FY17 | Q178: FY18 | R178: FY19 | S178: FY20 | T178: FY21 | U178: FY22 | V178: FY23 | W178: Total
E179: Number | G179: =SUBTOTAL(9,G180:G186) -> 0 | H179: Remarks | N179: =SUM(G180:G186*N180:N186) -> 0 | O179: =SUM(G180:G186*O180:O186) -> 0 | P179: =SUM(G180:G186*P180:P186) -> 0 | Q179: =SUM(G180:G186*Q180:Q186) -> 0 | R179: =SUM(G180:G186*R180:R186) -> 0 | S179: =SUM(G180:G186*S180:S186) -> 0 | T179: =SUM(G180:G186*T180:T186) -> 0 | U179: =SUM(G180:G186*U180:U186) -> 0 | V179: =SUM(G180:G186*V180:V186) -> 0 | W179: =SUM(N179:V179) -> 0
B180: =B175+0.01 -> 3.24 | E180: 0 | F180: 0 | G180: =E180*F180 -> 0 | N180: 0 | O180: 0 | P180: 0 | Q180: 0 | R180: 0 | S180: 0 | T180: 0 | U180: 0 | W180: =SUM(N180:V180) -> 0
B181: =B180+0.01 -> 3.25 | E181: 0 | F181: 0 | G181: 0 | N181: 0 | O181: 0 | P181: 0 | Q181: 0 | R181: 0 | S181: 0 | T181: 0 | U181: 0 | W181: =SUM(N181:V181) -> 0
B182: 3.26 | E182: 0 | F182: 0 | G182: 0 | N182: 0 | O182: 0 | P182: 0 | Q182: 0 | R182: 0 | S182: 0 | T182: 0 | U182: 0 | W182: 0
B183: 3.27 | E183: 0 | F183: 0 | G183: 0 | N183: 0 | O183: 0 | P183: 0 | Q183: 0 | R183: 0 | S183: 0 | T183: 0 | U183: 0 | W183: 0
B184: 3.28 | E184: 0 | F184: 0 | G184: 0 | N184: 0 | O184: 0 | P184: 0 | Q184: 0 | R184: 0 | S184: 0 | T184: 0 | U184: 0 | W184: 0
B185: 3.29 | E185: 0 | F185: 0 | G185: 0 | N185: 0 | O185: 0 | P185: 0 | Q185: 0 | R185: 0 | S185: 0 | T185: 0 | U185: 0 | W185: 0
B186: 3.3 | E186: 0 | F186: 0 | G186: 0 | N186: 0 | O186: 0 | P186: 0 | Q186: 0 | R186: 0 | S186: 0 | T186: 0 | U186: 0 | W186: 0
B188: Activity 3. Training
B189: =B$12 -> Activity 3 | F189: Cost per Unit (₹ lakhs) | G189: Total | N189: FY15 | O189: FY16 | P189: FY17 | Q189: FY18 | R189: FY19 | S189: FY20 | T189: FY21 | U189: FY22 | V189: FY23 | W189: Total
E190: Number | G190: =SUBTOTAL(9,G191:G197) -> 0 | H190: Remarks | N190: =SUM(G191:G197*N191:N197) -> 0 | O190: =SUM(G191:G197*O191:O197) -> 0 | P190: =SUM(G191:G197*P191:P197) -> 0 | Q190: =SUM(G191:G197*Q191:Q197) -> 0 | R190: =SUM(G191:G197*R191:R197) -> 0 | S190: =SUM(G191:G197*S191:S197) -> 0 | T190: =SUM(G191:G197*T191:T197) -> 0 | U190: =SUM(G191:G197*U191:U197) -> 0 | V190: =SUM(G191:G197*V191:V197) -> 0 | W190: =SUM(N190:V190) -> 0
B191: =B186+0.01 -> 3.31 | E191: 0 | F191: 0 | G191: =E191*F191 -> 0 | N191: 0 | O191: 0 | P191: 0 | Q191: 0 | R191: 0 | S191: 0 | T191: 0 | U191: 0 | W191: =SUM(N191:V191) -> 0
B192: =B191+0.01 -> 3.32 | E192: 0 | F192: 0 | G192: 0 | N192: 0 | O192: 0 | P192: 0 | Q192: 0 | R192: 0 | S192: 0 | T192: 0 | U192: 0 | W192: =SUM(N192:V192) -> 0
B193: 3.33 | E193: 0 | F193: 0 | G193: 0 | N193: 0 | O193: 0 | P193: 0 | Q193: 0 | R193: 0 | S193: 0 | T193: 0 | U193: 0 | W193: 0
B194: 3.34 | E194: 0 | F194: 0 | G194: 0 | N194: 0 | O194: 0 | P194: 0 | Q194: 0 | R194: 0 | S194: 0 | T194: 0 | U194: 0 | W194: 0
B195: 3.35 | E195: 0 | F195: 0 | G195: 0 | N195: 0 | O195: 0 | P195: 0 | Q195: 0 | R195: 0 | S195: 0 | T195: 0 | U195: 0 | W195: 0
B196: 3.36 | E196: 0 | F196: 0 | G196: 0 | N196: 0 | O196: 0 | P196: 0 | Q196: 0 | R196: 0 | S196: 0 | T196: 0 | U196: 0 | W196: 0
B197: 3.37 | E197: 0 | F197: 0 | G197: 0 | N197: 0 | O197: 0 | P197: 0 | Q197: 0 | R197: 0 | S197: 0 | T197: 0 | U197: 0 | W197: 0
B199: Activity 3. Operational Costs
B200: =B$12 -> Activity 3 | F200: Cost per Unit (₹ lakhs) | G200: Total | N200: FY15 | O200: FY16 | P200: FY17 | Q200: FY18 | R200: FY19 | S200: FY20 | T200: FY21 | U200: FY22 | V200: FY23 | W200: Total
E201: Number | G201: =SUBTOTAL(9,G202:G208) -> 0 | H201: Remarks | N201: =SUM(G202:G208*N202:N208) -> 0 | O201: =SUM(G202:G208*O202:O208) -> 0 | P201: =SUM(G202:G208*P202:P208) -> 0 | Q201: =SUM(G202:G208*Q202:Q208) -> 0 | R201: =SUM(G202:G208*R202:R208) -> 0 | S201: =SUM(G202:G208*S202:S208) -> 0 | T201: =SUM(G202:G208*T202:T208) -> 0 | U201: =SUM(G202:G208*U202:U208) -> 0 | V201: =SUM(G202:G208*V202:V208) -> 0 | W201: =SUM(N201:V201) -> 0
B202: =B197+0.01 -> 3.38 | E202: 0 | F202: 0 | G202: =E202*F202 -> 0 | N202: 0 | O202: 0 | P202: 0 | Q202: 0 | R202: 0 | S202: 0 | T202: 0 | U202: 0 | W202: =SUM(N202:V202) -> 0
B203: =B202+0.01 -> 3.39 | E203: 0 | F203: 0 | G203: 0 | N203: 0 | O203: 0 | P203: 0 | Q203: 0 | R203: 0 | S203: 0 | T203: 0 | U203: 0 | W203: =SUM(N203:V203) -> 0
B204: 3.4 | E204: 0 | F204: 0 | G204: 0 | N204: 0 | O204: 0 | P204: 0 | Q204: 0 | R204: 0 | S204: 0 | T204: 0 | U204: 0 | W204: 0
B205: 3.41 | E205: 0 | F205: 0 | G205: 0 | N205: 0 | O205: 0 | P205: 0 | Q205: 0 | R205: 0 | S205: 0 | T205: 0 | U205: 0 | W205: 0
B206: 3.42 | E206: 0 | F206: 0 | G206: 0 | N206: 0 | O206: 0 | P206: 0 | Q206: 0 | R206: 0 | S206: 0 | T206: 0 | U206: 0 | W206: 0
B207: 3.43 | E207: 0 | F207: 0 | G207: 0 | N207: 0 | O207: 0 | P207: 0 | Q207: 0 | R207: 0 | S207: 0 | T207: 0 | U207: 0 | W207: 0
B208: 3.44 | E208: 0 | F208: 0 | G208: 0 | N208: 0 | O208: 0 | P208: 0 | Q208: 0 | R208: 0 | S208: 0 | T208: 0 | U208: 0 | W208: 0
B210: Activity 4. Goods
B211: =B$13 -> Activity 4 | F211: Cost per Unit (₹ lakhs) | G211: Total | H211: Telemetry Type | N211: FY15 | O211: FY16 | P211: FY17 | Q211: FY18 | R211: FY19 | S211: FY20 | T211: FY21 | U211: FY22 | V211: FY23 | W211: Total
C212: Items | E212: Number | G212: =SUBTOTAL(9,G213:G228) -> 0 | H212: Telemetry Type | I212: Remarks | N212: =SUM(G213:G228*N213:N228) -> 0 | O212: =SUM(G213:G228*O213:O228) -> 0 | P212: =SUM(G213:G228*P213:P228) -> 0 | Q212: =SUM(G213:G228*Q213:Q228) -> 0 | R212: =SUM(G213:G228*R213:R228) -> 0 | S212: =SUM(G213:G228*S213:S228) -> 0 | T212: =SUM(G213:G228*T213:T228) -> 0 | U212: =SUM(G213:G228*U213:U228) -> 0 | V212: =SUM(G213:G228*V213:V228) -> 0 | W212: =SUM(N212:V212) -> 0
B213: 4.01 | E213: 0 | F213: 0 | G213: =E213*F213 -> 0 | H213: n/a | N213: 0 | O213: 0 | P213: 0 | Q213: 0 | R213: 0 | S213: 0 | T213: 0 | U213: 0 | W213: =SUM(N213:V213) -> 0
B214: =B213+0.01 -> 4.02 | E214: 0 | F214: 0 | G214: 0 | H214: n/a | N214: 0 | O214: 0 | P214: 0 | Q214: 0 | R214: 0 | S214: 0 | T214: 0 | U214: 0 | W214: =SUM(N214:V214) -> 0
B215: =B214+0.01 -> 4.03 | E215: 0 | F215: 0 | G215: 0 | H215: n/a | N215: 0 | O215: 0 | P215: 0 | Q215: 0 | R215: 0 | S215: 0 | T215: 0 | U215: 0 | W215: 0
B216: 4.04 | E216: 0 | F216: 0 | G216: 0 | H216: n/a | N216: 0 | O216: 0 | P216: 0 | Q216: 0 | R216: 0 | S216: 0 | T216: 0 | U216: 0 | W216: 0
... 52 more rows

Sheet List (hidden)
B1: List
F2: Rows | H2: Component
B3: A1.1 | C3: A1: Improvement of Water Resources Monitoring Systems | D3: Expand and upgrade water resources monitoring systems | F3: 7 | G3: b6 | H3: A: Improving Water Resources Monitoring System (WRMS)
B4: A1.2 | C4: A1: Improvement of Water Resources Monitoring Systems | D4: Set monitoring standards: water quantity/quality, QA-QC methods | F4: 8 | G4: b7 | H4: A: Improving Water Resources Monitoring System (WRMS)
B5: A1.3 | C5: A1: Improvement of Water Resources Monitoring Systems | D5: Pilot a community based monitoring | F5: 9 | G5: b8 | H5: A: Improving Water Resources Monitoring System (WRMS)
B6: A2.1 | C6: A2: Database Population and Maintenance | D6: Digitize and integrate paper data, maps and documents | F6: 10 | G6: b9 | H6: A: Improving Water Resources Monitoring System (WRMS)
B7: A2.2 | C7: A2: Database Population and Maintenance | D7: Develop spatial river basin information including themes provided in India-WRIS | F7: 11 | G7: b10 | H7: A: Improving Water Resources Monitoring System (WRMS)
B8: A2.3 | C8: A2: Database Population and Maintenance | D8: Upgrade centralized web-based data entry, processing, storage and dissemination systems: e-SWIS, e-GEMS, e-WQIS and India-WRIS | F8: 12 | G8: b11 | H8: A: Improving Water Resources Monitoring System (WRMS)
B9: A3.1 | C9: A3: Targeted Surveys in Selected Areas | D9: Reservoir sedimentation surveys | F9: 13 | G9: b12 | H9: A: Improving Water Resources Monitoring System (WRMS)
B10: A3.2 | C10: A3: Targeted Surveys in Selected Areas | D10: Bathymetric surveys in critical river sectors | F10: 14 | G10: b13 | H10: A: Improving Water Resources Monitoring System (WRMS)
B11: A3.3 | C11: A3: Targeted Surveys in Selected Areas | D11: Assess Water quality and waste loads | F11: 15 | G11: b14 | H11: A: Improving Water Resources Monitoring System (WRMS)
B12: A3.4 | C12: A3: Targeted Surveys in Selected Areas | D12: Aquifer mapping (NAQUIM) | F12: 16 | G12: b15 | H12: A: Improving Water Resources Monitoring System (WRMS)
B13: B1.1a | C13: B1: Centralized Spatial Dataset | D13: Development of DEM for the entire country for improved flood mapping and other planning purposes | F13: 19 | G13: b17 | H13: B: Improving Water Resources Information Systems (WRIS)
B14: B1.2 | C14: B1: Centralized Spatial Dataset | D14: Temporal an spatial earth observation products for the entire country (incl. Hamalayan catchments) | F14: 20 | G14: b18 | H14: B: Improving Water Resources Information Systems (WRIS)
B15: B1.3 | C15: B1: Centralized Spatial Dataset | D15: Develop multiple short- and medium range weather forecasting products | F15: 21 | G15: b19 | H15: B: Improving Water Resources Information Systems (WRIS)
B16: B2.1 | C16: B2: Water Resources Information System | D16: Strengthening the web-based India-WRIS portal for WR information | F16: 22 | G16: b20 | H16: B: Improving Water Resources Information Systems (WRIS)
B17: B2.2 | C17: B2: Water Resources Information System | D17: Introduce State Chapters to India WRIS | F17: 23 | G17: b21 | H17: B: Improving Water Resources Information Systems (WRIS)
B18: B2.3 | C18: B2: Water Resources Information System | D18: Development of a country-wide and web-based hydrological modelling system | F18: 24 | G18: b22 | H18: B: Improving Water Resources Information Systems (WRIS)
B19: B3.1 | C19: B3: Public-Domain Services | D19: Provide public-domain information services | F19: 25 | G19: b23 | H19: B: Improving Water Resources Information Systems (WRIS)
B20: C1.1 | C20: C1: Water Resources Management Tools | D20: Planning and Decision Support Systems | F20: 26 | G20: b24 | H20: C: Water Resources Management Applications (WRMA)
B21: C1.2 | C21: C1: Water Resources Management Tools | D21: Stream flow and flood forecasting systems for short-term and seasonal forecasts | F21: 27 | G21: b25 | H21: C: Water Resources Management Applications (WRMA)
B22: C1.3 | C22: C1: Water Resources Management Tools | D22: Operational and Management Systems | F22: 30 | G22: b27 | H22: C: Water Resources Management Applications (WRMA)
B23: C2.1 | C23: C2: Water knowledge products | D23: Flagship Knowledge Products | F23: 31 | G23: b28 | H23: C: Water Resources Management Applications (WRMA)
B24: C2.2 | C24: C2: Water knowledge products | D24: Purpose Driver Studies | F24: 32 | G24: b29 | H24: C: Water Resources Management Applications (WRMA)
B25: D1.1 | C25: D1: Integrated Water Resources Knowledge Centers | D25: Establishment of the National Water Informatics Center | F25: 33 | G25: b30 | H25: D: Improving Institutions and Capacity Building
B26: D1.2 | C26: D1: Integrated Water Resources Knowledge Centers | D26: Establishment of Regional/State/Basin level Informatics Centers | F26: 34 | G26: b31 | H26: D: Improving Institutions and Capacity Building
B27: D1.3 | C27: D1: Integrated Water Resources Knowledge Centers | D27: Office infrastructure and furnishing, vehicles | F27: 37 | G27: b33 | H27: D: Improving Institutions and Capacity Building
B28: D1.4 | C28: D1: Integrated Water Resources Knowledge Centers | D28: Institutional Modernization Support, incl. ITC systems for offices and Data Centers | F28: 38 | G28: b34 | H28: D: Improving Institutions and Capacity Building
B29: D2.1 | C29: D2: Water Resources Capacity-Building | D29: Policy Support | F29: 39 | G29: b35 | H29: D: Improving Institutions and Capacity Building
B30: D2.2 | C30: D2: Water Resources Capacity-Building | D30: Strengthened Partnerships and study tours | F30: 40 | G30: b36 | H30: D: Improving Institutions and Capacity Building
B31: D3.1 | C31: D3: Training & Outreach | D31: Annual Water Resources Knowledge Forum | F31: 41 | G31: b37 | H31: D: Improving Institutions and Capacity Building
B32: D3.2 | C32: D3: Training & Outreach | D32: Class room training and multi-media distance learning | F32: 42 | G32: b38 | H32: D: Improving Institutions and Capacity Building
B33: D4.1 | C33: D4: Project Management and Technical Assistance | D33: Establishment of a permanent WRIS/HIS Coordination Secretariat | F33: 43 | G33: b39 | H33: D: Improving Institutions and Capacity Building
B34: D4.2 | C34: D4: Project Management and Technical Assistance | D34: Technical Assistance and Management Consultancy for HIS-CS | F34: 44 | G34: b40 | H34: D: Improving Institutions and Capacity Building

Sheet Eval-Metrics
A1: Evaluation of Cost Estimates for Hydrology Project -III
A2: =Abstract!B3&": "&Abstract!C3 -> New State: WRD
A3: New State | C3: Y | G3: Estimated Procurement | H3: =(C8+C11+C14+C17) -> 32.95815 | I3: Cr Rs
A4: Allocations (lakhs Rs) | C4: 30 | D4: Cr Rs | G4: (+10% Contingency) | H4: =H3*1.1 -> 36.253965 | I4: Cr Rs
A5: Importing Instructions
B6: Tabular Summary | D6: Sub-Comp | E6: % | T6: New - L | U6: New - U | V6: Old - L | W6: Old - U | X6: Ref - L | Y6: Ref-U
B7: A | C7: =Abstract!$D$17/Abstract!$D$47 -> 0.3667651249 | D7: A1 | E7: =SUM(Abstract!$D$7:$D$9)/Abstract!$D$17 -> 0.6968042423 | S7: a | T7: 0.35 | U7: 0.45 | V7: 0.35 | W7: 0.45 | X7: =IF($C$3="N",V7,T7) -> 0.35 | Y7: =IF($C$3="N",W7,U7) -> 0.45
B8: Cr Rs | C8: =Abstract!$D$17/100 -> 12.0879 | D8: A2 | E8: =SUM(Abstract!$D$10:$D$12)/Abstract!$D$17 -> 0.1005137369 | S8: b | T8: 0.02 | U8: 0.07 | V8: 0.02 | W8: 0.07 | X8: =IF($C$3="N",V8,T8) -> 0.02 | Y8: 0.07
B9: JMetric | C9: =C7 -> 0.3667651249 | D9: A3 | E9: =SUM(Abstract!$D$13:$D$16)/Abstract!$D$17 -> 0.2026820209 | S9: c | T9: 0.08 | U9: 0.15 | V9: 0.2 | W9: 0.35 | X9: 0.08 | Y9: 0.15
B10: B | C10: =Abstract!$D$25/Abstract!$D$47 -> 0.03094833903 | D10: B1 | E10: =SUM(Abstract!$D$19:$D$21)/Abstract!$D$25 -> 0.5294117647 | S10: d | T10: 0.3 | U10: 0.45 | V10: 0.2 | W10: 0.3 | X10: 0.3 | Y10: 0.45
B11: Cr Rs | C11: =Abstract!$D$25/100 -> 1.02 | D11: B2 | E11: =SUM(Abstract!$D$22:$D$23)/Abstract!$D$25 -> 0.1470588235
B12: JMetric | C12: =C10 -> 0.03094833903 | D12: B3 | E12: =SUM(Abstract!$D$24)/Abstract!$D$25 -> 0.3235294118
B13: C | C13: =Abstract!$D$33/Abstract!$D$47 -> 0.09557575289 | D13: C1 | E13: =SUM(Abstract!$D$27:$D$29)/($C$14*100) -> 0.4920634921
B14: Rs | C14: =Abstract!$D$33/100 -> 3.15 | D14: C2 | E14: =SUM(Abstract!$D$30:$D$32)/($C$14*100) -> 0.5079365079
B15: JMetric | C15: =C13 -> 0.09557575289
B16: D | C16: =Abstract!$D$46/Abstract!$D$47 -> 0.5067107832 | D16: D1 | E16: =SUM(Abstract!$D$35:$D$38)/($C$17*100) -> 0.508390593
B17: Rs | C17: =Abstract!$D$46/100 -> 16.70025 | D17: D2 | E17: =SUM(Abstract!$D$39:$D$40)/($C$17*100) -> 0.1269442074
B18: JMetric | C18: =C16 -> 0.5067107832 | D18: D3 | E18: =SUM(Abstract!$D$41:$D$42)/($C$17*100) -> 0.1634706067
D19: D4 | E19: =SUM(Abstract!$D$43:$D$44)/($C$17*100) -> 0.04311312705
D20: D5 | E20: =SUM(Abstract!$D$45)/($C$17*100) -> 0.1580814658
B22: Sub-Component Allocation
B34: Outlay Projections | E34: Full allocation | F34: =SUM(D55:L55)/100 -> 32.95815 | G34: Stage 1 | H34: =SUM(E55:H55)/SUM(D55:L55) -> 0.5412917594 | I34: =SUM($D$55:$I$55)/100 -> 22.04575625 | J34: Cr Rs
G35: Stage 2 | H35: =SUM(I55:L55)/SUM(D55:L55) -> 0.4587082406 | I35: =SUM($J$55:$L$55)/100 -> 10.91239375 | J35: Cr Rs
D54: 2015 | E54: 2016 | F54: 2017 | G54: 2018 | H54: 2019 | I54: 2020 | J54: 2021 | K54: 2022 | L54: 2023
B55: Total | D55: =Abstract!K47 -> 0 | E55: =Abstract!L47 -> 218.175 | F55: =Abstract!M47 -> 546.40875 | G55: =Abstract!N47 -> 640.28375 | H55: =Abstract!O47 -> 379.13 | I55: =Abstract!P47 -> 420.578125 | J55: =Abstract!Q47 -> 532.923125 | K55: =Abstract!R47 -> 327.475625 | L55: =Abstract!S47 -> 230.840625
B56: Sum | D56: =D55 -> 0 | E56: =E55+D56 -> 218.175 | F56: =F55+E56 -> 764.58375 | G56: 1404.8675 | H56: 1783.9975 | I56: 2204.575625 | J56: 2737.49875 | K56: 3064.974375 | L56: 3295.815
B57: Comp A | D57: =Abstract!K17 -> 0 | E57: =Abstract!L17 -> 47.9 | F57: =Abstract!M17 -> 288.1816071 | G57: =Abstract!N17 -> 278.0791071 | H57: =Abstract!O17 -> 31.45035714 | I57: =Abstract!P17 -> 166.1084821 | J57: =Abstract!Q17 -> 246.4534821 | K57: =Abstract!R17 -> 89.29598214 | L57: =Abstract!S17 -> 61.32098214
B58: Comp B | D58: =Abstract!K25 -> 0 | E58: =Abstract!L25 -> 2.5 | F58: =Abstract!M25 -> 23.89285714 | G58: =Abstract!N25 -> 22.23285714 | H58: =Abstract!O25 -> 12.48285714 | I58: =Abstract!P25 -> 15.22285714 | J58: =Abstract!Q25 -> 7.722857143 | K58: =Abstract!R25 -> 10.22285714 | L58: =Abstract!S25 -> 7.722857143
B59: Comp C | D59: =Abstract!K33 -> 0 | E59: =Abstract!L33 -> 0 | F59: =Abstract!M33 -> 0 | G59: =Abstract!N33 -> 0 | H59: =Abstract!O33 -> 24.25 | I59: =Abstract!P33 -> 92.5 | J59: =Abstract!Q33 -> 87 | K59: =Abstract!R33 -> 65 | L59: =Abstract!S33 -> 46.25
B60: Comp D | D60: =Abstract!K46 -> 0 | E60: =Abstract!L46 -> 167.775 | F60: =Abstract!M46 -> 234.3342857 | G60: =Abstract!N46 -> 339.9717857 | H60: =Abstract!O46 -> 310.9467857 | I60: =Abstract!P46 -> 146.7467857 | J60: =Abstract!Q46 -> 191.7467857 | K60: =Abstract!R46 -> 162.9567857 | L60: =Abstract!S46 -> 115.5467857
B62: Overview Comments
C63: General Allocation
C64: Time allocation
C65: Compoent Allocation
C66: A
C67: B
C68: C
C69: D
C70: Other
B72: Sub Comp. | C72: Amt | D72: Description | I72: Action Item
B73: A1.1 | C73: =Abstract!D7 -> 741.79
B74: A1.2 | C74: =Abstract!D8 -> 27.5
B75: A1.3 | C75: =Abstract!D9 -> 73
B76: A2.1 | C76: =Abstract!D10 -> 29
B77: A2.2 | C77: =Abstract!D11 -> 37
B78: A2.3 | C78: =Abstract!D12 -> 55.5
B79: A3.1 | C79: =Abstract!D13 -> 50
B80: A3.2 | C80: =Abstract!D14 -> 40
B81: A3.3 | C81: =Abstract!D15 -> 20
B82: A3.4 | C82: =Abstract!D16 -> 135
C83: =Abstract!D17 -> 1208.79
B84: B1.1 | C84: =Abstract!D19 -> 0
B85: B1.2 | C85: =Abstract!D20 -> 20
B86: B1.3 | C86: =Abstract!D21 -> 34
B87: B2.1 | C87: =Abstract!D22 -> 15
B88: B2.2 | C88: =Abstract!D23 -> 0
B89: B3.1 | C89: =Abstract!D24 -> 33
C90: =Abstract!D25 -> 102
B91: C1.1 | C91: =Abstract!D27 -> 100
B92: C1.2 | C92: =Abstract!D28 -> 55
B93: C1.3 | C93: =Abstract!D29 -> 0
B94: C2.1 | C94: =Abstract!D30 -> 35
B95: C2.2a | C95: =Abstract!D31 -> 125
B96: C2.2b | C96: =Abstract!D32 -> 0
C97: =Abstract!D33 -> 315
B98: D1.1 | C98: =Abstract!D35 -> 0
B99: D1.2 | C99: =Abstract!D36 -> 394
B100: D1.3 | C100: =Abstract!D37 -> 225
B101: D1.4 | C101: =Abstract!D38 -> 230.025
B102: D2.1 | C102: =Abstract!D39 -> 40
B103: D2.2 | C103: =Abstract!D40 -> 172
B104: D3.1 | C104: =Abstract!D41 -> 78
B105: D3.2 | C105: =Abstract!D42 -> 195
B106: D4.1 | C106: =Abstract!D43 -> 0
B107: D4.2 | C107: =Abstract!D44 -> 72
B108: D5.1 | C108: =Abstract!D45 -> 264
C109: =Abstract!D46 -> 1670.025

Sheet Abstract
A1: Abstract of Cost Estimates for Hydrology Project -III
A3: State | B3: New State | C3: WRD | D3: Conversion rate USD to IRs | G3: 60
A4: Sr. No. | B4: Sub-component | C4: Major Activities | D4: Total cost | F4: Procurement Categories (IRs lakhs) | K4: Cost Outlays | T4: Remarks/ description
D5: IRs lakhs | E5: USD million | F5: Goods | G5: Civil Works | H5: Consultant Services | I5: Training/Meetings | J5: Operational Costs | K5: FY15 | L5: FY16 | M5: FY17 | N5: FY18 | O5: FY19 | P5: FY20 | Q5: FY21 | R5: FY22 | S5: FY23
A6: A | B6: Component A: Improving Water Resources Monitoring System (WRMS)
A7: A1.1 | B7: A1: Improvement of Water Resources Monitoring Systems | C7: Expand and upgrade water resources monitoring systems | D7: =SUM(F7:J7) -> 741.79 | E7: =+D7/10/G$3 -> 1.236316667 | F7: ='A1'!F$9 -> 568.29 | G7: ='A1'!G$9 -> 105 | H7: ='A1'!H$9 -> 37.5 | I7: ='A1'!I$9 -> 0 | J7: ='A1'!J$9 -> 31 | K7: ='A1'!D$31 -> 0 | L7: ='A1'!E$31 -> 28.3 | M7: ='A1'!F$31 -> 230.68875 | N7: ='A1'!G$31 -> 245.98625 | O7: ='A1'!H$31 -> 22.5075 | P7: ='A1'!I$31 -> 61.715625 | Q7: ='A1'!J$31 -> 62.060625 | R7: ='A1'!K$31 -> 41.203125 | S7: ='A1'!L$31 -> 49.328125
A8: A1.2 | C8: Set monitoring standards: water quantity/quality, QA-QC methods | D8: =SUM(F8:J8) -> 27.5 | E8: =+D8/10/G$3 -> 0.04583333333 | F8: ='A1'!F$14 -> 0 | G8: ='A1'!G$14 -> 0 | H8: ='A1'!H$14 -> 13.5 | I8: ='A1'!I$14 -> 6 | J8: ='A1'!J$14 -> 8 | K8: ='A1'!D$32 -> 0 | L8: ='A1'!E$32 -> 0 | M8: ='A1'!F$32 -> 2.642857143 | N8: ='A1'!G$32 -> 7.142857143 | O8: ='A1'!H$32 -> 2.642857143 | P8: ='A1'!I$32 -> 2.642857143 | Q8: ='A1'!J$32 -> 7.142857143 | R8: ='A1'!K$32 -> 2.642857143 | S8: ='A1'!L$32 -> 2.642857143
A9: A1.3 | C9: Community based monitoring and water management | D9: 73 | E9: =+D9/10/G$3 -> 0.1216666667 | F9: ='A1'!F$19 -> 0 | G9: ='A1'!G$19 -> 50 | H9: ='A1'!H$19 -> 5 | I9: ='A1'!I$19 -> 8 | J9: ='A1'!J$19 -> 10 | K9: ='A1'!D$33 -> 0 | L9: ='A1'!E$33 -> 0 | M9: ='A1'!F$33 -> 0 | N9: ='A1'!G$33 -> 0 | O9: ='A1'!H$33 -> 0 | P9: ='A1'!I$33 -> 15.75 | Q9: ='A1'!J$33 -> 30.75 | R9: ='A1'!K$33 -> 20.75 | S9: ='A1'!L$33 -> 5.75
A10: A2.1 | B10: A2: Database Population and Maintenance | C10: Digitize and integrate paper data, maps and documents | D10: 29 | E10: =+D10/10/G$3 -> 0.04833333333 | F10: ='A2'!F$9 -> 0 | G10: ='A2'!G$9 -> 0 | H10: ='A2'!H$9 -> 24 | I10: ='A2'!I$9 -> 0 | J10: ='A2'!J$9 -> 5 | K10: ='A2'!D$31 -> 0 | L10: ='A2'!E$31 -> 4.8 | M10: ='A2'!F$31 -> 19.7 | N10: ='A2'!G$31 -> 0.5 | O10: ='A2'!H$31 -> 0.5 | P10: ='A2'!I$31 -> 0.5 | Q10: ='A2'!J$31 -> 1 | R10: ='A2'!K$31 -> 1 | S10: ='A2'!L$31 -> 1
A11: A2.2 | C11: Develop spatial river basin information including themes provided in India-WRIS | D11: 37 | E11: 0.06166666667 | F11: ='A2'!F$14 -> 0 | G11: ='A2'!G$14 -> 0 | H11: ='A2'!H$14 -> 24 | I11: ='A2'!I$14 -> 13 | J11: ='A2'!J$14 -> 0 | K11: ='A2'!D$32 -> 0 | L11: ='A2'!E$32 -> 13 | M11: ='A2'!F$32 -> 14.1 | N11: ='A2'!G$32 -> 3.4 | O11: ='A2'!H$32 -> 3 | P11: ='A2'!I$32 -> 1.8 | Q11: ='A2'!J$32 -> 0.9 | R11: ='A2'!K$32 -> 0.5 | S11: ='A2'!L$32 -> 0.3
A12: A2.3 | C12: Upgrade centralized web-based data entry, processing, storage and dissemination systems: e-SWIS, e-GEMS, e-WQIS and India-WRIS | D12: 55.5 | E12: 0.0925 | F12: ='A2'!F$19 -> 0 | G12: ='A2'!G$19 -> 0 | H12: ='A2'!H$19 -> 37.5 | I12: ='A2'!I$19 -> 18 | J12: ='A2'!J$19 -> 0 | K12: ='A2'!D$33 -> 0 | L12: ='A2'!E$33 -> 1.8 | M12: ='A2'!F$33 -> 20.55 | N12: ='A2'!G$33 -> 20.55 | O12: ='A2'!H$33 -> 1.8 | P12: ='A2'!I$33 -> 2.7 | Q12: ='A2'!J$33 -> 3.6 | R12: ='A2'!K$33 -> 2.7 | S12: ='A2'!L$33 -> 1.8
A13: A3.1 | B13: A3: Targeted Surveys in Selected Areas | C13: Reservoir sedimentation surveys | D13: 50 | E13: 0.08333333333 | F13: ='A3'!F$9 -> 0 | G13: ='A3'!G$9 -> 0 | H13: ='A3'!H$9 -> 50 | I13: ='A3'!I$9 -> 0 | J13: ='A3'!J$9 -> 0 | K13: ='A3'!D$31 -> 0 | L13: ='A3'!E$31 -> 0 | M13: ='A3'!F$31 -> 0 | N13: ='A3'!G$31 -> 0 | O13: ='A3'!H$31 -> 0 | P13: ='A3'!I$31 -> 25 | Q13: ='A3'!J$31 -> 25 | R13: ='A3'!K$31 -> 0 | S13: ='A3'!L$31 -> 0
A14: A3.2 | C14: Bathymetric surveys in critical river sectors | D14: 40 | E14: 0.06666666667 | F14: ='A3'!F$14 -> 0 | G14: ='A3'!G$14 -> 0 | H14: ='A3'!H$14 -> 40 | I14: ='A3'!I$14 -> 0 | J14: ='A3'!J$14 -> 0 | K14: ='A3'!D$32 -> 0 | L14: ='A3'!E$32 -> 0 | M14: ='A3'!F$32 -> 0 | N14: ='A3'!G$32 -> 0 | O14: ='A3'!H$32 -> 0 | P14: ='A3'!I$32 -> 20 | Q14: ='A3'!J$32 -> 20 | R14: ='A3'!K$32 -> 0 | S14: ='A3'!L$32 -> 0
A15: A3.3 | C15: Assess Water quality and waste loads | D15: 20 | E15: 0.03333333333 | F15: ='A3'!F$19 -> 0 | G15: ='A3'!G$19 -> 0 | H15: ='A3'!H$19 -> 10 | I15: ='A3'!I$19 -> 10 | J15: ='A3'!J$19 -> 0 | K15: ='A3'!D$33 -> 0 | L15: ='A3'!E$33 -> 0 | M15: ='A3'!F$33 -> 0 | N15: ='A3'!G$33 -> 0 | O15: ='A3'!H$33 -> 0 | P15: ='A3'!I$33 -> 10 | Q15: ='A3'!J$33 -> 10 | R15: ='A3'!K$33 -> 0 | S15: ='A3'!L$33 -> 0
A16: A3.4 | C16: GW exploration and aquifer mapping | D16: 135 | E16: =+D16/10/G$3 -> 0.225 | F16: ='A3'!F$24 -> 100 | G16: ='A3'!G$24 -> 0 | H16: ='A3'!H$24 -> 30 | I16: ='A3'!I$24 -> 5 | J16: ='A3'!J$24 -> 0 | K16: ='A3'!D$34 -> 0 | L16: ='A3'!E$34 -> 0 | M16: ='A3'!F$34 -> 0.5 | N16: ='A3'!G$34 -> 0.5 | O16: ='A3'!H$34 -> 1 | P16: ='A3'!I$34 -> 26 | Q16: ='A3'!J$34 -> 86 | R16: ='A3'!K$34 -> 20.5 | S16: ='A3'!L$34 -> 0.5
B17: Sub-total component A | D17: =SUBTOTAL(9,D7:D16) -> 1208.79 | E17: =SUBTOTAL(9,E7:E16) -> 2.01465 | F17: 668.29 | G17: 155 | H17: 271.5 | I17: 60 | J17: 54 | K17: 0 | L17: 47.9 | M17: 288.1816071 | N17: 278.0791071 | O17: 31.45035714 | P17: 166.1084821 | Q17: 246.4534821 | R17: 89.29598214 | S17: 61.32098214
A18: B | B18: Component B: Improving Water Resources Information Systems (WRIS)
A19: B1.1 | B19: B1: Centralized Spatial Dataset | C19: Development of DEM for the entire country for improved flood mapping and other planning purposes | D19: =SUM(F19:J19) -> 0 | E19: =+D19/10/G$3 -> 0 | F19: ='B1'!F$9 -> 0 | G19: ='B1'!G$9 -> 0 | H19: ='B1'!H$9 -> 0 | I19: ='B1'!I$9 -> 0 | J19: ='B1'!J$9 -> 0 | K19: ='B1'!D$31 -> 0 | L19: ='B1'!E$31 -> 0 | M19: ='B1'!F$31 -> 0 | N19: ='B1'!G$31 -> 0 | O19: ='B1'!H$31 -> 0 | P19: ='B1'!I$31 -> 0 | Q19: ='B1'!J$31 -> 0 | R19: ='B1'!K$31 -> 0 | S19: ='B1'!L$31 -> 0
A20: B1.2 | C20: Temporal an spatial earth observation products for the entire country (incl. Hamalayan catchments) | D20: 20 | E20: 0.03333333333 | F20: ='B1'!F$14 -> 20 | G20: ='B1'!G$14 -> 0 | H20: ='B1'!H$14 -> 0 | I20: ='B1'!I$14 -> 0 | J20: ='B1'!J$14 -> 0 | K20: ='B1'!D$32 -> 0 | L20: ='B1'!E$32 -> 2.5 | M20: ='B1'!F$32 -> 2.5 | N20: ='B1'!G$32 -> 2.5 | O20: ='B1'!H$32 -> 2.5 | P20: ='B1'!I$32 -> 2.5 | Q20: ='B1'!J$32 -> 2.5 | R20: ='B1'!K$32 -> 2.5 | S20: ='B1'!L$32 -> 2.5
A21: B1.3 | C21: Develop multiple short- and medium range weather forecasting products | D21: 34 | E21: 0.05666666667 | F21: ='B1'!F$19 -> 0 | G21: ='B1'!G$19 -> 0 | H21: ='B1'!H$19 -> 10 | I21: ='B1'!I$19 -> 0 | J21: ='B1'!J$19 -> 24 | K21: ='B1'!D$33 -> 0 | L21: ='B1'!E$33 -> 0 | M21: ='B1'!F$33 -> 10 | N21: ='B1'!G$33 -> 3.84 | O21: ='B1'!H$33 -> 3.84 | P21: ='B1'!I$33 -> 4.08 | Q21: ='B1'!J$33 -> 4.08 | R21: ='B1'!K$33 -> 4.08 | S21: ='B1'!L$33 -> 4.08
A22: B2.1 | B22: B2: Water Resources Information System | C22: Strengthening the web-based India-WRIS portal for WR information | D22: 15 | E22: 0.025 | F22: ='B2'!F$9 -> 0 | G22: ='B2'!G$9 -> 0 | H22: ='B2'!H$9 -> 10 | I22: ='B2'!I$9 -> 5 | J22: ='B2'!J$9 -> 0 | K22: ='B2'!D$31 -> 0 | L22: ='B2'!E$31 -> 0 | M22: ='B2'!F$31 -> 6.25 | N22: ='B2'!G$31 -> 6.25 | O22: ='B2'!H$31 -> 1.25 | P22: ='B2'!I$31 -> 1.25 | Q22: ='B2'!J$31 -> 0 | R22: ='B2'!K$31 -> 0 | S22: ='B2'!L$31 -> 0
A23: B2.2 | C23: Development of a country-wide and web-based hydrological modelling system | D23: 0 | E23: 0 | F23: ='B2'!F$14 -> 0 | G23: ='B2'!G$14 -> 0 | H23: ='B2'!H$14 -> 0 | I23: ='B2'!I$14 -> 0 | J23: ='B2'!J$14 -> 0 | K23: ='B2'!D$32 -> 0 | L23: ='B2'!E$32 -> 0 | M23: ='B2'!F$32 -> 0 | N23: ='B2'!G$32 -> 0 | O23: ='B2'!H$32 -> 0 | P23: ='B2'!I$32 -> 0 | Q23: ='B2'!J$32 -> 0 | R23: ='B2'!K$32 -> 0 | S23: ='B2'!L$32 -> 0
A24: B3.1 | B24: B3: Public-Domain Services | C24: Provide public-domain information services | D24: 33 | E24: 0.055 | F24: ='B3'!F9 -> 8 | G24: ='B3'!G9 -> 0 | H24: ='B3'!H9 -> 15 | I24: ='B3'!I9 -> 10 | J24: ='B3'!J9 -> 0 | K24: ='B3'!D31 -> 0 | L24: ='B3'!E31 -> 0 | M24: ='B3'!F31 -> 5.142857143 | N24: ='B3'!G31 -> 9.642857143 | O24: ='B3'!H31 -> 4.892857143 | P24: ='B3'!I31 -> 7.392857143 | Q24: ='B3'!J31 -> 1.142857143 | R24: ='B3'!K31 -> 3.642857143 | S24: ='B3'!L31 -> 1.142857143
B25: Sub-total component B | D25: =SUBTOTAL(9,D19:D24) -> 102 | E25: =SUBTOTAL(9,E19:E24) -> 0.17 | F25: 28 | G25: 0 | H25: 35 | I25: 15 | J25: 24 | K25: 0 | L25: 2.5 | M25: 23.89285714 | N25: 22.23285714 | O25: 12.48285714 | P25: 15.22285714 | Q25: 7.722857143 | R25: 10.22285714 | S25: 7.722857143
A26: C | B26: Component C: Water Resources Management Applications (WRMA)
A27: C1.1 | B27: C1: Water Resources Management Tools | C27: Planning and Decision Support Systems | D27: =SUM(F27:J27) -> 100 | E27: =+D27/10/G$3 -> 0.1666666667 | F27: ='C1'!F$9 -> 0 | G27: ='C1'!G$9 -> 0 | H27: ='C1'!H$9 -> 100 | I27: ='C1'!I$9 -> 0 | J27: ='C1'!J$9 -> 0 | K27: ='C1'!D$31 -> 0 | L27: ='C1'!E$31 -> 0 | M27: ='C1'!F$31 -> 0 | N27: ='C1'!G$31 -> 0 | O27: ='C1'!H$31 -> 0 | P27: ='C1'!I$31 -> 25 | Q27: ='C1'!J$31 -> 25 | R27: ='C1'!K$31 -> 25 | S27: ='C1'!L$31 -> 25
A28: C1.2 | C28: Stream flow and flood forecasting systems for short-term and seasonal forecasts | D28: 55 | E28: 0.09166666667 | F28: ='C1'!F$14 -> 0 | G28: ='C1'!G$14 -> 0 | H28: ='C1'!H$14 -> 50 | I28: ='C1'!I$14 -> 5 | J28: ='C1'!J$14 -> 0 | K28: ='C1'!D$32 -> 0 | L28: ='C1'!E$32 -> 0 | M28: ='C1'!F$32 -> 0 | N28: ='C1'!G$32 -> 0 | O28: ='C1'!H$32 -> 5.5 | P28: ='C1'!I$32 -> 27.5 | Q28: ='C1'!J$32 -> 22 | R28: ='C1'!K$32 -> 0 | S28: ='C1'!L$32 -> 0
A29: C1.3 | C29: Operational and Management Systems | D29: 0 | E29: 0 | F29: ='C1'!F$19 -> 0 | G29: ='C1'!G$19 -> 0 | H29: ='C1'!H$19 -> 0 | I29: ='C1'!I$19 -> 0 | J29: ='C1'!J$19 -> 0 | K29: ='C1'!D$33 -> 0 | L29: ='C1'!E$33 -> 0 | M29: ='C1'!F$33 -> 0 | N29: ='C1'!G$33 -> 0 | O29: ='C1'!H$33 -> 0 | P29: ='C1'!I$33 -> 0 | Q29: ='C1'!J$33 -> 0 | R29: ='C1'!K$33 -> 0 | S29: ='C1'!L$33 -> 0
A30: C2.1 | B30: C2: Water Knowledge Products | C30: Flagship Knowledge Products | D30: 35 | E30: 0.05833333333 | F30: ='C2'!F$9 -> 0 | G30: ='C2'!G$9 -> 0 | H30: ='C2'!H$9 -> 20 | I30: ='C2'!I$9 -> 15 | J30: ='C2'!J$9 -> 0 | K30: ='C2'!D$31 -> 0 | L30: ='C2'!E$31 -> 0 | M30: ='C2'!F$31 -> 0 | N30: ='C2'!G$31 -> 0 | O30: ='C2'!H$31 -> 0 | P30: ='C2'!I$31 -> 8.75 | Q30: ='C2'!J$31 -> 8.75 | R30: ='C2'!K$31 -> 8.75 | S30: ='C2'!L$31 -> 8.75
A31: C2.2a | C31: Purpose Driver Studies | D31: 125 | E31: 0.2083333333 | F31: ='C2'!F$14 -> 0 | G31: ='C2'!G$14 -> 0 | H31: ='C2'!H$14 -> 125 | I31: ='C2'!I$14 -> 0 | J31: ='C2'!J$14 -> 0 | K31: ='C2'!D$32 -> 0 | L31: ='C2'!E$32 -> 0 | M31: ='C2'!F$32 -> 0 | N31: ='C2'!G$32 -> 0 | O31: ='C2'!H$32 -> 18.75 | P31: ='C2'!I$32 -> 31.25 | Q31: ='C2'!J$32 -> 31.25 | R31: ='C2'!K$32 -> 31.25 | S31: ='C2'!L$32 -> 12.5
A32: C2.2b | C32: Purpose Driver Studies | D32: 0 | E32: 0 | F32: ='C2'!F$19 -> 0 | G32: ='C2'!G$19 -> 0 | H32: ='C2'!H$19 -> 0 | I32: ='C2'!I$19 -> 0 | J32: ='C2'!J$19 -> 0 | K32: ='C2'!D$33 -> 0 | L32: ='C2'!E$33 -> 0 | M32: ='C2'!F$33 -> 0 | N32: ='C2'!G$33 -> 0 | O32: ='C2'!H$33 -> 0 | P32: ='C2'!I$33 -> 0 | Q32: ='C2'!J$33 -> 0 | R32: ='C2'!K$33 -> 0 | S32: ='C2'!L$33 -> 0
B33: Sub-total component C | D33: =SUBTOTAL(9,D27:D32) -> 315 | E33: 0.525 | F33: 0 | G33: 0 | H33: 295 | I33: 20 | J33: 0 | K33: 0 | L33: 0 | M33: 0 | N33: 0 | O33: 24.25 | P33: 92.5 | Q33: 87 | R33: 65 | S33: 46.25
A34: D | B34: Component D: Improving Institutions and Capacity Building
A35: D1.1 | B35: D1: Integrated Water Resources Knowledge Centers | C35: Establishment of the National Water Informatics Center | D35: =SUM(F35:J35) -> 0 | E35: =+D35/10/G$3 -> 0 | F35: ='D1'!F$9 -> 0 | G35: ='D1'!G$9 -> 0 | H35: ='D1'!H$9 -> 0 | I35: ='D1'!I$9 -> 0 | J35: ='D1'!J$9 -> 0 | K35: ='D1'!D$31 -> 0 | L35: ='D1'!E$31 -> 0 | M35: ='D1'!F$31 -> 0 | N35: ='D1'!G$31 -> 0 | O35: ='D1'!H$31 -> 0 | P35: ='D1'!I$31 -> 0 | Q35: ='D1'!J$31 -> 0 | R35: ='D1'!K$31 -> 0 | S35: ='D1'!L$31 -> 0
A36: D1.2 | C36: Establishment of State/Basin level Water Informatics Centers; upgrading WALMIs | D36: 394 | E36: 0.6566666667 | F36: ='D1'!F$14 -> 36 | G36: ='D1'!G$14 -> 300 | H36: ='D1'!H$14 -> 18 | I36: ='D1'!I$14 -> 10 | J36: ='D1'!J$14 -> 30 | K36: ='D1'!D$32 -> 0 | L36: ='D1'!E$32 -> 3 | M36: ='D1'!F$32 -> 2 | N36: ='D1'!G$32 -> 183 | O36: ='D1'!H$32 -> 174 | P36: ='D1'!I$32 -> 11.4 | Q36: ='D1'!J$32 -> 9.6 | R36: ='D1'!K$32 -> 6 | S36: ='D1'!L$32 -> 5
A37: D1.3 | C37: Other office/data center infrastructure and furnishing, vehicles | D37: 225 | E37: 0.375 | F37: ='D1'!F$19 -> 103 | G37: ='D1'!G$19 -> 40 | H37: ='D1'!H$19 -> 2 | I37: ='D1'!I$19 -> 0 | J37: ='D1'!J$19 -> 80 | K37: ='D1'!D$33 -> 0 | L37: ='D1'!E$33 -> 10 | M37: ='D1'!F$33 -> 98.7 | N37: ='D1'!G$33 -> 21 | O37: ='D1'!H$33 -> 10 | P37: ='D1'!I$33 -> 10 | Q37: ='D1'!J$33 -> 55.3 | R37: ='D1'!K$33 -> 10 | S37: ='D1'!L$33 -> 10
A38: D1.4 | C38: Institutional Modernization Support, incl. ITC systems for offices and Data Centers | D38: 230.025 | E38: 0.383375 | F38: ='D1'!F$24 -> 189.4 | G38: ='D1'!G$24 -> 0 | H38: ='D1'!H$24 -> 0 | I38: ='D1'!I$24 -> 0 | J38: ='D1'!J$24 -> 40.625 | K38: ='D1'!D$34 -> 0 | L38: ='D1'!E$34 -> 69.5 | M38: ='D1'!F$34 -> 20.945 | N38: ='D1'!G$34 -> 27.71583333 | O38: ='D1'!H$34 -> 16.99083333 | P38: ='D1'!I$34 -> 16.99083333 | Q38: ='D1'!J$34 -> 16.99083333 | R38: ='D1'!K$34 -> 43.90083333 | S38: ='D1'!L$34 -> 16.99083333
A39: D2.1 | B39: D2: Water Resources Capacity-Building | C39: Policy Support | D39: 40 | E39: 0.06666666667 | F39: ='D2'!F$9 -> 0 | G39: ='D2'!G$9 -> 0 | H39: ='D2'!H$9 -> 20 | I39: ='D2'!I$9 -> 20 | J39: ='D2'!J$9 -> 0 | K39: ='D2'!D$31 -> 0 | L39: ='D2'!E$31 -> 0 | M39: ='D2'!F$31 -> 0 | N39: ='D2'!G$31 -> 6.666666667 | O39: ='D2'!H$31 -> 6.666666667 | P39: ='D2'!I$31 -> 6.666666667 | Q39: ='D2'!J$31 -> 6.666666667 | R39: ='D2'!K$31 -> 6.666666667 | S39: ='D2'!L$31 -> 6.666666667
A40: D2.2 | C40: Strengthened Partnerships and study tours | D40: 172 | E40: 0.2866666667 | F40: ='D2'!F$14 -> 0 | G40: ='D2'!G$14 -> 0 | H40: ='D2'!H$14 -> 0 | I40: ='D2'!I$14 -> 172 | J40: ='D2'!J$14 -> 0 | K40: ='D2'!D$32 -> 0 | L40: ='D2'!E$32 -> 45.5 | M40: ='D2'!F$32 -> 20.9 | N40: ='D2'!G$32 -> 22.7 | O40: ='D2'!H$32 -> 20.9 | P40: ='D2'!I$32 -> 18.5 | Q40: ='D2'!J$32 -> 12.5 | R40: ='D2'!K$32 -> 18.5 | S40: ='D2'!L$32 -> 12.5
A41: D3.1 | B41: D3: Training/Meetings & Outreach | C41: Annual Water Resources Knowledge Forum | D41: 78 | E41: 0.13 | F41: ='D3'!F$9 -> 8 | G41: ='D3'!G$9 -> 0 | H41: ='D3'!H$9 -> 20 | I41: ='D3'!I$9 -> 50 | J41: ='D3'!J$9 -> 0 | K41: ='D3'!D$31 -> 0 | L41: ='D3'!E$31 -> 3.5 | M41: ='D3'!F$31 -> 13.8 | N41: ='D3'!G$31 -> 6.3 | O41: ='D3'!H$31 -> 9.8 | P41: ='D3'!I$31 -> 12.6 | Q41: ='D3'!J$31 -> 20.1 | R41: ='D3'!K$31 -> 9.1 | S41: ='D3'!L$31 -> 2.8
A42: D3.2 | C42: Class room Training/Meetings and multi-media distance learning | D42: 195 | E42: 0.325 | F42: ='D3'!F$14 -> 10 | G42: ='D3'!G$14 -> 0 | H42: ='D3'!H$14 -> 40 | I42: ='D3'!I$14 -> 135 | J42: ='D3'!J$14 -> 10 | K42: ='D3'!D$32 -> 0 | L42: ='D3'!E$32 -> 21.875 | M42: ='D3'!F$32 -> 25.875 | N42: ='D3'!G$32 -> 25.875 | O42: ='D3'!H$32 -> 25.875 | P42: ='D3'!I$32 -> 23.875 | Q42: ='D3'!J$32 -> 23.875 | R42: ='D3'!K$32 -> 23.875 | S42: ='D3'!L$32 -> 23.875
A43: D4.1 | B43: D4: Project Management and Technical assistance | C43: Establishment of a permanent WRIS/HIS Coordination Secretariat and PMUs at State level | D43: 0 | E43: 0 | F43: ='D4'!F$9 -> 0 | G43: ='D4'!G$9 -> 0 | H43: ='D4'!H$9 -> 0 | I43: ='D4'!I$9 -> 0 | J43: ='D4'!J$9 -> 0 | K43: ='D4'!D$31 -> 0 | L43: ='D4'!E$31 -> 0 | M43: ='D4'!F$31 -> 0 | N43: ='D4'!G$31 -> 0 | O43: ='D4'!H$31 -> 0 | P43: ='D4'!I$31 -> 0 | Q43: ='D4'!J$31 -> 0 | R43: ='D4'!K$31 -> 0 | S43: ='D4'!L$31 -> 0
A44: D4.2 | C44: Technical Assistance and Management Consultancy at HIS-CS and State level | D44: 72 | E44: 0.12 | F44: ='D4'!F$14 -> 0 | G44: ='D4'!G$14 -> 0 | H44: ='D4'!H$14 -> 72 | I44: ='D4'!I$14 -> 0 | J44: ='D4'!J$14 -> 0 | K44: ='D4'!D$32 -> 0 | L44: ='D4'!E$32 -> 14.4 | M44: ='D4'!F$32 -> 14.4 | N44: ='D4'!G$32 -> 9 | O44: ='D4'!H$32 -> 9 | P44: ='D4'!I$32 -> 9 | Q44: ='D4'!J$32 -> 9 | R44: ='D4'!K$32 -> 7.2 | S44: ='D4'!L$32 -> 0
A45: D5.1 | B45: D5: Incremental staff cost | C45: Incremental staff cost for O&M of HIS/WRIS | D45: 264 | E45: =+D45/10/G$3 -> 0.44 | F45: ='D5'!F$9 -> 0 | G45: ='D5'!G$9 -> 0 | H45: ='D5'!H$9 -> 0 | I45: ='D5'!I$9 -> 0 | J45: ='D5'!J$9 -> 264 | K45: ='D5'!D$31 -> 0 | L45: ='D5'!E$31 -> 0 | M45: ='D5'!F$31 -> 37.71428571 | N45: ='D5'!G$31 -> 37.71428571 | O45: ='D5'!H$31 -> 37.71428571 | P45: ='D5'!I$31 -> 37.71428571 | Q45: ='D5'!J$31 -> 37.71428571 | R45: ='D5'!K$31 -> 37.71428571 | S45: ='D5'!L$31 -> 37.71428571
B46: Sub-total component D | D46: =SUBTOTAL(9,D35:D45) -> 1670.025 | E46: =SUBTOTAL(9,E35:E45) -> 2.783375 | F46: 346.4 | G46: 340 | H46: 172 | I46: 387 | J46: 424.625 | K46: 0 | L46: 167.775 | M46: 234.3342857 | N46: 339.9717857 | O46: 310.9467857 | P46: 146.7467857 | Q46: 191.7467857 | R46: 162.9567857 | S46: 115.5467857
B47: Total components A - D | D47: =SUBTOTAL(9,D7:D46) -> 3295.815 | E47: =SUBTOTAL(9,E7:E46) -> 5.493025 | F47: 1042.69 | G47: 495 | H47: 773.5 | I47: 482 | J47: 502.625 | K47: 0 | L47: 218.175 | M47: 546.40875 | N47: 640.28375 | O47: 379.13 | P47: 420.578125 | Q47: 532.923125 | R47: 327.475625 | S47: 230.840625
C48: Contingency 10% | D48: =D47*0.1 -> 329.5815 | E48: =E47*0.1 -> 0.5493025 | F48: 104.269 | G48: 49.5 | H48: 77.35 | I48: 48.2 | J48: 50.2625 | K48: 0 | L48: 21.8175 | M48: 54.640875 | N48: 64.028375 | O48: 37.913 | P48: 42.0578125 | Q48: 53.2923125 | R48: 32.7475625 | S48: 23.0840625
C49: Full Project Cost. | D49: =SUM(D47:D48) -> 3625.3965 | E49: =SUM(E47:E48) -> 6.0423275 | F49: 1146.959 | G49: 544.5 | H49: 850.85 | I49: 530.2 | J49: 552.8875 | K49: 0 | L49: 239.9925 | M49: 601.049625 | N49: 704.312125 | O49: 417.043 | P49: 462.6359375 | Q49: 586.2154375 | R49: 360.2231875 | S49: 253.9246875

Sheet Legend
B1: Cost Estimate for HP-III
B2: Major Project components of the proposed ‘India Water Resources Management and Hydrology Project Phase 3’
B4: S. No | C4: Sub-Component | D4: Major Activities | E4: Primary IA | F4: Explanatory Notes
B5: A | C5: Improving Water Resources Monitoring System (WRMS)
B6: A1.1 | C6: A1: Improvement of Water Resources Monitoring Systems | D6: Expand and upgrade water resources monitoring systems. | E6: States/Central | F6: WRMS system may include: • Weather: automatic weather stations, rainfall and snow gages • Rivers: stage/discharge of rivers, water quality, rating curve updating • Groundwater: levels, water quality • Reservoirs/tanks: water levels, gate positions, outflows and spillways, update rating curves • Sediment: transport and load monitoring • Coastal monitoring • Diversions, water use and irrigation monitoring This will involve procurement of equipment for monitoring and services for commissioning, operation and maintenance. Generally, two years warranty and five years annual maintenance needs to be included in procurement documents (Refer to BBMB and Maharashtra contracts for RTDAS, RTDSS real-time, real-time flood forecasting).
B7: A1.2 | D7: Set monitoring standards: water quantity/quality, QAQC methods | E7: Central/States | F7: During HP1 and HP2, water quality standards, QA and AQC procedures and monitoring protocols were set by the project. Central agenies to develop standards and state agencies to implement. Application of these procedures will be strengthened and WQ laboratories need to be rationalized.
B8: A1.3 | D8: Community based monitoring and water management | E8: States/Central | F8: • Pilot a community based, mobile monitoring system for small streams, groundwater, water bodies, flooding, embankment status (crowd sourcing) • Procurement of mobile based services and mobilizing the communities for the monitoring of local water resources. NRSC/ISRO has already piloted this approach.
B9: A2.1 | C9: A2: Database Population and Maintenance | D9: Digitize and integrate paper data, maps and doc | E9: State agencies | F9: Services/manpower to digitize.
B10: A2.2 | D10: Develop spatial river basin information systems including themes provided in India-WRIS | E10: States, CWC and CGWB | F10: • Themes may include: Water bodies and their usage, Canal system networks, Groundwater systems, Land use, irrigation systems, Inventories of water pollution. • Services to digitize the map. IAs can take help of NRSC/ISRO imageries
B11: A2.3 | D11: Upgrade centralized and web-based data entry, data storage, data management and data dissemination systems, including: e-SWIS, e-GEMS, e-WQIS and India-WRIS | E11: Central | F11: • e-SWIS, e-GEMS and e-WQIS were developed during HP-2. Phase 3 may support AMC, system extension and upgrading. • This sub-component would also aim at (re)establishing and strengthening data sharing and data validation protocols across state and central agencies.
B12: A3.1 | C12: A3: Targeted Surveys in Selected Areas | D12: Reservoir sedimentation surveys | E12: States | F12: Procurement of services/equipments
B13: A3.2 | D13: Bathymetric river surveys in critical areas | E13: States | F13: Procurement of services.
B14: A3.3 | D14: Assess water quality/waste loads | E14: States | F14: Design monitoring system to assess loading, fate and transport of constituents within water quality limited hotspots
B15: A3.4 | D15: Groundwater exploration and aquifer mapping | E15: States/CGWB | F15: States need to match their hotspots with CGWB in order to avoid duplication.
B16: B | C16: Improving Water Resources Information Systems (WRIS)
B17: B1.1 | C17: B1: Centralized Spatial Dataset | D17: • Development of DEM for the entire country for improved flood hazard mapping and other planning purposes • High resolution surveys such as LIDAR for flood prone areas and for purpose of flood risk mapping (<4000 km2) • High resolution remote sensing imageries and other supplementary information to develop DEM for other areas | E17: Survey of India/NRSC | F17: • Procurement of LiDAR or similar surveys. • Sharing protocol between central agencies and states needs to be streamlined to avoid delays. • Provision of high resolution imageries.
B18: B1.2 | D18: Temporal and spatial Earth Observation (EO) products for the entire country (including upper catchments in Himalayas). | E18: IMD/NRSC/States | F18: Temporal assessments may include but not be limited to: • Estimation of precipitation, snow cover and snow melt, soil moisture, land use and actual evapotranspiration (ET) • Runoff estimates as the basis for flood forecasting and reservoir operations (Hydro-India; see VIC model of NRSC); see also B2.3 • Satellite based monitoring of cropping patterns, crop conditions, droughts and water supply conditions in irrigation systems • Satellite based monitoring of water logging, water storage in tanks and other water bodies.
B19: B1.3 | D19: Develop multiple short- and medium range weather forecasting products | E19: IMD/NRSC/ISRO | F19: • Improvement of flow forecasting, reservoir operations, crop planning, drought management, etc. • Collaborate with international agencies as required to process ensemble forecast.
B20: B2.1 | C20: B2: Water Resources Information System | D20: Strengthening India’s National WRIS web-based portal for water resources information. Introduce State Chapters to India WRIS | E20: MoWR/CWC/States | F20: • Implementation of central and state wise data storage and data dissemination systems (software; cloud computing and processing, etc.); Integrate WRIS with monitoring data from radars and satellite products; curated spatial information from legacy data and surveys. Requires active exchange platform between states and center • Provide easy access to CMIP5 climate change projections for India for the purpose of Climate Risk Assessments.
B21: B2.2 | D21: Development of a web-based hydrological modelling system for the entire country | E21: CWC/NRSC | F21: Hydro-India model can be based on existing VIC model of NRSC and will support States in design studies, DSS applications and flood forecasting
B22: B3.1 | C22: B3: Public-Domain Services | D22: Provide public-domain information services | E22: CWC/CGWB/NRSC | F22: • This would allow integrating online data available in other sources/departments/international sources. Also link digital-online libraries. • The same system will be updated with information products such as online yearbooks, online interactive atlases, customizable interactive visualization dashboards, benchmarking products. • Customizable knowledge portals and mobile Apps; Bulletins (e.g. flood forecasting)
B23: C | C23: Water Resources Management Applications (WRMA)
B24: C1.1 | C24: C1: Water Resources Management Tools | D24: Planning and Decision Support Systems (DSS) | E24: States/River Basin Bodies | F24: Systems for river basin planning; water balance assessments; development and pilot-based introduction of community based groundwater management, climate risk assessment, water quality management, watershed planning, scenario analysis for investment planning; improvement of design tools such as Hydrological Design Aids.
B25: C1.2 | D25: Stream Flow/Flood Forecasting Systems for short-term and seasonal forecasts | E25: States/River Basin bodies | F25: This would help understand seasonal forecasts for floods, flows, inundation, droughts.
B26: C1.3 | D26: Operational Management Systems | E26: States/River Basin bodies | F26: For reservoirs, irrigation systems operations, flood preparedness, spill management, and other water infrastructure
B27: C2.1 | C27: C2: Water Knowledge Products | D27: Flagship Knowledge Products | E27: States/River Basin bodies | F27: Such as River Basin Management Plans, Status of India’s Water Resources
B28: C2.2 | D28: Purpose Driven Studies | E28: All IAs | F28: This would/may include monitoring, information generation and studies of specific issues, as conducted under HP-II, including also Climate Risk Assessments of present and planned WR infrastructure
B29: D | C29: Improving Water Resources Institutions and Capacity Building (WRICB)
B30: D1.1 | C30: D1: Integrated Water Resources Knowledge Centers | D30: Establishment of the National Water Informatics Center | E30: MoWR | F30: • Center will be strengthened with Deputed Experts from various Departments. This would lead to an integrated Center of Excellence for water resources knowledge and analysis, including use of modern modeling tools; provision of national helpdesk services. • Project will support building and equipment, trained manpower, exchange with international/national agencies
B31: D1.2 | D31: Establishment of State/Basin Water Informatics Centers ; upgrading WALMIs | E31: State/River Basin bodies | F31: Facilities, trained manpower, exchange with international/national agencies; strengthening WALMIs to provide technical support to State IAs, including regarding improvement of irrigation system management.
B32: D1.3 | D32: Upgrading regional and (sub-) divisional offices and vehicles | E32: Central/States | F32: Divisional data centers, office and laboratory infrastructure and vehicles
B33: D1.4 | D33: Institutional Modernization Support, incl. ITC systems for offices and Data Centers | E33: Central/States | F33: Information management tools, e.g. ICT incl. cloud-based systems, videoconferencing systems, displays, softwares, manuals, information systems design
B34: D2.1 | C34: D2: Water Resources Capacity-Building | D34: Policy Support | F34: Policy on data pooling, data quality management, enhancing public-domain information.
B35: D2.2 | D35: Strengthened Partnerships and study tours | F35: Strengthened Partnerships with earth observation data and other knowledge providers, open data initiatives, academia, CSOs, internships/visiting experts/development assignments, international exchange program, and overseas and domestic study tours
B36: D3.1 | C36: D3: Training/Meetings & Outreach | D36: Annual Water Resources Knowledge Forum | E36: All | F36: This would support showcasing the best of what India has to offer and facilitate knowledge exchange; also various competitions may be introduced (e.g. Online Tools, Appathons, Hackathons).
B37: D3.2 | D37: Class room Training/Meetings and multi-media distance learning | F37: This will include curriculum development, technical courses, refresher courses, Training/Meetings in use of EO products readily available, etc. Multi-media distance learning may include videoconferencing, e-learning (e.g. self-paced courses, webinars, MOOC), vendor fairs, regular video & audio podcasts, documentaries.
B38: D4.1 | C38: D4: Project Management and Technical assistance | D38: Establishment of a permanent WRIS/HIS Coordination Secretariat and PMUs at State level | E38: MoWR | F38: Building on the present PCS, but with larger autonomy in financial and technical decision making regarding WRIS and the Project; support to Project Management Units at State level
B39: D4.2 | D39: Technical Assistance and Management Consultancy at HIS-CS and State level | E39: States | F39: TAMC Consultancy for technical assistance and support for procurement, financial management, and MIS and M&E services; general TA support at State level
B40: D5.1 | C40: D5: Incremental staff cost | D40: Incremental staff cost for O&M of HIS/WRIS | E40: All agencies | F40: Total cost to be included for each year, even though staff cost are generally reimbursed on a gliding scale.

Sheet A1
A1: Cost Estimate for HP-III
B2: Component | C2: A: Improving Water Resources Monitoring System (WRMS)
B3: Sub-Component | C3: A1: Water Resources Monitoring System
B4: Prefix | C4: A1
C5: Go to Abstract | E5: Go to Legend
B6: Cost Summary | E6: Total cost | F6: Procurement Categories (₹ lakhs) | K6: Remarks/ description
B7: Decription | D7: No. | E7: ₹ lakhs | F7: Goods | G7: Civil Works | H7: Consultant Services | I7: Training/ Meetings | J7: Operation Costs
B8: Subcomponents and Activities | E8: =SUM(F8:J8) -> 842.29 | F8: =SUBTOTAL(9,F9:F28) -> 568.29 | G8: =SUBTOTAL(9,G9:G28) -> 155 | H8: =SUBTOTAL(9,H9:H28) -> 56 | I8: =SUBTOTAL(9,I9:I28) -> 14 | J8: =SUBTOTAL(9,J9:J28) -> 49
B9: A1.1. Expand and Upgrade of Water Resources Monitoring Systems | E9: 741.79 | F9: =SUBTOTAL(9,F10:F13) -> 568.29 | G9: =SUBTOTAL(9,G10:G13) -> 105 | H9: =SUBTOTAL(9,H10:H13) -> 37.5 | I9: =SUBTOTAL(9,I10:I13) -> 0 | J9: =SUBTOTAL(9,J10:J13) -> 31
B10: 1.1 Meteorological monitoring | D10: =$C$4 & ".1.1" -> A1.1.1 | E10: 239.65 | F10: =G40 -> 180.4 | G10: =G119 -> 35.5 | H10: =G156 -> 18 | I10: =G179 -> 0 | J10: =G206 -> 5.75
B11: 1.2 Surface Water monitoring, incl. water use | D11: =$C$4 & ".1.2" -> A1.1.2 | E11: 260.99 | F11: =G52 -> 237.24 | G11: =G128 -> 21.5 | H11: =G161 -> 0 | I11: =G185 -> 0 | J11: =G212 -> 2.25
B12: 1.3 Groundwater monitoring, incl. water use | D12: =$C$4 & ".1.3" -> A1.1.3 | E12: 142.39 | F12: =G77 -> 81.39 | G12: =G139 -> 48 | H12: =G166 -> 5 | I12: =G191 -> 0 | J12: =G218 -> 8
B13: 1.4 Water Quality monitoring | D13: =$C$4 & ".1.4" -> A1.1.4 | E13: 98.76 | F13: =G87 -> 69.26 | G13: =G148 -> 0 | H13: =G171 -> 14.5 | I13: =G197 -> 0 | J13: =G224 -> 15
B14: A1.2. Set monitoring standards: water quantity/quality, QA-QC methods | E14: =SUM(F14:J14) -> 27.5 | F14: =SUBTOTAL(9,F15:F18) -> 0 | G14: =SUBTOTAL(9,G15:G18) -> 0 | H14: =SUBTOTAL(9,H15:H18) -> 13.5 | I14: =SUBTOTAL(9,I15:I18) -> 6 | J14: =SUBTOTAL(9,J15:J18) -> 8
B15: 2.1 Develop WQ Standards (CPCB) | D15: =$C$4 & ".2.1" -> A1.2.1 | E15: 0 | F15: =G237 -> 0 | G15: =G264 -> 0 | H15: =G291 -> 0 | I15: =G316 -> 0 | J15: =G340 -> 0 | K15: CPCB
B16: 2.2 Implement WQ Standards and AQC (States) | D16: =$C$4 & ".2.2" -> A1.2.2 | E16: 16.5 | F16: =G243 -> 0 | G16: =G270 -> 0 | H16: =G296 -> 4.5 | I16: =G320 -> 4 | J16: =G346 -> 8 | K16: CPCB/States
B17: 2.3 Implement inter-agency data sharing and data validation | D17: =$C$4 & ".2.3" -> A1.2.3 | E17: 11 | F17: =G249 -> 0 | G17: =G276 -> 0 | H17: =G301 -> 9 | I17: =G325 -> 2 | J17: =G352 -> 0
B18: 2.4 xxxxxx | D18: =$C$4 & ".2.4" -> A1.2.4 | E18: 0 | F18: =G255 -> 0 | G18: =G282 -> 0 | H18: =G307 -> 0 | I18: =G331 -> 0 | J18: =G358 -> 0
B19: A1.3. Community based monitoring and water management | E19: =SUM(F19:J19) -> 73 | F19: =SUBTOTAL(9,F20:F23) -> 0 | G19: =SUBTOTAL(9,G20:G23) -> 50 | H19: =SUBTOTAL(9,H20:H23) -> 5 | I19: =SUBTOTAL(9,I20:I23) -> 8 | J19: =SUBTOTAL(9,J20:J23) -> 10
B20: 3.1 GW management with community participation | D20: =$C$4 & ".3.1" -> A1.3.1 | E20: 8 | F20: =G368 -> 0 | G20: =G395 -> 0 | H20: =G422 -> 0 | I20: =G446 -> 3 | J20: =G469 -> 5
B21: 3.2 Rainwater harvesting pilot project | D21: =$C$4 & ".3.2" -> A1.3.2 | E21: 65 | F21: =G374 -> 0 | G21: =G401 -> 50 | H21: =G428 -> 5 | I21: =G451 -> 5 | J21: =G475 -> 5
B22: 3.3 Mobile monitoring systems for small water bodies | D22: =$C$4 & ".3.3" -> A1.3.3 | E22: 0 | F22: =G380 -> 0 | G22: =G407 -> 0 | H22: =G433 -> 0 | I22: =G456 -> 0 | J22: =G481 -> 0
B23: 3.4 Mobile monitoring systems for small water bodies | D23: =$C$4 & ".3.4" -> A1.3.4 | E23: 0 | F23: =G386 -> 0 | G23: =G413 -> 0 | H23: =G438 -> 0 | I23: =G461 -> 0 | J23: =G487 -> 0
B24: Extra | E24: =SUM(F24:J24) -> 0 | F24: =SUBTOTAL(9,F25:F28) -> 0 | G24: =SUBTOTAL(9,G25:G28) -> 0 | H24: =SUBTOTAL(9,H25:H28) -> 0 | I24: =SUBTOTAL(9,I25:I28) -> 0 | J24: =SUBTOTAL(9,J25:J28) -> 0
B25: None 4.1 | D25: =$C$4 & ".4.1" -> A1.4.1 | E25: 0 | F25: =G497 -> 0 | G25: =G524 -> 0 | H25: =G551 -> 0 | I25: =G578 -> 0 | J25: =G605 -> 0
B26: None 4.2 | D26: =$C$4 & ".4.2" -> A1.4.2 | E26: 0 | F26: =G503 -> 0 | G26: =G530 -> 0 | H26: =G557 -> 0 | I26: =G584 -> 0 | J26: =G611 -> 0
B27: None 4.3 | D27: =$C$4 & ".4.3" -> A1.4.3 | E27: 0 | F27: =G509 -> 0 | G27: =G536 -> 0 | H27: =G563 -> 0 | I27: =G590 -> 0 | J27: =G617 -> 0
B28: None 4.4 | D28: =$C$4 & ".4.4" -> A1.4.4 | E28: 0 | F28: =G515 -> 0 | G28: =G542 -> 0 | H28: =G569 -> 0 | I28: =G596 -> 0 | J28: =G623 -> 0
C29: Financial Year | D29: FY 15 | E29: FY 16 | F29: FY 17 | G29: FY 18 | H29: FY 19 | I29: FY 20 | J29: FY 21 | K29: FY 22 | L29: FY 23
C30: Cost Outlay (₹ lakhs) | D30: =SUM(D31:D34) -> 0 | E30: =SUM(E31:E34) -> 28.3 | F30: 233.3316071 | G30: 253.1291071 | H30: 25.15035714 | I30: 80.10848214 | J30: 99.95348214 | K30: 64.59598214 | L30: 57.72098214
C31: =$C$4 & ".1" -> A1.1 | D31: =N39+N118+N155+N178+N205 -> 0 | E31: 28.3 | F31: 230.68875 | G31: 245.98625 | H31: 22.5075 | I31: 61.715625 | J31: 62.060625 | K31: 41.203125 | L31: 49.328125
C32: =$C$4 & ".2" -> A1.2 | D32: =N236+N263+N290+N315+N339 -> 0 | E32: 0 | F32: 2.642857143 | G32: 7.142857143 | H32: 2.642857143 | I32: 2.642857143 | J32: 7.142857143 | K32: 2.642857143 | L32: 2.642857143
C33: =$C$4 & ".3" -> A1.3 | D33: =N367+N394+N421+N445+N468 -> 0 | E33: 0 | F33: 0 | G33: 0 | H33: 0 | I33: 15.75 | J33: 30.75 | K33: 20.75 | L33: 5.75
C34: =$C$4 & ".4" -> A1.4 | D34: =N496+N523+N550+N577+N604 -> 0 | E34: 0 | F34: 0 | G34: 0 | H34: 0 | I34: 0 | J34: 0 | K34: 0 | L34: 0
B36: Worksheets
B37: =B9 -> A1.1. Expand and Upgrade of Water Resources Monitoring Systems
B38: ="Goods: " & $B$9 -> Goods: A1.1. Expand and Upgrade of Water Resources Monitoring Systems | F38: Cost per Unit (₹ lakhs) | G38: Total | H38: Telemetry Type | N38: FY15 | O38: FY16 | P38: FY17 | Q38: FY18 | R38: FY19 | S38: FY20 | T38: FY21 | U38: FY22 | V38: FY23 | W38: Total
C39: Items | D39: Activity | E39: Number | G39: =SUBTOTAL(9,G41:G115) -> 568.29 | H39: Telemetry Type | I39: Remarks | M39: Total Annual Outlay (₹ lakhs) | N39: =SUM($G41:$G115*N41:N115) -> 0 | O39: =SUM($G41:$G115*O41:O115) -> 0 | P39: =SUM($G41:$G115*P41:P115) -> 184.86375 | Q39: =SUM($G41:$G115*Q41:Q115) -> 188.22875 | R39: =SUM($G41:$G115*R41:R115) -> 4.4 | S39: =SUM($G41:$G115*S41:S115) -> 55.550625 | T39: =SUM($G41:$G115*T41:T115) -> 55.895625 | U39: =SUM($G41:$G115*U41:U115) -> 35.038125 | V39: =SUM($G41:$G115*V41:V115) -> 44.313125 | W39: =SUM(N39:V39) -> 568.29
B40: =$B$10 -> 1.1 Meteorological monitoring | G40: =SUBTOTAL(9,G41:G51) -> 180.4
B41: 1 | C41: AWS (Telemetry) | D41: A1.1.1 | E41: 5 | F41: 11.3 | G41: =ROUND(E41*F41,2) -> 56.5 | H41: GSM | N41: 0 | O41: 0 | P41: 0.375 | Q41: 0.375 | R41: 0 | S41: 0.0625 | T41: 0.0625 | U41: 0.0625 | V41: 0.0625 | W41: =SUM(N41:V41) -> 1
B42: =B41+0.01 -> 1.01 | C42: Digital Rain Gauges (DRG) | D42: A1.1.1 | E42: 20 | F42: 0.76 | G42: 15.2 | N42: 0 | O42: 0 | P42: 0.375 | Q42: 0.375 | R42: 0 | S42: 0.0625 | T42: 0.0625 | U42: 0.0625 | V42: 0.0625 | W42: 1
B43: 1.02 | C43: Digital Rain Gauges (DRG) (Telemetry) | D43: A1.1.1 | E43: 10 | F43: 5.47 | G43: =ROUND(E43*F43,2) -> 54.7 | H43: VSAT | N43: 0 | O43: 0 | P43: 0 | Q43: 0 | R43: 0 | S43: 0.375 | T43: 0.375 | U43: 0 | V43: 0.25 | W43: 1
B44: 1.03 | C44: Service and Database Software for GSM/VSAT | D44: A1.1.1 | E44: 1 | F44: 54 | G44: 54 | H44: GSM/VSAT | I44: Supports all telemetred systems | N44: 0 | O44: 0 | P44: 0.375 | Q44: 0.375 | R44: 0 | S44: 0.0625 | T44: 0.0625 | U44: 0.0625 | V44: 0.0625 | W44: 1
B45: 1.04 | E45: 0 | F45: 0 | G45: 0 | N45: 0 | O45: 0 | P45: 0 | Q45: 0 | R45: 0 | S45: 0 | T45: 0 | U45: 0 | V45: 0 | W45: 0
B46: 1.05 | E46: 0 | F46: 0 | G46: 0 | N46: 0 | O46: 0 | P46: 0 | Q46: 0 | R46: 0 | S46: 0 | T46: 0 | U46: 0 | V46: 0 | W46: 0
B47: 1.06 | E47: 0 | F47: 0 | G47: 0 | N47: 0 | O47: 0 | P47: 0 | Q47: 0 | R47: 0 | S47: 0 | T47: 0 | U47: 0 | V47: 0 | W47: 0
B48: 1.07 | E48: 0 | F48: 0 | G48: 0 | N48: 0 | O48: 0 | P48: 0 | Q48: 0 | R48: 0 | S48: 0 | T48: 0 | U48: 0 | V48: 0 | W48: 0
B49: 1.08 | E49: 0 | F49: 0 | G49: =ROUND(E49*F49,2) -> 0 | N49: 0 | O49: 0 | P49: 0 | Q49: 0 | R49: 0 | S49: 0 | T49: 0 | U49: 0 | V49: 0 | W49: 0
B50: 1.09 | E50: 0 | F50: 0 | G50: 0 | N50: 0 | O50: 0 | P50: 0 | Q50: 0 | R50: 0 | S50: 0 | T50: 0 | U50: 0 | V50: 0 | W50: 0
B51: 1.1 | E51: 0 | F51: 0 | G51: 0 | N51: 0 | O51: 0 | P51: 0 | Q51: 0 | R51: 0 | S51: 0 | T51: 0 | U51: 0 | V51: 0 | W51: 0
B52: =$B$11 -> 1.2 Surface Water monitoring, incl. water use | G52: =SUBTOTAL(9,G53:G76) -> 237.24
B53: =B51+0.01 -> 1.11 | C53: AWLR - shaft encoder type (Telemetry) | D53: A1.1.2 | E53: 3 | F53: 3.57 | G53: =ROUND(E53*F53,2) -> 10.71 | H53: GSM | N53: 0 | O53: 0 | P53: 0.375 | Q53: 0.375 | R53: 0 | S53: 0.0625 | T53: 0.0625 | U53: 0.0625 | V53: 0.0625 | W53: 1
B54: =B53+0.01 -> 1.12 | C54: AWLR - bubbler type (Telemetry) | D54: A1.1.2 | E54: 5 | F54: 10.4 | G54: 52 | H54: VSAT | N54: 0 | O54: 0 | P54: 0.375 | Q54: 0.375 | R54: 0 | S54: 0.0625 | T54: 0.0625 | U54: 0.0625 | V54: 0.0625 | W54: 1
B55: =B54+0.01 -> 1.13 | C55: AWLR - Radar 30 M (Telemetry) | D55: A1.1.2 | E55: 5 | F55: 8.51 | G55: 42.55 | H55: VSAT | N55: 0 | O55: 0 | P55: 0.375 | Q55: 0.375 | R55: 0 | S55: 0.0625 | T55: 0.0625 | U55: 0.0625 | V55: 0.0625 | W55: 1
B56: 1.14 | C56: Gauge plates / staff gauge | D56: A1.1.2 | E56: 30 | F56: 0.046 | G56: 1.38 | N56: 0 | O56: 0 | P56: 0.75 | Q56: 0 | R56: 0 | S56: 0 | T56: 0.25 | U56: 0 | V56: 0 | W56: 1
B57: 1.15 | C57: Current Meter with accessories | D57: A1.1.2 | E57: 4 | F57: 4.56 | G57: 18.24 | N57: 0 | O57: 0 | P57: 0.375 | Q57: 0.375 | R57: 0 | S57: 0.0625 | T57: 0.0625 | U57: 0.0625 | V57: 0.0625 | W57: 1
B58: =B57+0.01 -> 1.16 | C58: ADCP | D58: A1.1.2 | E58: 2 | F58: 45.7 | G58: 91.4 | N58: 0 | O58: 0 | P58: 0.375 | Q58: 0.375 | R58: 0 | S58: 0.0625 | T58: 0.0625 | U58: 0.0625 | V58: 0.0625 | W58: 1
B59: =B58+0.01 -> 1.17 | E59: 0 | F59: 0 | G59: 0 | N59: 0 | O59: 0 | P59: 0.5 | Q59: 0.5 | R59: 0 | S59: 0 | T59: 0 | U59: 0 | V59: 0 | W59: 1
B60: 1.18 | E60: 0 | F60: 0 | G60: 0 | N60: 0 | O60: 0 | P60: 0 | Q60: 0 | R60: 0 | S60: 0 | T60: 0 | U60: 0 | V60: 0 | W60: 0
B61: 1.19 | E61: 0 | F61: 0 | G61: 0 | N61: 0 | O61: 0 | P61: 0 | Q61: 0 | R61: 0 | S61: 0 | T61: 0 | U61: 0 | V61: 0 | W61: 0
B62: 1.2 | E62: 0 | F62: 0 | G62: =ROUND(E62*F62,2) -> 0 | N62: 0 | O62: 0 | P62: 0 | Q62: 0 | R62: 0 | S62: 0 | T62: 0 | U62: 0 | V62: 0 | W62: 0
B63: 1.21 | E63: 0 | F63: 0 | G63: 0 | N63: 0 | O63: 0 | P63: 0 | Q63: 0 | R63: 0 | S63: 0 | T63: 0 | U63: 0 | V63: 0 | W63: 0
B64: 1.22 | E64: 0 | F64: 0 | G64: 0 | N64: 0 | O64: 0 | P64: 0 | Q64: 0 | R64: 0 | S64: 0 | T64: 0 | U64: 0 | V64: 0 | W64: 0
B65: Additional Equipment
B66: =B64+0.01 -> 1.23 | C66: Boats with Outboard engines | D66: A1.1.2 | E66: 1 | F66: 3 | G66: =ROUND(E66*F66,2) -> 3 | N66: 0 | O66: 0 | P66: 0.375 | Q66: 0.375 | R66: 0 | S66: 0.0625 | T66: 0.0625 | U66: 0.0625 | V66: 0.0625 | W66: 1
B67: 1.24 | C67: Boats without OB engines | D67: A1.1.2 | E67: 0 | F67: 2 | G67: =ROUND(E67*F67,2) -> 0 | N67: 0 | O67: 0 | P67: 0.375 | Q67: 0.375 | R67: 0 | S67: 0.0625 | T67: 0.0625 | U67: 0.0625 | V67: 0.0625 | W67: 1
B68: 1.25 | C68: Bridge outfits | D68: A1.1.2 | E68: 2 | F68: 2 | G68: 4 | N68: 0 | O68: 0 | P68: 0.375 | Q68: 0.375 | R68: 0 | S68: 0.0625 | T68: 0.0625 | U68: 0.0625 | V68: 0.0625 | W68: 1
B69: 1.26 | C69: Cableways | D69: A1.1.2 | E69: 0 | F69: 0 | G69: 0 | N69: 0 | O69: 0 | P69: 0 | Q69: 0 | R69: 0 | S69: 0 | T69: 0 | U69: 0 | V69: 0 | W69: 0
B70: 1.27 | C70: Total Station | D70: A1.1.2 | E70: 0 | F70: 0 | G70: 0 | N70: 0 | O70: 0 | P70: 0 | Q70: 0 | R70: 0 | S70: 0 | T70: 0 | U70: 0 | V70: 0 | W70: 0
B71: 1.28 | C71: Theodolite | D71: A1.1.2 | E71: 0 | F71: 0 | G71: 0 | N71: 0 | O71: 0 | P71: 0 | Q71: 0 | R71: 0 | S71: 0 | T71: 0 | U71: 0 | V71: 0 | W71: 0
B72: 1.29 | C72: Levels | D72: A1.1.2 | E72: 0 | F72: 0 | G72: 0 | N72: 0 | O72: 0 | P72: 0 | Q72: 0 | R72: 0 | S72: 0 | T72: 0 | U72: 0 | V72: 0 | W72: 0
B73: 1.3 | C73: GPS – Hand held | D73: A1.1.2 | E73: 10 | F73: 0.18 | G73: 1.8 | N73: 0 | O73: 0 | P73: 0.375 | Q73: 0.375 | R73: 0 | S73: 0.0625 | T73: 0.0625 | U73: 0.0625 | V73: 0.0625 | W73: 1
B74: 1.31 | C74: Differential GPS | D74: A1.1.2 | E74: 2 | F74: 6.08 | G74: 12.16 | N74: 0 | O74: 0 | P74: 0.375 | Q74: 0.375 | R74: 0 | S74: 0.0625 | T74: 0.0625 | U74: 0.0625 | V74: 0.0625 | W74: 1
B75: 1.32 | E75: 0 | F75: 0 | G75: 0 | N75: 0 | O75: 0 | P75: 0 | Q75: 0 | R75: 0 | S75: 0 | T75: 0 | U75: 0 | V75: 0 | W75: 0
B76: =B75+0.01 -> 1.33 | E76: 0 | F76: 0 | G76: 0 | N76: 0 | O76: 0 | P76: 0 | Q76: 0 | R76: 0 | S76: 0 | T76: 0 | U76: 0 | V76: 0 | W76: 0
B77: =$B$12 -> 1.3 Groundwater monitoring, incl. water use | G77: =SUBTOTAL(9,G78:G86) -> 81.39
B78: =B76+0.01 -> 1.34 | C78: DWLR | D78: A1.1.3 | E78: 0 | F78: 0 | G78: 0 | N78: 0 | O78: 0 | P78: 0 | Q78: 0 | R78: 0 | S78: 0 | T78: 0 | U78: 0 | V78: 0 | W78: 0
B79: 1.35 | C79: DWLR (Telemetry) | D79: A1.1.3 | E79: 40 | F79: 1.75 | G79: 70 | H79: GSM | N79: 0 | O79: 0 | P79: 0.375 | Q79: 0.375 | R79: 0 | S79: 0.0625 | T79: 0.0625 | U79: 0.0625 | V79: 0.0625 | W79: 1
B80: 1.36 | C80: Sampling pump | D80: A1.1.3 | E80: 1 | F80: 10.63 | G80: 10.63 | N80: 0 | O80: 0 | P80: 0.375 | Q80: 0.375 | R80: 0 | S80: 0.0625 | T80: 0.0625 | U80: 0.0625 | V80: 0.0625 | W80: 1
B81: =B80+0.01 -> 1.37 | C81: Manual groundwater level indicator | D81: A1.1.3 | E81: 2 | F81: 0.38 | G81: 0.76 | I81: WL Indicator, measuring tape, stop watch | N81: 0 | O81: 0 | P81: 0.375 | Q81: 0.375 | R81: 0 | S81: 0.0625 | T81: 0.0625 | U81: 0.0625 | V81: 0.0625 | W81: 1
B82: 1.38 | E82: 0 | F82: 0 | G82: 0 | N82: 0 | O82: 0 | P82: 0 | Q82: 0 | R82: 0 | S82: 0 | T82: 0 | U82: 0 | V82: 0 | W82: 0
B83: 1.39 | E83: 0 | F83: 0 | G83: 0 | N83: 0 | O83: 0 | P83: 0 | Q83: 0 | R83: 0 | S83: 0 | T83: 0 | U83: 0 | V83: 0 | W83: 0
B84: 1.4 | E84: 0 | F84: 0 | G84: 0 | N84: 0 | O84: 0 | P84: 0 | Q84: 0 | R84: 0 | S84: 0 | T84: 0 | U84: 0 | V84: 0 | W84: 0
B85: 1.41 | E85: 0 | F85: 0 | G85: 0 | N85: 0 | O85: 0 | P85: 0 | Q85: 0 | R85: 0 | S85: 0 | T85: 0 | U85: 0 | V85: 0 | W85: 0
B86: 1.42 | E86: 0 | F86: 0 | G86: 0 | N86: 0 | O86: 0 | P86: 0 | Q86: 0 | R86: 0 | S86: 0 | T86: 0 | U86: 0 | V86: 0 | W86: 0
B87: =$B$13 -> 1.4 Water Quality monitoring | G87: =SUBTOTAL(9,G88:G115) -> 69.26
B88: =B86+0.01 -> 1.43 | C88: AWQS | D88: A1.1.4 | E88: 0 | F88: 0 | G88: =E88*F88 -> 0 | N88: 0 | O88: 0 | P88: 0 | Q88: 0 | R88: 0 | S88: 0 | T88: 0 | U88: 0 | V88: 0 | W88: 0
B89: 1.44 | C89: AWQS (Telemetery) | D89: A1.1.4 | E89: 0 | F89: 29 | G89: 0 | N89: 0 | O89: 0 | P89: 0 | Q89: 0 | R89: 0 | S89: 0 | T89: 0 | U89: 0 | V89: 0 | W89: 0
B90: 1.45 | C90: WQ Field Kit 1 | D90: A1.1.4 | E90: 50 | F90: 0.44 | G90: 22 | I90: 10 locations, 1 per year | N90: 0 | O90: 0 | P90: 0 | Q90: 0.2 | R90: 0.2 | S90: 0.2 | T90: 0.2 | U90: 0.2 | V90: 0 | W90: 1
B91: 1.46 | C91: WQ Field Kit 2 | D91: A1.1.4 | E91: 0 | F91: 0 | G91: 0 | N91: 0 | O91: 0 | P91: 0 | Q91: 0 | R91: 0 | S91: 0 | T91: 0 | U91: 0 | V91: 0 | W91: 0
B92: 1.47 | C92: WQ Field Kit 3 | D92: A1.1.4 | E92: 0 | F92: 0 | G92: 0 | N92: 0 | O92: 0 | P92: 0 | Q92: 0 | R92: 0 | S92: 0 | T92: 0 | U92: 0 | V92: 0 | W92: 0
B93: 1.48 | C93: WQ Field Kit 4 | D93: A1.1.4 | E93: 0 | F93: 0 | G93: 0 | N93: 0 | O93: 0 | P93: 0 | Q93: 0 | R93: 0 | S93: 0 | T93: 0 | U93: 0 | V93: 0 | W93: 0
B94: Laboratory Equpiment
B95: =B93+0.01 -> 1.49 | C95: Air conditioner | D95: A1.1.4 | E95: 1 | F95: 0.76 | G95: =E95*F95 -> 0.76 | N95: 0 | O95: 0 | P95: 0.375 | Q95: 0.375 | R95: 0 | S95: 0.0625 | T95: 0.0625 | U95: 0.0625 | V95: 0.0625 | W95: 1
B96: =B95+0.01 -> 1.5 | C96: Analytical Balance Digital | D96: A1.1.4 | E96: 1 | F96: 1.22 | G96: 1.22 | N96: 0 | O96: 0 | P96: 0.375 | Q96: 0.375 | R96: 0 | S96: 0.0625 | T96: 0.0625 | U96: 0.0625 | V96: 0.0625 | W96: 1
B97: 1.51 | C97: Autoclave | D97: A1.1.4 | E97: 1 | F97: 1.52 | G97: 1.52 | N97: 0 | O97: 0 | P97: 0.375 | Q97: 0.375 | R97: 0 | S97: 0.0625 | T97: 0.0625 | U97: 0.0625 | V97: 0.0625 | W97: 1
B98: 1.52 | C98: Automatic Loop Stabilizer | D98: A1.1.4 | E98: 1 | F98: 1.52 | G98: 1.52 | N98: 0 | O98: 0 | P98: 0.375 | Q98: 0.375 | R98: 0 | S98: 0.0625 | T98: 0.0625 | U98: 0.0625 | V98: 0.0625 | W98: 1
B99: 1.53 | C99: Bacteriological Incubator | D99: A1.1.4 | E99: 1 | F99: 1.52 | G99: 1.52 | N99: 0 | O99: 0 | P99: 0.375 | Q99: 0.375 | R99: 0 | S99: 0.0625 | T99: 0.0625 | U99: 0.0625 | V99: 0.0625 | W99: 1
B100: 1.54 | C100: Common Balance | D100: A1.1.4 | E100: 1 | F100: 0.38 | G100: 0.38 | N100: 0 | O100: 0 | P100: 0.375 | Q100: 0.375 | R100: 0 | S100: 0.0625 | T100: 0.0625 | U100: 0.0625 | V100: 0.0625 | W100: 1
B101: 1.55 | C101: DO Sampler | D101: A1.1.4 | E101: 1 | F101: 0.38 | G101: 0.38 | N101: 0 | O101: 0 | P101: 0.375 | Q101: 0.375 | R101: 0 | S101: 0.0625 | T101: 0.0625 | U101: 0.0625 | V101: 0.0625 | W101: 1
B102: 1.56 | C102: Double Distillation Apparatus | D102: A1.1.4 | E102: 1 | F102: 8.35 | G102: 8.35 | N102: 0 | O102: 0 | P102: 0.375 | Q102: 0.375 | R102: 0 | S102: 0.0625 | T102: 0.0625 | U102: 0.0625 | V102: 0.0625 | W102: 1
B103: 1.57 | C103: EC-TDS Analyzer Micro Processor based | D103: A1.1.4 | E103: 1 | F103: 1.22 | G103: 1.22 | N103: 0 | O103: 0 | P103: 0.375 | Q103: 0.375 | R103: 0 | S103: 0.0625 | T103: 0.0625 | U103: 0.0625 | V103: 0.0625 | W103: =SUM(N103:V103) -> 1
B104: 1.58 | C104: Electronic Balance | D104: A1.1.4 | E104: 4 | F104: 1.22 | G104: 4.88 | N104: 0 | O104: 0 | P104: 0.375 | Q104: 0.375 | R104: 0 | S104: 0.0625 | T104: 0.0625 | U104: 0.0625 | V104: 0.0625 | W104: 1
B105: 1.59 | C105: Flame Photometer | D105: A1.1.4 | E105: 1 | F105: 1.14 | G105: 1.14 | N105: 0 | O105: 0 | P105: 0.375 | Q105: 0.375 | R105: 0 | S105: 0.0625 | T105: 0.0625 | U105: 0.0625 | V105: 0.0625 | W105: 1
B106: 1.6 | C106: Gas Chromotograph | D106: A1.1.4 | E106: 0 | F106: 30.38 | G106: =E106*F106 -> 0 | N106: 0 | O106: 0 | P106: 0.375 | Q106: 0.375 | R106: 0 | S106: 0.0625 | T106: 0.0625 | U106: 0.0625 | V106: 0.0625 | W106: 1
B107: 1.61 | C107: Ion Meter with flouride electrode | D107: A1.1.4 | E107: 1 | F107: 3.04 | G107: 3.04 | N107: 0 | O107: 0 | P107: 0.375 | Q107: 0.375 | R107: 0 | S107: 0.0625 | T107: 0.0625 | U107: 0.0625 | V107: 0.0625 | W107: 1
B108: 1.62 | C108: Laminar Air Flow | D108: A1.1.4 | E108: 1 | F108: 3.8 | G108: 3.8 | N108: 0 | O108: 0 | P108: 0.375 | Q108: 0.375 | R108: 0 | S108: 0.0625 | T108: 0.0625 | U108: 0.0625 | V108: 0.0625 | W108: 1
B109: 1.63 | C109: PH Analyzer Micro Processor based | D109: A1.1.4 | E109: 1 | F109: 0.76 | G109: 0.76 | N109: 0 | O109: 0 | P109: 0.375 | Q109: 0.375 | R109: 0 | S109: 0.0625 | T109: 0.0625 | U109: 0.0625 | V109: 0.0625 | W109: 1
B110: 1.64 | C110: Turbidimeter | D110: A1.1.4 | E110: 1 | F110: 0.76 | G110: 0.76 | N110: 0 | O110: 0 | P110: 0.375 | Q110: 0.375 | R110: 0 | S110: 0.0625 | T110: 0.0625 | U110: 0.0625 | V110: 0.0625 | W110: 1
B111: 1.65 | C111: UV Spectro Photometer | D111: A1.1.4 | E111: 1 | F111: 9.11 | G111: 9.11 | N111: 0 | O111: 0 | P111: 0.375 | Q111: 0.375 | R111: 0 | S111: 0.0625 | T111: 0.0625 | U111: 0.0625 | V111: 0.0625 | W111: 1
B112: 1.66 | C112: Water Quality Analyzer | D112: A1.1.4 | E112: 1 | F112: 1.52 | G112: 1.52 | N112: 0 | O112: 0 | P112: 0.375 | Q112: 0.375 | R112: 0 | S112: 0.0625 | T112: 0.0625 | U112: 0.0625 | V112: 0.0625 | W112: 1
B113: 1.67 | C113: Water Softener | D113: A1.1.4 | E113: 1 | F113: 0.38 | G113: 0.38 | N113: 0 | O113: 0 | P113: 0.375 | Q113: 0.375 | R113: 0 | S113: 0.0625 | T113: 0.0625 | U113: 0.0625 | V113: 0.0625 | W113: 1
B114: 1.68 | C114: Miscellaneous equipment | D114: A1.1.4 | E114: 1 | F114: 5 | G114: 5 | N114: 0 | O114: 0 | P114: 0.375 | Q114: 0.375 | R114: 0 | S114: 0.0625 | T114: 0.0625 | U114: 0.0625 | V114: 0.0625 | W114: 1
B115: =B114+0.01 -> 1.69 | C115: Atomic Absorption Spectro-photometer | D115: A1.1.4 | E115: 0 | F115: 13.67 | G115: =E115*F115 -> 0 | N115: 0 | O115: 0 | P115: 0 | Q115: 0 | R115: 0 | S115: 0 | T115: 0 | U115: 0 | V115: 0 | W115: 0
B117: ="Civil Works: " & $B$9 -> Civil Works: A1.1. Expand and Upgrade of Water Resources Monitoring Systems | F117: Cost per Unit (₹ lakhs) | G117: Total | N117: FY15 | O117: FY16 | P117: FY17 | Q117: FY18 | R117: FY19 | S117: FY20 | T117: FY21 | U117: FY22 | V117: FY23 | W117: Total
C118: Items | D118: Activity | E118: Number | G118: =SUBTOTAL(9,G120:G152) -> 105 | I118: Remarks | M118: Total Annual Outlay (₹ lakhs) | N118: =SUM($G120:$G152*N120:N152) -> 0 | O118: =SUM($G120:$G152*O120:O152) -> 0 | P118: =SUM($G120:$G152*P120:P152) -> 41.5 | Q118: =SUM($G120:$G152*Q120:Q152) -> 51.5 | R118: =SUM($G120:$G152*R120:R152) -> 12 | S118: =SUM($G120:$G152*S120:S152) -> 0 | T118: =SUM($G120:$G152*T120:T152) -> 0 | U118: =SUM($G120:$G152*U120:U152) -> 0 | V118: =SUM($G120:$G152*V120:V152) -> 0 | W118: 105
B119: =$B$10 -> 1.1 Meteorological monitoring | G119: =SUBTOTAL(9,G120:G127) -> 35.5
B120: =B115+0.01 -> 1.7 | C120: AWS Installation Housing (new) | D120: A1.1.1 | E120: 5 | F120: 1.5 | G120: =E120*F120 -> 7.5 | N120: 0 | O120: 0 | P120: 0.5 | Q120: 0.5 | R120: 0 | S120: 0 | T120: 0 | U120: 0 | V120: 0 | W120: 1
B121: =B120+0.01 -> 1.71 | C121: AWS Installation Housing (Recontruction) | D121: A1.1.1 | E121: 0 | F121: 0.3 | G121: 0 | N121: 0 | O121: 0 | P121: 1 | Q121: 0 | R121: 0 | S121: 0 | T121: 0 | U121: 0 | V121: 0 | W121: 1
B122: 1.72 | C122: Rain Gauge Housing (new) | D122: A1.1.1 | E122: 26 | F122: 1 | G122: 26 | N122: 0 | O122: 0 | P122: 0.5 | Q122: 0.5 | R122: 0 | S122: 0 | T122: 0 | U122: 0 | V122: 0 | W122: 1
B123: 1.73 | C123: Rain Gauge Housing (Reconstruction) | D123: A1.1.1 | E123: 4 | F123: 0.5 | G123: 2 | N123: 0 | O123: 0 | P123: 1 | Q123: 0 | R123: 0 | S123: 0 | T123: 0 | U123: 0 | V123: 0 | W123: 1
B124: 1.74 | E124: 0 | F124: 0 | G124: 0 | N124: 0 | O124: 0 | P124: 0 | Q124: 0 | R124: 0 | S124: 0 | T124: 0 | U124: 0 | V124: 0 | W124: 0
B125: 1.75 | E125: 0 | F125: 0 | G125: 0 | N125: 0 | O125: 0 | P125: 0 | Q125: 0 | R125: 0 | S125: 0 | T125: 0 | U125: 0 | V125: 0 | W125: 0
B126: 1.76 | E126: 0 | F126: 0 | G126: 0 | N126: 0 | O126: 0 | P126: 0 | Q126: 0 | R126: 0 | S126: 0 | T126: 0 | U126: 0 | V126: 0 | W126: 0
B127: 1.77 | E127: 0 | F127: 0 | G127: 0 | N127: 0 | O127: 0 | P127: 0 | Q127: 0 | R127: 0 | S127: 0 | T127: 0 | U127: 0 | V127: 0 | W127: 0
B128: =$B$11 -> 1.2 Surface Water monitoring, incl. water use | G128: =SUBTOTAL(9,G129:G138) -> 21.5
B129: =B127+0.01 -> 1.78 | C129: AWLR-Shaft Housing (new) | D129: A1.1.2 | E129: 3 | F129: 3 | G129: =E129*F129 -> 9 | N129: 0 | O129: 0 | P129: 0.5 | Q129: 0.5 | R129: 0 | S129: 0 | T129: 0 | U129: 0 | V129: 0 | W129: 1
B130: =B129+0.01 -> 1.79 | C130: AWLR-Shaft Housing (Reconstruction) | D130: A1.1.2 | E130: 0 | F130: 0 | G130: =E130*F130 -> 0 | N130: 0 | O130: 0 | P130: 0 | Q130: 0 | R130: 0 | S130: 0 | T130: 0 | U130: 0 | V130: 0 | W130: 0
B131: 1.8 | C131: AWLR-Bubbler Housing (new) | D131: A1.1.2 | E131: 5 | F131: 1.25 | G131: 6.25 | N131: 0 | O131: 0 | P131: 0.5 | Q131: 0.5 | R131: 0 | S131: 0 | T131: 0 | U131: 0 | V131: 0 | W131: 1
B132: 1.81 | C132: AWLR-Bubbler Housing (Reconstruction) | D132: A1.1.2 | E132: 0 | F132: 0 | G132: 0 | N132: 0 | O132: 0 | P132: 0 | Q132: 0 | R132: 0 | S132: 0 | T132: 0 | U132: 0 | V132: 0 | W132: 0
B133: 1.82 | C133: AWLR-Radar Housing (new) | D133: A1.1.2 | E133: 5 | F133: 1.25 | G133: 6.25 | N133: 0 | O133: 0 | P133: 0.5 | Q133: 0.5 | R133: 0 | S133: 0 | T133: 0 | U133: 0 | V133: 0 | W133: 1
B134: 1.83 | C134: AWLR-Radar Housing (Reconstruction) | D134: A1.1.2 | E134: 0 | F134: 0 | G134: 0 | N134: 0 | O134: 0 | P134: 0 | Q134: 0 | R134: 0 | S134: 0 | T134: 0 | U134: 0 | V134: 0 | W134: 0
B135: 1.84 | E135: 0 | F135: 0 | G135: 0 | N135: 0 | O135: 0 | P135: 0 | Q135: 0 | R135: 0 | S135: 0 | T135: 0 | U135: 0 | V135: 0 | W135: 0
B136: 1.85 | E136: 0 | F136: 0 | G136: =E136*F136 -> 0 | N136: 0 | O136: 0 | P136: 0 | Q136: 0 | R136: 0 | S136: 0 | T136: 0 | U136: 0 | V136: 0 | W136: 0
B137: 1.86 | E137: 0 | F137: 0 | G137: =E137*F137 -> 0 | N137: 0 | O137: 0 | P137: 0 | Q137: 0 | R137: 0 | S137: 0 | T137: 0 | U137: 0 | V137: 0 | W137: 0
B138: 1.87 | E138: 0 | F138: 0 | G138: =E138*F138 -> 0 | N138: 0 | O138: 0 | P138: 0 | Q138: 0 | R138: 0 | S138: 0 | T138: 0 | U138: 0 | V138: 0 | W138: 0
B139: =$B$12 -> 1.3 Groundwater monitoring, incl. water use | G139: =SUBTOTAL(9,G140:G147) -> 48
B140: 1.58 | C140: Shallow/open wells | D140: A1.1.3 | E140: 0 | F140: 0.25 | G140: =E140*F140 -> 0 | N140: 0 | O140: 0 | P140: 1 | Q140: 0 | R140: 0 | S140: 0 | T140: 0 | U140: 0 | V140: 0 | W140: 1
B141: 1.59 | C141: Medium piezometers | D141: A1.1.3 | E141: 32 | F141: 0.75 | G141: =E141*F141 -> 24 | N141: 0 | O141: 0 | P141: 0.25 | Q141: 0.5 | R141: 0.25 | S141: 0 | T141: 0 | U141: 0 | V141: 0 | W141: 1
B142: 1.59 | C142: Deep piezometers w/ DWLR | D142: A1.1.3 | E142: 8 | F142: 3 | G142: =E142*F142 -> 24 | N142: 0 | O142: 0 | P142: 0.25 | Q142: 0.5 | R142: 0.25 | S142: 0 | T142: 0 | U142: 0 | V142: 0 | W142: 1
B143: 1.59 | E143: 0 | F143: 0 | G143: =E143*F143 -> 0 | N143: 0 | O143: 0 | P143: 0 | Q143: 0 | R143: 0 | S143: 0 | T143: 0 | U143: 0 | V143: 0 | W143: 0
B144: 1.59 | E144: 0 | F144: 0 | G144: 0 | N144: 0 | O144: 0 | P144: 0 | Q144: 0 | R144: 0 | S144: 0 | T144: 0 | U144: 0 | V144: 0 | W144: 0
B145: 1.59 | E145: 0 | F145: 0 | G145: 0 | N145: 0 | O145: 0 | P145: 0 | Q145: 0 | R145: 0 | S145: 0 | T145: 0 | U145: 0 | V145: 0 | W145: 0
B146: =B145+0.01 -> 1.6 | E146: 0 | F146: 0 | G146: 0 | N146: 0 | O146: 0 | P146: 0 | Q146: 0 | R146: 0 | S146: 0 | T146: 0 | U146: 0 | V146: 0 | W146: 0
B147: =B146+0.01 -> 1.61 | E147: 0 | F147: 0 | G147: 0 | N147: 0 | O147: 0 | P147: 0 | Q147: 0 | R147: 0 | S147: 0 | T147: 0 | U147: 0 | V147: 0 | W147: 0
B148: =$B$13 -> 1.4 Water Quality monitoring | G148: =SUBTOTAL(9,G149:G152) -> 0
B149: =B147+0.01 -> 1.62 | C149: Laboratory construction | D149: A1.1.4 | E149: 0 | F149: 0 | G149: =E149*F149 -> 0 | H149: This may also come under component D (infrastructure) | N149: 0 | O149: 0 | P149: 0 | Q149: 0 | R149: 0 | S149: 0 | T149: 0 | U149: 0 | V149: 0 | W149: 0
B150: =B149+0.01 -> 1.63 | D150: A1.1.4 | E150: 0 | F150: 0 | G150: =E150*F150 -> 0 | N150: 0 | O150: 0 | P150: 0 | Q150: 0 | R150: 0 | S150: 0 | T150: 0 | U150: 0 | V150: 0 | W150: 0
B151: =B150+0.01 -> 1.64 | E151: 0 | F151: 0 | G151: =E151*F151 -> 0 | N151: 0 | O151: 0 | P151: 0 | Q151: 0 | R151: 0 | S151: 0 | T151: 0 | U151: 0 | V151: 0 | W151: 0
B152: =B151+0.01 -> 1.65 | E152: 0 | F152: 0 | G152: =E152*F152 -> 0 | N152: 0 | O152: 0 | P152: 0 | Q152: 0 | R152: 0 | S152: 0 | T152: 0 | U152: 0 | V152: 0 | W152: 0
B154: ="Consultancy: " & $B$9 -> Consultancy: A1.1. Expand and Upgrade of Water Resources Monitoring Systems | F154: Cost per Unit (₹ lakhs) | G154: Total | N154: FY15 | O154: FY16 | P154: FY17 | Q154: FY18 | R154: FY19 | S154: FY20 | T154: FY21 | U154: FY22 | V154: FY23 | W154: Total
C155: Items | D155: Activity | E155: Number | G155: =SUBTOTAL(9,G157:G175) -> 37.5 | I155: Remarks | M155: Total Annual Outlay (₹ lakhs) | N155: =SUM($G157:$G175*N157:N175) -> 0 | O155: =SUM($G157:$G175*O157:O175) -> 28.3 | P155: =SUM($G157:$G175*P157:P175) -> 2.3 | Q155: =SUM($G157:$G175*Q157:Q175) -> 2.3 | R155: =SUM($G157:$G175*R157:R175) -> 1.15 | S155: =SUM($G157:$G175*S157:S175) -> 1.15 | T155: =SUM($G157:$G175*T157:T175) -> 1.15 | U155: =SUM($G157:$G175*U157:U175) -> 1.15 | V155: =SUM($G157:$G175*V157:V175) -> 0 | W155: 37.5
B156: =$B$10 -> 1.1 Meteorological monitoring | G156: =SUBTOTAL(9,G157:G160) -> 18
B157: =B152+0.01 -> 1.66 | C157: Network Design (National Expert) | D157: A1.1.1 | E157: 2 | F157: 4.5 | G157: =E157*F157 -> 9 | H157: Assumes will cover surface water design | N157: 0 | O157: 0.6 | P157: 0.1 | Q157: 0.1 | R157: 0.05 | S157: 0.05 | T157: 0.05 | U157: 0.05 | V157: 0 | W157: 1
B158: =B157+0.01 -> 1.67 | C158: Network Design (National Expert) | D158: A1.1.1 | E158: 2 | F158: 4.5 | G158: =E158*F158 -> 9 | H158: Assumes will cover surface water equipment | N158: 0 | O158: 0.6 | P158: 0.1 | Q158: 0.1 | R158: 0.05 | S158: 0.05 | T158: 0.05 | U158: 0.05 | V158: 0 | W158: 1
B159: =B158+0.01 -> 1.68 | E159: 0 | F159: 0 | G159: =E159*F159 -> 0 | N159: 0 | O159: 0 | P159: 0 | Q159: 0 | R159: 0 | S159: 0 | T159: 0 | U159: 0 | V159: 0 | W159: 0
B160: =B159+0.01 -> 1.69 | E160: 0 | F160: 0 | G160: =E160*F160 -> 0 | N160: 0 | O160: 0 | P160: 0 | Q160: 0 | R160: 0 | S160: 0 | T160: 0 | U160: 0 | V160: 0 | W160: 0
B161: =$B$11 -> 1.2 Surface Water monitoring, incl. water use | G161: =SUBTOTAL(9,G162:G165) -> 0
B162: =B160+0.01 -> 1.7 | D162: A1.1.2 | E162: 0 | F162: 0 | G162: =E162*F162 -> 0 | N162: 0 | O162: 0 | P162: 0 | Q162: 0 | R162: 0 | S162: 0 | T162: 0 | U162: 0 | V162: 0 | W162: 0
B163: =B162+0.01 -> 1.71 | E163: 0 | F163: 0 | G163: =E163*F163 -> 0 | N163: 0 | O163: 0 | P163: 0 | Q163: 0 | R163: 0 | S163: 0 | T163: 0 | U163: 0 | V163: 0 | W163: 0
B164: =B163+0.01 -> 1.72 | E164: 0 | F164: 0 | G164: =E164*F164 -> 0 | N164: 0 | O164: 0 | P164: 0 | Q164: 0 | R164: 0 | S164: 0 | T164: 0 | U164: 0 | V164: 0 | W164: 0
B165: =B164+0.01 -> 1.73 | E165: 0 | F165: 0 | G165: =E165*F165 -> 0 | N165: 0 | O165: 0 | P165: 0 | Q165: 0 | R165: 0 | S165: 0 | T165: 0 | U165: 0 | V165: 0 | W165: 0
B166: =$B$12 -> 1.3 Groundwater monitoring, incl. water use | G166: =SUBTOTAL(9,G167:G170) -> 5
B167: =B165+0.01 -> 1.74 | C167: Network Design (National Expert) | D167: A1.1.3 | E167: 1 | F167: 5 | G167: =E167*F167 -> 5 | N167: 0 | O167: 0.6 | P167: 0.1 | Q167: 0.1 | R167: 0.05 | S167: 0.05 | T167: 0.05 | U167: 0.05 | V167: 0 | W167: 1
B168: =B167+0.01 -> 1.75 | E168: 0 | F168: 0 | G168: =E168*F168 -> 0 | N168: 0 | O168: 0 | P168: 0 | Q168: 0 | R168: 0 | S168: 0 | T168: 0 | U168: 0 | V168: 0 | W168: =SUM(N168:V168) -> 0
B169: =B168+0.01 -> 1.76 | E169: 0 | F169: 0 | G169: =E169*F169 -> 0 | N169: 0 | O169: 0 | P169: 0 | Q169: 0 | R169: 0 | S169: 0 | T169: 0 | U169: 0 | V169: 0 | W169: 0
B170: =B169+0.01 -> 1.77 | E170: 0 | F170: 0 | G170: =E170*F170 -> 0 | N170: 0 | O170: 0 | P170: 0 | Q170: 0 | R170: 0 | S170: 0 | T170: 0 | U170: 0 | V170: 0 | W170: 0
B171: =$B$13 -> 1.4 Water Quality monitoring | G171: =SUBTOTAL(9,G172:G175) -> 14.5
B172: =B170+0.01 -> 1.78 | C172: Laboratory and AQC management | D172: A1.1.4 | E172: 1 | F172: 4.5 | G172: =E172*F172 -> 4.5 | N172: 0 | O172: 1 | P172: 0 | Q172: 0 | R172: 0 | S172: 0 | T172: 0 | U172: 0 | V172: 0 | W172: 1
B173: =B172+0.01 -> 1.79 | C173: Architectural services | D173: A1.1.4 | E173: 1 | F173: 10 | G173: =E173*F173 -> 10 | N173: 0 | O173: 1 | P173: 0 | Q173: 0 | R173: 0 | S173: 0 | T173: 0 | U173: 0 | V173: 0 | W173: 1
B174: =B173+0.01 -> 1.8 | E174: 0 | F174: 10 | G174: =E174*F174 -> 0 | N174: 0 | P174: 0 | Q174: 0 | R174: 0 | S174: 0 | T174: 0 | U174: 0 | V174: 0 | W174: 0
B175: =B174+0.01 -> 1.81 | E175: 0 | F175: 0 | G175: =E175*F175 -> 0 | N175: 0 | O175: 0 | P175: 0 | Q175: 0 | R175: 0 | S175: 0 | T175: 0 | U175: 0 | V175: 0 | W175: 0
B177: ="Training/Meetings: " & $B$9 -> Training/Meetings: A1.1. Expand and Upgrade of Water Resources Monitoring Systems | F177: Cost per Unit (₹ lakhs) | G177: Total | N177: FY15 | O177: FY16 | P177: FY17 | Q177: FY18 | R177: FY19 | S177: FY20 | T177: FY21 | U177: FY22 | V177: FY23 | W177: Total
C178: Items | D178: Activity | E178: Number | G178: =SUBTOTAL(9,G180:G202) -> 0 | I178: Remarks | M178: Total Annual Outlay (₹ lakhs) | N178: =SUM($G180:$G202*N180:N202) -> 0 | O178: =SUM($G180:$G202*O180:O202) -> 0 | P178: =SUM($G180:$G202*P180:P202) -> 0 | Q178: =SUM($G180:$G202*Q180:Q202) -> 0 | R178: =SUM($G180:$G202*R180:R202) -> 0 | S178: =SUM($G180:$G202*S180:S202) -> 0 | T178: =SUM($G180:$G202*T180:T202) -> 0 | U178: =SUM($G180:$G202*U180:U202) -> 0 | V178: =SUM($G180:$G202*V180:V202) -> 0 | W178: 0
B179: =$B$10 -> 1.1 Meteorological monitoring | G179: =SUBTOTAL(9,G180:G184) -> 0
B180: =B175+0.01 -> 1.82 | E180: 0 | F180: 0 | G180: =E180*F180 -> 0 | H180: Taken up in D | N180: 0 | O180: 0 | P180: 0 | Q180: 0 | R180: 0 | S180: 0 | T180: 0 | U180: 0 | V180: 0 | W180: 0
B181: =B180+0.01 -> 1.83 | E181: 0 | F181: 0 | G181: =E181*F181 -> 0 | N181: 0 | O181: 0 | P181: 0 | Q181: 0 | R181: 0 | S181: 0 | T181: 0 | U181: 0 | V181: 0 | W181: 0
B182: =B181+0.01 -> 1.84 | E182: 0 | F182: 0 | G182: =E182*F182 -> 0 | N182: 0 | O182: 0 | P182: 0 | Q182: 0 | R182: 0 | S182: 0 | T182: 0 | U182: 0 | V182: 0 | W182: 0
B183: 1.85 | E183: 0 | F183: 0 | G183: =E183*F183 -> 0 | N183: 0 | O183: 0 | P183: 0 | Q183: 0 | R183: 0 | S183: 0 | T183: 0 | U183: 0 | V183: 0 | W183: 0
B184: 1.86 | E184: 0 | F184: 0 | G184: =E184*F184 -> 0 | N184: 0 | O184: 0 | P184: 0 | Q184: 0 | R184: 0 | S184: 0 | T184: 0 | U184: 0 | V184: 0 | W184: 0
B185: =$B$11 -> 1.2 Surface Water monitoring, incl. water use | G185: =SUBTOTAL(9,G186:G190) -> 0
B186: =B184+0.01 -> 1.87 | E186: 0 | F186: 0 | G186: =E186*F186 -> 0 | H186: Taken up in D | N186: 0 | O186: 0 | P186: 0 | Q186: 0 | R186: 0 | S186: 0 | T186: 0 | U186: 0 | V186: 0 | W186: 0
B187: =B186+0.01 -> 1.88 | E187: 0 | F187: 0 | G187: =E187*F187 -> 0 | N187: 0 | O187: 0 | P187: 0 | Q187: 0 | R187: 0 | S187: 0 | T187: 0 | U187: 0 | V187: 0 | W187: 0
B188: 1.89 | E188: 0 | F188: 0 | G188: =E188*F188 -> 0 | N188: 0 | O188: 0 | P188: 0 | Q188: 0 | R188: 0 | S188: 0 | T188: 0 | U188: 0 | V188: 0 | W188: 0
B189: 1.9 | E189: 0 | F189: 0 | G189: =E189*F189 -> 0 | N189: 0 | O189: 0 | P189: 0 | Q189: 0 | R189: 0 | S189: 0 | T189: 0 | U189: 0 | V189: 0 | W189: 0
B190: 1.91 | E190: 0 | F190: 0 | G190: =E190*F190 -> 0 | N190: 0 | O190: 0 | P190: 0 | Q190: 0 | R190: 0 | S190: 0 | T190: 0 | U190: 0 | V190: 0 | W190: 0
B191: =$B$12 -> 1.3 Groundwater monitoring, incl. water use | G191: =SUBTOTAL(9,G192:G196) -> 0
B192: =B190+0.01 -> 1.92 | E192: 0 | F192: 0 | G192: =E192*F192 -> 0 | H192: Taken up in D | N192: 0 | O192: 0 | P192: 0 | Q192: 0 | R192: 0 | S192: 0 | T192: 0 | U192: 0 | V192: 0 | W192: 0
B193: 1.93 | E193: 0 | F193: 0 | G193: =E193*F193 -> 0 | N193: 0 | O193: 0 | P193: 0 | Q193: 0 | R193: 0 | S193: 0 | T193: 0 | U193: 0 | V193: 0 | W193: 0
B194: 1.94 | E194: 0 | F194: 0 | G194: =E194*F194 -> 0 | N194: 0 | O194: 0 | P194: 0 | Q194: 0 | R194: 0 | S194: 0 | T194: 0 | U194: 0 | V194: 0 | W194: 0
B195: =B194+0.01 -> 1.95 | E195: 0 | F195: 0 | G195: =E195*F195 -> 0 | N195: 0 | O195: 0 | P195: 0 | Q195: 0 | R195: 0 | S195: 0 | T195: 0 | U195: 0 | V195: 0 | W195: 0
B196: 1.96 | E196: 0 | F196: 0 | G196: =E196*F196 -> 0 | N196: 0 | O196: 0 | P196: 0 | Q196: 0 | R196: 0 | S196: 0 | T196: 0 | U196: 0 | V196: 0 | W196: 0
B197: =$B$13 -> 1.4 Water Quality monitoring | G197: =SUBTOTAL(9,G198:G202) -> 0
B198: =B196+0.01 -> 1.97 | E198: 0 | F198: 0 | G198: =E198*F198 -> 0 | H198: Taken up in D | N198: 0 | O198: 0 | P198: 0 | Q198: 0 | R198: 0 | S198: 0 | T198: 0 | U198: 0 | V198: 0 | W198: 0
B199: 1.98 | E199: 0 | F199: 0 | G199: =E199*F199 -> 0 | N199: 0 | O199: 0 | P199: 0 | Q199: 0 | R199: 0 | S199: 0 | T199: 0 | U199: 0 | V199: 0 | W199: 0
B200: 1.99 | E200: 0 | F200: 0 | G200: =E200*F200 -> 0 | N200: 0 | O200: 0 | P200: 0 | Q200: 0 | R200: 0 | S200: 0 | T200: 0 | U200: 0 | V200: 0 | W200: 0
B201: 2 | E201: 0 | F201: 0 | G201: =E201*F201 -> 0 | N201: 0 | O201: 0 | P201: 0 | Q201: 0 | R201: 0 | S201: 0 | T201: 0 | U201: 0 | V201: 0 | W201: 0
B202: =B201+0.01 -> 2.01 | E202: 0 | F202: 0 | G202: =E202*F202 -> 0 | N202: 0 | O202: 0 | P202: 0 | Q202: 0 | R202: 0 | S202: 0 | T202: 0 | U202: 0 | V202: 0 | W202: 0
B204: ="Operational Costs: " & $B$9 -> Operational Costs: A1.1. Expand and Upgrade of Water Resources Monitoring Systems | F204: Cost per Unit (₹ lakhs) | G204: Total | N204: FY15 | O204: FY16 | P204: FY17 | Q204: FY18 | R204: FY19 | S204: FY20 | T204: FY21 | U204: FY22 | V204: FY23 | W204: Total
C205: Items | D205: Activity | E205: Number | G205: =SUBTOTAL(9,G207:G232) -> 31 | I205: Remarks | M205: Total Annual Outlay (₹ lakhs) | N205: =SUM($G207:$G232*N207:N232) -> 0 | O205: =SUM($G207:$G232*O207:O232) -> 0 | P205: =SUM($G207:$G232*P207:P232) -> 2.025 | Q205: =SUM($G207:$G232*Q207:Q232) -> 3.9575 | R205: =SUM($G207:$G232*R207:R232) -> 4.9575 | S205: =SUM($G207:$G232*S207:S232) -> 5.015 | T205: =SUM($G207:$G232*T207:T232) -> 5.015 | U205: =SUM($G207:$G232*U207:U232) -> 5.015 | V205: =SUM($G207:$G232*V207:V232) -> 5.015 | W205: 31
... 408 more rows

Sheet A2
A1: Cost Estimate for HP-III
B2: Component | C2: A: Improving Water Resources Monitoring System (WRMS)
B3: Sub-Component | C3: A2: Database Population and Maintenance
B4: Prefix | C4: A2
C5: Go to Abstract | E5: Go to Legend
B6: Cost Summary | E6: Total cost | F6: Procurement Categories (₹ lakhs) | K6: Remarks/ description
B7: Decription | D7: No. | E7: ₹ lakhs | F7: Goods | G7: Civil Works | H7: Consultant Services | I7: Training/ Meetings | J7: Operation Costs
B8: Subcomponents and Activities | E8: =SUM(F8:J8) -> 121.5 | F8: =SUBTOTAL(9,F9:F28) -> 0 | G8: =SUBTOTAL(9,G9:G28) -> 0 | H8: =SUBTOTAL(9,H9:H28) -> 85.5 | I8: =SUBTOTAL(9,I9:I28) -> 31 | J8: =SUBTOTAL(9,J9:J28) -> 5
B9: A2.1. Digitize and integrate paper data, maps and doc | E9: =SUM(F9:J9) -> 29 | F9: =SUBTOTAL(9,F10:F13) -> 0 | G9: =SUBTOTAL(9,G10:G13) -> 0 | H9: =SUBTOTAL(9,H10:H13) -> 24 | I9: =SUBTOTAL(9,I10:I13) -> 0 | J9: =SUBTOTAL(9,J10:J13) -> 5
B10: 1.1 Map digitization | D10: =$C$4 & ".1.1" -> A2.1.1 | E10: 29 | F10: =G40 -> 0 | G10: =G69 -> 0 | H10: =G96 -> 24 | I10: =G123 -> 0 | J10: =G150 -> 5
B11: 1.2 Time series logs | D11: =$C$4 & ".1.2" -> A2.1.2 | E11: 0 | F11: =G48 -> 0 | G11: =G75 -> 0 | H11: =G102 -> 0 | I11: =G129 -> 0 | J11: =G156 -> 0
B12: 1.3 Scan reports | D12: =$C$4 & ".1.3" -> A2.1.3 | E12: 0 | F12: =G54 -> 0 | G12: =G81 -> 0 | H12: =G108 -> 0 | I12: =G135 -> 0 | J12: =G162 -> 0
D13: =$C$4 & ".1.4" -> A2.1.4 | E13: 0 | F13: =G60 -> 0 | G13: =G87 -> 0 | H13: =G114 -> 0 | I13: =G141 -> 0 | J13: =G168 -> 0
B14: A2.2. Develop spatial river basin information systems | E14: 37 | F14: =SUBTOTAL(9,F15:F18) -> 0 | G14: =SUBTOTAL(9,G15:G18) -> 0 | H14: =SUBTOTAL(9,H15:H18) -> 24 | I14: =SUBTOTAL(9,I15:I18) -> 13 | J14: =SUBTOTAL(9,J15:J18) -> 0
B15: 2.1 Construct maps | D15: =$C$4 & ".2.1" -> A2.2.1 | E15: 30 | F15: =G178 -> 0 | G15: =G205 -> 0 | H15: =G232 -> 24 | I15: =G259 -> 6 | J15: =G286 -> 0
B16: 2.2 GIS/satellite image database | D16: =$C$4 & ".2.2" -> A2.2.2 | E16: 7 | F16: =G184 -> 0 | G16: =G211 -> 0 | H16: =G238 -> 0 | I16: =G265 -> 7 | J16: =G292 -> 0
D17: =$C$4 & ".2.3" -> A2.2.3 | E17: 0 | F17: =G190 -> 0 | G17: =G217 -> 0 | H17: =G244 -> 0 | I17: =G271 -> 0 | J17: =G298 -> 0
D18: =$C$4 & ".2.4" -> A2.2.4 | E18: 0 | F18: =G196 -> 0 | G18: =G223 -> 0 | H18: =G250 -> 0 | I18: =G277 -> 0 | J18: =G304 -> 0
B19: A2.3. Upgrade centralized and web-based data entry, data storage, data management and data dissemination systems | E19: =SUM(F19:J19) -> 55.5 | F19: =SUBTOTAL(9,F20:F23) -> 0 | G19: =SUBTOTAL(9,G20:G23) -> 0 | H19: =SUBTOTAL(9,H20:H23) -> 37.5 | I19: =SUBTOTAL(9,I20:I23) -> 18 | J19: =SUBTOTAL(9,J20:J23) -> 0
B20: 3.1 Upgrade e-SWIS | D20: =$C$4 & ".3.1" -> A2.3.1 | E20: 21 | F20: =G314 -> 0 | G20: =G341 -> 0 | H20: =G360 -> 15 | I20: =G383 -> 6 | J20: =G410 -> 0
B21: 3.2 Upgrade e-GEMS | D21: =$C$4 & ".3.2" -> A2.3.2 | E21: 21 | F21: =G320 -> 0 | G21: =G345 -> 0 | H21: =G365 -> 15 | I21: =G389 -> 6 | J21: =G416 -> 0
B22: 3.3 Upgrade e-WQIS | D22: =$C$4 & ".3.3" -> A2.3.3 | E22: 13.5 | F22: =G326 -> 0 | G22: =G349 -> 0 | H22: =G370 -> 7.5 | I22: =G395 -> 6 | J22: =G422 -> 0
D23: =$C$4 & ".3.4" -> A2.3.4 | E23: 0 | F23: =G332 -> 0 | G23: =G353 -> 0 | H23: =G375 -> 0 | I23: =G401 -> 0 | J23: =G428 -> 0
B24: Extra | E24: =SUM(F24:J24) -> 0 | F24: =SUBTOTAL(9,F25:F28) -> 0 | G24: =SUBTOTAL(9,G25:G28) -> 0 | H24: =SUBTOTAL(9,H25:H28) -> 0 | I24: =SUBTOTAL(9,I25:I28) -> 0 | J24: =SUBTOTAL(9,J25:J28) -> 0
B25: None 4.1 | D25: =$C$4 & ".4.1" -> A2.4.1 | E25: 0 | F25: =G438 -> 0 | G25: =G465 -> 0 | H25: =G492 -> 0 | I25: =G519 -> 0 | J25: =G546 -> 0
B26: None 4.2 | D26: =$C$4 & ".4.2" -> A2.4.2 | E26: 0 | F26: =G444 -> 0 | G26: =G471 -> 0 | H26: =G498 -> 0 | I26: =G525 -> 0 | J26: =G552 -> 0
B27: None 4.3 | D27: =$C$4 & ".4.3" -> A2.4.3 | E27: 0 | F27: =G450 -> 0 | G27: =G477 -> 0 | H27: =G504 -> 0 | I27: =G531 -> 0 | J27: =G558 -> 0
B28: None 4.4 | D28: =$C$4 & ".4.4" -> A2.4.4 | E28: 0 | F28: =G456 -> 0 | G28: =G483 -> 0 | H28: =G510 -> 0 | I28: =G537 -> 0 | J28: =G564 -> 0
C29: Financial Year | D29: FY 15 | E29: FY 16 | F29: FY 17 | G29: FY 18 | H29: FY 19 | I29: FY 20 | J29: FY 21 | K29: FY 22 | L29: FY 23
C30: Cost Outlay | D30: =SUM(D31:D34) -> 0 | E30: =SUM(E31:E34) -> 19.6 | F30: 54.35 | G30: 24.45 | H30: 5.3 | I30: 5 | J30: 5.5 | K30: 4.2 | L30: 3.1
C31: =$C$4 & ".1" -> A2.1 | D31: =N39+N68+N95+N122+N149 -> 0 | E31: 4.8 | F31: 19.7 | G31: 0.5 | H31: 0.5 | I31: 0.5 | J31: 1 | K31: 1 | L31: 1
C32: =$C$4 & ".2" -> A2.2 | D32: =N177+N204+N231+N258+N285 -> 0 | E32: =O177+O204+O231+O258+O285 -> 13 | F32: 14.1 | G32: 3.4 | H32: 3 | I32: 1.8 | J32: 0.9 | K32: 0.5 | L32: 0.3
C33: =$C$4 & ".3" -> A2.3 | D33: =N313+N340+N359+N382+N409 -> 0 | E33: 1.8 | F33: 20.55 | G33: 20.55 | H33: 1.8 | I33: 2.7 | J33: 3.6 | K33: 2.7 | L33: 1.8
C34: =$C$4 & ".4" -> A2.4 | D34: =N437+N464+N491+N518+N545 -> 0 | E34: =O437+O464+O491+O518+O545 -> 0 | F34: 0 | G34: 0 | H34: 0 | I34: 0 | J34: 0 | K34: 0 | L34: 0
B36: Worksheets
B37: =B9 -> A2.1. Digitize and integrate paper data, maps and doc
B38: ="Goods: " & $B$9 -> Goods: A2.1. Digitize and integrate paper data, maps and doc | F38: Cost per Unit (₹ lakhs) | G38: Total | H38: Telemetry Type | N38: FY15 | O38: FY16 | P38: FY17 | Q38: FY18 | R38: FY19 | S38: FY20 | T38: FY21 | U38: FY22 | V38: FY23 | W38: Total
C39: Items | D39: Activity | E39: Number | G39: =SUBTOTAL(9,G41:G65) -> 0 | H39: Telemetry Type | I39: Remarks | M39: Total Annual Outlay (₹ lakhs) | N39: =SUM($G41:$G65*N41:N65) -> 0 | O39: =SUM($G41:$G65*O41:O65) -> 0 | P39: =SUM($G41:$G65*P41:P65) -> 0 | Q39: =SUM($G41:$G65*Q41:Q65) -> 0 | R39: =SUM($G41:$G65*R41:R65) -> 0 | S39: =SUM($G41:$G65*S41:S65) -> 0 | T39: =SUM($G41:$G65*T41:T65) -> 0 | U39: =SUM($G41:$G65*U41:U65) -> 0 | V39: =SUM($G41:$G65*V41:V65) -> 0 | W39: =SUM(N39:V39) -> 0
B40: =$B$10 -> 1.1 Map digitization | G40: =SUBTOTAL(9,G41:G47) -> 0
B41: 1 | C41: Computers and work stations | D41: A2.1.1 | E41: 0 | F41: 0.75 | G41: =E41*F41 -> 0 | N41: 0 | O41: 0 | P41: 0 | Q41: 0 | R41: 0 | S41: 0 | T41: 0 | U41: 0 | V41: 0 | W41: =SUM(N41:V41) -> 0
B42: =B41+0.01 -> 1.01 | C42: Plotter | D42: A2.1.1 | E42: 0 | F42: 3 | G42: 0 | N42: 0 | O42: 0 | P42: 0 | Q42: 0 | R42: 0 | S42: 0 | T42: 0 | U42: 0 | V42: 0 | W42: =SUM(N42:V42) -> 0
B43: =B42+0.01 -> 1.02 | C43: Colour Laser Printer A3 size | D43: A2.1.1 | E43: 0 | F43: 1.5 | G43: 0 | N43: 0 | O43: 0 | P43: 0 | Q43: 0 | R43: 0 | S43: 0 | T43: 0 | U43: 0 | V43: 0 | W43: 0
B44: =B43+0.01 -> 1.03 | C44: Scanner | D44: A2.1.1 | E44: 0 | F44: 0.1 | G44: =E44*F44 -> 0 | N44: 0 | O44: 0 | P44: 0 | Q44: 0 | R44: 0 | S44: 0 | T44: 0 | U44: 0 | V44: 0 | W44: =SUM(N44:V44) -> 0
B45: =B44+0.01 -> 1.04 | C45: Consummables | D45: A2.1.1 | E45: 0 | F45: 4 | G45: =E45*F45 -> 0 | N45: 0 | O45: 0 | P45: 0 | Q45: 0 | R45: 0 | S45: 0 | T45: 0 | U45: 0 | V45: 0 | W45: =SUM(N45:V45) -> 0
B46: =B45+0.01 -> 1.05 | D46: A2.1.1 | E46: 0 | F46: 0 | G46: 0 | N46: 0 | O46: 0 | P46: 0 | Q46: 0 | R46: 0 | S46: 0 | T46: 0 | U46: 0 | V46: 0 | W46: 0
B47: 1.06 | E47: 0 | F47: 0 | G47: 0 | N47: 0 | O47: 0 | P47: 0 | Q47: 0 | R47: 0 | S47: 0 | T47: 0 | U47: 0 | V47: 0 | W47: 0
B48: =$B$11 -> 1.2 Time series logs | G48: =SUBTOTAL(9,G49:G53) -> 0
B49: =B47+0.01 -> 1.07 | D49: A2.1.2 | E49: 0 | F49: 0 | G49: =E49*F49 -> 0 | N49: 0 | O49: 0 | P49: 0 | Q49: 0 | R49: 0 | S49: 0 | T49: 0 | U49: 0 | V49: 0 | W49: =SUM(N49:V49) -> 0
B50: =B49+0.01 -> 1.08 | D50: A2.1.2 | E50: 0 | F50: 0 | G50: =E50*F50 -> 0 | N50: 0 | O50: 0 | P50: 0 | Q50: 0 | R50: 0 | S50: 0 | T50: 0 | U50: 0 | V50: 0 | W50: =SUM(N50:V50) -> 0
B51: 1.09 | D51: A2.1.2 | E51: 0 | F51: 0 | G51: =E51*F51 -> 0 | N51: 0 | O51: 0 | P51: 0 | Q51: 0 | R51: 0 | S51: 0 | T51: 0 | U51: 0 | V51: 0 | W51: =SUM(N51:V51) -> 0
B52: 1.1 | E52: 0 | F52: 0 | G52: =E52*F52 -> 0 | N52: 0 | O52: 0 | P52: 0 | Q52: 0 | R52: 0 | S52: 0 | T52: 0 | U52: 0 | V52: 0 | W52: =SUM(N52:V52) -> 0
B53: 1.11 | E53: 0 | F53: 0 | G53: =E53*F53 -> 0 | N53: 0 | O53: 0 | P53: 0 | Q53: 0 | R53: 0 | S53: 0 | T53: 0 | U53: 0 | V53: 0 | W53: =SUM(N53:V53) -> 0
B54: =$B$12 -> 1.3 Scan reports | G54: =SUBTOTAL(9,G55:G59) -> 0
B55: =B53+0.01 -> 1.12 | E55: 0 | F55: 0 | G55: 0 | N55: 0 | O55: 0 | P55: 0 | Q55: 0 | R55: 0 | S55: 0 | T55: 0 | U55: 0 | V55: 0 | W55: 0
B56: 1.13 | E56: 0 | F56: 0 | G56: 0 | N56: 0 | O56: 0 | P56: 0 | Q56: 0 | R56: 0 | S56: 0 | T56: 0 | U56: 0 | V56: 0 | W56: 0
B57: 1.14 | E57: 0 | F57: 0 | G57: 0 | N57: 0 | O57: 0 | P57: 0 | Q57: 0 | R57: 0 | S57: 0 | T57: 0 | U57: 0 | V57: 0 | W57: 0
B58: =B57+0.01 -> 1.15 | E58: 0 | F58: 0 | G58: 0 | N58: 0 | O58: 0 | P58: 0 | Q58: 0 | R58: 0 | S58: 0 | T58: 0 | U58: 0 | V58: 0 | W58: 0
B59: 1.16 | E59: 0 | F59: 0 | G59: 0 | N59: 0 | O59: 0 | P59: 0 | Q59: 0 | R59: 0 | S59: 0 | T59: 0 | U59: 0 | V59: 0 | W59: 0
B60: =$B$13 -> 0 | E60: 0 | F60: 1 | G60: =SUBTOTAL(9,G61:G65) -> 0
B61: =B59+0.01 -> 1.17 | E61: 0 | F61: 0 | G61: 0 | N61: 0 | O61: 0 | P61: 0 | Q61: 0 | R61: 0 | S61: 0 | T61: 0 | U61: 0 | V61: 0 | W61: 0
B62: 1.18 | E62: 0 | F62: 0 | G62: 0 | N62: 0 | O62: 0 | P62: 0 | Q62: 0 | R62: 0 | S62: 0 | T62: 0 | U62: 0 | V62: 0 | W62: 0
B63: 1.19 | E63: 0 | F63: 0 | G63: 0 | N63: 0 | O63: 0 | P63: 0 | Q63: 0 | R63: 0 | S63: 0 | T63: 0 | U63: 0 | V63: 0 | W63: 0
B64: 1.2 | E64: 0 | F64: 0 | G64: 0 | N64: 0 | O64: 0 | P64: 0 | Q64: 0 | R64: 0 | S64: 0 | T64: 0 | U64: 0 | V64: 0 | W64: 0
B65: =B64+0.01 -> 1.21 | E65: 0 | F65: 0 | G65: 0 | N65: 0 | O65: 0 | P65: 0 | Q65: 0 | R65: 0 | S65: 0 | T65: 0 | U65: 0 | V65: 0 | W65: 0
B67: ="Civil Works: " & $B$9 -> Civil Works: A2.1. Digitize and integrate paper data, maps and doc | F67: Cost per Unit (₹ lakhs) | G67: Total | N67: FY15 | O67: FY16 | P67: FY17 | Q67: FY18 | R67: FY19 | S67: FY20 | T67: FY21 | U67: FY22 | V67: FY23 | W67: Total
C68: Items | D68: Activity | E68: Number | G68: =SUBTOTAL(9,G70:G92) -> 0 | I68: Remarks | M68: Total Annual Outlay (₹ lakhs) | N68: =SUM($G70:$G92*N70:N92) -> 0 | O68: =SUM($G70:$G92*O70:O92) -> 0 | P68: =SUM($G70:$G92*P70:P92) -> 0 | Q68: =SUM($G70:$G92*Q70:Q92) -> 0 | R68: =SUM($G70:$G92*R70:R92) -> 0 | S68: =SUM($G70:$G92*S70:S92) -> 0 | T68: =SUM($G70:$G92*T70:T92) -> 0 | U68: =SUM($G70:$G92*U70:U92) -> 0 | V68: =SUM($G70:$G92*V70:V92) -> 0 | W68: =SUM(N68:V68) -> 0
B69: =$B$10 -> 1.1 Map digitization | G69: =SUBTOTAL(9,G70:G74) -> 0
B70: =B65+0.01 -> 1.22 | C70: n/a | E70: 0 | F70: 0 | G70: =E70*F70 -> 0 | N70: 0 | O70: 0 | P70: 0 | Q70: 0 | R70: 0 | S70: 0 | T70: 0 | U70: 0 | V70: 0 | W70: =SUM(N70:V70) -> 0
B71: =B70+0.01 -> 1.23 | E71: 0 | F71: 0 | G71: =E71*F71 -> 0 | N71: 0 | O71: 0 | P71: 0 | Q71: 0 | R71: 0 | S71: 0 | T71: 0 | U71: 0 | V71: 0 | W71: =SUM(N71:V71) -> 0
B72: =B71+0.01 -> 1.24 | E72: 0 | F72: 0 | G72: =E72*F72 -> 0 | N72: 0 | O72: 0 | P72: 0 | Q72: 0 | R72: 0 | S72: 0 | T72: 0 | U72: 0 | V72: 0 | W72: =SUM(N72:V72) -> 0
B73: 1.25 | E73: 0 | F73: 0 | G73: =E73*F73 -> 0 | N73: 0 | O73: 0 | P73: 0 | Q73: 0 | R73: 0 | S73: 0 | T73: 0 | U73: 0 | V73: 0 | W73: =SUM(N73:V73) -> 0
B74: 1.26 | E74: 0 | F74: 0 | G74: =E74*F74 -> 0 | N74: 0 | O74: 0 | P74: 0 | Q74: 0 | R74: 0 | S74: 0 | T74: 0 | U74: 0 | V74: 0 | W74: =SUM(N74:V74) -> 0
B75: =$B$11 -> 1.2 Time series logs | G75: =SUBTOTAL(9,G76:G80) -> 0
B76: =B74+0.01 -> 1.27 | C76: n/a | E76: 0 | F76: 0 | G76: =E76*F76 -> 0 | N76: 0 | O76: 0 | P76: 0 | Q76: 0 | R76: 0 | S76: 0 | T76: 0 | U76: 0 | V76: 0 | W76: =SUM(N76:V76) -> 0
B77: =B76+0.01 -> 1.28 | E77: 0 | F77: 0 | G77: =E77*F77 -> 0 | N77: 0 | O77: 0 | P77: 0 | Q77: 0 | R77: 0 | S77: 0 | T77: 0 | U77: 0 | V77: 0 | W77: =SUM(N77:V77) -> 0
B78: 1.29 | E78: 0 | F78: 0 | G78: =E78*F78 -> 0 | N78: 0 | O78: 0 | P78: 0 | Q78: 0 | R78: 0 | S78: 0 | T78: 0 | U78: 0 | V78: 0 | W78: =SUM(N78:V78) -> 0
B79: 1.3 | E79: 0 | F79: 0 | G79: =E79*F79 -> 0 | N79: 0 | O79: 0 | P79: 0 | Q79: 0 | R79: 0 | S79: 0 | T79: 0 | U79: 0 | V79: 0 | W79: =SUM(N79:V79) -> 0
B80: 1.31 | E80: 0 | F80: 0 | G80: =E80*F80 -> 0 | N80: 0 | O80: 0 | P80: 0 | Q80: 0 | R80: 0 | S80: 0 | T80: 0 | U80: 0 | V80: 0 | W80: =SUM(N80:V80) -> 0
B81: =$B$12 -> 1.3 Scan reports | G81: =SUBTOTAL(9,G82:G86) -> 0
B82: =B80+0.01 -> 1.32 | C82: n/a | E82: 0 | F82: 0 | G82: =E82*F82 -> 0 | N82: 0 | O82: 0 | P82: 0 | Q82: 0 | R82: 0 | S82: 0 | T82: 0 | U82: 0 | V82: 0 | W82: =SUM(N82:V82) -> 0
B83: 1.33 | E83: 0 | F83: 0 | G83: =E83*F83 -> 0 | N83: 0 | O83: 0 | P83: 0 | Q83: 0 | R83: 0 | S83: 0 | T83: 0 | U83: 0 | V83: 0 | W83: =SUM(N83:V83) -> 0
B84: 1.34 | E84: 0 | F84: 0 | G84: =E84*F84 -> 0 | N84: 0 | O84: 0 | P84: 0 | Q84: 0 | R84: 0 | S84: 0 | T84: 0 | U84: 0 | V84: 0 | W84: =SUM(N84:V84) -> 0
B85: =B84+0.01 -> 1.35 | E85: 0 | F85: 0 | G85: =E85*F85 -> 0 | N85: 0 | O85: 0 | P85: 0 | Q85: 0 | R85: 0 | S85: 0 | T85: 0 | U85: 0 | V85: 0 | W85: =SUM(N85:V85) -> 0
B86: 1.36 | E86: 0 | F86: 0 | G86: =E86*F86 -> 0 | N86: 0 | O86: 0 | P86: 0 | Q86: 0 | R86: 0 | S86: 0 | T86: 0 | U86: 0 | V86: 0 | W86: =SUM(N86:V86) -> 0
B87: =$B$13 -> 0 | E87: 0 | F87: 1 | G87: =SUBTOTAL(9,G88:G92) -> 0
B88: =B86+0.01 -> 1.37 | C88: n/a | E88: 0 | F88: 0 | G88: =E88*F88 -> 0 | N88: 0 | O88: 0 | P88: 0 | Q88: 0 | R88: 0 | S88: 0 | T88: 0 | U88: 0 | V88: 0 | W88: =SUM(N88:V88) -> 0
B89: 1.38 | E89: 0 | F89: 0 | G89: =E89*F89 -> 0 | N89: 0 | O89: 0 | P89: 0 | Q89: 0 | R89: 0 | S89: 0 | T89: 0 | U89: 0 | V89: 0 | W89: =SUM(N89:V89) -> 0
B90: 1.39 | E90: 0 | F90: 0 | G90: =E90*F90 -> 0 | N90: 0 | O90: 0 | P90: 0 | Q90: 0 | R90: 0 | S90: 0 | T90: 0 | U90: 0 | V90: 0 | W90: =SUM(N90:V90) -> 0
B91: 1.4 | E91: 0 | F91: 0 | G91: =E91*F91 -> 0 | N91: 0 | O91: 0 | P91: 0 | Q91: 0 | R91: 0 | S91: 0 | T91: 0 | U91: 0 | V91: 0 | W91: =SUM(N91:V91) -> 0
B92: =B91+0.01 -> 1.41 | E92: 0 | F92: 0 | G92: =E92*F92 -> 0 | N92: 0 | O92: 0 | P92: 0 | Q92: 0 | R92: 0 | S92: 0 | T92: 0 | U92: 0 | V92: 0 | W92: =SUM(N92:V92) -> 0
B94: ="Consultancy: " & $B$9 -> Consultancy: A2.1. Digitize and integrate paper data, maps and doc | F94: Cost per Unit (₹ lakhs) | G94: Total | N94: FY15 | O94: FY16 | P94: FY17 | Q94: FY18 | R94: FY19 | S94: FY20 | T94: FY21 | U94: FY22 | V94: FY23 | W94: Total
C95: Items | D95: Activity | E95: Number | G95: =SUBTOTAL(9,G97:G119) -> 24 | I95: Remarks | M95: Total Annual Outlay (₹ lakhs) | N95: =SUM($G97:$G119*N97:N119) -> 0 | O95: =SUM($G97:$G119*O97:O119) -> 4.8 | P95: =SUM($G97:$G119*P97:P119) -> 19.2 | Q95: =SUM($G97:$G119*Q97:Q119) -> 0 | R95: =SUM($G97:$G119*R97:R119) -> 0 | S95: =SUM($G97:$G119*S97:S119) -> 0 | T95: =SUM($G97:$G119*T97:T119) -> 0 | U95: =SUM($G97:$G119*U97:U119) -> 0 | V95: =SUM($G97:$G119*V97:V119) -> 0 | W95: =SUM(N95:V95) -> 24
B96: =$B$10 -> 1.1 Map digitization | G96: =SUBTOTAL(9,G97:G101) -> 24
B97: =B92+0.01 -> 1.42 | C97: Create maps | D97: A2.1.1 | E97: 1 | F97: 12 | G97: =E97*F97 -> 12 | H97: 0.50 lakhs/month for 24 months | N97: 0 | O97: 0.2 | P97: 0.8 | Q97: 0 | R97: 0 | S97: 0 | T97: 0 | U97: 0 | V97: 0 | W97: =SUM(N97:V97) -> 1
B98: =B97+0.01 -> 1.43 | C98: Digitize existing maps | D98: A2.1.1 | E98: 1 | F98: 6 | G98: =E98*F98 -> 6 | H98: 0.25 lakhs/month for 24 months | N98: 0 | O98: 0.2 | P98: 0.8 | Q98: 0 | R98: 0 | S98: 0 | T98: 0 | U98: 0 | V98: 0 | W98: =SUM(N98:V98) -> 1
B99: =B98+0.01 -> 1.44 | C99: Datum conversion | D99: A2.1.1 | E99: 1 | F99: 6 | G99: =E99*F99 -> 6 | H99: 0.25 lakhs/month for 24 months | N99: 0 | O99: 0.2 | P99: 0.8 | Q99: 0 | R99: 0 | S99: 0 | T99: 0 | U99: 0 | V99: 0 | W99: =SUM(N99:V99) -> 1
B100: 1.45 | E100: 0 | F100: 0 | G100: =E100*F100 -> 0 | N100: 0 | O100: 0 | P100: 0 | Q100: 0 | R100: 0 | S100: 0 | T100: 0 | U100: 0 | V100: 0 | W100: =SUM(N100:V100) -> 0
B101: 1.46 | E101: 0 | F101: 0 | G101: =E101*F101 -> 0 | N101: 0 | O101: 0 | P101: 0 | Q101: 0 | R101: 0 | S101: 0 | T101: 0 | U101: 0 | V101: 0 | W101: =SUM(N101:V101) -> 0
B102: =$B$11 -> 1.2 Time series logs | G102: =SUBTOTAL(9,G103:G107) -> 0
B103: =B101+0.01 -> 1.47 | C103: Enter time series data: meteorological | D103: A2.1.2 | E103: 0 | F103: 0 | G103: =E103*F103 -> 0 | N103: 0 | O103: 0 | P103: 0 | Q103: 0 | R103: 0 | S103: 0 | T103: 0 | U103: 0 | V103: 0 | W103: =SUM(N103:V103) -> 0
B104: =B103+0.01 -> 1.48 | C104: Enter time series data: surface water | D104: A2.1.2 | E104: 0 | F104: 0 | G104: =E104*F104 -> 0 | N104: 0 | O104: 0 | P104: 0 | Q104: 0 | R104: 0 | S104: 0 | T104: 0 | U104: 0 | V104: 0 | W104: =SUM(N104:V104) -> 0
B105: 1.49 | C105: Enter time series data: ground water | D105: A2.1.2 | E105: 0 | F105: 0 | G105: =E105*F105 -> 0 | N105: 0 | O105: 0 | P105: 0 | Q105: 0 | R105: 0 | S105: 0 | T105: 0 | U105: 0 | V105: 0 | W105: =SUM(N105:V105) -> 0
B106: 1.5 | C106: Enter time series data: water quality | D106: A2.1.2 | E106: 0 | F106: 0 | G106: =E106*F106 -> 0 | N106: 0 | O106: 0 | P106: 0 | Q106: 0 | R106: 0 | S106: 0 | T106: 0 | U106: 0 | V106: 0 | W106: =SUM(N106:V106) -> 0
B107: 1.51 | E107: 0 | F107: 0 | G107: =E107*F107 -> 0 | N107: 0 | O107: 0 | P107: 0 | Q107: 0 | R107: 0 | S107: 0 | T107: 0 | U107: 0 | V107: 0 | W107: =SUM(N107:V107) -> 0
B108: =$B$12 -> 1.3 Scan reports | G108: =SUBTOTAL(9,G109:G113) -> 0
B109: =B107+0.01 -> 1.52 | C109: Scan reports | D109: A2.1.3 | E109: 0 | F109: 0 | G109: =E109*F109 -> 0 | N109: 0 | O109: 0 | P109: 0 | Q109: 0 | R109: 0 | S109: 0 | T109: 0 | U109: 0 | V109: 0 | W109: =SUM(N109:V109) -> 0
B110: 1.53 | E110: 0 | F110: 0 | G110: =E110*F110 -> 0 | N110: 0 | O110: 0 | P110: 0 | Q110: 0 | R110: 0 | S110: 0 | T110: 0 | U110: 0 | V110: 0 | W110: =SUM(N110:V110) -> 0
B111: 1.54 | E111: 0 | F111: 0 | G111: =E111*F111 -> 0 | N111: 0 | O111: 0 | P111: 0 | Q111: 0 | R111: 0 | S111: 0 | T111: 0 | U111: 0 | V111: 0 | W111: =SUM(N111:V111) -> 0
B112: =B111+0.01 -> 1.55 | E112: 0 | F112: 0 | G112: =E112*F112 -> 0 | N112: 0 | O112: 0 | P112: 0 | Q112: 0 | R112: 0 | S112: 0 | T112: 0 | U112: 0 | V112: 0 | W112: =SUM(N112:V112) -> 0
B113: 1.56 | E113: 0 | F113: 0 | G113: =E113*F113 -> 0 | N113: 0 | O113: 0 | P113: 0 | Q113: 0 | R113: 0 | S113: 0 | T113: 0 | U113: 0 | V113: 0 | W113: =SUM(N113:V113) -> 0
B114: =$B$13 -> 0 | E114: 0 | F114: 1 | G114: =SUBTOTAL(9,G115:G119) -> 0
B115: =B113+0.01 -> 1.57 | E115: 0 | F115: 0 | G115: =E115*F115 -> 0 | N115: 0 | O115: 0 | P115: 0 | Q115: 0 | R115: 0 | S115: 0 | T115: 0 | U115: 0 | V115: 0 | W115: =SUM(N115:V115) -> 0
B116: 1.58 | E116: 0 | F116: 0 | G116: =E116*F116 -> 0 | N116: 0 | O116: 0 | P116: 0 | Q116: 0 | R116: 0 | S116: 0 | T116: 0 | U116: 0 | V116: 0 | W116: =SUM(N116:V116) -> 0
B117: 1.59 | E117: 0 | F117: 0 | G117: =E117*F117 -> 0 | N117: 0 | O117: 0 | P117: 0 | Q117: 0 | R117: 0 | S117: 0 | T117: 0 | U117: 0 | V117: 0 | W117: =SUM(N117:V117) -> 0
B118: 1.6 | E118: 0 | F118: 0 | G118: =E118*F118 -> 0 | N118: 0 | O118: 0 | P118: 0 | Q118: 0 | R118: 0 | S118: 0 | T118: 0 | U118: 0 | V118: 0 | W118: =SUM(N118:V118) -> 0
B119: =B118+0.01 -> 1.61 | E119: 0 | F119: 0 | G119: =E119*F119 -> 0 | N119: 0 | O119: 0 | P119: 0 | Q119: 0 | R119: 0 | S119: 0 | T119: 0 | U119: 0 | V119: 0 | W119: =SUM(N119:V119) -> 0
B121: ="Training/Meetings: " & $B$9 -> Training/Meetings: A2.1. Digitize and integrate paper data, maps and doc | F121: Cost per Unit (₹ lakhs) | G121: Total | N121: FY15 | O121: FY16 | P121: FY17 | Q121: FY18 | R121: FY19 | S121: FY20 | T121: FY21 | U121: FY22 | V121: FY23 | W121: Total
C122: Items | D122: Activity | E122: Number | G122: =SUBTOTAL(9,G124:G146) -> 0 | I122: Remarks | M122: Total Annual Outlay (₹ lakhs) | N122: =SUM($G124:$G146*N124:N146) -> 0 | O122: =SUM($G124:$G146*O124:O146) -> 0 | P122: =SUM($G124:$G146*P124:P146) -> 0 | Q122: =SUM($G124:$G146*Q124:Q146) -> 0 | R122: =SUM($G124:$G146*R124:R146) -> 0 | S122: =SUM($G124:$G146*S124:S146) -> 0 | T122: =SUM($G124:$G146*T124:T146) -> 0 | U122: =SUM($G124:$G146*U124:U146) -> 0 | V122: =SUM($G124:$G146*V124:V146) -> 0 | W122: =SUM(N122:V122) -> 0
B123: =$B$10 -> 1.1 Map digitization | G123: =SUBTOTAL(9,G124:G128) -> 0
B124: =B119+0.01 -> 1.62 | C124: n/a | E124: 0 | F124: 0 | G124: =E124*F124 -> 0 | N124: 0 | O124: 0 | P124: 0 | Q124: 0 | R124: 0 | S124: 0 | T124: 0 | U124: 0 | V124: 0 | W124: =SUM(N124:V124) -> 0
B125: =B124+0.01 -> 1.63 | E125: 0 | F125: 0 | G125: =E125*F125 -> 0 | N125: 0 | O125: 0 | P125: 0 | Q125: 0 | R125: 0 | S125: 0 | T125: 0 | U125: 0 | V125: 0 | W125: =SUM(N125:V125) -> 0
B126: =B125+0.01 -> 1.64 | E126: 0 | F126: 0 | G126: =E126*F126 -> 0 | N126: 0 | O126: 0 | P126: 0 | Q126: 0 | R126: 0 | S126: 0 | T126: 0 | U126: 0 | V126: 0 | W126: =SUM(N126:V126) -> 0
B127: 1.65 | E127: 0 | F127: 0 | G127: =E127*F127 -> 0 | N127: 0 | O127: 0 | P127: 0 | Q127: 0 | R127: 0 | S127: 0 | T127: 0 | U127: 0 | V127: 0 | W127: =SUM(N127:V127) -> 0
B128: 1.66 | E128: 0 | F128: 0 | G128: =E128*F128 -> 0 | N128: 0 | O128: 0 | P128: 0 | Q128: 0 | R128: 0 | S128: 0 | T128: 0 | U128: 0 | V128: 0 | W128: =SUM(N128:V128) -> 0
B129: =$B$11 -> 1.2 Time series logs | G129: =SUBTOTAL(9,G130:G134) -> 0
B130: =B128+0.01 -> 1.67 | C130: n/a | E130: 0 | F130: 0 | G130: =E130*F130 -> 0 | N130: 0 | O130: 0 | P130: 0 | Q130: 0 | R130: 0 | S130: 0 | T130: 0 | U130: 0 | V130: 0 | W130: =SUM(N130:V130) -> 0
B131: =B130+0.01 -> 1.68 | E131: 0 | F131: 0 | G131: =E131*F131 -> 0 | N131: 0 | O131: 0 | P131: 0 | Q131: 0 | R131: 0 | S131: 0 | T131: 0 | U131: 0 | V131: 0 | W131: =SUM(N131:V131) -> 0
B132: 1.69 | E132: 0 | F132: 0 | G132: =E132*F132 -> 0 | N132: 0 | O132: 0 | P132: 0 | Q132: 0 | R132: 0 | S132: 0 | T132: 0 | U132: 0 | V132: 0 | W132: =SUM(N132:V132) -> 0
B133: 1.7 | E133: 0 | F133: 0 | G133: =E133*F133 -> 0 | N133: 0 | O133: 0 | P133: 0 | Q133: 0 | R133: 0 | S133: 0 | T133: 0 | U133: 0 | V133: 0 | W133: =SUM(N133:V133) -> 0
B134: 1.71 | E134: 0 | F134: 0 | G134: =E134*F134 -> 0 | N134: 0 | O134: 0 | P134: 0 | Q134: 0 | R134: 0 | S134: 0 | T134: 0 | U134: 0 | V134: 0 | W134: =SUM(N134:V134) -> 0
B135: =$B$12 -> 1.3 Scan reports | G135: =SUBTOTAL(9,G136:G140) -> 0
B136: =B134+0.01 -> 1.72 | C136: n/a | E136: 0 | F136: 0 | G136: =E136*F136 -> 0 | N136: 0 | O136: 0 | P136: 0 | Q136: 0 | R136: 0 | S136: 0 | T136: 0 | U136: 0 | V136: 0 | W136: =SUM(N136:V136) -> 0
B137: 1.73 | E137: 0 | F137: 0 | G137: =E137*F137 -> 0 | N137: 0 | O137: 0 | P137: 0 | Q137: 0 | R137: 0 | S137: 0 | T137: 0 | U137: 0 | V137: 0 | W137: =SUM(N137:V137) -> 0
B138: 1.74 | E138: 0 | F138: 0 | G138: =E138*F138 -> 0 | N138: 0 | O138: 0 | P138: 0 | Q138: 0 | R138: 0 | S138: 0 | T138: 0 | U138: 0 | V138: 0 | W138: =SUM(N138:V138) -> 0
B139: =B138+0.01 -> 1.75 | E139: 0 | F139: 0 | G139: =E139*F139 -> 0 | N139: 0 | O139: 0 | P139: 0 | Q139: 0 | R139: 0 | S139: 0 | T139: 0 | U139: 0 | V139: 0 | W139: =SUM(N139:V139) -> 0
B140: 1.76 | E140: 0 | F140: 0 | G140: =E140*F140 -> 0 | N140: 0 | O140: 0 | P140: 0 | Q140: 0 | R140: 0 | S140: 0 | T140: 0 | U140: 0 | V140: 0 | W140: =SUM(N140:V140) -> 0
B141: =$B$13 -> 0 | E141: 0 | F141: 1 | G141: =SUBTOTAL(9,G142:G146) -> 0
B142: =B140+0.01 -> 1.77 | E142: 0 | F142: 0 | G142: =E142*F142 -> 0 | N142: 0 | O142: 0 | P142: 0 | Q142: 0 | R142: 0 | S142: 0 | T142: 0 | U142: 0 | V142: 0 | W142: =SUM(N142:V142) -> 0
B143: 1.78 | E143: 0 | F143: 0 | G143: =E143*F143 -> 0 | N143: 0 | O143: 0 | P143: 0 | Q143: 0 | R143: 0 | S143: 0 | T143: 0 | U143: 0 | V143: 0 | W143: =SUM(N143:V143) -> 0
B144: 1.79 | E144: 0 | F144: 0 | G144: =E144*F144 -> 0 | N144: 0 | O144: 0 | P144: 0 | Q144: 0 | R144: 0 | S144: 0 | T144: 0 | U144: 0 | V144: 0 | W144: =SUM(N144:V144) -> 0
B145: 1.8 | E145: 0 | F145: 0 | G145: =E145*F145 -> 0 | N145: 0 | O145: 0 | P145: 0 | Q145: 0 | R145: 0 | S145: 0 | T145: 0 | U145: 0 | V145: 0 | W145: =SUM(N145:V145) -> 0
B146: =B145+0.01 -> 1.81 | E146: 0 | F146: 0 | G146: =E146*F146 -> 0 | N146: 0 | O146: 0 | P146: 0 | Q146: 0 | R146: 0 | S146: 0 | T146: 0 | U146: 0 | V146: 0 | W146: =SUM(N146:V146) -> 0
B148: ="Operational Costs: " & $B$9 -> Operational Costs: A2.1. Digitize and integrate paper data, maps and doc | F148: Cost per Unit (₹ lakhs) | G148: Total | N148: FY15 | O148: FY16 | P148: FY17 | Q148: FY18 | R148: FY19 | S148: FY20 | T148: FY21 | U148: FY22 | V148: FY23 | W148: Total
C149: Items | D149: Activity | E149: Number | G149: =SUBTOTAL(9,G151:G173) -> 5 | I149: Remarks | M149: Total Annual Outlay (₹ lakhs) | N149: =SUM($G151:$G173*N151:N173) -> 0 | O149: =SUM($G151:$G173*O151:O173) -> 0 | P149: =SUM($G151:$G173*P151:P173) -> 0.5 | Q149: =SUM($G151:$G173*Q151:Q173) -> 0.5 | R149: =SUM($G151:$G173*R151:R173) -> 0.5 | S149: =SUM($G151:$G173*S151:S173) -> 0.5 | T149: =SUM($G151:$G173*T151:T173) -> 1 | U149: =SUM($G151:$G173*U151:U173) -> 1 | V149: =SUM($G151:$G173*V151:V173) -> 1 | W149: =SUM(N149:V149) -> 5
B150: =$B$10 -> 1.1 Map digitization | G150: =SUBTOTAL(9,G151:G155) -> 5
B151: =B146+0.01 -> 1.82 | C151: Annual software fee | E151: 1 | F151: 5 | G151: =E151*F151 -> 5 | N151: 0 | O151: 0 | P151: 0.1 | Q151: 0.1 | R151: 0.1 | S151: 0.1 | T151: 0.2 | U151: 0.2 | V151: 0.2 | W151: =SUM(N151:V151) -> 1
B152: =B151+0.01 -> 1.83 | E152: 0 | F152: 0 | G152: =E152*F152 -> 0 | N152: 0 | O152: 0 | P152: 0 | Q152: 0 | R152: 0 | S152: 0 | T152: 0 | U152: 0 | V152: 0 | W152: =SUM(N152:V152) -> 0
B153: =B152+0.01 -> 1.84 | E153: 0 | F153: 0 | G153: =E153*F153 -> 0 | N153: 0 | O153: 0 | P153: 0 | Q153: 0 | R153: 0 | S153: 0 | T153: 0 | U153: 0 | V153: 0 | W153: =SUM(N153:V153) -> 0
B154: 1.85 | E154: 0 | F154: 0 | G154: =E154*F154 -> 0 | N154: 0 | O154: 0 | P154: 0 | Q154: 0 | R154: 0 | S154: 0 | T154: 0 | U154: 0 | V154: 0 | W154: =SUM(N154:V154) -> 0
B155: 1.86 | E155: 0 | F155: 0 | G155: =E155*F155 -> 0 | N155: 0 | O155: 0 | P155: 0 | Q155: 0 | R155: 0 | S155: 0 | T155: 0 | U155: 0 | V155: 0 | W155: =SUM(N155:V155) -> 0
B156: =$B$11 -> 1.2 Time series logs | G156: =SUBTOTAL(9,G157:G161) -> 0
B157: =B155+0.01 -> 1.87 | E157: 0 | F157: 0 | G157: =E157*F157 -> 0 | N157: 0 | O157: 0 | P157: 0 | Q157: 0 | R157: 0 | S157: 0 | T157: 0 | U157: 0 | V157: 0 | W157: =SUM(N157:V157) -> 0
B158: =B157+0.01 -> 1.88 | E158: 0 | F158: 0 | G158: =E158*F158 -> 0 | N158: 0 | O158: 0 | P158: 0 | Q158: 0 | R158: 0 | S158: 0 | T158: 0 | U158: 0 | V158: 0 | W158: =SUM(N158:V158) -> 0
B159: 1.89 | E159: 0 | F159: 0 | G159: =E159*F159 -> 0 | N159: 0 | O159: 0 | P159: 0 | Q159: 0 | R159: 0 | S159: 0 | T159: 0 | U159: 0 | V159: 0 | W159: =SUM(N159:V159) -> 0
B160: 1.9 | E160: 0 | F160: 0 | G160: =E160*F160 -> 0 | N160: 0 | O160: 0 | P160: 0 | Q160: 0 | R160: 0 | S160: 0 | T160: 0 | U160: 0 | V160: 0 | W160: =SUM(N160:V160) -> 0
B161: 1.91 | E161: 0 | F161: 0 | G161: =E161*F161 -> 0 | N161: 0 | O161: 0 | P161: 0 | Q161: 0 | R161: 0 | S161: 0 | T161: 0 | U161: 0 | V161: 0 | W161: =SUM(N161:V161) -> 0
B162: =$B$12 -> 1.3 Scan reports | G162: =SUBTOTAL(9,G163:G167) -> 0
B163: =B161+0.01 -> 1.92 | E163: 0 | F163: 0 | G163: =E163*F163 -> 0 | N163: 0 | O163: 0 | P163: 0 | Q163: 0 | R163: 0 | S163: 0 | T163: 0 | U163: 0 | V163: 0 | W163: =SUM(N163:V163) -> 0
B164: 1.93 | E164: 0 | F164: 0 | G164: =E164*F164 -> 0 | N164: 0 | O164: 0 | P164: 0 | Q164: 0 | R164: 0 | S164: 0 | T164: 0 | U164: 0 | V164: 0 | W164: =SUM(N164:V164) -> 0
B165: 1.94 | E165: 0 | F165: 0 | G165: =E165*F165 -> 0 | N165: 0 | O165: 0 | P165: 0 | Q165: 0 | R165: 0 | S165: 0 | T165: 0 | U165: 0 | V165: 0 | W165: =SUM(N165:V165) -> 0
B166: =B165+0.01 -> 1.95 | E166: 0 | F166: 0 | G166: =E166*F166 -> 0 | N166: 0 | O166: 0 | P166: 0 | Q166: 0 | R166: 0 | S166: 0 | T166: 0 | U166: 0 | V166: 0 | W166: =SUM(N166:V166) -> 0
B167: 1.96 | E167: 0 | F167: 0 | G167: =E167*F167 -> 0 | N167: 0 | O167: 0 | P167: 0 | Q167: 0 | R167: 0 | S167: 0 | T167: 0 | U167: 0 | V167: 0 | W167: =SUM(N167:V167) -> 0
B168: =$B$13 -> 0 | E168: 0 | F168: 1 | G168: =SUBTOTAL(9,G169:G173) -> 0
B169: =B167+0.01 -> 1.97 | E169: 0 | F169: 0 | G169: =E169*F169 -> 0 | N169: 0 | O169: 0 | P169: 0 | Q169: 0 | R169: 0 | S169: 0 | T169: 0 | U169: 0 | V169: 0 | W169: =SUM(N169:V169) -> 0
B170: 1.98 | E170: 0 | F170: 0 | G170: =E170*F170 -> 0 | N170: 0 | O170: 0 | P170: 0 | Q170: 0 | R170: 0 | S170: 0 | T170: 0 | U170: 0 | V170: 0 | W170: =SUM(N170:V170) -> 0
B171: 1.99 | E171: 0 | F171: 0 | G171: =E171*F171 -> 0 | N171: 0 | O171: 0 | P171: 0 | Q171: 0 | R171: 0 | S171: 0 | T171: 0 | U171: 0 | V171: 0 | W171: =SUM(N171:V171) -> 0
B172: 2 | E172: 0 | F172: 0 | G172: =E172*F172 -> 0 | N172: 0 | O172: 0 | P172: 0 | Q172: 0 | R172: 0 | S172: 0 | T172: 0 | U172: 0 | V172: 0 | W172: =SUM(N172:V172) -> 0
B173: =B172+0.01 -> 2.01 | E173: 0 | F173: 0 | G173: =E173*F173 -> 0 | N173: 0 | O173: 0 | P173: 0 | Q173: 0 | R173: 0 | S173: 0 | T173: 0 | U173: 0 | V173: 0 | W173: =SUM(N173:V173) -> 0
B175: =B14 -> A2.2. Develop spatial river basin information systems
B176: ="Goods: " & $B$14 -> Goods: A2.2. Develop spatial river basin information systems | F176: Cost per Unit (₹ lakhs) | G176: Total | H176: Telemetry Type | N176: FY15 | O176: FY16 | P176: FY17 | Q176: FY18 | R176: FY19 | S176: FY20 | T176: FY21 | U176: FY22 | V176: FY23 | W176: Total
C177: Items | D177: Activity | E177: Number | G177: =SUBTOTAL(9,G179:G201) -> 0 | H177: Telemetry Type | I177: Remarks | M177: Total Annual Outlay (₹ lakhs) | N177: =SUM($G179:$G201*N179:N201) -> 0 | O177: =SUM($G179:$G201*O179:O201) -> 0 | P177: =SUM($G179:$G201*P179:P201) -> 0 | Q177: =SUM($G179:$G201*Q179:Q201) -> 0 | R177: =SUM($G179:$G201*R179:R201) -> 0 | S177: =SUM($G179:$G201*S179:S201) -> 0 | T177: =SUM($G179:$G201*T179:T201) -> 0 | U177: =SUM($G179:$G201*U179:U201) -> 0 | V177: =SUM($G179:$G201*V179:V201) -> 0 | W177: =SUM(N177:V177) -> 0
B178: =$B$15 -> 2.1 Construct maps | G178: =SUBTOTAL(9,G179:G183) -> 0
B179: 2 | C179: Computers and work stations | D179: A2.2.1 | E179: 0 | F179: 0.75 | G179: =E179*F179 -> 0 | N179: 0 | O179: 0 | P179: 0 | Q179: 0 | R179: 0 | S179: 0 | T179: 0 | U179: 0 | V179: 0 | W179: =SUM(N179:V179) -> 0
B180: =B179+0.01 -> 2.01 | C180: Plotter | D180: A2.2.1 | E180: 0 | F180: 3 | G180: =E180*F180 -> 0 | N180: 0 | O180: 0 | P180: 0 | Q180: 0 | R180: 0 | S180: 0 | T180: 0 | U180: 0 | V180: 0 | W180: =SUM(N180:V180) -> 0
B181: =B180+0.01 -> 2.02 | C181: Colour Laser Printer A3 size | D181: A2.2.1 | E181: 0 | F181: 1.5 | G181: =E181*F181 -> 0 | N181: 0 | O181: 0 | P181: 0 | Q181: 0 | R181: 0 | S181: 0 | T181: 0 | U181: 0 | V181: 0 | W181: =SUM(N181:V181) -> 0
B182: 2.03 | C182: Scanner | D182: A2.2.1 | E182: 0 | F182: 0.1 | G182: =E182*F182 -> 0 | N182: 0 | O182: 0 | P182: 0 | Q182: 0 | R182: 0 | S182: 0 | T182: 0 | U182: 0 | V182: 0 | W182: =SUM(N182:V182) -> 0
B183: 2.04 | C183: Consummables | E183: 0 | F183: 4 | G183: =E183*F183 -> 0 | N183: 0 | O183: 0 | P183: 0 | Q183: 0 | R183: 0 | S183: 0 | T183: 0 | U183: 0 | V183: 0 | W183: =SUM(N183:V183) -> 0
B184: =$B$16 -> 2.2 GIS/satellite image database | G184: =SUBTOTAL(9,G185:G189) -> 0
B185: =B183+0.01 -> 2.05 | C185: Purchase of high resolution DEM | D185: A2.2.2 | E185: 0 | F185: 25 | G185: =E185*F185 -> 0 | N185: 0 | O185: 0 | P185: 0 | Q185: 0 | R185: 0 | S185: 0 | T185: 0 | U185: 0 | V185: 0 | W185: =SUM(N185:V185) -> 0
B186: =B185+0.01 -> 2.06 | E186: 0 | F186: 0 | G186: =E186*F186 -> 0 | N186: 0 | O186: 0 | P186: 0 | Q186: 0 | R186: 0 | S186: 0 | T186: 0 | U186: 0 | V186: 0 | W186: =SUM(N186:V186) -> 0
B187: 2.07 | E187: 0 | F187: 0 | G187: =E187*F187 -> 0 | N187: 0 | O187: 0 | P187: 0 | Q187: 0 | R187: 0 | S187: 0 | T187: 0 | U187: 0 | V187: 0 | W187: =SUM(N187:V187) -> 0
B188: 2.08 | E188: 0 | F188: 0 | G188: =E188*F188 -> 0 | N188: 0 | O188: 0 | P188: 0 | Q188: 0 | R188: 0 | S188: 0 | T188: 0 | U188: 0 | V188: 0 | W188: =SUM(N188:V188) -> 0
B189: 2.09 | E189: 0 | F189: 0 | G189: =E189*F189 -> 0 | N189: 0 | O189: 0 | P189: 0 | Q189: 0 | R189: 0 | S189: 0 | T189: 0 | U189: 0 | V189: 0 | W189: =SUM(N189:V189) -> 0
B190: =$B$17 -> 0 | E190: 0 | F190: 1 | G190: =SUBTOTAL(9,G191:G195) -> 0
B191: =B189+0.01 -> 2.1 | E191: 0 | F191: 0 | G191: =E191*F191 -> 0 | N191: 0 | O191: 0 | P191: 0 | Q191: 0 | R191: 0 | S191: 0 | T191: 0 | U191: 0 | V191: 0 | W191: =SUM(N191:V191) -> 0
B192: 2.11 | E192: 0 | F192: 0 | G192: =E192*F192 -> 0 | N192: 0 | O192: 0 | P192: 0 | Q192: 0 | R192: 0 | S192: 0 | T192: 0 | U192: 0 | V192: 0 | W192: =SUM(N192:V192) -> 0
B193: 2.12 | E193: 0 | F193: 0 | G193: =E193*F193 -> 0 | N193: 0 | O193: 0 | P193: 0 | Q193: 0 | R193: 0 | S193: 0 | T193: 0 | U193: 0 | V193: 0 | W193: =SUM(N193:V193) -> 0
B194: =B193+0.01 -> 2.13 | E194: 0 | F194: 0 | G194: =E194*F194 -> 0 | N194: 0 | O194: 0 | P194: 0 | Q194: 0 | R194: 0 | S194: 0 | T194: 0 | U194: 0 | V194: 0 | W194: =SUM(N194:V194) -> 0
B195: 2.14 | E195: 0 | F195: 0 | G195: =E195*F195 -> 0 | N195: 0 | O195: 0 | P195: 0 | Q195: 0 | R195: 0 | S195: 0 | T195: 0 | U195: 0 | V195: 0 | W195: =SUM(N195:V195) -> 0
B196: =$B$18 -> 0 | E196: 0 | F196: 1 | G196: =SUBTOTAL(9,G197:G201) -> 0
B197: =B195+0.01 -> 2.15 | E197: 0 | F197: 0 | G197: =E197*F197 -> 0 | N197: 0 | O197: 0 | P197: 0 | Q197: 0 | R197: 0 | S197: 0 | T197: 0 | U197: 0 | V197: 0 | W197: =SUM(N197:V197) -> 0
B198: 2.16 | E198: 0 | F198: 0 | G198: =E198*F198 -> 0 | N198: 0 | O198: 0 | P198: 0 | Q198: 0 | R198: 0 | S198: 0 | T198: 0 | U198: 0 | V198: 0 | W198: =SUM(N198:V198) -> 0
B199: 2.17 | E199: 0 | F199: 0 | G199: =E199*F199 -> 0 | N199: 0 | O199: 0 | P199: 0 | Q199: 0 | R199: 0 | S199: 0 | T199: 0 | U199: 0 | V199: 0 | W199: =SUM(N199:V199) -> 0
B200: 2.18 | E200: 0 | F200: 0 | G200: =E200*F200 -> 0 | N200: 0 | O200: 0 | P200: 0 | Q200: 0 | R200: 0 | S200: 0 | T200: 0 | U200: 0 | V200: 0 | W200: =SUM(N200:V200) -> 0
B201: =B200+0.01 -> 2.19 | E201: 0 | F201: 0 | G201: =E201*F201 -> 0 | N201: 0 | O201: 0 | P201: 0 | Q201: 0 | R201: 0 | S201: 0 | T201: 0 | U201: 0 | V201: 0 | W201: =SUM(N201:V201) -> 0
B203: ="Civil Works: " & $B$14 -> Civil Works: A2.2. Develop spatial river basin information systems | F203: Cost per Unit (₹ lakhs) | G203: Total | N203: FY15 | O203: FY16 | P203: FY17 | Q203: FY18 | R203: FY19 | S203: FY20 | T203: FY21 | U203: FY22 | V203: FY23 | W203: Total
C204: Items | D204: Activity | E204: Number | G204: =SUBTOTAL(9,G206:G228) -> 0 | I204: Remarks | M204: Total Annual Outlay (₹ lakhs) | N204: =SUM($G206:$G228*N206:N228) -> 0 | O204: =SUM($G206:$G228*O206:O228) -> 0 | P204: =SUM($G206:$G228*P206:P228) -> 0 | Q204: =SUM($G206:$G228*Q206:Q228) -> 0 | R204: =SUM($G206:$G228*R206:R228) -> 0 | S204: =SUM($G206:$G228*S206:S228) -> 0 | T204: =SUM($G206:$G228*T206:T228) -> 0 | U204: =SUM($G206:$G228*U206:U228) -> 0 | V204: =SUM($G206:$G228*V206:V228) -> 0 | W204: =SUM(N204:V204) -> 0
B205: =$B$15 -> 2.1 Construct maps | G205: =SUBTOTAL(9,G206:G210) -> 0
B206: =B201+0.01 -> 2.2 | C206: n/a | E206: 0 | F206: 0 | G206: =E206*F206 -> 0 | N206: 0 | O206: 0 | P206: 0 | Q206: 0 | R206: 0 | S206: 0 | T206: 0 | U206: 0 | V206: 0 | W206: =SUM(N206:V206) -> 0
B207: =B206+0.01 -> 2.21 | E207: 0 | F207: 0 | G207: =E207*F207 -> 0 | N207: 0 | O207: 0 | P207: 0 | Q207: 0 | R207: 0 | S207: 0 | T207: 0 | U207: 0 | V207: 0 | W207: =SUM(N207:V207) -> 0
... 349 more rows

Sheet A3
A1: Cost Estimate for HP-III
B2: Component | C2: A: Improving Water Resources Monitoring System (WRMS)
B3: Sub-Component | C3: A3: Targeted Surveys in Selected Areas
B4: Prefix | C4: A3
C5: Go to Abstract | E5: Go to Legend
B6: Cost Summary | E6: Total cost | F6: Procurement Categories (₹ lakhs) | K6: Remarks/ description
B7: Decription | D7: No. | E7: ₹ lakhs | F7: Goods | G7: Civil Works | H7: Consultant Services | I7: Training/ Meetings | J7: Operation Costs
B8: Subcomponents and Activities | E8: =SUM(F8:J8) -> 245 | F8: =SUBTOTAL(9,F9:F28) -> 100 | G8: =SUBTOTAL(9,G9:G28) -> 0 | H8: =SUBTOTAL(9,H9:H28) -> 130 | I8: =SUBTOTAL(9,I9:I28) -> 15 | J8: =SUBTOTAL(9,J9:J28) -> 0
B9: A3.1. Reservoir sedimentation surveys | E9: =SUM(F9:J9) -> 50 | F9: =SUBTOTAL(9,F10:F13) -> 0 | G9: =SUBTOTAL(9,G10:G13) -> 0 | H9: =SUBTOTAL(9,H10:H13) -> 50 | I9: =SUBTOTAL(9,I10:I13) -> 0 | J9: =SUBTOTAL(9,J10:J13) -> 0
B10: Reservoir 1 | D10: =$C$4 & ".1.1" -> A3.1.1 | E10: 50 | F10: =G40 -> 0 | G10: =G67 -> 0 | H10: =G94 -> 50 | I10: =G121 -> 0 | J10: =G148 -> 0
B11: Reservoir 2 | D11: =$C$4 & ".1.2" -> A3.1.2 | E11: 0 | F11: =G46 -> 0 | G11: =G73 -> 0 | H11: =G100 -> 0 | I11: =G127 -> 0 | J11: =G154 -> 0
B12: Reservoir 3 | D12: =$C$4 & ".1.3" -> A3.1.3 | E12: 0 | F12: =G52 -> 0 | G12: =G79 -> 0 | H12: =G106 -> 0 | I12: =G133 -> 0 | J12: =G160 -> 0
B13: Reservoir 4 | D13: =$C$4 & ".1.4" -> A3.1.4 | E13: 0 | F13: =G58 -> 0 | G13: =G85 -> 0 | H13: =G112 -> 0 | I13: =G139 -> 0 | J13: =G166 -> 0
B14: A3.2. Bathymetric surveys in critical river sectors | E14: 40 | F14: =SUBTOTAL(9,F15:F18) -> 0 | G14: =SUBTOTAL(9,G15:G18) -> 0 | H14: =SUBTOTAL(9,H15:H18) -> 40 | I14: =SUBTOTAL(9,I15:I18) -> 0 | J14: =SUBTOTAL(9,J15:J18) -> 0
B15: Bathymetric Survey 1 | D15: =$C$4 & ".2.1" -> A3.2.1 | E15: 40 | F15: =G176 -> 0 | G15: =G203 -> 0 | H15: =G230 -> 40 | I15: =G253 -> 0 | J15: =G280 -> 0
B16: Bathymetric Survey 2 | D16: =$C$4 & ".2.2" -> A3.2.2 | E16: 0 | F16: =G182 -> 0 | G16: =G209 -> 0 | H16: =G235 -> 0 | I16: =G259 -> 0 | J16: =G286 -> 0
B17: Bathymetric Survey 3 | D17: =$C$4 & ".2.3" -> A3.2.3 | E17: 0 | F17: =G188 -> 0 | G17: =G215 -> 0 | H17: =G240 -> 0 | I17: =G265 -> 0 | J17: =G292 -> 0
B18: None | D18: =$C$4 & ".2.4" -> A3.2.4 | E18: 0 | F18: =G194 -> 0 | G18: =G221 -> 0 | H18: =G245 -> 0 | I18: =G271 -> 0 | J18: =G298 -> 0
B19: A3.3. Assess water quality and waste loads | E19: =SUM(F19:J19) -> 20 | F19: =SUBTOTAL(9,F20:F23) -> 0 | G19: =SUBTOTAL(9,G20:G23) -> 0 | H19: =SUBTOTAL(9,H20:H23) -> 10 | I19: =SUBTOTAL(9,I20:I23) -> 10 | J19: =SUBTOTAL(9,J20:J23) -> 0
B20: Study Area 1 | D20: =$C$4 & ".3.1" -> A3.3.1 | E20: 20 | F20: =G308 -> 0 | G20: =G335 -> 0 | H20: =G362 -> 10 | I20: =G389 -> 10 | J20: =G416 -> 0
B21: Study Area 2 | D21: =$C$4 & ".3.2" -> A3.3.2 | E21: 0 | F21: =G314 -> 0 | G21: =G341 -> 0 | H21: =G368 -> 0 | I21: =G395 -> 0 | J21: =G422 -> 0
B22: Study Area 3 | D22: =$C$4 & ".3.3" -> A3.3.3 | E22: 0 | F22: =G320 -> 0 | G22: =G347 -> 0 | H22: =G374 -> 0 | I22: =G401 -> 0 | J22: =G428 -> 0
B23: None | D23: =$C$4 & ".3.4" -> A3.3.4 | E23: 0 | F23: =G326 -> 0 | G23: =G353 -> 0 | H23: =G380 -> 0 | I23: =G407 -> 0 | J23: =G434 -> 0
B24: A3.4. GW exploration and aquifer mapping | E24: =SUM(F24:J24) -> 135 | F24: =SUBTOTAL(9,F25:F28) -> 100 | G24: =SUBTOTAL(9,G25:G28) -> 0 | H24: =SUBTOTAL(9,H25:H28) -> 30 | I24: =SUBTOTAL(9,I25:I28) -> 5 | J24: =SUBTOTAL(9,J25:J28) -> 0
B25: Area 1 | D25: =$C$4 & ".4.1" -> A3.4.1 | E25: 135 | F25: =G444 -> 100 | G25: =G471 -> 0 | H25: =G498 -> 30 | I25: =G521 -> 5 | J25: n/a
B26: Area 2 | D26: =$C$4 & ".4.2" -> A3.4.2 | E26: 0 | F26: =G450 -> 0 | G26: =G477 -> 0 | H26: =G503 -> 0 | I26: =G526 -> 0 | J26: n/a
B27: Area 3 | D27: =$C$4 & ".4.3" -> A3.4.3 | E27: 0 | F27: =G456 -> 0 | G27: =G483 -> 0 | H27: =G508 -> 0 | I27: =G531 -> 0 | J27: n/a
B28: Area 4 | D28: =$C$4 & ".4.4" -> A3.4.4 | E28: 0 | F28: =G462 -> 0 | G28: =G489 -> 0 | H28: =G513 -> 0 | I28: =G536 -> 0 | J28: n/a
C29: Financial Year | D29: FY 15 | E29: FY 16 | F29: FY 17 | G29: FY 18 | H29: FY 19 | I29: FY 20 | J29: FY 21 | K29: FY 22 | L29: FY 23
C30: Cost Outlay | D30: =SUM(D31:D34) -> 0 | E30: =SUM(E31:E34) -> 0 | F30: 0.5 | G30: 0.5 | H30: 1 | I30: 81 | J30: 141 | K30: 20.5 | L30: 0.5
C31: =$C$4 & ".1" -> A3.1 | D31: =N39+N66+N93+N120+N147 -> 0 | E31: =O39+O66+O93+O120+O147 -> 0 | F31: 0 | G31: 0 | H31: 0 | I31: 25 | J31: 25 | K31: 0 | L31: 0
C32: =$C$4 & ".2" -> A3.2 | D32: =N175+N202+N229+N252+N279 -> 0 | E32: 0 | F32: 0 | G32: 0 | H32: 0 | I32: 20 | J32: 20 | K32: 0 | L32: 0
C33: =$C$4 & ".3" -> A3.3 | D33: =N307+N334+N361+N388+N415 -> 0 | E33: =O307+O334+O361+O388+O415 -> 0 | F33: 0 | G33: 0 | H33: 0 | I33: 10 | J33: 10 | K33: 0 | L33: 0
C34: =$C$4 & ".4" -> A3.4 | D34: =N443+N470+N497+N520 -> 0 | E34: 0 | F34: 0.5 | G34: 0.5 | H34: 1 | I34: 26 | J34: 86 | K34: 20.5 | L34: 0.5
B36: Worksheets
B37: =B9 -> A3.1. Reservoir sedimentation surveys
B38: ="Goods: " & $B$9 -> Goods: A3.1. Reservoir sedimentation surveys | F38: Cost per Unit (₹ lakhs) | G38: Total | H38: Telemetry Type | N38: FY15 | O38: FY16 | P38: FY17 | Q38: FY18 | R38: FY19 | S38: FY20 | T38: FY21 | U38: FY22 | V38: FY23 | W38: Total
C39: Items | D39: Activity | E39: Number | G39: =SUBTOTAL(9,G41:G63) -> 0 | H39: Telemetry Type | I39: Remarks | M39: Total Annual Outlay (₹ lakhs) | N39: =SUM($G41:$G63*N41:N63) -> 0 | O39: =SUM($G41:$G63*O41:O63) -> 0 | P39: =SUM($G41:$G63*P41:P63) -> 0 | Q39: =SUM($G41:$G63*Q41:Q63) -> 0 | R39: =SUM($G41:$G63*R41:R63) -> 0 | S39: =SUM($G41:$G63*S41:S63) -> 0 | T39: =SUM($G41:$G63*T41:T63) -> 0 | U39: =SUM($G41:$G63*U41:U63) -> 0 | V39: =SUM($G41:$G63*V41:V63) -> 0 | W39: =SUM(N39:V39) -> 0
B40: =$B$10 -> Reservoir 1 | G40: =SUBTOTAL(9,G41:G45) -> 0
B41: 1 | C41: Boat | D41: A3.1.1 | E41: 0 | F41: 0 | G41: =E41*F41 -> 0 | N41: 0 | O41: 0 | P41: 1 | Q41: 0 | R41: 0 | S41: 0 | T41: 0 | U41: 0 | V41: 0 | W41: =SUM(N41:V41) -> 1
B42: =B41+0.01 -> 1.01 | C42: GPS Unit | D42: A3.1.1 | E42: 0 | F42: 0 | G42: 0 | N42: 0 | O42: 0 | P42: 1 | Q42: 0 | R42: 0 | S42: 0 | T42: 0 | U42: 0 | V42: 0 | W42: =SUM(N42:V42) -> 1
B43: =B42+0.01 -> 1.02 | C43: Survey Equipment | D43: A3.1.1 | E43: 0 | F43: 0 | G43: 0 | N43: 0 | O43: 0 | P43: 1 | Q43: 0 | R43: 0 | S43: 0 | T43: 0 | U43: 0 | V43: 0 | W43: 1
B44: 1.03 | E44: 0 | F44: 0 | G44: 0 | N44: 0 | O44: 0 | P44: 0 | Q44: 0 | R44: 0 | S44: 0 | T44: 0 | U44: 0 | V44: 0 | W44: 0
B45: 1.04 | E45: 0 | F45: 0 | G45: 0 | N45: 0 | O45: 0 | P45: 0 | Q45: 0 | R45: 0 | S45: 0 | T45: 0 | U45: 0 | V45: 0 | W45: 0
B46: =$B$11 -> Reservoir 2 | G46: =SUBTOTAL(9,G47:G51) -> 0
B47: =B45+0.01 -> 1.05 | C47: Boat | D47: A3.1.2 | E47: 0 | F47: 0 | G47: =E47*F47 -> 0 | N47: 0 | O47: 0 | P47: 1 | Q47: 0 | R47: 0 | S47: 0 | T47: 0 | U47: 0 | V47: 0 | W47: =SUM(N47:V47) -> 1
B48: =B47+0.01 -> 1.06 | C48: GPS Unit | D48: A3.1.2 | E48: 0 | F48: 0 | G48: =E48*F48 -> 0 | N48: 0 | O48: 0 | P48: 1 | Q48: 0 | R48: 0 | S48: 0 | T48: 0 | U48: 0 | V48: 0 | W48: 0
B49: 1.07 | C49: Survey Equipment | D49: A3.1.2 | E49: 0 | F49: 1 | G49: =E49*F49 -> 0 | N49: 0 | O49: 0 | P49: 1 | Q49: 0 | R49: 0 | S49: 0 | T49: 0 | U49: 0 | V49: 0 | W49: =SUM(N49:V49) -> 1
B50: 1.08 | E50: 0 | F50: 0 | G50: =E50*F50 -> 0 | N50: 0 | O50: 0 | P50: 0 | Q50: 0 | R50: 0 | S50: 0 | T50: 0 | U50: 0 | V50: 0 | W50: =SUM(N50:V50) -> 0
B51: 1.09 | E51: 0 | F51: 0 | G51: =E51*F51 -> 0 | N51: 0 | O51: 0 | P51: 0 | Q51: 0 | R51: 0 | S51: 0 | T51: 0 | U51: 0 | V51: 0 | W51: =SUM(N51:V51) -> 0
B52: =$B$12 -> Reservoir 3 | G52: =SUBTOTAL(9,G53:G57) -> 0
B53: =B51+0.01 -> 1.1 | C53: Boat | D53: A3.1.3 | E53: 0 | F53: 0 | G53: 0 | N53: 0 | O53: 0 | P53: 0 | Q53: 1 | R53: 0 | S53: 0 | T53: 0 | U53: 0 | V53: 0 | W53: 1
B54: 1.11 | C54: GPS Unit | D54: A3.1.3 | E54: 0 | F54: 0 | G54: 0 | N54: 0 | O54: 0 | P54: 0 | Q54: 1 | R54: 0 | S54: 0 | T54: 0 | U54: 0 | V54: 0 | W54: 1
B55: 1.12 | C55: Survey Equipment | D55: A3.1.3 | E55: 0 | F55: 0 | G55: 0 | N55: 0 | O55: 0 | P55: 0 | Q55: 1 | R55: 0 | S55: 0 | T55: 0 | U55: 0 | V55: 0 | W55: 1
B56: =B55+0.01 -> 1.13 | E56: 0 | F56: 0 | G56: 0 | N56: 0 | O56: 0 | P56: 0 | Q56: 0 | R56: 0 | S56: 0 | T56: 0 | U56: 0 | V56: 0 | W56: 0
B57: 1.14 | E57: 0 | F57: 0 | G57: 0 | N57: 0 | O57: 0 | P57: 0 | Q57: 0 | R57: 0 | S57: 0 | T57: 0 | U57: 0 | V57: 0 | W57: 0
B58: =$B$13 -> Reservoir 4 | G58: =SUBTOTAL(9,G59:G63) -> 0
B59: =B57+0.01 -> 1.15 | C59: Boat | D59: A3.1.4 | E59: 0 | F59: 0 | G59: 0 | N59: 0 | O59: 0 | P59: 0 | Q59: 1 | R59: 0 | S59: 0 | T59: 0 | U59: 0 | V59: 0 | W59: 1
B60: 1.16 | C60: GPS Unit | D60: A3.1.4 | E60: 0 | F60: 0 | G60: 0 | N60: 0 | O60: 0 | P60: 0 | Q60: 1 | R60: 0 | S60: 0 | T60: 0 | U60: 0 | V60: 0 | W60: 1
B61: 1.17 | C61: Survey Equipment | D61: A3.1.4 | E61: 0 | F61: 0 | G61: 0 | N61: 0 | O61: 0 | P61: 0 | Q61: 1 | R61: 0 | S61: 0 | T61: 0 | U61: 0 | V61: 0 | W61: 1
B62: 1.18 | E62: 0 | F62: 0 | G62: 0 | N62: 0 | O62: 0 | P62: 0 | Q62: 0 | R62: 0 | S62: 0 | T62: 0 | U62: 0 | V62: 0 | W62: 0
B63: =B62+0.01 -> 1.19 | E63: 0 | F63: 0 | G63: 0 | N63: 0 | O63: 0 | P63: 0 | Q63: 0 | R63: 0 | S63: 0 | T63: 0 | U63: 0 | V63: 0 | W63: 0
B65: ="Civil Works: " & $B$9 -> Civil Works: A3.1. Reservoir sedimentation surveys | F65: Cost per Unit (₹ lakhs) | G65: Total | N65: FY15 | O65: FY16 | P65: FY17 | Q65: FY18 | R65: FY19 | S65: FY20 | T65: FY21 | U65: FY22 | V65: FY23 | W65: Total
C66: Items | D66: Activity | E66: Number | G66: =SUBTOTAL(9,G68:G90) -> 0 | I66: Remarks | M66: Total Annual Outlay (₹ lakhs) | N66: =SUM($G68:$G90*N68:N90) -> 0 | O66: =SUM($G68:$G90*O68:O90) -> 0 | P66: =SUM($G68:$G90*P68:P90) -> 0 | Q66: =SUM($G68:$G90*Q68:Q90) -> 0 | R66: =SUM($G68:$G90*R68:R90) -> 0 | S66: =SUM($G68:$G90*S68:S90) -> 0 | T66: =SUM($G68:$G90*T68:T90) -> 0 | U66: =SUM($G68:$G90*U68:U90) -> 0 | V66: =SUM($G68:$G90*V68:V90) -> 0 | W66: =SUM(N66:V66) -> 0
B67: =$B$10 -> Reservoir 1 | G67: =SUBTOTAL(9,G68:G72) -> 0
B68: =B63+0.01 -> 1.2 | C68: n/a | E68: 0 | F68: 0 | G68: =E68*F68 -> 0 | N68: 0 | O68: 0 | P68: 0 | Q68: 0 | R68: 0 | S68: 0 | T68: 0 | U68: 0 | V68: 0 | W68: =SUM(N68:V68) -> 0
B69: =B68+0.01 -> 1.21 | E69: 0 | F69: 0 | G69: =E69*F69 -> 0 | N69: 0 | O69: 0 | P69: 0 | Q69: 0 | R69: 0 | S69: 0 | T69: 0 | U69: 0 | V69: 0 | W69: =SUM(N69:V69) -> 0
B70: =B69+0.01 -> 1.22 | E70: 0 | F70: 0 | G70: =E70*F70 -> 0 | N70: 0 | O70: 0 | P70: 0 | Q70: 0 | R70: 0 | S70: 0 | T70: 0 | U70: 0 | V70: 0 | W70: =SUM(N70:V70) -> 0
B71: 1.23 | E71: 0 | F71: 0 | G71: =E71*F71 -> 0 | N71: 0 | O71: 0 | P71: 0 | Q71: 0 | R71: 0 | S71: 0 | T71: 0 | U71: 0 | V71: 0 | W71: =SUM(N71:V71) -> 0
B72: 1.24 | E72: 0 | F72: 0 | G72: =E72*F72 -> 0 | N72: 0 | O72: 0 | P72: 0 | Q72: 0 | R72: 0 | S72: 0 | T72: 0 | U72: 0 | V72: 0 | W72: =SUM(N72:V72) -> 0
B73: =$B$11 -> Reservoir 2 | G73: =SUBTOTAL(9,G74:G78) -> 0
B74: =B72+0.01 -> 1.25 | E74: 0 | F74: 0 | G74: =E74*F74 -> 0 | N74: 0 | O74: 0 | P74: 0 | Q74: 0 | R74: 0 | S74: 0 | T74: 0 | U74: 0 | V74: 0 | W74: =SUM(N74:V74) -> 0
B75: =B74+0.01 -> 1.26 | E75: 0 | F75: 0 | G75: =E75*F75 -> 0 | N75: 0 | O75: 0 | P75: 0 | Q75: 0 | R75: 0 | S75: 0 | T75: 0 | U75: 0 | V75: 0 | W75: =SUM(N75:V75) -> 0
B76: 1.27 | E76: 0 | F76: 0 | G76: =E76*F76 -> 0 | N76: 0 | O76: 0 | P76: 0 | Q76: 0 | R76: 0 | S76: 0 | T76: 0 | U76: 0 | V76: 0 | W76: =SUM(N76:V76) -> 0
B77: 1.28 | E77: 0 | F77: 0 | G77: =E77*F77 -> 0 | N77: 0 | O77: 0 | P77: 0 | Q77: 0 | R77: 0 | S77: 0 | T77: 0 | U77: 0 | V77: 0 | W77: =SUM(N77:V77) -> 0
B78: 1.29 | E78: 0 | F78: 0 | G78: =E78*F78 -> 0 | N78: 0 | O78: 0 | P78: 0 | Q78: 0 | R78: 0 | S78: 0 | T78: 0 | U78: 0 | V78: 0 | W78: =SUM(N78:V78) -> 0
B79: =$B$12 -> Reservoir 3 | G79: =SUBTOTAL(9,G80:G84) -> 0
B80: =B78+0.01 -> 1.3 | E80: 0 | F80: 0 | G80: =E80*F80 -> 0 | N80: 0 | O80: 0 | P80: 0 | Q80: 0 | R80: 0 | S80: 0 | T80: 0 | U80: 0 | V80: 0 | W80: =SUM(N80:V80) -> 0
B81: 1.31 | E81: 0 | F81: 0 | G81: =E81*F81 -> 0 | N81: 0 | O81: 0 | P81: 0 | Q81: 0 | R81: 0 | S81: 0 | T81: 0 | U81: 0 | V81: 0 | W81: =SUM(N81:V81) -> 0
B82: 1.32 | E82: 0 | F82: 0 | G82: =E82*F82 -> 0 | N82: 0 | O82: 0 | P82: 0 | Q82: 0 | R82: 0 | S82: 0 | T82: 0 | U82: 0 | V82: 0 | W82: =SUM(N82:V82) -> 0
B83: =B82+0.01 -> 1.33 | E83: 0 | F83: 0 | G83: =E83*F83 -> 0 | N83: 0 | O83: 0 | P83: 0 | Q83: 0 | R83: 0 | S83: 0 | T83: 0 | U83: 0 | V83: 0 | W83: =SUM(N83:V83) -> 0
B84: 1.34 | E84: 0 | F84: 0 | G84: =E84*F84 -> 0 | N84: 0 | O84: 0 | P84: 0 | Q84: 0 | R84: 0 | S84: 0 | T84: 0 | U84: 0 | V84: 0 | W84: =SUM(N84:V84) -> 0
B85: =$B$13 -> Reservoir 4 | G85: =SUBTOTAL(9,G86:G90) -> 0
B86: =B84+0.01 -> 1.35 | E86: 0 | F86: 0 | G86: =E86*F86 -> 0 | N86: 0 | O86: 0 | P86: 0 | Q86: 0 | R86: 0 | S86: 0 | T86: 0 | U86: 0 | V86: 0 | W86: =SUM(N86:V86) -> 0
B87: 1.36 | E87: 0 | F87: 0 | G87: =E87*F87 -> 0 | N87: 0 | O87: 0 | P87: 0 | Q87: 0 | R87: 0 | S87: 0 | T87: 0 | U87: 0 | V87: 0 | W87: =SUM(N87:V87) -> 0
B88: 1.37 | E88: 0 | F88: 0 | G88: =E88*F88 -> 0 | N88: 0 | O88: 0 | P88: 0 | Q88: 0 | R88: 0 | S88: 0 | T88: 0 | U88: 0 | V88: 0 | W88: =SUM(N88:V88) -> 0
B89: 1.38 | E89: 0 | F89: 0 | G89: =E89*F89 -> 0 | N89: 0 | O89: 0 | P89: 0 | Q89: 0 | R89: 0 | S89: 0 | T89: 0 | U89: 0 | V89: 0 | W89: =SUM(N89:V89) -> 0
B90: =B89+0.01 -> 1.39 | E90: 0 | F90: 0 | G90: =E90*F90 -> 0 | N90: 0 | O90: 0 | P90: 0 | Q90: 0 | R90: 0 | S90: 0 | T90: 0 | U90: 0 | V90: 0 | W90: =SUM(N90:V90) -> 0
B92: ="Consultancy: " & $B$9 -> Consultancy: A3.1. Reservoir sedimentation surveys | F92: Cost per Unit (₹ lakhs) | G92: Total | N92: FY15 | O92: FY16 | P92: FY17 | Q92: FY18 | R92: FY19 | S92: FY20 | T92: FY21 | U92: FY22 | V92: FY23 | W92: Total
C93: Items | D93: Activity | E93: Number | G93: =SUBTOTAL(9,G95:G117) -> 50 | I93: Remarks | M93: Total Annual Outlay (₹ lakhs) | N93: =SUM($G95:$G117*N95:N117) -> 0 | O93: =SUM($G95:$G117*O95:O117) -> 0 | P93: =SUM($G95:$G117*P95:P117) -> 0 | Q93: =SUM($G95:$G117*Q95:Q117) -> 0 | R93: =SUM($G95:$G117*R95:R117) -> 0 | S93: =SUM($G95:$G117*S95:S117) -> 25 | T93: =SUM($G95:$G117*T95:T117) -> 25 | U93: =SUM($G95:$G117*U95:U117) -> 0 | V93: =SUM($G95:$G117*V95:V117) -> 0 | W93: =SUM(N93:V93) -> 50
B94: =$B$10 -> Reservoir 1 | G94: =SUBTOTAL(9,G95:G99) -> 50
B95: =B90+0.01 -> 1.4 | C95: Consultancy | D95: A3.1.1 | E95: 1 | F95: 50 | G95: =E95*F95 -> 50 | N95: 0 | O95: 0 | P95: 0 | Q95: 0 | R95: 0 | S95: 0.5 | T95: 0.5 | U95: 0 | V95: 0 | W95: =SUM(N95:V95) -> 1
B96: =B95+0.01 -> 1.41 | E96: 0 | F96: 0 | G96: =E96*F96 -> 0 | N96: 0 | O96: 0 | P96: 0 | Q96: 0 | R96: 0 | S96: 0 | T96: 0 | U96: 0 | V96: 0 | W96: =SUM(N96:V96) -> 0
B97: =B96+0.01 -> 1.42 | E97: 0 | F97: 0 | G97: =E97*F97 -> 0 | N97: 0 | O97: 0 | P97: 0 | Q97: 0 | R97: 0 | S97: 0 | T97: 0 | U97: 0 | V97: 0 | W97: =SUM(N97:V97) -> 0
B98: 1.43 | E98: 0 | F98: 0 | G98: =E98*F98 -> 0 | N98: 0 | O98: 0 | P98: 0 | Q98: 0 | R98: 0 | S98: 0 | T98: 0 | U98: 0 | V98: 0 | W98: =SUM(N98:V98) -> 0
B99: 1.44 | E99: 0 | F99: 0 | G99: =E99*F99 -> 0 | N99: 0 | O99: 0 | P99: 0 | Q99: 0 | R99: 0 | S99: 0 | T99: 0 | U99: 0 | V99: 0 | W99: =SUM(N99:V99) -> 0
B100: =$B$11 -> Reservoir 2 | G100: =SUBTOTAL(9,G101:G105) -> 0
B101: =B99+0.01 -> 1.45 | C101: Consultancy | D101: A3.1.2 | E101: 0 | F101: 25 | G101: =E101*F101 -> 0 | N101: 0 | O101: 0 | P101: 0 | Q101: 0 | R101: 0 | S101: 0 | T101: 0 | U101: 0 | V101: 0 | W101: =SUM(N101:V101) -> 0
B102: =B101+0.01 -> 1.46 | E102: 0 | F102: 0 | G102: =E102*F102 -> 0 | N102: 0 | O102: 0 | P102: 0 | Q102: 0 | R102: 0 | S102: 0 | T102: 0 | U102: 0 | V102: 0 | W102: =SUM(N102:V102) -> 0
B103: 1.47 | E103: 0 | F103: 0 | G103: =E103*F103 -> 0 | N103: 0 | O103: 0 | P103: 0 | Q103: 0 | R103: 0 | S103: 0 | T103: 0 | U103: 0 | V103: 0 | W103: =SUM(N103:V103) -> 0
B104: 1.48 | E104: 0 | F104: 0 | G104: =E104*F104 -> 0 | N104: 0 | O104: 0 | P104: 0 | Q104: 0 | R104: 0 | S104: 0 | T104: 0 | U104: 0 | V104: 0 | W104: =SUM(N104:V104) -> 0
B105: 1.49 | E105: 0 | F105: 0 | G105: =E105*F105 -> 0 | N105: 0 | O105: 0 | P105: 0 | Q105: 0 | R105: 0 | S105: 0 | T105: 0 | U105: 0 | V105: 0 | W105: =SUM(N105:V105) -> 0
B106: =$B$12 -> Reservoir 3 | G106: =SUBTOTAL(9,G107:G111) -> 0
B107: =B105+0.01 -> 1.5 | C107: Consultancy | D107: A3.1.3 | E107: 0 | F107: 25 | G107: =E107*F107 -> 0 | N107: 0 | O107: 0 | P107: 0 | Q107: 0 | R107: 0 | S107: 0 | T107: 0 | U107: 0 | V107: 0 | W107: =SUM(N107:V107) -> 0
B108: 1.51 | E108: 0 | F108: 0 | G108: =E108*F108 -> 0 | N108: 0 | O108: 0 | P108: 0 | Q108: 0 | R108: 0 | S108: 0 | T108: 0 | U108: 0 | V108: 0 | W108: =SUM(N108:V108) -> 0
B109: 1.52 | E109: 0 | F109: 0 | G109: =E109*F109 -> 0 | N109: 0 | O109: 0 | P109: 0 | Q109: 0 | R109: 0 | S109: 0 | T109: 0 | U109: 0 | V109: 0 | W109: =SUM(N109:V109) -> 0
B110: =B109+0.01 -> 1.53 | E110: 0 | F110: 0 | G110: =E110*F110 -> 0 | N110: 0 | O110: 0 | P110: 0 | Q110: 0 | R110: 0 | S110: 0 | T110: 0 | U110: 0 | V110: 0 | W110: =SUM(N110:V110) -> 0
B111: 1.54 | E111: 0 | F111: 0 | G111: =E111*F111 -> 0 | N111: 0 | O111: 0 | P111: 0 | Q111: 0 | R111: 0 | S111: 0 | T111: 0 | U111: 0 | V111: 0 | W111: =SUM(N111:V111) -> 0
B112: =$B$13 -> Reservoir 4 | G112: =SUBTOTAL(9,G113:G117) -> 0
B113: =B111+0.01 -> 1.55 | C113: Consultancy | D113: A3.1.4 | E113: 0 | F113: 25 | G113: =E113*F113 -> 0 | N113: 0 | O113: 0 | P113: 0 | Q113: 0.5 | R113: 0 | S113: 0 | T113: 0 | U113: 0 | V113: 0 | W113: =SUM(N113:V113) -> 0.5
B114: 1.56 | E114: 0 | F114: 0 | G114: =E114*F114 -> 0 | N114: 0 | O114: 0 | P114: 0 | Q114: 0.5 | R114: 0 | S114: 0 | T114: 0 | U114: 0 | V114: 0 | W114: =SUM(N114:V114) -> 0.5
B115: 1.57 | E115: 0 | F115: 0 | G115: =E115*F115 -> 0 | N115: 0 | O115: 0 | P115: 0 | Q115: 0 | R115: 0 | S115: 0 | T115: 0 | U115: 0 | V115: 0 | W115: =SUM(N115:V115) -> 0
B116: 1.58 | E116: 0 | F116: 0 | G116: =E116*F116 -> 0 | N116: 0 | O116: 0 | P116: 0 | Q116: 0 | R116: 0 | S116: 0 | T116: 0 | U116: 0 | V116: 0 | W116: =SUM(N116:V116) -> 0
B117: =B116+0.01 -> 1.59 | E117: 0 | F117: 0 | G117: =E117*F117 -> 0 | N117: 0 | O117: 0 | P117: 0 | Q117: 0 | R117: 0 | S117: 0 | T117: 0 | U117: 0 | V117: 0 | W117: =SUM(N117:V117) -> 0
B119: ="Training/Meetings: " & $B$9 -> Training/Meetings: A3.1. Reservoir sedimentation surveys | F119: Cost per Unit (₹ lakhs) | G119: Total | N119: FY15 | O119: FY16 | P119: FY17 | Q119: FY18 | R119: FY19 | S119: FY20 | T119: FY21 | U119: FY22 | V119: FY23 | W119: Total
C120: Items | D120: Activity | E120: Number | G120: =SUBTOTAL(9,G122:G144) -> 0 | I120: Remarks | M120: Total Annual Outlay (₹ lakhs) | N120: =SUM($G122:$G144*N122:N144) -> 0 | O120: =SUM($G122:$G144*O122:O144) -> 0 | P120: =SUM($G122:$G144*P122:P144) -> 0 | Q120: =SUM($G122:$G144*Q122:Q144) -> 0 | R120: =SUM($G122:$G144*R122:R144) -> 0 | S120: =SUM($G122:$G144*S122:S144) -> 0 | T120: =SUM($G122:$G144*T122:T144) -> 0 | U120: =SUM($G122:$G144*U122:U144) -> 0 | V120: =SUM($G122:$G144*V122:V144) -> 0 | W120: =SUM(N120:V120) -> 0
B121: =$B$10 -> Reservoir 1 | G121: =SUBTOTAL(9,G122:G126) -> 0
B122: =B117+0.01 -> 1.6 | C122: Training Boat | E122: 0 | F122: 0 | G122: =E122*F122 -> 0 | H122: Assumes training will be used for all reservoir surveys | N122: 0 | O122: 0 | P122: 0 | Q122: 0 | R122: 0 | S122: 0 | T122: 0 | U122: 0 | V122: 0 | W122: =SUM(N122:V122) -> 0
B123: =B122+0.01 -> 1.61 | C123: Training Survey Equipment | E123: 0 | F123: 0 | G123: =E123*F123 -> 0 | N123: 0 | O123: 0 | P123: 0 | Q123: 0 | R123: 0 | S123: 0 | T123: 0 | U123: 0 | V123: 0 | W123: =SUM(N123:V123) -> 0
B124: =B123+0.01 -> 1.62 | C124: Training ADCP | E124: 0 | F124: 0 | G124: =E124*F124 -> 0 | N124: 0 | O124: 0 | P124: 0 | Q124: 0 | R124: 0 | S124: 0 | T124: 0 | U124: 0 | V124: 0 | W124: =SUM(N124:V124) -> 0
B125: 1.63 | E125: 0 | F125: 0 | G125: =E125*F125 -> 0 | N125: 0 | O125: 0 | P125: 0 | Q125: 0 | R125: 0 | S125: 0 | T125: 0 | U125: 0 | V125: 0 | W125: =SUM(N125:V125) -> 0
B126: 1.64 | E126: 0 | F126: 0 | G126: =E126*F126 -> 0 | N126: 0 | O126: 0 | P126: 0 | Q126: 0 | R126: 0 | S126: 0 | T126: 0 | U126: 0 | V126: 0 | W126: =SUM(N126:V126) -> 0
B127: =$B$11 -> Reservoir 2 | G127: =SUBTOTAL(9,G128:G132) -> 0
B128: =B126+0.01 -> 1.65 | E128: 0 | F128: 0 | G128: =E128*F128 -> 0 | N128: 0 | O128: 0 | P128: 0 | Q128: 0 | R128: 0 | S128: 0 | T128: 0 | U128: 0 | V128: 0 | W128: =SUM(N128:V128) -> 0
B129: =B128+0.01 -> 1.66 | E129: 0 | F129: 0 | G129: =E129*F129 -> 0 | N129: 0 | O129: 0 | P129: 0 | Q129: 0 | R129: 0 | S129: 0 | T129: 0 | U129: 0 | V129: 0 | W129: =SUM(N129:V129) -> 0
B130: 1.67 | E130: 0 | F130: 0 | G130: =E130*F130 -> 0 | N130: 0 | O130: 0 | P130: 0 | Q130: 0 | R130: 0 | S130: 0 | T130: 0 | U130: 0 | V130: 0 | W130: =SUM(N130:V130) -> 0
B131: 1.68 | E131: 0 | F131: 0 | G131: =E131*F131 -> 0 | N131: 0 | O131: 0 | P131: 0 | Q131: 0 | R131: 0 | S131: 0 | T131: 0 | U131: 0 | V131: 0 | W131: =SUM(N131:V131) -> 0
B132: 1.69 | E132: 0 | F132: 0 | G132: =E132*F132 -> 0 | N132: 0 | O132: 0 | P132: 0 | Q132: 0 | R132: 0 | S132: 0 | T132: 0 | U132: 0 | V132: 0 | W132: =SUM(N132:V132) -> 0
B133: =$B$12 -> Reservoir 3 | G133: =SUBTOTAL(9,G134:G138) -> 0
B134: =B132+0.01 -> 1.7 | E134: 0 | F134: 0 | G134: =E134*F134 -> 0 | N134: 0 | O134: 0 | P134: 0 | Q134: 0 | R134: 0 | S134: 0 | T134: 0 | U134: 0 | V134: 0 | W134: =SUM(N134:V134) -> 0
B135: 1.71 | E135: 0 | F135: 0 | G135: =E135*F135 -> 0 | N135: 0 | O135: 0 | P135: 0 | Q135: 0 | R135: 0 | S135: 0 | T135: 0 | U135: 0 | V135: 0 | W135: =SUM(N135:V135) -> 0
B136: 1.72 | E136: 0 | F136: 0 | G136: =E136*F136 -> 0 | N136: 0 | O136: 0 | P136: 0 | Q136: 0 | R136: 0 | S136: 0 | T136: 0 | U136: 0 | V136: 0 | W136: =SUM(N136:V136) -> 0
B137: =B136+0.01 -> 1.73 | E137: 0 | F137: 0 | G137: =E137*F137 -> 0 | N137: 0 | O137: 0 | P137: 0 | Q137: 0 | R137: 0 | S137: 0 | T137: 0 | U137: 0 | V137: 0 | W137: =SUM(N137:V137) -> 0
B138: 1.74 | E138: 0 | F138: 0 | G138: =E138*F138 -> 0 | N138: 0 | O138: 0 | P138: 0 | Q138: 0 | R138: 0 | S138: 0 | T138: 0 | U138: 0 | V138: 0 | W138: =SUM(N138:V138) -> 0
B139: =$B$13 -> Reservoir 4 | G139: =SUBTOTAL(9,G140:G144) -> 0
B140: =B138+0.01 -> 1.75 | E140: 0 | F140: 0 | G140: =E140*F140 -> 0 | N140: 0 | O140: 0 | P140: 0 | Q140: 0 | R140: 0 | S140: 0 | T140: 0 | U140: 0 | V140: 0 | W140: =SUM(N140:V140) -> 0
B141: 1.76 | E141: 0 | F141: 0 | G141: =E141*F141 -> 0 | N141: 0 | O141: 0 | P141: 0 | Q141: 0 | R141: 0 | S141: 0 | T141: 0 | U141: 0 | V141: 0 | W141: =SUM(N141:V141) -> 0
B142: 1.77 | E142: 0 | F142: 0 | G142: =E142*F142 -> 0 | N142: 0 | O142: 0 | P142: 0 | Q142: 0 | R142: 0 | S142: 0 | T142: 0 | U142: 0 | V142: 0 | W142: =SUM(N142:V142) -> 0
B143: 1.78 | E143: 0 | F143: 0 | G143: =E143*F143 -> 0 | N143: 0 | O143: 0 | P143: 0 | Q143: 0 | R143: 0 | S143: 0 | T143: 0 | U143: 0 | V143: 0 | W143: =SUM(N143:V143) -> 0
B144: =B143+0.01 -> 1.79 | E144: 0 | F144: 0 | G144: =E144*F144 -> 0 | N144: 0 | O144: 0 | P144: 0 | Q144: 0 | R144: 0 | S144: 0 | T144: 0 | U144: 0 | V144: 0 | W144: =SUM(N144:V144) -> 0
B146: ="Operational Costs: " & $B$9 -> Operational Costs: A3.1. Reservoir sedimentation surveys | F146: Cost per Unit (₹ lakhs) | G146: Total | N146: FY15 | O146: FY16 | P146: FY17 | Q146: FY18 | R146: FY19 | S146: FY20 | T146: FY21 | U146: FY22 | V146: FY23 | W146: Total
C147: Items | D147: Activity | E147: Number | G147: =SUBTOTAL(9,G149:G171) -> 0 | I147: Remarks | M147: Total Annual Outlay (₹ lakhs) | N147: =SUM($G149:$G171*N149:N171) -> 0 | O147: =SUM($G149:$G171*O149:O171) -> 0 | P147: =SUM($G149:$G171*P149:P171) -> 0 | Q147: =SUM($G149:$G171*Q149:Q171) -> 0 | R147: =SUM($G149:$G171*R149:R171) -> 0 | S147: =SUM($G149:$G171*S149:S171) -> 0 | T147: =SUM($G149:$G171*T149:T171) -> 0 | U147: =SUM($G149:$G171*U149:U171) -> 0 | V147: =SUM($G149:$G171*V149:V171) -> 0 | W147: =SUM(N147:V147) -> 0
B148: =$B$10 -> Reservoir 1 | G148: =SUBTOTAL(9,G149:G153) -> 0
B149: =B144+0.01 -> 1.8 | C149: O & M Boat | E149: 0 | F149: 0 | G149: =E149*F149 -> 0 | H149: Assumes this will be used for all reservoir surveys | N149: 0 | O149: 0 | P149: 0 | Q149: 0 | R149: 0 | S149: 0 | T149: 0 | U149: 0 | V149: 0 | W149: =SUM(N149:V149) -> 0
B150: =B149+0.01 -> 1.81 | C150: O & M Survey Equipment | E150: 0 | F150: 0 | G150: =E150*F150 -> 0 | N150: 0 | O150: 0 | P150: 0 | Q150: 0 | R150: 0 | S150: 0 | T150: 0 | U150: 0 | V150: 0 | W150: =SUM(N150:V150) -> 0
B151: =B150+0.01 -> 1.82 | C151: O & M ADCP | E151: 0 | F151: 0 | G151: =E151*F151 -> 0 | N151: 0 | O151: 0 | P151: 0 | Q151: 0 | R151: 0 | S151: 0 | T151: 0 | U151: 0 | V151: 0 | W151: =SUM(N151:V151) -> 0
B152: 1.83 | E152: 0 | F152: 0 | G152: =E152*F152 -> 0 | N152: 0 | O152: 0 | P152: 0 | Q152: 0 | R152: 0 | S152: 0 | T152: 0 | U152: 0 | V152: 0 | W152: =SUM(N152:V152) -> 0
B153: 1.84 | E153: 0 | F153: 0 | G153: =E153*F153 -> 0 | N153: 0 | O153: 0 | P153: 0 | Q153: 0 | R153: 0 | S153: 0 | T153: 0 | U153: 0 | V153: 0 | W153: =SUM(N153:V153) -> 0
B154: =$B$11 -> Reservoir 2 | G154: =SUBTOTAL(9,G155:G159) -> 0
B155: =B153+0.01 -> 1.85 | E155: 0 | F155: 0 | G155: =E155*F155 -> 0 | N155: 0 | O155: 0 | P155: 0 | Q155: 0 | R155: 0 | S155: 0 | T155: 0 | U155: 0 | V155: 0 | W155: =SUM(N155:V155) -> 0
B156: =B155+0.01 -> 1.86 | E156: 0 | F156: 0 | G156: =E156*F156 -> 0 | N156: 0 | O156: 0 | P156: 0 | Q156: 0 | R156: 0 | S156: 0 | T156: 0 | U156: 0 | V156: 0 | W156: =SUM(N156:V156) -> 0
B157: 1.87 | E157: 0 | F157: 0 | G157: =E157*F157 -> 0 | N157: 0 | O157: 0 | P157: 0 | Q157: 0 | R157: 0 | S157: 0 | T157: 0 | U157: 0 | V157: 0 | W157: =SUM(N157:V157) -> 0
B158: 1.88 | E158: 0 | F158: 0 | G158: =E158*F158 -> 0 | N158: 0 | O158: 0 | P158: 0 | Q158: 0 | R158: 0 | S158: 0 | T158: 0 | U158: 0 | V158: 0 | W158: =SUM(N158:V158) -> 0
B159: 1.89 | E159: 0 | F159: 0 | G159: =E159*F159 -> 0 | N159: 0 | O159: 0 | P159: 0 | Q159: 0 | R159: 0 | S159: 0 | T159: 0 | U159: 0 | V159: 0 | W159: =SUM(N159:V159) -> 0
B160: =$B$12 -> Reservoir 3 | G160: =SUBTOTAL(9,G161:G165) -> 0
B161: =B159+0.01 -> 1.9 | E161: 0 | F161: 0 | G161: =E161*F161 -> 0 | N161: 0 | O161: 0 | P161: 0 | Q161: 0 | R161: 0 | S161: 0 | T161: 0 | U161: 0 | V161: 0 | W161: =SUM(N161:V161) -> 0
B162: 1.91 | E162: 0 | F162: 0 | G162: =E162*F162 -> 0 | N162: 0 | O162: 0 | P162: 0 | Q162: 0 | R162: 0 | S162: 0 | T162: 0 | U162: 0 | V162: 0 | W162: =SUM(N162:V162) -> 0
B163: 1.92 | E163: 0 | F163: 0 | G163: =E163*F163 -> 0 | N163: 0 | O163: 0 | P163: 0 | Q163: 0 | R163: 0 | S163: 0 | T163: 0 | U163: 0 | V163: 0 | W163: =SUM(N163:V163) -> 0
B164: =B163+0.01 -> 1.93 | E164: 0 | F164: 0 | G164: =E164*F164 -> 0 | N164: 0 | O164: 0 | P164: 0 | Q164: 0 | R164: 0 | S164: 0 | T164: 0 | U164: 0 | V164: 0 | W164: =SUM(N164:V164) -> 0
B165: 1.94 | E165: 0 | F165: 0 | G165: =E165*F165 -> 0 | N165: 0 | O165: 0 | P165: 0 | Q165: 0 | R165: 0 | S165: 0 | T165: 0 | U165: 0 | V165: 0 | W165: =SUM(N165:V165) -> 0
B166: =$B$13 -> Reservoir 4 | G166: =SUBTOTAL(9,G167:G171) -> 0
B167: =B165+0.01 -> 1.95 | E167: 0 | F167: 0 | G167: =E167*F167 -> 0 | N167: 0 | O167: 0 | P167: 0 | Q167: 0 | R167: 0 | S167: 0 | T167: 0 | U167: 0 | V167: 0 | W167: =SUM(N167:V167) -> 0
B168: 1.96 | E168: 0 | F168: 0 | G168: =E168*F168 -> 0 | N168: 0 | O168: 0 | P168: 0 | Q168: 0 | R168: 0 | S168: 0 | T168: 0 | U168: 0 | V168: 0 | W168: =SUM(N168:V168) -> 0
B169: 1.97 | E169: 0 | F169: 0 | G169: =E169*F169 -> 0 | N169: 0 | O169: 0 | P169: 0 | Q169: 0 | R169: 0 | S169: 0 | T169: 0 | U169: 0 | V169: 0 | W169: =SUM(N169:V169) -> 0
B170: 1.98 | E170: 0 | F170: 0 | G170: =E170*F170 -> 0 | N170: 0 | O170: 0 | P170: 0 | Q170: 0 | R170: 0 | S170: 0 | T170: 0 | U170: 0 | V170: 0 | W170: =SUM(N170:V170) -> 0
B171: =B170+0.01 -> 1.99 | E171: 0 | F171: 0 | G171: =E171*F171 -> 0 | N171: 0 | O171: 0 | P171: 0 | Q171: 0 | R171: 0 | S171: 0 | T171: 0 | U171: 0 | V171: 0 | W171: =SUM(N171:V171) -> 0
B173: =B14 -> A3.2. Bathymetric surveys in critical river sectors
B174: ="Goods: " & $B$14 -> Goods: A3.2. Bathymetric surveys in critical river sectors | F174: Cost per Unit (₹ lakhs) | G174: Total | H174: Telemetry Type | N174: FY15 | O174: FY16 | P174: FY17 | Q174: FY18 | R174: FY19 | S174: FY20 | T174: FY21 | U174: FY22 | V174: FY23 | W174: Total
C175: Items | D175: Activity | E175: Number | G175: =SUBTOTAL(9,G177:G199) -> 0 | H175: Telemetry Type | I175: Remarks | M175: Total Annual Outlay (₹ lakhs) | N175: =SUM($G177:$G199*N177:N199) -> 0 | O175: =SUM($G177:$G199*O177:O199) -> 0 | P175: =SUM($G177:$G199*P177:P199) -> 0 | Q175: =SUM($G177:$G199*Q177:Q199) -> 0 | R175: =SUM($G177:$G199*R177:R199) -> 0 | S175: =SUM($G177:$G199*S177:S199) -> 0 | T175: =SUM($G177:$G199*T177:T199) -> 0 | U175: =SUM($G177:$G199*U177:U199) -> 0 | V175: =SUM($G177:$G199*V177:V199) -> 0 | W175: =SUM(N175:V175) -> 0
B176: =$B$15 -> Bathymetric Survey 1 | G176: =SUBTOTAL(9,G177:G181) -> 0
B177: 2 | C177: Boat | D177: A3.2.1 | E177: 0 | F177: 0.75 | G177: =E177*F177 -> 0 | H177: Assumes this will be used for all bathemetric surveys | N177: 0 | O177: 0 | P177: 0 | Q177: 0 | R177: 0 | S177: 0 | T177: 0 | U177: 0 | V177: 0 | W177: =SUM(N177:V177) -> 0
B178: =B177+0.01 -> 2.01 | C178: GPS Unit | D178: A3.2.1 | E178: 0 | F178: 0.5 | G178: =E178*F178 -> 0 | N178: 0 | O178: 0 | P178: 0 | Q178: 0 | R178: 0 | S178: 0 | T178: 0 | U178: 0 | V178: 0 | W178: =SUM(N178:V178) -> 0
B179: =B178+0.01 -> 2.02 | C179: Survey Equipment | D179: A3.2.1 | E179: 0 | F179: 1 | G179: =E179*F179 -> 0 | N179: 0 | O179: 0 | P179: 0 | Q179: 0 | R179: 0 | S179: 0 | T179: 0 | U179: 0 | V179: 0 | W179: =SUM(N179:V179) -> 0
B180: 2.03 | E180: 0 | F180: 0 | G180: =E180*F180 -> 0 | N180: 0 | O180: 0 | P180: 0 | Q180: 0 | R180: 0 | S180: 0 | T180: 0 | U180: 0 | V180: 0 | W180: =SUM(N180:V180) -> 0
B181: 2.04 | E181: 0 | F181: 0 | G181: =E181*F181 -> 0 | N181: 0 | O181: 0 | P181: 0 | Q181: 0 | R181: 0 | S181: 0 | T181: 0 | U181: 0 | V181: 0 | W181: =SUM(N181:V181) -> 0
B182: =$B$16 -> Bathymetric Survey 2 | G182: =SUBTOTAL(9,G183:G187) -> 0
B183: =B181+0.01 -> 2.05 | E183: 0 | F183: 0 | G183: =E183*F183 -> 0 | N183: 0 | O183: 0 | P183: 0 | Q183: 0 | R183: 0 | S183: 0 | T183: 0 | U183: 0 | V183: 0 | W183: =SUM(N183:V183) -> 0
B184: =B183+0.01 -> 2.06 | E184: 0 | F184: 0 | G184: =E184*F184 -> 0 | N184: 0 | O184: 0 | P184: 0 | Q184: 0 | R184: 0 | S184: 0 | T184: 0 | U184: 0 | V184: 0 | W184: =SUM(N184:V184) -> 0
B185: 2.07 | E185: 0 | F185: 0 | G185: =E185*F185 -> 0 | N185: 0 | O185: 0 | P185: 0 | Q185: 0 | R185: 0 | S185: 0 | T185: 0 | U185: 0 | V185: 0 | W185: =SUM(N185:V185) -> 0
B186: 2.08 | E186: 0 | F186: 0 | G186: =E186*F186 -> 0 | N186: 0 | O186: 0 | P186: 0 | Q186: 0 | R186: 0 | S186: 0 | T186: 0 | U186: 0 | V186: 0 | W186: =SUM(N186:V186) -> 0
B187: 2.09 | E187: 0 | F187: 0 | G187: =E187*F187 -> 0 | N187: 0 | O187: 0 | P187: 0 | Q187: 0 | R187: 0 | S187: 0 | T187: 0 | U187: 0 | V187: 0 | W187: =SUM(N187:V187) -> 0
B188: =$B$17 -> Bathymetric Survey 3 | G188: =SUBTOTAL(9,G189:G193) -> 0
B189: =B187+0.01 -> 2.1 | E189: 0 | F189: 0 | G189: =E189*F189 -> 0 | N189: 0 | O189: 0 | P189: 0 | Q189: 0 | R189: 0 | S189: 0 | T189: 0 | U189: 0 | V189: 0 | W189: =SUM(N189:V189) -> 0
B190: 2.11 | E190: 0 | F190: 0 | G190: =E190*F190 -> 0 | N190: 0 | O190: 0 | P190: 0 | Q190: 0 | R190: 0 | S190: 0 | T190: 0 | U190: 0 | V190: 0 | W190: =SUM(N190:V190) -> 0
B191: 2.12 | E191: 0 | F191: 0 | G191: =E191*F191 -> 0 | N191: 0 | O191: 0 | P191: 0 | Q191: 0 | R191: 0 | S191: 0 | T191: 0 | U191: 0 | V191: 0 | W191: =SUM(N191:V191) -> 0
B192: =B191+0.01 -> 2.13 | E192: 0 | F192: 0 | G192: =E192*F192 -> 0 | N192: 0 | O192: 0 | P192: 0 | Q192: 0 | R192: 0 | S192: 0 | T192: 0 | U192: 0 | V192: 0 | W192: =SUM(N192:V192) -> 0
B193: 2.14 | E193: 0 | F193: 0 | G193: =E193*F193 -> 0 | N193: 0 | O193: 0 | P193: 0 | Q193: 0 | R193: 0 | S193: 0 | T193: 0 | U193: 0 | V193: 0 | W193: =SUM(N193:V193) -> 0
B194: =$B$18 -> None | G194: =SUBTOTAL(9,G195:G199) -> 0
B195: =B193+0.01 -> 2.15 | E195: 0 | F195: 0 | G195: =E195*F195 -> 0 | N195: 0 | O195: 0 | P195: 0 | Q195: 0 | R195: 0 | S195: 0 | T195: 0 | U195: 0 | V195: 0 | W195: =SUM(N195:V195) -> 0
B196: 2.16 | E196: 0 | F196: 0 | G196: =E196*F196 -> 0 | N196: 0 | O196: 0 | P196: 0 | Q196: 0 | R196: 0 | S196: 0 | T196: 0 | U196: 0 | V196: 0 | W196: =SUM(N196:V196) -> 0
B197: 2.17 | E197: 0 | F197: 0 | G197: =E197*F197 -> 0 | N197: 0 | O197: 0 | P197: 0 | Q197: 0 | R197: 0 | S197: 0 | T197: 0 | U197: 0 | V197: 0 | W197: =SUM(N197:V197) -> 0
B198: 2.18 | E198: 0 | F198: 0 | G198: =E198*F198 -> 0 | N198: 0 | O198: 0 | P198: 0 | Q198: 0 | R198: 0 | S198: 0 | T198: 0 | U198: 0 | V198: 0 | W198: =SUM(N198:V198) -> 0
B199: =B198+0.01 -> 2.19 | E199: 0 | F199: 0 | G199: =E199*F199 -> 0 | N199: 0 | O199: 0 | P199: 0 | Q199: 0 | R199: 0 | S199: 0 | T199: 0 | U199: 0 | V199: 0 | W199: =SUM(N199:V199) -> 0
B201: ="Civil Works: " & $B$14 -> Civil Works: A3.2. Bathymetric surveys in critical river sectors | F201: Cost per Unit (₹ lakhs) | G201: Total | N201: FY15 | O201: FY16 | P201: FY17 | Q201: FY18 | R201: FY19 | S201: FY20 | T201: FY21 | U201: FY22 | V201: FY23 | W201: Total
C202: Items | D202: Activity | E202: Number | G202: =SUBTOTAL(9,G204:G226) -> 0 | I202: Remarks | M202: Total Annual Outlay (₹ lakhs) | N202: =SUM($G204:$G226*N204:N226) -> 0 | O202: =SUM($G204:$G226*O204:O226) -> 0 | P202: =SUM($G204:$G226*P204:P226) -> 0 | Q202: =SUM($G204:$G226*Q204:Q226) -> 0 | R202: =SUM($G204:$G226*R204:R226) -> 0 | S202: =SUM($G204:$G226*S204:S226) -> 0 | T202: =SUM($G204:$G226*T204:T226) -> 0 | U202: =SUM($G204:$G226*U204:U226) -> 0 | V202: =SUM($G204:$G226*V204:V226) -> 0 | W202: =SUM(N202:V202) -> 0
B203: =$B$15 -> Bathymetric Survey 1 | G203: =SUBTOTAL(9,G204:G208) -> 0
B204: =B199+0.01 -> 2.2 | C204: Survey temporary camp | E204: 0 | F204: 1 | G204: =E204*F204 -> 0 | N204: 0 | O204: 0 | P204: 0 | Q204: 1 | R204: 1 | S204: 0 | T204: 0 | U204: 0 | V204: 0 | W204: =SUM(N204:V204) -> 2
B205: =B204+0.01 -> 2.21 | C205: Miscelleneous items | E205: 0 | F205: 0.5 | G205: =E205*F205 -> 0 | N205: 0 | O205: 0 | P205: 0 | Q205: 1 | R205: 1 | S205: 0 | T205: 0 | U205: 0 | V205: 0 | W205: =SUM(N205:V205) -> 2
B206: =B205+0.01 -> 2.22 | E206: 0 | F206: 0 | G206: =E206*F206 -> 0 | N206: 0 | O206: 0 | P206: 0 | Q206: 0 | R206: 0 | S206: 0 | T206: 0 | U206: 0 | V206: 0 | W206: =SUM(N206:V206) -> 0
B207: 2.23 | E207: 0 | F207: 0 | G207: =E207*F207 -> 0 | N207: 0 | O207: 0 | P207: 0 | Q207: 0 | R207: 0 | S207: 0 | T207: 0 | U207: 0 | V207: 0 | W207: =SUM(N207:V207) -> 0
... 321 more rows

Sheet B1
A1: Cost Estimate for HP-III
B2: Component | C2: B: Improving Water Resources Information Systems (WRIS)
B3: Sub-Component | C3: B1: Centralized Spatial Dataset
B4: Prefix | C4: B1
C5: Go to Abstract | E5: Go to Legend
B6: Cost Summary | E6: Total cost | F6: Procurement Categories (₹ lakhs) | K6: Remarks/ description
B7: Decription | D7: No. | E7: ₹ lakhs | F7: Goods | G7: Civil Works | H7: Consultant Services | I7: Training/ Meetings | J7: Operation Costs
B8: Subcomponents and Activities | E8: =SUM(F8:J8) -> 54 | F8: =SUBTOTAL(9,F9:F28) -> 20 | G8: =SUBTOTAL(9,G9:G28) -> 0 | H8: =SUBTOTAL(9,H9:H28) -> 10 | I8: =SUBTOTAL(9,I9:I28) -> 0 | J8: =SUBTOTAL(9,J9:J28) -> 24
B9: B1.1. Develop DEM for entire country | E9: =SUM(F9:J9) -> 0 | F9: =SUBTOTAL(9,F10:F13) -> 0 | G9: =SUBTOTAL(9,G10:G13) -> 0 | H9: =SUBTOTAL(9,H10:H13) -> 0 | I9: =SUBTOTAL(9,I10:I13) -> 0 | J9: =SUBTOTAL(9,J10:J13) -> 0
B10: Medium Resolution DEM for India | D10: =$C$4 & ".1.1" -> B1.1.1 | E10: 0 | F10: =G40 -> 0 | G10: =G67 -> 0 | H10: =G94 -> 0 | I10: =G121 -> 0 | J10: =G148 -> 0
B11: High resolution DEM for flood plains/zones | D11: =$C$4 & ".1.2" -> B1.1.2 | E11: 0 | F11: =G46 -> 0 | G11: =G73 -> 0 | H11: =G100 -> 0 | I11: =G127 -> 0 | J11: =G154 -> 0
B12: High resolution DEM other areas | D12: =$C$4 & ".1.3" -> B1.1.3 | E12: 0 | F12: =G52 -> 0 | G12: =G79 -> 0 | H12: =G106 -> 0 | I12: =G133 -> 0 | J12: =G160 -> 0
D13: =$C$4 & ".1.4" -> B1.1.4 | E13: 0 | F13: =G58 -> 0 | G13: =G85 -> 0 | H13: =G112 -> 0 | I13: =G139 -> 0 | J13: =G166 -> 0
B14: B1.2. Temporal and spatial Earth Observation (EO) products for India | E14: 20 | F14: =SUBTOTAL(9,F15:F18) -> 20 | G14: =SUBTOTAL(9,G15:G18) -> 0 | H14: =SUBTOTAL(9,H15:H18) -> 0 | I14: =SUBTOTAL(9,I15:I18) -> 0 | J14: =SUBTOTAL(9,J15:J18) -> 0
B15: Real-time EO products for climate and runoff | D15: =$C$4 & ".2.1" -> B1.2.1 | E15: 10 | F15: =G176 -> 10 | G15: =G205 -> 0 | H15: =G232 -> 0 | I15: =G259 -> 0 | J15: =G286 -> 0
B16: Monitoring of water and drought conditions | D16: =$C$4 & ".2.2" -> B1.2.2 | E16: 10 | F16: =G183 -> 10 | G16: =G211 -> 0 | H16: =G238 -> 0 | I16: =G265 -> 0 | J16: =G292 -> 0
B17: Cropping/water conditions in irrigation systems | D17: =$C$4 & ".2.3" -> B1.2.3 | E17: 0 | F17: =G190 -> 0 | G17: =G217 -> 0 | H17: =G244 -> 0 | I17: =G271 -> 0 | J17: =G298 -> 0
B18: Monitoring of water bodies and tanks | D18: =$C$4 & ".2.4" -> B1.2.4 | E18: 0 | F18: =G196 -> 0 | G18: =G223 -> 0 | H18: =G250 -> 0 | I18: =G277 -> 0 | J18: =G304 -> 0
B19: B1.3. Multiple short- and medium range weather forecasting products | E19: =SUM(F19:J19) -> 34 | F19: =SUBTOTAL(9,F20:F23) -> 0 | G19: =SUBTOTAL(9,G20:G23) -> 0 | H19: =SUBTOTAL(9,H20:H23) -> 10 | I19: =SUBTOTAL(9,I20:I23) -> 0 | J19: =SUBTOTAL(9,J20:J23) -> 24
B20: Short-range weather forecast system | D20: =$C$4 & ".3.1" -> B1.3.1 | E20: 17 | F20: =G314 -> 0 | G20: =G341 -> 0 | H20: =G368 -> 5 | I20: =G395 -> 0 | J20: =G422 -> 12
B21: Seasonal weather forecast system | D21: =$C$4 & ".3.2" -> B1.3.2 | E21: 17 | F21: =G320 -> 0 | G21: =G347 -> 0 | H21: =G374 -> 5 | I21: =G401 -> 0 | J21: =G428 -> 12
B22: None 3.3 | D22: =$C$4 & ".3.3" -> B1.3.3 | E22: 0 | F22: =G326 -> 0 | G22: =G353 -> 0 | H22: =G380 -> 0 | I22: =G407 -> 0 | J22: =G434 -> 0
B23: None 3.4 | D23: =$C$4 & ".3.4" -> B1.3.4 | E23: 0 | F23: =G332 -> 0 | G23: =G359 -> 0 | H23: =G386 -> 0 | I23: =G413 -> 0 | J23: =G440 -> 0
B24: Extra | E24: =SUM(F24:J24) -> 0 | F24: =SUBTOTAL(9,F25:F28) -> 0 | G24: =SUBTOTAL(9,G25:G28) -> 0 | H24: =SUBTOTAL(9,H25:H28) -> 0 | I24: =SUBTOTAL(9,I25:I28) -> 0 | J24: =SUBTOTAL(9,J25:J28) -> 0
B25: None 4.1 | D25: =$C$4 & ".4.1" -> B1.4.1 | E25: 0 | F25: =G450 -> 0 | G25: =G477 -> 0 | H25: =G504 -> 0 | I25: =G531 -> 0 | J25: =G558 -> 0
B26: None 4.2 | D26: =$C$4 & ".4.2" -> B1.4.2 | E26: 0 | F26: =G456 -> 0 | G26: =G483 -> 0 | H26: =G510 -> 0 | I26: =G537 -> 0 | J26: =G564 -> 0
B27: None 4.3 | D27: =$C$4 & ".4.3" -> B1.4.3 | E27: 0 | F27: =G462 -> 0 | G27: =G489 -> 0 | H27: =G516 -> 0 | I27: =G543 -> 0 | J27: =G570 -> 0
B28: None 4.4 | D28: =$C$4 & ".4.4" -> B1.4.4 | E28: 0 | F28: =G468 -> 0 | G28: =G495 -> 0 | H28: =G522 -> 0 | I28: =G549 -> 0 | J28: =G576 -> 0
C29: Financial Year | D29: FY 15 | E29: FY 16 | F29: FY 17 | G29: FY 18 | H29: FY 19 | I29: FY 20 | J29: FY 21 | K29: FY 22 | L29: FY 23
C30: Cost Outlay | D30: =SUM(D31:D34) -> 0 | E30: =SUM(E31:E34) -> 2.5 | F30: 12.5 | G30: 6.34 | H30: 6.34 | I30: 6.58 | J30: 6.58 | K30: 6.58 | L30: 6.58
C31: =$C$4 & ".1" -> B1.1 | D31: =N39+N66+N93+N120+N147 -> 0 | E31: =O39+O66+O93+O120+O147 -> 0 | F31: 0 | G31: 0 | H31: 0 | I31: 0 | J31: 0 | K31: 0 | L31: 0
C32: =$C$4 & ".2" -> B1.2 | D32: =N175+N204+N231+N258+N285 -> 0 | E32: =O175+O204+O231+O258+O285 -> 2.5 | F32: 2.5 | G32: 2.5 | H32: 2.5 | I32: 2.5 | J32: 2.5 | K32: 2.5 | L32: 2.5
C33: =$C$4 & ".3" -> B1.3 | D33: =N313+N340+N367+N394+N421 -> 0 | E33: =O313+O340+O367+O394+O421 -> 0 | F33: 10 | G33: 3.84 | H33: 3.84 | I33: 4.08 | J33: 4.08 | K33: 4.08 | L33: 4.08
C34: =$C$4 & ".4" -> B1.4 | D34: =N449+N476+N503+N530+N557 -> 0 | E34: =O449+O476+O503+O530+O557 -> 0 | F34: 0 | G34: 0 | H34: 0 | I34: 0 | J34: 0 | K34: 0 | L34: 0
B36: Worksheets
B37: =B9 -> B1.1. Develop DEM for entire country
B38: ="Goods: " & $B$9 -> Goods: B1.1. Develop DEM for entire country | F38: Cost per Unit (₹ lakhs) | G38: Total | H38: Telemetry Type | N38: FY15 | O38: FY16 | P38: FY17 | Q38: FY18 | R38: FY19 | S38: FY20 | T38: FY21 | U38: FY22 | V38: FY23 | W38: Total
C39: Items | D39: Activity | E39: Number | G39: =SUBTOTAL(9,G41:G63) -> 0 | H39: Telemetry Type | I39: Remarks | M39: Total Annual Outlay (₹ lakhs) | N39: =SUM($G41:$G63*N41:N63) -> 0 | O39: =SUM($G41:$G63*O41:O63) -> 0 | P39: =SUM($G41:$G63*P41:P63) -> 0 | Q39: =SUM($G41:$G63*Q41:Q63) -> 0 | R39: =SUM($G41:$G63*R41:R63) -> 0 | S39: =SUM($G41:$G63*S41:S63) -> 0 | T39: =SUM($G41:$G63*T41:T63) -> 0 | U39: =SUM($G41:$G63*U41:U63) -> 0 | V39: =SUM($G41:$G63*V41:V63) -> 0 | W39: =SUM(N39:V39) -> 0
B40: =$B$10 -> Medium Resolution DEM for India | G40: =SUBTOTAL(9,G41:G45) -> 0
B41: 1 | C41: Remote Sensing products | D41: B1.1.1 | E41: 0 | F41: 0 | G41: =E41*F41 -> 0 | N41: 0 | O41: 0 | P41: 0 | Q41: 0 | R41: 0 | S41: 0 | T41: 0 | U41: 0 | V41: 0 | W41: =SUM(N41:V41) -> 0
B42: =B41+0.01 -> 1.01 | C42: Digital toposheets India | D42: B1.1.1 | E42: 0 | F42: 0 | G42: 0 | N42: 0 | O42: 0 | P42: 0 | Q42: 0 | R42: 0 | S42: 0 | T42: 0 | U42: 0 | V42: 0 | W42: =SUM(N42:V42) -> 0
B43: =B42+0.01 -> 1.02 | C43: Computers and servers | D43: B1.1.1 | E43: 0 | F43: 0 | G43: 0 | N43: 0 | O43: 0 | P43: 0 | Q43: 0 | R43: 0 | S43: 0 | T43: 0 | U43: 0 | V43: 0 | W43: 0
B44: 1.03 | C44: DGPS | D44: B1.1.1 | E44: 0 | F44: 0 | G44: 0 | N44: 0 | O44: 0 | P44: 0 | Q44: 0 | R44: 0 | S44: 0 | T44: 0 | U44: 0 | V44: 0 | W44: 0
B45: 1.04 | C45: GPS | D45: B1.1.1 | E45: 0 | F45: 0 | G45: 0 | N45: 0 | O45: 0 | P45: 0 | Q45: 0 | R45: 0 | S45: 0 | T45: 0 | U45: 0 | V45: 0 | W45: 0
B46: =$B$11 -> High resolution DEM for flood plains/zones | G46: =SUBTOTAL(9,G47:G51) -> 0
B47: =B45+0.01 -> 1.05 | C47: Lidar survey area 1 | D47: B1.1.2 | E47: 0 | F47: 0 | G47: =E47*F47 -> 0 | N47: 0 | O47: 0 | P47: 0 | Q47: 0 | R47: 0 | S47: 0 | T47: 0 | U47: 0 | V47: 0 | W47: =SUM(N47:V47) -> 0
B48: =B47+0.01 -> 1.06 | C48: Lidar survey area 2 | D48: B1.1.2 | E48: 0 | F48: 0 | G48: =E48*F48 -> 0 | N48: 0 | O48: 0 | P48: 0 | Q48: 0 | R48: 0 | S48: 0 | T48: 0 | U48: 0 | V48: 0 | W48: =SUM(N48:V48) -> 0
B49: 1.07 | C49: Lidar survey area 3 | D49: B1.1.2 | E49: 0 | F49: 0 | G49: =E49*F49 -> 0 | N49: 0 | O49: 0 | P49: 0 | Q49: 0 | R49: 0 | S49: 0 | T49: 0 | U49: 0 | V49: 0 | W49: =SUM(N49:V49) -> 0
B50: 1.08 | E50: 0 | F50: 0 | G50: =E50*F50 -> 0 | N50: 0 | O50: 0 | P50: 0 | Q50: 0 | R50: 0 | S50: 0 | T50: 0 | U50: 0 | V50: 0 | W50: =SUM(N50:V50) -> 0
B51: 1.09 | E51: 0 | F51: 0 | G51: =E51*F51 -> 0 | N51: 0 | O51: 0 | P51: 0 | Q51: 0 | R51: 0 | S51: 0 | T51: 0 | U51: 0 | V51: 0 | W51: =SUM(N51:V51) -> 0
B52: =$B$12 -> High resolution DEM other areas | G52: =SUBTOTAL(9,G53:G57) -> 0
B53: =B51+0.01 -> 1.1 | C53: Imagery and/or Lidar area 1 | D53: B1.1.3 | E53: 0 | F53: 0 | G53: 0 | N53: 0 | O53: 0 | P53: 0 | Q53: 0 | R53: 0 | S53: 0 | T53: 0 | U53: 0 | V53: 0 | W53: 0
B54: 1.11 | C54: Imagery and/or Lidar area 2 | D54: B1.1.3 | E54: 0 | F54: 0 | G54: 0 | N54: 0 | O54: 0 | P54: 0 | Q54: 0 | R54: 0 | S54: 0 | T54: 0 | U54: 0 | V54: 0 | W54: 0
B55: 1.12 | C55: Imagery and/or Lidar area 3 | D55: B1.1.3 | E55: 0 | F55: 0 | G55: 0 | N55: 0 | O55: 0 | P55: 0 | Q55: 0 | R55: 0 | S55: 0 | T55: 0 | U55: 0 | V55: 0 | W55: 0
B56: =B55+0.01 -> 1.13 | E56: 0 | F56: 0 | G56: 0 | N56: 0 | O56: 0 | P56: 0 | Q56: 0 | R56: 0 | S56: 0 | T56: 0 | U56: 0 | V56: 0 | W56: 0
B57: 1.14 | E57: 0 | F57: 0 | G57: 0 | N57: 0 | O57: 0 | P57: 0 | Q57: 0 | R57: 0 | S57: 0 | T57: 0 | U57: 0 | V57: 0 | W57: 0
B58: =$B$13 -> 0 | E58: 0 | F58: 0 | G58: =SUBTOTAL(9,G59:G63) -> 0
B59: =B57+0.01 -> 1.15 | E59: 0 | F59: 0 | G59: 0 | N59: 0 | O59: 0 | P59: 0 | Q59: 0 | R59: 0 | S59: 0 | T59: 0 | U59: 0 | V59: 0 | W59: 0
B60: 1.16 | E60: 0 | F60: 0 | G60: 0 | N60: 0 | O60: 0 | P60: 0 | Q60: 0 | R60: 0 | S60: 0 | T60: 0 | U60: 0 | V60: 0 | W60: 0
B61: 1.17 | E61: 0 | F61: 0 | G61: 0 | N61: 0 | O61: 0 | P61: 0 | Q61: 0 | R61: 0 | S61: 0 | T61: 0 | U61: 0 | V61: 0 | W61: 0
B62: 1.18 | E62: 0 | F62: 0 | G62: 0 | N62: 0 | O62: 0 | P62: 0 | Q62: 0 | R62: 0 | S62: 0 | T62: 0 | U62: 0 | V62: 0 | W62: 0
B63: =B62+0.01 -> 1.19 | E63: 0 | F63: 0 | G63: 0 | N63: 0 | O63: 0 | P63: 0 | Q63: 0 | R63: 0 | S63: 0 | T63: 0 | U63: 0 | V63: 0 | W63: 0
B65: ="Civil Works: " & $B$9 -> Civil Works: B1.1. Develop DEM for entire country | F65: Cost per Unit (₹ lakhs) | G65: Total | N65: FY15 | O65: FY16 | P65: FY17 | Q65: FY18 | R65: FY19 | S65: FY20 | T65: FY21 | U65: FY22 | V65: FY23 | W65: Total
C66: Items | D66: Activity | E66: Number | G66: =SUBTOTAL(9,G68:G90) -> 0 | I66: Remarks | M66: Total Annual Outlay (₹ lakhs) | N66: =SUM($G68:$G90*N68:N90) -> 0 | O66: =SUM($G68:$G90*O68:O90) -> 0 | P66: =SUM($G68:$G90*P68:P90) -> 0 | Q66: =SUM($G68:$G90*Q68:Q90) -> 0 | R66: =SUM($G68:$G90*R68:R90) -> 0 | S66: =SUM($G68:$G90*S68:S90) -> 0 | T66: =SUM($G68:$G90*T68:T90) -> 0 | U66: =SUM($G68:$G90*U68:U90) -> 0 | V66: =SUM($G68:$G90*V68:V90) -> 0 | W66: =SUM(N66:V66) -> 0
B67: =$B$10 -> Medium Resolution DEM for India | G67: =SUBTOTAL(9,G68:G72) -> 0
B68: =B63+0.01 -> 1.2 | E68: 0 | F68: 0 | G68: =E68*F68 -> 0 | N68: 0 | O68: 0 | P68: 0 | Q68: 0 | R68: 0 | S68: 0 | T68: 0 | U68: 0 | V68: 0 | W68: =SUM(N68:V68) -> 0
B69: =B68+0.01 -> 1.21 | E69: 0 | F69: 0 | G69: =E69*F69 -> 0 | N69: 0 | O69: 0 | P69: 0 | Q69: 0 | R69: 0 | S69: 0 | T69: 0 | U69: 0 | V69: 0 | W69: =SUM(N69:V69) -> 0
B70: =B69+0.01 -> 1.22 | E70: 0 | F70: 0 | G70: =E70*F70 -> 0 | N70: 0 | O70: 0 | P70: 0 | Q70: 0 | R70: 0 | S70: 0 | T70: 0 | U70: 0 | V70: 0 | W70: =SUM(N70:V70) -> 0
B71: 1.23 | E71: 0 | F71: 0 | G71: =E71*F71 -> 0 | N71: 0 | O71: 0 | P71: 0 | Q71: 0 | R71: 0 | S71: 0 | T71: 0 | U71: 0 | V71: 0 | W71: =SUM(N71:V71) -> 0
B72: 1.24 | E72: 0 | F72: 0 | G72: =E72*F72 -> 0 | N72: 0 | O72: 0 | P72: 0 | Q72: 0 | R72: 0 | S72: 0 | T72: 0 | U72: 0 | V72: 0 | W72: =SUM(N72:V72) -> 0
B73: =$B$11 -> High resolution DEM for flood plains/zones | G73: =SUBTOTAL(9,G74:G78) -> 0
B74: =B72+0.01 -> 1.25 | E74: 0 | F74: 0 | G74: =E74*F74 -> 0 | N74: 0 | O74: 0 | P74: 0 | Q74: 0 | R74: 0 | S74: 0 | T74: 0 | U74: 0 | V74: 0 | W74: =SUM(N74:V74) -> 0
B75: =B74+0.01 -> 1.26 | E75: 0 | F75: 0 | G75: =E75*F75 -> 0 | N75: 0 | O75: 0 | P75: 0 | Q75: 0 | R75: 0 | S75: 0 | T75: 0 | U75: 0 | V75: 0 | W75: =SUM(N75:V75) -> 0
B76: 1.27 | E76: 0 | F76: 0 | G76: =E76*F76 -> 0 | N76: 0 | O76: 0 | P76: 0 | Q76: 0 | R76: 0 | S76: 0 | T76: 0 | U76: 0 | V76: 0 | W76: =SUM(N76:V76) -> 0
B77: 1.28 | E77: 0 | F77: 0 | G77: =E77*F77 -> 0 | N77: 0 | O77: 0 | P77: 0 | Q77: 0 | R77: 0 | S77: 0 | T77: 0 | U77: 0 | V77: 0 | W77: =SUM(N77:V77) -> 0
B78: 1.29 | E78: 0 | F78: 0 | G78: =E78*F78 -> 0 | N78: 0 | O78: 0 | P78: 0 | Q78: 0 | R78: 0 | S78: 0 | T78: 0 | U78: 0 | V78: 0 | W78: =SUM(N78:V78) -> 0
B79: =$B$12 -> High resolution DEM other areas | G79: =SUBTOTAL(9,G80:G84) -> 0
B80: =B78+0.01 -> 1.3 | E80: 0 | F80: 0 | G80: =E80*F80 -> 0 | N80: 0 | O80: 0 | P80: 0 | Q80: 0 | R80: 0 | S80: 0 | T80: 0 | U80: 0 | V80: 0 | W80: =SUM(N80:V80) -> 0
B81: 1.31 | E81: 0 | F81: 0 | G81: =E81*F81 -> 0 | N81: 0 | O81: 0 | P81: 0 | Q81: 0 | R81: 0 | S81: 0 | T81: 0 | U81: 0 | V81: 0 | W81: =SUM(N81:V81) -> 0
B82: 1.32 | E82: 0 | F82: 0 | G82: =E82*F82 -> 0 | N82: 0 | O82: 0 | P82: 0 | Q82: 0 | R82: 0 | S82: 0 | T82: 0 | U82: 0 | V82: 0 | W82: =SUM(N82:V82) -> 0
B83: =B82+0.01 -> 1.33 | E83: 0 | F83: 0 | G83: =E83*F83 -> 0 | N83: 0 | O83: 0 | P83: 0 | Q83: 0 | R83: 0 | S83: 0 | T83: 0 | U83: 0 | V83: 0 | W83: =SUM(N83:V83) -> 0
B84: 1.34 | E84: 0 | F84: 0 | G84: =E84*F84 -> 0 | N84: 0 | O84: 0 | P84: 0 | Q84: 0 | R84: 0 | S84: 0 | T84: 0 | U84: 0 | V84: 0 | W84: =SUM(N84:V84) -> 0
B85: =$B$13 -> 0 | E85: 0 | F85: 0 | G85: =SUBTOTAL(9,G86:G90) -> 0
B86: =B84+0.01 -> 1.35 | E86: 0 | F86: 0 | G86: =E86*F86 -> 0 | N86: 0 | O86: 0 | P86: 0 | Q86: 0 | R86: 0 | S86: 0 | T86: 0 | U86: 0 | V86: 0 | W86: =SUM(N86:V86) -> 0
B87: 1.36 | E87: 0 | F87: 0 | G87: =E87*F87 -> 0 | N87: 0 | O87: 0 | P87: 0 | Q87: 0 | R87: 0 | S87: 0 | T87: 0 | U87: 0 | V87: 0 | W87: =SUM(N87:V87) -> 0
B88: 1.37 | E88: 0 | F88: 0 | G88: =E88*F88 -> 0 | N88: 0 | O88: 0 | P88: 0 | Q88: 0 | R88: 0 | S88: 0 | T88: 0 | U88: 0 | V88: 0 | W88: =SUM(N88:V88) -> 0
B89: 1.38 | E89: 0 | F89: 0 | G89: =E89*F89 -> 0 | N89: 0 | O89: 0 | P89: 0 | Q89: 0 | R89: 0 | S89: 0 | T89: 0 | U89: 0 | V89: 0 | W89: =SUM(N89:V89) -> 0
B90: =B89+0.01 -> 1.39 | E90: 0 | F90: 0 | G90: =E90*F90 -> 0 | N90: 0 | O90: 0 | P90: 0 | Q90: 0 | R90: 0 | S90: 0 | T90: 0 | U90: 0 | V90: 0 | W90: =SUM(N90:V90) -> 0
B92: ="Consultancy: " & $B$9 -> Consultancy: B1.1. Develop DEM for entire country | F92: Cost per Unit (₹ lakhs) | G92: Total | N92: FY15 | O92: FY16 | P92: FY17 | Q92: FY18 | R92: FY19 | S92: FY20 | T92: FY21 | U92: FY22 | V92: FY23 | W92: Total
C93: Items | D93: Activity | E93: Number | G93: =SUBTOTAL(9,G95:G117) -> 0 | I93: Remarks | M93: Total Annual Outlay (₹ lakhs) | N93: =SUM($G95:$G117*N95:N117) -> 0 | O93: =SUM($G95:$G117*O95:O117) -> 0 | P93: =SUM($G95:$G117*P95:P117) -> 0 | Q93: =SUM($G95:$G117*Q95:Q117) -> 0 | R93: =SUM($G95:$G117*R95:R117) -> 0 | S93: =SUM($G95:$G117*S95:S117) -> 0 | T93: =SUM($G95:$G117*T95:T117) -> 0 | U93: =SUM($G95:$G117*U95:U117) -> 0 | V93: =SUM($G95:$G117*V95:V117) -> 0 | W93: =SUM(N93:V93) -> 0
B94: =$B$10 -> Medium Resolution DEM for India | G94: =SUBTOTAL(9,G95:G99) -> 0
B95: =B90+0.01 -> 1.4 | C95: Services for DEM production | D95: B1.1.1 | E95: 0 | F95: 0 | G95: =E95*F95 -> 0 | H95: Contract with NRSC and its sub-contractors | N95: 0 | O95: 0 | P95: 0 | Q95: 0 | R95: 0 | S95: 0 | T95: 0 | U95: 0 | V95: 0 | W95: =SUM(N95:V95) -> 0
B96: =B95+0.01 -> 1.41 | E96: 0 | F96: 0 | G96: =E96*F96 -> 0 | N96: 0 | O96: 0 | P96: 0 | Q96: 0 | R96: 0 | S96: 0 | T96: 0 | U96: 0 | V96: 0 | W96: =SUM(N96:V96) -> 0
B97: =B96+0.01 -> 1.42 | E97: 0 | F97: 0 | G97: =E97*F97 -> 0 | N97: 0 | O97: 0 | P97: 0 | Q97: 0 | R97: 0 | S97: 0 | T97: 0 | U97: 0 | V97: 0 | W97: =SUM(N97:V97) -> 0
B98: 1.43 | E98: 0 | F98: 0 | G98: =E98*F98 -> 0 | N98: 0 | O98: 0 | P98: 0 | Q98: 0 | R98: 0 | S98: 0 | T98: 0 | U98: 0 | V98: 0 | W98: =SUM(N98:V98) -> 0
B99: 1.44 | E99: 0 | F99: 0 | G99: =E99*F99 -> 0 | N99: 0 | O99: 0 | P99: 0 | Q99: 0 | R99: 0 | S99: 0 | T99: 0 | U99: 0 | V99: 0 | W99: =SUM(N99:V99) -> 0
B100: =$B$11 -> High resolution DEM for flood plains/zones | G100: =SUBTOTAL(9,G101:G105) -> 0
B101: =B99+0.01 -> 1.45 | C101: DEM services for area 1 | D101: B1.1.2 | E101: 0 | F101: 0 | G101: =E101*F101 -> 0 | N101: 0 | O101: 0 | P101: 0 | Q101: 0 | R101: 0 | S101: 0 | T101: 0 | U101: 0 | V101: 0 | W101: =SUM(N101:V101) -> 0
B102: =B101+0.01 -> 1.46 | C102: DEM services for area 2 | D102: B1.1.2 | E102: 0 | F102: 0 | G102: =E102*F102 -> 0 | N102: 0 | O102: 0 | P102: 0 | Q102: 0 | R102: 0 | S102: 0 | T102: 0 | U102: 0 | V102: 0 | W102: =SUM(N102:V102) -> 0
B103: 1.47 | C103: DEM services for area 3 | D103: B1.1.2 | E103: 0 | F103: 0 | G103: =E103*F103 -> 0 | N103: 0 | O103: 0 | P103: 0 | Q103: 0 | R103: 0 | S103: 0 | T103: 0 | U103: 0 | V103: 0 | W103: =SUM(N103:V103) -> 0
B104: 1.48 | E104: 0 | F104: 0 | G104: =E104*F104 -> 0 | N104: 0 | O104: 0 | P104: 0 | Q104: 0 | R104: 0 | S104: 0 | T104: 0 | U104: 0 | V104: 0 | W104: =SUM(N104:V104) -> 0
B105: 1.49 | E105: 0 | F105: 0 | G105: =E105*F105 -> 0 | N105: 0 | O105: 0 | P105: 0 | Q105: 0 | R105: 0 | S105: 0 | T105: 0 | U105: 0 | V105: 0 | W105: =SUM(N105:V105) -> 0
B106: =$B$12 -> High resolution DEM other areas | G106: =SUBTOTAL(9,G107:G111) -> 0
B107: =B105+0.01 -> 1.5 | C107: DEM services for area 1 | D107: B1.1.3 | E107: 0 | F107: 0 | G107: =E107*F107 -> 0 | N107: 0 | O107: 0 | P107: 0 | Q107: 0 | R107: 0 | S107: 0 | T107: 0 | U107: 0 | V107: 0 | W107: =SUM(N107:V107) -> 0
B108: 1.51 | C108: DEM services for area 2 | D108: B1.1.3 | E108: 0 | F108: 0 | G108: =E108*F108 -> 0 | N108: 0 | O108: 0 | P108: 0 | Q108: 0 | R108: 0 | S108: 0 | T108: 0 | U108: 0 | V108: 0 | W108: =SUM(N108:V108) -> 0
B109: 1.52 | C109: DEM services for area 3 | D109: B1.1.3 | E109: 0 | F109: 0 | G109: =E109*F109 -> 0 | N109: 0 | O109: 0 | P109: 0 | Q109: 0 | R109: 0 | S109: 0 | T109: 0 | U109: 0 | V109: 0 | W109: =SUM(N109:V109) -> 0
B110: =B109+0.01 -> 1.53 | E110: 0 | F110: 0 | G110: =E110*F110 -> 0 | N110: 0 | O110: 0 | P110: 0 | Q110: 0 | R110: 0 | S110: 0 | T110: 0 | U110: 0 | V110: 0 | W110: =SUM(N110:V110) -> 0
B111: 1.54 | E111: 0 | F111: 0 | G111: =E111*F111 -> 0 | N111: 0 | O111: 0 | P111: 0 | Q111: 0 | R111: 0 | S111: 0 | T111: 0 | U111: 0 | V111: 0 | W111: =SUM(N111:V111) -> 0
B112: =$B$13 -> 0 | E112: 0 | F112: 0 | G112: =SUBTOTAL(9,G113:G117) -> 0
B113: =B111+0.01 -> 1.55 | E113: 0 | F113: 0 | G113: =E113*F113 -> 0 | N113: 0 | O113: 0 | P113: 0 | Q113: 0 | R113: 0 | S113: 0 | T113: 0 | U113: 0 | V113: 0 | W113: =SUM(N113:V113) -> 0
B114: 1.56 | E114: 0 | F114: 0 | G114: =E114*F114 -> 0 | N114: 0 | O114: 0 | P114: 0 | Q114: 0 | R114: 0 | S114: 0 | T114: 0 | U114: 0 | V114: 0 | W114: =SUM(N114:V114) -> 0
B115: 1.57 | E115: 0 | F115: 0 | G115: =E115*F115 -> 0 | N115: 0 | O115: 0 | P115: 0 | Q115: 0 | R115: 0 | S115: 0 | T115: 0 | U115: 0 | V115: 0 | W115: =SUM(N115:V115) -> 0
B116: 1.58 | E116: 0 | F116: 0 | G116: =E116*F116 -> 0 | N116: 0 | O116: 0 | P116: 0 | Q116: 0 | R116: 0 | S116: 0 | T116: 0 | U116: 0 | V116: 0 | W116: =SUM(N116:V116) -> 0
B117: =B116+0.01 -> 1.59 | E117: 0 | F117: 0 | G117: =E117*F117 -> 0 | N117: 0 | O117: 0 | P117: 0 | Q117: 0 | R117: 0 | S117: 0 | T117: 0 | U117: 0 | V117: 0 | W117: =SUM(N117:V117) -> 0
B119: ="Training/Meetings: " & $B$9 -> Training/Meetings: B1.1. Develop DEM for entire country | F119: Cost per Unit (₹ lakhs) | G119: Total | N119: FY15 | O119: FY16 | P119: FY17 | Q119: FY18 | R119: FY19 | S119: FY20 | T119: FY21 | U119: FY22 | V119: FY23 | W119: Total
C120: Items | D120: Activity | E120: Number | G120: =SUBTOTAL(9,G122:G144) -> 0 | I120: Remarks | M120: Total Annual Outlay (₹ lakhs) | N120: =SUM($G122:$G144*N122:N144) -> 0 | O120: =SUM($G122:$G144*O122:O144) -> 0 | P120: =SUM($G122:$G144*P122:P144) -> 0 | Q120: =SUM($G122:$G144*Q122:Q144) -> 0 | R120: =SUM($G122:$G144*R122:R144) -> 0 | S120: =SUM($G122:$G144*S122:S144) -> 0 | T120: =SUM($G122:$G144*T122:T144) -> 0 | U120: =SUM($G122:$G144*U122:U144) -> 0 | V120: =SUM($G122:$G144*V122:V144) -> 0 | W120: =SUM(N120:V120) -> 0
B121: =$B$10 -> Medium Resolution DEM for India | G121: =SUBTOTAL(9,G122:G126) -> 0
B122: =B117+0.01 -> 1.6 | C122: Training courses for IAs | D122: B1.1.1 | E122: 0 | F122: 0 | G122: =E122*F122 -> 0 | H122: Putting DEM to use in the States through training by NRSC | N122: 0 | O122: 0 | P122: 0 | Q122: 0 | R122: 0 | S122: 0 | T122: 0 | U122: 0 | V122: 0 | W122: =SUM(N122:V122) -> 0
B123: =B122+0.01 -> 1.61 | E123: 0 | F123: 0 | G123: =E123*F123 -> 0 | N123: 0 | O123: 0 | P123: 0 | Q123: 0 | R123: 0 | S123: 0 | T123: 0 | U123: 0 | V123: 0 | W123: =SUM(N123:V123) -> 0
B124: =B123+0.01 -> 1.62 | E124: 0 | F124: 0 | G124: =E124*F124 -> 0 | N124: 0 | O124: 0 | P124: 0 | Q124: 0 | R124: 0 | S124: 0 | T124: 0 | U124: 0 | V124: 0 | W124: =SUM(N124:V124) -> 0
B125: 1.63 | E125: 0 | F125: 0 | G125: =E125*F125 -> 0 | N125: 0 | O125: 0 | P125: 0 | Q125: 0 | R125: 0 | S125: 0 | T125: 0 | U125: 0 | V125: 0 | W125: =SUM(N125:V125) -> 0
B126: 1.64 | E126: 0 | F126: 0 | G126: =E126*F126 -> 0 | N126: 0 | O126: 0 | P126: 0 | Q126: 0 | R126: 0 | S126: 0 | T126: 0 | U126: 0 | V126: 0 | W126: =SUM(N126:V126) -> 0
B127: =$B$11 -> High resolution DEM for flood plains/zones | G127: =SUBTOTAL(9,G128:G132) -> 0
B128: =B126+0.01 -> 1.65 | E128: 0 | F128: 0 | G128: =E128*F128 -> 0 | N128: 0 | O128: 0 | P128: 0 | Q128: 0 | R128: 0 | S128: 0 | T128: 0 | U128: 0 | V128: 0 | W128: =SUM(N128:V128) -> 0
B129: =B128+0.01 -> 1.66 | E129: 0 | F129: 0 | G129: =E129*F129 -> 0 | N129: 0 | O129: 0 | P129: 0 | Q129: 0 | R129: 0 | S129: 0 | T129: 0 | U129: 0 | V129: 0 | W129: =SUM(N129:V129) -> 0
B130: 1.67 | E130: 0 | F130: 0 | G130: =E130*F130 -> 0 | N130: 0 | O130: 0 | P130: 0 | Q130: 0 | R130: 0 | S130: 0 | T130: 0 | U130: 0 | V130: 0 | W130: =SUM(N130:V130) -> 0
B131: 1.68 | E131: 0 | F131: 0 | G131: =E131*F131 -> 0 | N131: 0 | O131: 0 | P131: 0 | Q131: 0 | R131: 0 | S131: 0 | T131: 0 | U131: 0 | V131: 0 | W131: =SUM(N131:V131) -> 0
B132: 1.69 | E132: 0 | F132: 0 | G132: =E132*F132 -> 0 | N132: 0 | O132: 0 | P132: 0 | Q132: 0 | R132: 0 | S132: 0 | T132: 0 | U132: 0 | V132: 0 | W132: =SUM(N132:V132) -> 0
B133: =$B$12 -> High resolution DEM other areas | G133: =SUBTOTAL(9,G134:G138) -> 0
B134: =B132+0.01 -> 1.7 | E134: 0 | F134: 0 | G134: =E134*F134 -> 0 | N134: 0 | O134: 0 | P134: 0 | Q134: 0 | R134: 0 | S134: 0 | T134: 0 | U134: 0 | V134: 0 | W134: =SUM(N134:V134) -> 0
B135: 1.71 | E135: 0 | F135: 0 | G135: =E135*F135 -> 0 | N135: 0 | O135: 0 | P135: 0 | Q135: 0 | R135: 0 | S135: 0 | T135: 0 | U135: 0 | V135: 0 | W135: =SUM(N135:V135) -> 0
B136: 1.72 | E136: 0 | F136: 0 | G136: =E136*F136 -> 0 | N136: 0 | O136: 0 | P136: 0 | Q136: 0 | R136: 0 | S136: 0 | T136: 0 | U136: 0 | V136: 0 | W136: =SUM(N136:V136) -> 0
B137: =B136+0.01 -> 1.73 | E137: 0 | F137: 0 | G137: =E137*F137 -> 0 | N137: 0 | O137: 0 | P137: 0 | Q137: 0 | R137: 0 | S137: 0 | T137: 0 | U137: 0 | V137: 0 | W137: =SUM(N137:V137) -> 0
B138: 1.74 | E138: 0 | F138: 0 | G138: =E138*F138 -> 0 | N138: 0 | O138: 0 | P138: 0 | Q138: 0 | R138: 0 | S138: 0 | T138: 0 | U138: 0 | V138: 0 | W138: =SUM(N138:V138) -> 0
B139: =$B$13 -> 0 | E139: 0 | F139: 0 | G139: =SUBTOTAL(9,G140:G144) -> 0
B140: =B138+0.01 -> 1.75 | E140: 0 | F140: 0 | G140: =E140*F140 -> 0 | N140: 0 | O140: 0 | P140: 0 | Q140: 0 | R140: 0 | S140: 0 | T140: 0 | U140: 0 | V140: 0 | W140: =SUM(N140:V140) -> 0
B141: 1.76 | E141: 0 | F141: 0 | G141: =E141*F141 -> 0 | N141: 0 | O141: 0 | P141: 0 | Q141: 0 | R141: 0 | S141: 0 | T141: 0 | U141: 0 | V141: 0 | W141: =SUM(N141:V141) -> 0
B142: 1.77 | E142: 0 | F142: 0 | G142: =E142*F142 -> 0 | N142: 0 | O142: 0 | P142: 0 | Q142: 0 | R142: 0 | S142: 0 | T142: 0 | U142: 0 | V142: 0 | W142: =SUM(N142:V142) -> 0
B143: 1.78 | E143: 0 | F143: 0 | G143: =E143*F143 -> 0 | N143: 0 | O143: 0 | P143: 0 | Q143: 0 | R143: 0 | S143: 0 | T143: 0 | U143: 0 | V143: 0 | W143: =SUM(N143:V143) -> 0
B144: =B143+0.01 -> 1.79 | E144: 0 | F144: 0 | G144: =E144*F144 -> 0 | N144: 0 | O144: 0 | P144: 0 | Q144: 0 | R144: 0 | S144: 0 | T144: 0 | U144: 0 | V144: 0 | W144: =SUM(N144:V144) -> 0
B146: ="Operational Costs: " & $B$9 -> Operational Costs: B1.1. Develop DEM for entire country | F146: Cost per Unit (₹ lakhs) | G146: Total | N146: FY15 | O146: FY16 | P146: FY17 | Q146: FY18 | R146: FY19 | S146: FY20 | T146: FY21 | U146: FY22 | V146: FY23 | W146: Total
C147: Items | D147: Activity | E147: Number | G147: =SUBTOTAL(9,G149:G171) -> 0 | I147: Remarks | M147: Total Annual Outlay (₹ lakhs) | N147: =SUM($G149:$G171*N149:N171) -> 0 | O147: =SUM($G149:$G171*O149:O171) -> 0 | P147: =SUM($G149:$G171*P149:P171) -> 0 | Q147: =SUM($G149:$G171*Q149:Q171) -> 0 | R147: =SUM($G149:$G171*R149:R171) -> 0 | S147: =SUM($G149:$G171*S149:S171) -> 0 | T147: =SUM($G149:$G171*T149:T171) -> 0 | U147: =SUM($G149:$G171*U149:U171) -> 0 | V147: =SUM($G149:$G171*V149:V171) -> 0 | W147: =SUM(N147:V147) -> 0
B148: =$B$10 -> Medium Resolution DEM for India | G148: =SUBTOTAL(9,G149:G153) -> 0
B149: =B144+0.01 -> 1.8 | C149: Management Cost CWC | D149: B1.1.1 | E149: 0 | F149: 0 | G149: =E149*F149 -> 0 | N149: 0 | O149: 0 | P149: 0 | Q149: 0 | R149: 0 | S149: 0 | T149: 0 | U149: 0 | V149: 0 | W149: =SUM(N149:V149) -> 0
B150: =B149+0.01 -> 1.81 | E150: 0 | F150: 0 | G150: =E150*F150 -> 0 | N150: 0 | O150: 0 | P150: 0 | Q150: 0 | R150: 0 | S150: 0 | T150: 0 | U150: 0 | V150: 0 | W150: =SUM(N150:V150) -> 0
B151: =B150+0.01 -> 1.82 | E151: 0 | F151: 0 | G151: =E151*F151 -> 0 | N151: 0 | O151: 0 | P151: 0 | Q151: 0 | R151: 0 | S151: 0 | T151: 0 | U151: 0 | V151: 0 | W151: =SUM(N151:V151) -> 0
B152: 1.83 | E152: 0 | F152: 0 | G152: =E152*F152 -> 0 | N152: 0 | O152: 0 | P152: 0 | Q152: 0 | R152: 0 | S152: 0 | T152: 0 | U152: 0 | V152: 0 | W152: =SUM(N152:V152) -> 0
B153: 1.84 | E153: 0 | F153: 0 | G153: =E153*F153 -> 0 | N153: 0 | O153: 0 | P153: 0 | Q153: 0 | R153: 0 | S153: 0 | T153: 0 | U153: 0 | V153: 0 | W153: =SUM(N153:V153) -> 0
B154: =$B$11 -> High resolution DEM for flood plains/zones | G154: =SUBTOTAL(9,G155:G159) -> 0
B155: =B153+0.01 -> 1.85 | E155: 0 | F155: 0 | G155: =E155*F155 -> 0 | N155: 0 | O155: 0 | P155: 0 | Q155: 0 | R155: 0 | S155: 0 | T155: 0 | U155: 0 | V155: 0 | W155: =SUM(N155:V155) -> 0
B156: =B155+0.01 -> 1.86 | E156: 0 | F156: 0 | G156: =E156*F156 -> 0 | N156: 0 | O156: 0 | P156: 0 | Q156: 0 | R156: 0 | S156: 0 | T156: 0 | U156: 0 | V156: 0 | W156: =SUM(N156:V156) -> 0
B157: 1.87 | E157: 0 | F157: 0 | G157: =E157*F157 -> 0 | N157: 0 | O157: 0 | P157: 0 | Q157: 0 | R157: 0 | S157: 0 | T157: 0 | U157: 0 | V157: 0 | W157: =SUM(N157:V157) -> 0
B158: 1.88 | E158: 0 | F158: 0 | G158: =E158*F158 -> 0 | N158: 0 | O158: 0 | P158: 0 | Q158: 0 | R158: 0 | S158: 0 | T158: 0 | U158: 0 | V158: 0 | W158: =SUM(N158:V158) -> 0
B159: 1.89 | E159: 0 | F159: 0 | G159: =E159*F159 -> 0 | N159: 0 | O159: 0 | P159: 0 | Q159: 0 | R159: 0 | S159: 0 | T159: 0 | U159: 0 | V159: 0 | W159: =SUM(N159:V159) -> 0
B160: =$B$12 -> High resolution DEM other areas | G160: =SUBTOTAL(9,G161:G165) -> 0
B161: =B159+0.01 -> 1.9 | E161: 0 | F161: 0 | G161: =E161*F161 -> 0 | N161: 0 | O161: 0 | P161: 0 | Q161: 0 | R161: 0 | S161: 0 | T161: 0 | U161: 0 | V161: 0 | W161: =SUM(N161:V161) -> 0
B162: 1.91 | E162: 0 | F162: 0 | G162: =E162*F162 -> 0 | N162: 0 | O162: 0 | P162: 0 | Q162: 0 | R162: 0 | S162: 0 | T162: 0 | U162: 0 | V162: 0 | W162: =SUM(N162:V162) -> 0
B163: 1.92 | E163: 0 | F163: 0 | G163: =E163*F163 -> 0 | N163: 0 | O163: 0 | P163: 0 | Q163: 0 | R163: 0 | S163: 0 | T163: 0 | U163: 0 | V163: 0 | W163: =SUM(N163:V163) -> 0
B164: =B163+0.01 -> 1.93 | E164: 0 | F164: 0 | G164: =E164*F164 -> 0 | N164: 0 | O164: 0 | P164: 0 | Q164: 0 | R164: 0 | S164: 0 | T164: 0 | U164: 0 | V164: 0 | W164: =SUM(N164:V164) -> 0
B165: 1.94 | E165: 0 | F165: 0 | G165: =E165*F165 -> 0 | N165: 0 | O165: 0 | P165: 0 | Q165: 0 | R165: 0 | S165: 0 | T165: 0 | U165: 0 | V165: 0 | W165: =SUM(N165:V165) -> 0
B166: =$B$13 -> 0 | E166: 0 | F166: 0 | G166: =SUBTOTAL(9,G167:G171) -> 0
B167: =B165+0.01 -> 1.95 | E167: 0 | F167: 0 | G167: =E167*F167 -> 0 | N167: 0 | O167: 0 | P167: 0 | Q167: 0 | R167: 0 | S167: 0 | T167: 0 | U167: 0 | V167: 0 | W167: =SUM(N167:V167) -> 0
B168: 1.96 | E168: 0 | F168: 0 | G168: =E168*F168 -> 0 | N168: 0 | O168: 0 | P168: 0 | Q168: 0 | R168: 0 | S168: 0 | T168: 0 | U168: 0 | V168: 0 | W168: =SUM(N168:V168) -> 0
B169: 1.97 | E169: 0 | F169: 0 | G169: =E169*F169 -> 0 | N169: 0 | O169: 0 | P169: 0 | Q169: 0 | R169: 0 | S169: 0 | T169: 0 | U169: 0 | V169: 0 | W169: =SUM(N169:V169) -> 0
B170: 1.98 | E170: 0 | F170: 0 | G170: =E170*F170 -> 0 | N170: 0 | O170: 0 | P170: 0 | Q170: 0 | R170: 0 | S170: 0 | T170: 0 | U170: 0 | V170: 0 | W170: =SUM(N170:V170) -> 0
B171: =B170+0.01 -> 1.99 | E171: 0 | F171: 0 | G171: =E171*F171 -> 0 | N171: 0 | O171: 0 | P171: 0 | Q171: 0 | R171: 0 | S171: 0 | T171: 0 | U171: 0 | V171: 0 | W171: =SUM(N171:V171) -> 0
B173: =B14 -> B1.2. Temporal and spatial Earth Observation (EO) products for India
B174: ="Goods: " & $B$14 -> Goods: B1.2. Temporal and spatial Earth Observation (EO) products for India | F174: Cost per Unit (₹ lakhs) | G174: Total | H174: Telemetry Type | N174: FY15 | O174: FY16 | P174: FY17 | Q174: FY18 | R174: FY19 | S174: FY20 | T174: FY21 | U174: FY22 | V174: FY23 | W174: Total
C175: Items | D175: Activity | E175: Number | G175: =SUBTOTAL(9,G177:G201) -> 20 | H175: Telemetry Type | I175: Remarks | M175: Total Annual Outlay (₹ lakhs) | N175: =SUM($G177:$G201*N177:N201) -> 0 | O175: =SUM($G177:$G201*O177:O201) -> 2.5 | P175: =SUM($G177:$G201*P177:P201) -> 2.5 | Q175: =SUM($G177:$G201*Q177:Q201) -> 2.5 | R175: =SUM($G177:$G201*R177:R201) -> 2.5 | S175: =SUM($G177:$G201*S177:S201) -> 2.5 | T175: =SUM($G177:$G201*T177:T201) -> 2.5 | U175: =SUM($G177:$G201*U177:U201) -> 2.5 | V175: =SUM($G177:$G201*V177:V201) -> 2.5 | W175: =SUM(N175:V175) -> 20
B176: =$B$15 -> Real-time EO products for climate and runoff | G176: =SUBTOTAL(9,G177:G182) -> 10
B177: 2 | C177: Groundstation antenna | D177: B1.2.1 | E177: 0 | F177: 0 | G177: =E177*F177 -> 0 | I177: At National Water Informatics Centre of CWC | N177: 0 | O177: 0 | P177: 0 | Q177: 0 | R177: 0 | S177: 0 | T177: 0 | U177: 0 | V177: 0 | W177: =SUM(N177:V177) -> 0
B178: =B177+0.01 -> 2.01 | C178: Servers | D178: B1.2.1 | E178: 0 | F178: 0 | G178: 0 | N178: 0 | O178: 0 | P178: 0 | Q178: 0 | R178: 0 | S178: 0 | T178: 0 | U178: 0 | V178: 0 | W178: 0
B179: =B178+0.01 -> 2.02 | C179: Computers | D179: B1.2.1 | E179: 0 | F179: 0 | G179: 0 | N179: 0 | O179: 0 | P179: 0 | Q179: 0 | R179: 0 | S179: 0 | T179: 0 | U179: 0 | V179: 0 | W179: 0
B180: =B179+0.01 -> 2.03 | C180: Purchase EO products | D180: B1.2.1 | E180: 1 | F180: 10 | G180: =E180*F180 -> 10 | I180: Provision if not delivered from ISRO | N180: 0 | O180: 0.125 | P180: 0.125 | Q180: 0.125 | R180: 0.125 | S180: 0.125 | T180: 0.125 | U180: 0.125 | V180: 0.125 | W180: 1
B181: =B180+0.01 -> 2.04 | C181: Other goods/equipments | D181: B1.2.1 | E181: 0 | F181: 0 | G181: 0 | N181: 0 | O181: 0 | P181: 0 | Q181: 0 | R181: 0 | S181: 0 | T181: 0 | U181: 0 | V181: 0 | W181: 0
B182: =B181+0.01 -> 2.05 | E182: 0 | F182: 0 | G182: 0 | N182: 0 | O182: 0 | P182: 0 | Q182: 0 | R182: 0 | S182: 0 | T182: 0 | U182: 0 | V182: 0 | W182: 0
B183: =$B$16 -> Monitoring of water and drought conditions | G183: =SUBTOTAL(9,G184:G189) -> 10
B184: =B182+0.01 -> 2.06 | C184: Satellite groundstation (?) | D184: B1.2.2 | E184: 0 | F184: 0 | G184: =E184*F184 -> 0 | N184: 0 | O184: 0 | P184: 0 | Q184: 0 | R184: 0 | S184: 0 | T184: 0 | U184: 0 | V184: 0 | W184: =SUM(N184:V184) -> 0
B185: =B184+0.01 -> 2.07 | C185: Server | D185: B1.2.2 | E185: 0 | F185: 0 | G185: 0 | N185: 0 | O185: 0 | P185: 0 | Q185: 0 | R185: 0 | S185: 0 | T185: 0 | U185: 0 | V185: 0 | W185: 0
B186: =B185+0.01 -> 2.08 | C186: Computers | D186: B1.2.2 | E186: 0 | F186: 0 | G186: =E186*F186 -> 0 | N186: 0 | O186: 0 | P186: 0 | Q186: 0 | R186: 0 | S186: 0 | T186: 0 | U186: 0 | V186: 0 | W186: 0
B187: =B186+0.01 -> 2.09 | C187: Software licenses and AMC | D187: B1.2.2 | E187: 0 | F187: 0 | G187: 0 | N187: 0 | O187: 0 | P187: 0 | Q187: 0 | R187: 0 | S187: 0 | T187: 0 | U187: 0 | V187: 0 | W187: 0
B188: =B187+0.01 -> 2.1 | C188: Other goods/equipments | D188: B1.2.2 | E188: 1 | F188: 10 | G188: 10 | I188: Provision if not delivered from ISRO | N188: 0 | O188: 0.125 | P188: 0.125 | Q188: 0.125 | R188: 0.125 | S188: 0.125 | T188: 0.125 | U188: 0.125 | V188: 0.125 | W188: 1
B189: =B188+0.01 -> 2.11 | E189: 0 | F189: 0 | G189: 0 | N189: 0 | O189: 0 | P189: 0 | Q189: 0 | R189: 0 | S189: 0 | T189: 0 | U189: 0 | V189: 0 | W189: 0
B190: =$B$17 -> Cropping/water conditions in irrigation systems | G190: =SUBTOTAL(9,G191:G195) -> 0
B191: =B189+0.01 -> 2.12 | E191: 0 | F191: 0 | G191: =E191*F191 -> 0 | N191: 0 | O191: 0 | P191: 0 | Q191: 0 | R191: 0 | S191: 0 | T191: 0 | U191: 0 | V191: 0 | W191: =SUM(N191:V191) -> 0
B192: =B191+0.01 -> 2.13 | E192: 0 | F192: 0 | G192: =E192*F192 -> 0 | N192: 0 | O192: 0 | P192: 0 | Q192: 0 | R192: 0 | S192: 0 | T192: 0 | U192: 0 | V192: 0 | W192: =SUM(N192:V192) -> 0
B193: =B192+0.01 -> 2.14 | E193: 0 | F193: 0 | G193: =E193*F193 -> 0 | N193: 0 | O193: 0 | P193: 0 | Q193: 0 | R193: 0 | S193: 0 | T193: 0 | U193: 0 | V193: 0 | W193: =SUM(N193:V193) -> 0
B194: =B193+0.01 -> 2.15 | E194: 0 | F194: 0 | G194: =E194*F194 -> 0 | N194: 0 | O194: 0 | P194: 0 | Q194: 0 | R194: 0 | S194: 0 | T194: 0 | U194: 0 | V194: 0 | W194: =SUM(N194:V194) -> 0
B195: =B194+0.01 -> 2.16 | E195: 0 | F195: 0 | G195: =E195*F195 -> 0 | N195: 0 | O195: 0 | P195: 0 | Q195: 0 | R195: 0 | S195: 0 | T195: 0 | U195: 0 | V195: 0 | W195: =SUM(N195:V195) -> 0
B196: =$B$18 -> Monitoring of water bodies and tanks | G196: =SUBTOTAL(9,G197:G201) -> 0
B197: =B195+0.01 -> 2.17 | E197: 0 | F197: 0 | G197: =E197*F197 -> 0 | N197: 0 | O197: 0 | P197: 0 | Q197: 0 | R197: 0 | S197: 0 | T197: 0 | U197: 0 | V197: 0 | W197: =SUM(N197:V197) -> 0
B198: =B197+0.01 -> 2.18 | E198: 0 | F198: 0 | G198: =E198*F198 -> 0 | N198: 0 | O198: 0 | P198: 0 | Q198: 0 | R198: 0 | S198: 0 | T198: 0 | U198: 0 | V198: 0 | W198: =SUM(N198:V198) -> 0
B199: =B198+0.01 -> 2.19 | E199: 0 | F199: 0 | G199: =E199*F199 -> 0 | N199: 0 | O199: 0 | P199: 0 | Q199: 0 | R199: 0 | S199: 0 | T199: 0 | U199: 0 | V199: 0 | W199: =SUM(N199:V199) -> 0
B200: =B199+0.01 -> 2.2 | E200: 0 | F200: 0 | G200: =E200*F200 -> 0 | N200: 0 | O200: 0 | P200: 0 | Q200: 0 | R200: 0 | S200: 0 | T200: 0 | U200: 0 | V200: 0 | W200: =SUM(N200:V200) -> 0
B201: =B200+0.01 -> 2.21 | E201: 0 | F201: 0 | G201: =E201*F201 -> 0 | N201: 0 | O201: 0 | P201: 0 | Q201: 0 | R201: 0 | S201: 0 | T201: 0 | U201: 0 | V201: 0 | W201: =SUM(N201:V201) -> 0
B203: ="Civil Works: " & $B$14 -> Civil Works: B1.2. Temporal and spatial Earth Observation (EO) products for India | F203: Cost per Unit (₹ lakhs) | G203: Total | N203: FY15 | O203: FY16 | P203: FY17 | Q203: FY18 | R203: FY19 | S203: FY20 | T203: FY21 | U203: FY22 | V203: FY23 | W203: Total
C204: Items | D204: Activity | E204: Number | G204: =SUBTOTAL(9,G206:G228) -> 0 | I204: Remarks | M204: Total Annual Outlay (₹ lakhs) | N204: =SUM($G206:$G228*N206:N228) -> 0 | O204: =SUM($G206:$G228*O206:O228) -> 0 | P204: =SUM($G206:$G228*P206:P228) -> 0 | Q204: =SUM($G206:$G228*Q206:Q228) -> 0 | R204: =SUM($G206:$G228*R206:R228) -> 0 | S204: =SUM($G206:$G228*S206:S228) -> 0 | T204: =SUM($G206:$G228*T206:T228) -> 0 | U204: =SUM($G206:$G228*U206:U228) -> 0 | V204: =SUM($G206:$G228*V206:V228) -> 0 | W204: =SUM(N204:V204) -> 0
B205: =$B$15 -> Real-time EO products for climate and runoff | G205: =SUBTOTAL(9,G206:G210) -> 0
B206: =B201+0.01 -> 2.22 | E206: 0 | F206: 0 | G206: =E206*F206 -> 0 | N206: 0 | O206: 0 | P206: 0 | Q206: 0 | R206: 0 | S206: 0 | T206: 0 | U206: 0 | V206: 0 | W206: =SUM(N206:V206) -> 0
B207: =B206+0.01 -> 2.23 | E207: 0 | F207: 0 | G207: =E207*F207 -> 0 | N207: 0 | O207: 0 | P207: 0 | Q207: 0 | R207: 0 | S207: 0 | T207: 0 | U207: 0 | V207: 0 | W207: =SUM(N207:V207) -> 0
... 361 more rows

Sheet B2
A1: Cost Estimate for HP-III
B2: Component | C2: B: Improving Water Resources Information Systems (WRIS)
B3: Sub-Component | C3: B2: Water Resources Information System
B4: Prefix | C4: B2
C5: Go to Abstract | E5: Go to Legend
B6: Cost Summary | E6: Total cost | F6: Procurement Categories (₹ lakhs) | K6: Remarks/ description
B7: Decription | D7: No. | E7: ₹ lakhs | F7: Goods | G7: Civil Works | H7: Consultant Services | I7: Training/ Meetings | J7: Operation Costs
B8: Subcomponents and Activities | E8: =SUM(F8:J8) -> 15 | F8: =SUBTOTAL(9,F9:F28) -> 0 | G8: =SUBTOTAL(9,G9:G28) -> 0 | H8: =SUBTOTAL(9,H9:H28) -> 10 | I8: =SUBTOTAL(9,I9:I28) -> 5 | J8: =SUBTOTAL(9,J9:J28) -> 0
B9: B2.1. Strengthening the web-based India-WRIS portal for WR information | E9: =SUM(F9:J9) -> 15 | F9: =SUBTOTAL(9,F10:F13) -> 0 | G9: =SUBTOTAL(9,G10:G13) -> 0 | H9: =SUBTOTAL(9,H10:H13) -> 10 | I9: =SUBTOTAL(9,I10:I13) -> 5 | J9: =SUBTOTAL(9,J10:J13) -> 0
B10: Strengthen and expand India-WRIS | D10: =$C$4 & ".1.1" -> B2.1.1 | E10: 0 | F10: =G40 -> 0 | G10: =G67 -> 0 | H10: =G94 -> 0 | I10: =G121 -> 0 | J10: =G148 -> 0 | K10: CWC/NRSA
B11: Create State Chapters of India-WRIS | D11: =$C$4 & ".1.2" -> B2.1.2 | E11: 15 | F11: =G46 -> 0 | G11: =G73 -> 0 | H11: =G100 -> 10 | I11: =G127 -> 5 | J11: =G154 -> 0 | K11: CWC and States
B12: None 1.3 | D12: =$C$4 & ".1.3" -> B2.1.3 | E12: 0 | F12: =G52 -> 0 | G12: =G79 -> 0 | H12: =G106 -> 0 | I12: =G133 -> 0 | J12: =G160 -> 0 | K12: CWC/NRSA
B13: None 1.4 | D13: =$C$4 & ".1.4" -> B2.1.4 | E13: 0 | F13: =G58 -> 0 | G13: =G85 -> 0 | H13: =G112 -> 0 | I13: =G139 -> 0 | J13: =G166 -> 0
B14: B2.2. Development of a country-wide and web-based hydrological modelling system | E14: 0 | F14: =SUBTOTAL(9,F15:F18) -> 0 | G14: =SUBTOTAL(9,G15:G18) -> 0 | H14: =SUBTOTAL(9,H15:H18) -> 0 | I14: =SUBTOTAL(9,I15:I18) -> 0 | J14: =SUBTOTAL(9,J15:J18) -> 0
B15: Web-based hydrological model for India | D15: =$C$4 & ".2.1" -> B2.2.1 | E15: 0 | F15: =G176 -> 0 | G15: =G203 -> 0 | H15: =G230 -> 0 | I15: =G257 -> 0 | J15: =G284 -> 0
B16: None 2.1 | D16: =$C$4 & ".2.2" -> B2.2.2 | E16: 0 | F16: =G182 -> 0 | G16: =G209 -> 0 | H16: =G236 -> 0 | I16: =G263 -> 0 | J16: =G290 -> 0
B17: None 2.3 | D17: =$C$4 & ".2.3" -> B2.2.3 | E17: 0 | F17: =G188 -> 0 | G17: =G215 -> 0 | H17: =G242 -> 0 | I17: =G269 -> 0 | J17: =G296 -> 0
B18: None 2.4 | D18: =$C$4 & ".2.4" -> B2.2.4 | E18: 0 | F18: =G194 -> 0 | G18: =G221 -> 0 | H18: =G248 -> 0 | I18: =G275 -> 0 | J18: =G302 -> 0
B19: B2.3 | E19: =SUM(F19:J19) -> 0 | F19: =SUBTOTAL(9,F20:F23) -> 0 | G19: =SUBTOTAL(9,G20:G23) -> 0 | H19: =SUBTOTAL(9,H20:H23) -> 0 | I19: =SUBTOTAL(9,I20:I23) -> 0 | J19: =SUBTOTAL(9,J20:J23) -> 0
B20: None 3.1 | D20: =$C$4 & ".3.1" -> B2.3.1 | E20: 0 | F20: =G312 -> 0 | G20: =G339 -> 0 | H20: =G366 -> 0 | I20: =G393 -> 0 | J20: =G420 -> 0
B21: None 3.2 | D21: =$C$4 & ".3.2" -> B2.3.2 | E21: 0 | F21: =G318 -> 0 | G21: =G345 -> 0 | H21: =G372 -> 0 | I21: =G399 -> 0 | J21: =G426 -> 0
B22: None 3.3 | D22: =$C$4 & ".3.3" -> B2.3.3 | E22: 0 | F22: =G324 -> 0 | G22: =G351 -> 0 | H22: =G378 -> 0 | I22: =G405 -> 0 | J22: =G432 -> 0
B23: None 3.4 | D23: =$C$4 & ".3.4" -> B2.3.4 | E23: 0 | F23: =G330 -> 0 | G23: =G357 -> 0 | H23: =G384 -> 0 | I23: =G411 -> 0 | J23: =G438 -> 0
B24: Extra | E24: =SUM(F24:J24) -> 0 | F24: =SUBTOTAL(9,F25:F28) -> 0 | G24: =SUBTOTAL(9,G25:G28) -> 0 | H24: =SUBTOTAL(9,H25:H28) -> 0 | I24: =SUBTOTAL(9,I25:I28) -> 0 | J24: =SUBTOTAL(9,J25:J28) -> 0
B25: None 4.1 | D25: =$C$4 & ".4.1" -> B2.4.1 | E25: 0 | F25: =G448 -> 0 | G25: =G475 -> 0 | H25: =G502 -> 0 | I25: =G529 -> 0 | J25: =G556 -> 0
B26: None 4.2 | D26: =$C$4 & ".4.2" -> B2.4.2 | E26: 0 | F26: =G454 -> 0 | G26: =G481 -> 0 | H26: =G508 -> 0 | I26: =G535 -> 0 | J26: =G562 -> 0
B27: None 4.3 | D27: =$C$4 & ".4.3" -> B2.4.3 | E27: 0 | F27: =G460 -> 0 | G27: =G487 -> 0 | H27: =G514 -> 0 | I27: =G541 -> 0 | J27: =G568 -> 0
B28: None 4.4 | D28: =$C$4 & ".4.4" -> B2.4.4 | E28: 0 | F28: =G466 -> 0 | G28: =G493 -> 0 | H28: =G520 -> 0 | I28: =G547 -> 0 | J28: =G574 -> 0
C29: Financial Year | D29: FY 15 | E29: FY 16 | F29: FY 17 | G29: FY 18 | H29: FY 19 | I29: FY 20 | J29: FY 21 | K29: FY 22 | L29: FY 23
C30: Cost Outlay | D30: =SUM(D31:D34) -> 0 | E30: =SUM(E31:E34) -> 0 | F30: 6.25 | G30: 6.25 | H30: 1.25 | I30: 1.25 | J30: 0 | K30: 0 | L30: 0
C31: =$C$4 & ".1" -> B2.1 | D31: =N39+N66+N93+N120+N147 -> 0 | E31: =O39+O66+O93+O120+O147 -> 0 | F31: 6.25 | G31: 6.25 | H31: 1.25 | I31: 1.25 | J31: 0 | K31: 0 | L31: 0
C32: =$C$4 & ".2" -> B2.2 | D32: =N175+N202+N229+N256+N283 -> 0 | E32: =O175+O202+O229+O256+O283 -> 0 | F32: 0 | G32: 0 | H32: 0 | I32: 0 | J32: 0 | K32: 0 | L32: 0
C33: =$C$4 & ".3" -> B2.3 | D33: =N311+N338+N365+N392+N419 -> 0 | E33: =O311+O338+O365+O392+O419 -> 0 | F33: 0 | G33: 0 | H33: 0 | I33: 0 | J33: 0 | K33: 0 | L33: 0
C34: =$C$4 & ".4" -> B2.4 | D34: =N447+N474+N501+N528+N555 -> 0 | E34: =O447+O474+O501+O528+O555 -> 0 | F34: 0 | G34: 0 | H34: 0 | I34: 0 | J34: 0 | K34: 0 | L34: 0
B36: Worksheets
B37: =B9 -> B2.1. Strengthening the web-based India-WRIS portal for WR information
B38: ="Goods: " & $B$9 -> Goods: B2.1. Strengthening the web-based India-WRIS portal for WR information | F38: Cost per Unit (₹ lakhs) | G38: Total | H38: Telemetry Type | N38: FY15 | O38: FY16 | P38: FY17 | Q38: FY18 | R38: FY19 | S38: FY20 | T38: FY21 | U38: FY22 | V38: FY23 | W38: Total
C39: Items | D39: Activity | E39: Number | G39: =SUBTOTAL(9,G41:G63) -> 0 | H39: Telemetry Type | I39: Remarks | M39: Total Annual Outlay (₹ lakhs) | N39: =SUM($G41:$G63*N41:N63) -> 0 | O39: =SUM($G41:$G63*O41:O63) -> 0 | P39: =SUM($G41:$G63*P41:P63) -> 0 | Q39: =SUM($G41:$G63*Q41:Q63) -> 0 | R39: =SUM($G41:$G63*R41:R63) -> 0 | S39: =SUM($G41:$G63*S41:S63) -> 0 | T39: =SUM($G41:$G63*T41:T63) -> 0 | U39: =SUM($G41:$G63*U41:U63) -> 0 | V39: =SUM($G41:$G63*V41:V63) -> 0 | W39: =SUM(N39:V39) -> 0
B40: =$B$10 -> Strengthen and expand India-WRIS | G40: =SUBTOTAL(9,G41:G45) -> 0
B41: 1 | C41: Satellite data layers | D41: B2.1.1 | E41: 0 | F41: 0 | G41: =E41*F41 -> 0 | H41: n/a | N41: 0 | O41: 0 | P41: 0 | Q41: 0 | R41: 0 | S41: 0 | T41: 0 | U41: 0 | V41: 0 | W41: =SUM(N41:V41) -> 0
B42: =B41+0.01 -> 1.01 | C42: Servers | D42: B2.1.1 | E42: 0 | F42: 0 | G42: 0 | H42: n/a | N42: 0 | O42: 0 | P42: 0 | Q42: 0 | R42: 0 | S42: 0 | T42: 0 | U42: 0 | V42: 0 | W42: =SUM(N42:V42) -> 0
B43: =B42+0.01 -> 1.02 | C43: Computers | D43: B2.1.1 | E43: 0 | F43: 0 | G43: 0 | H43: n/a | N43: 0 | O43: 0 | P43: 0 | Q43: 0 | R43: 0 | S43: 0 | T43: 0 | U43: 0 | V43: 0 | W43: 0
B44: 1.03 | C44: Software licenses | D44: B2.1.1 | E44: 0 | F44: 0 | G44: 0 | H44: n/a | N44: 0 | O44: 0 | P44: 0 | Q44: 0 | R44: 0 | S44: 0 | T44: 0 | U44: 0 | V44: 0 | W44: 0
B45: 1.04 | E45: 0 | F45: 0 | G45: 0 | H45: n/a | N45: 0 | O45: 0 | P45: 0 | Q45: 0 | R45: 0 | S45: 0 | T45: 0 | U45: 0 | V45: 0 | W45: 0
B46: =$B$11 -> Create State Chapters of India-WRIS | G46: =SUBTOTAL(9,G47:G51) -> 0
B47: =B45+0.01 -> 1.05 | C47: Computers for States | D47: B2.1.2 | E47: 0 | F47: 0 | G47: =E47*F47 -> 0 | H47: n/a | N47: 0 | O47: 0 | P47: 0 | Q47: 0 | R47: 0 | S47: 0 | T47: 0 | U47: 0 | V47: 0 | W47: =SUM(N47:V47) -> 0
B48: =B47+0.01 -> 1.06 | C48: Servers | D48: B2.1.2 | E48: 0 | F48: 10 | G48: =E48*F48 -> 0 | H48: n/a | N48: 0 | O48: 0 | P48: 0 | Q48: 0 | R48: 0 | S48: 0 | T48: 0 | U48: 0 | V48: 0 | W48: =SUM(N48:V48) -> 0
B49: 1.07 | C49: Computers | D49: B2.1.2 | E49: 0 | F49: 1 | G49: =E49*F49 -> 0 | H49: n/a | N49: 0 | O49: 0 | P49: 0 | Q49: 0 | R49: 0 | S49: 0 | T49: 0 | U49: 0 | V49: 0 | W49: =SUM(N49:V49) -> 0
B50: 1.08 | C50: Plotter | D50: B2.1.2 | E50: 0 | F50: 2 | G50: =E50*F50 -> 0 | H50: n/a | N50: 0 | O50: 0 | P50: 0 | Q50: 0 | R50: 0 | S50: 0 | T50: 0 | U50: 0 | V50: 0 | W50: =SUM(N50:V50) -> 0
B51: 1.09 | E51: 0 | F51: 0 | G51: =E51*F51 -> 0 | H51: n/a | N51: 0 | O51: 0 | P51: 0 | Q51: 0 | R51: 0 | S51: 0 | T51: 0 | U51: 0 | V51: 0 | W51: =SUM(N51:V51) -> 0
B52: =$B$12 -> None 1.3 | G52: =SUBTOTAL(9,G53:G57) -> 0
B53: =B51+0.01 -> 1.1 | E53: 0 | F53: 0 | G53: 0 | H53: n/a | N53: 0 | O53: 0 | P53: 0 | Q53: 0 | R53: 0 | S53: 0 | T53: 0 | U53: 0 | V53: 0 | W53: 0
B54: 1.11 | E54: 0 | F54: 0 | G54: 0 | H54: n/a | N54: 0 | O54: 0 | P54: 0 | Q54: 0 | R54: 0 | S54: 0 | T54: 0 | U54: 0 | V54: 0 | W54: 0
B55: 1.12 | E55: 0 | F55: 0 | G55: 0 | H55: n/a | N55: 0 | O55: 0 | P55: 0 | Q55: 0 | R55: 0 | S55: 0 | T55: 0 | U55: 0 | V55: 0 | W55: 0
B56: =B55+0.01 -> 1.13 | E56: 0 | F56: 0 | G56: 0 | H56: n/a | N56: 0 | O56: 0 | P56: 0 | Q56: 0 | R56: 0 | S56: 0 | T56: 0 | U56: 0 | V56: 0 | W56: 0
B57: 1.14 | E57: 0 | F57: 0 | G57: 0 | H57: n/a | N57: 0 | O57: 0 | P57: 0 | Q57: 0 | R57: 0 | S57: 0 | T57: 0 | U57: 0 | V57: 0 | W57: 0
B58: =$B$13 -> None 1.4 | G58: =SUBTOTAL(9,G59:G63) -> 0
B59: =B57+0.01 -> 1.15 | E59: 0 | F59: 0 | G59: 0 | H59: n/a | N59: 0 | O59: 0 | P59: 0 | Q59: 0 | R59: 0 | S59: 0 | T59: 0 | U59: 0 | V59: 0 | W59: 0
B60: 1.16 | E60: 0 | F60: 0 | G60: 0 | H60: n/a | N60: 0 | O60: 0 | P60: 0 | Q60: 0 | R60: 0 | S60: 0 | T60: 0 | U60: 0 | V60: 0 | W60: 0
B61: 1.17 | E61: 0 | F61: 0 | G61: 0 | H61: n/a | N61: 0 | O61: 0 | P61: 0 | Q61: 0 | R61: 0 | S61: 0 | T61: 0 | U61: 0 | V61: 0 | W61: 0
B62: 1.18 | E62: 0 | F62: 0 | G62: 0 | H62: n/a | N62: 0 | O62: 0 | P62: 0 | Q62: 0 | R62: 0 | S62: 0 | T62: 0 | U62: 0 | V62: 0 | W62: 0
B63: =B62+0.01 -> 1.19 | E63: 0 | F63: 0 | G63: 0 | H63: n/a | N63: 0 | O63: 0 | P63: 0 | Q63: 0 | R63: 0 | S63: 0 | T63: 0 | U63: 0 | V63: 0 | W63: 0
B65: ="Civil Works: " & $B$9 -> Civil Works: B2.1. Strengthening the web-based India-WRIS portal for WR information | F65: Cost per Unit (₹ lakhs) | G65: Total | N65: FY15 | O65: FY16 | P65: FY17 | Q65: FY18 | R65: FY19 | S65: FY20 | T65: FY21 | U65: FY22 | V65: FY23 | W65: Total
C66: Items | D66: Activity | E66: Number | G66: =SUBTOTAL(9,G68:G90) -> 0 | I66: Remarks | M66: Total Annual Outlay (₹ lakhs) | N66: =SUM($G68:$G90*N68:N90) -> 0 | O66: =SUM($G68:$G90*O68:O90) -> 0 | P66: =SUM($G68:$G90*P68:P90) -> 0 | Q66: =SUM($G68:$G90*Q68:Q90) -> 0 | R66: =SUM($G68:$G90*R68:R90) -> 0 | S66: =SUM($G68:$G90*S68:S90) -> 0 | T66: =SUM($G68:$G90*T68:T90) -> 0 | U66: =SUM($G68:$G90*U68:U90) -> 0 | V66: =SUM($G68:$G90*V68:V90) -> 0 | W66: =SUM(N66:V66) -> 0
B67: =$B$10 -> Strengthen and expand India-WRIS | G67: =SUBTOTAL(9,G68:G72) -> 0
B68: =B63+0.01 -> 1.2 | E68: 0 | F68: 0 | G68: =E68*F68 -> 0 | H68: n/a | N68: 0 | O68: 0 | P68: 0 | Q68: 0 | R68: 0 | S68: 0 | T68: 0 | U68: 0 | V68: 0 | W68: =SUM(N68:V68) -> 0
B69: =B68+0.01 -> 1.21 | E69: 0 | F69: 0 | G69: =E69*F69 -> 0 | H69: n/a | N69: 0 | O69: 0 | P69: 0 | Q69: 0 | R69: 0 | S69: 0 | T69: 0 | U69: 0 | V69: 0 | W69: =SUM(N69:V69) -> 0
B70: =B69+0.01 -> 1.22 | E70: 0 | F70: 0 | G70: =E70*F70 -> 0 | H70: n/a | N70: 0 | O70: 0 | P70: 0 | Q70: 0 | R70: 0 | S70: 0 | T70: 0 | U70: 0 | V70: 0 | W70: =SUM(N70:V70) -> 0
B71: 1.23 | E71: 0 | F71: 0 | G71: =E71*F71 -> 0 | H71: n/a | N71: 0 | O71: 0 | P71: 0 | Q71: 0 | R71: 0 | S71: 0 | T71: 0 | U71: 0 | V71: 0 | W71: =SUM(N71:V71) -> 0
B72: 1.24 | E72: 0 | F72: 0 | G72: =E72*F72 -> 0 | N72: 0 | O72: 0 | P72: 0 | Q72: 0 | R72: 0 | S72: 0 | T72: 0 | U72: 0 | V72: 0 | W72: =SUM(N72:V72) -> 0
B73: =$B$11 -> Create State Chapters of India-WRIS | G73: =SUBTOTAL(9,G74:G78) -> 0
B74: =B72+0.01 -> 1.25 | E74: 0 | F74: 0 | G74: =E74*F74 -> 0 | H74: n/a | N74: 0 | O74: 0 | P74: 0 | Q74: 0 | R74: 0 | S74: 0 | T74: 0 | U74: 0 | V74: 0 | W74: =SUM(N74:V74) -> 0
B75: =B74+0.01 -> 1.26 | E75: 0 | F75: 0 | G75: =E75*F75 -> 0 | H75: n/a | N75: 0 | O75: 0 | P75: 0 | Q75: 0 | R75: 0 | S75: 0 | T75: 0 | U75: 0 | V75: 0 | W75: =SUM(N75:V75) -> 0
B76: 1.27 | E76: 0 | F76: 0 | G76: =E76*F76 -> 0 | H76: n/a | N76: 0 | O76: 0 | P76: 0 | Q76: 0 | R76: 0 | S76: 0 | T76: 0 | U76: 0 | V76: 0 | W76: =SUM(N76:V76) -> 0
B77: 1.28 | E77: 0 | F77: 0 | G77: =E77*F77 -> 0 | H77: n/a | N77: 0 | O77: 0 | P77: 0 | Q77: 0 | R77: 0 | S77: 0 | T77: 0 | U77: 0 | V77: 0 | W77: =SUM(N77:V77) -> 0
B78: 1.29 | E78: 0 | F78: 0 | G78: =E78*F78 -> 0 | N78: 0 | O78: 0 | P78: 0 | Q78: 0 | R78: 0 | S78: 0 | T78: 0 | U78: 0 | V78: 0 | W78: =SUM(N78:V78) -> 0
B79: =$B$12 -> None 1.3 | G79: =SUBTOTAL(9,G80:G84) -> 0
B80: =B78+0.01 -> 1.3 | E80: 0 | F80: 0 | G80: =E80*F80 -> 0 | H80: n/a | N80: 0 | O80: 0 | P80: 0 | Q80: 0 | R80: 0 | S80: 0 | T80: 0 | U80: 0 | V80: 0 | W80: =SUM(N80:V80) -> 0
B81: 1.31 | E81: 0 | F81: 0 | G81: =E81*F81 -> 0 | H81: n/a | N81: 0 | O81: 0 | P81: 0 | Q81: 0 | R81: 0 | S81: 0 | T81: 0 | U81: 0 | V81: 0 | W81: =SUM(N81:V81) -> 0
B82: 1.32 | E82: 0 | F82: 0 | G82: =E82*F82 -> 0 | H82: n/a | N82: 0 | O82: 0 | P82: 0 | Q82: 0 | R82: 0 | S82: 0 | T82: 0 | U82: 0 | V82: 0 | W82: =SUM(N82:V82) -> 0
B83: =B82+0.01 -> 1.33 | E83: 0 | F83: 0 | G83: =E83*F83 -> 0 | H83: n/a | N83: 0 | O83: 0 | P83: 0 | Q83: 0 | R83: 0 | S83: 0 | T83: 0 | U83: 0 | V83: 0 | W83: =SUM(N83:V83) -> 0
B84: 1.34 | E84: 0 | F84: 0 | G84: =E84*F84 -> 0 | N84: 0 | O84: 0 | P84: 0 | Q84: 0 | R84: 0 | S84: 0 | T84: 0 | U84: 0 | V84: 0 | W84: =SUM(N84:V84) -> 0
B85: =$B$13 -> None 1.4 | G85: =SUBTOTAL(9,G86:G90) -> 0
B86: =B84+0.01 -> 1.35 | E86: 0 | F86: 0 | G86: =E86*F86 -> 0 | H86: n/a | N86: 0 | O86: 0 | P86: 0 | Q86: 0 | R86: 0 | S86: 0 | T86: 0 | U86: 0 | V86: 0 | W86: =SUM(N86:V86) -> 0
B87: 1.36 | E87: 0 | F87: 0 | G87: =E87*F87 -> 0 | H87: n/a | N87: 0 | O87: 0 | P87: 0 | Q87: 0 | R87: 0 | S87: 0 | T87: 0 | U87: 0 | V87: 0 | W87: =SUM(N87:V87) -> 0
B88: 1.37 | E88: 0 | F88: 0 | G88: =E88*F88 -> 0 | H88: n/a | N88: 0 | O88: 0 | P88: 0 | Q88: 0 | R88: 0 | S88: 0 | T88: 0 | U88: 0 | V88: 0 | W88: =SUM(N88:V88) -> 0
B89: 1.38 | E89: 0 | F89: 0 | G89: =E89*F89 -> 0 | H89: n/a | N89: 0 | O89: 0 | P89: 0 | Q89: 0 | R89: 0 | S89: 0 | T89: 0 | U89: 0 | V89: 0 | W89: =SUM(N89:V89) -> 0
B90: =B89+0.01 -> 1.39 | E90: 0 | F90: 0 | G90: =E90*F90 -> 0 | N90: 0 | O90: 0 | P90: 0 | Q90: 0 | R90: 0 | S90: 0 | T90: 0 | U90: 0 | V90: 0 | W90: =SUM(N90:V90) -> 0
B92: ="Consultancy: " & $B$9 -> Consultancy: B2.1. Strengthening the web-based India-WRIS portal for WR information | F92: Cost per Unit (₹ lakhs) | G92: Total | N92: FY15 | O92: FY16 | P92: FY17 | Q92: FY18 | R92: FY19 | S92: FY20 | T92: FY21 | U92: FY22 | V92: FY23 | W92: Total
C93: Items | D93: Activity | E93: Number | G93: =SUBTOTAL(9,G95:G117) -> 10 | I93: Remarks | M93: Total Annual Outlay (₹ lakhs) | N93: =SUM($G95:$G117*N95:N117) -> 0 | O93: =SUM($G95:$G117*O95:O117) -> 0 | P93: =SUM($G95:$G117*P95:P117) -> 5 | Q93: =SUM($G95:$G117*Q95:Q117) -> 5 | R93: =SUM($G95:$G117*R95:R117) -> 0 | S93: =SUM($G95:$G117*S95:S117) -> 0 | T93: =SUM($G95:$G117*T95:T117) -> 0 | U93: =SUM($G95:$G117*U95:U117) -> 0 | V93: =SUM($G95:$G117*V95:V117) -> 0 | W93: =SUM(N93:V93) -> 10
B94: =$B$10 -> Strengthen and expand India-WRIS | G94: =SUBTOTAL(9,G95:G99) -> 0
B95: =B90+0.01 -> 1.4 | C95: Development of India-WRIS | D95: B2.1.1 | E95: 0 | F95: 0 | G95: =E95*F95 -> 0 | H95: Contract by CWC - National Water Informatics Centre | N95: 0 | O95: 0 | P95: 0 | Q95: 0 | R95: 0 | S95: 0 | T95: 0 | U95: 0 | V95: 0 | W95: =SUM(N95:V95) -> 0
B96: =B95+0.01 -> 1.41 | E96: 0 | F96: 0 | G96: =E96*F96 -> 0 | H96: n/a | N96: 0 | O96: 0 | P96: 0 | Q96: 0 | R96: 0 | S96: 0 | T96: 0 | U96: 0 | V96: 0 | W96: =SUM(N96:V96) -> 0
B97: =B96+0.01 -> 1.42 | E97: 0 | F97: 0 | G97: =E97*F97 -> 0 | H97: n/a | N97: 0 | O97: 0 | P97: 0 | Q97: 0 | R97: 0 | S97: 0 | T97: 0 | U97: 0 | V97: 0 | W97: =SUM(N97:V97) -> 0
B98: 1.43 | E98: 0 | F98: 0 | G98: =E98*F98 -> 0 | H98: n/a | N98: 0 | O98: 0 | P98: 0 | Q98: 0 | R98: 0 | S98: 0 | T98: 0 | U98: 0 | V98: 0 | W98: =SUM(N98:V98) -> 0
B99: 1.44 | E99: 0 | F99: 0 | G99: =E99*F99 -> 0 | N99: 0 | O99: 0 | P99: 0 | Q99: 0 | R99: 0 | S99: 0 | T99: 0 | U99: 0 | V99: 0 | W99: =SUM(N99:V99) -> 0
B100: =$B$11 -> Create State Chapters of India-WRIS | G100: =SUBTOTAL(9,G101:G105) -> 10
B101: =B99+0.01 -> 1.45 | C101: State specific developments | D101: B2.1.2 | E101: 1 | F101: 10 | G101: =E101*F101 -> 10 | H101: Centrally arranged by CWC | N101: 0 | O101: 0 | P101: 0.5 | Q101: 0.5 | R101: 0 | S101: 0 | T101: 0 | U101: 0 | V101: 0 | W101: =SUM(N101:V101) -> 1
B102: =B101+0.01 -> 1.46 | E102: 0 | F102: 0 | G102: =E102*F102 -> 0 | H102: n/a | N102: 0 | O102: 0 | P102: 0 | Q102: 0 | R102: 0 | S102: 0 | T102: 0 | U102: 0 | V102: 0 | W102: =SUM(N102:V102) -> 0
B103: 1.47 | E103: 0 | F103: 0 | G103: =E103*F103 -> 0 | H103: n/a | N103: 0 | O103: 0 | P103: 0 | Q103: 0 | R103: 0 | S103: 0 | T103: 0 | U103: 0 | V103: 0 | W103: =SUM(N103:V103) -> 0
B104: 1.48 | E104: 0 | F104: 0 | G104: =E104*F104 -> 0 | H104: n/a | N104: 0 | O104: 0 | P104: 0 | Q104: 0 | R104: 0 | S104: 0 | T104: 0 | U104: 0 | V104: 0 | W104: =SUM(N104:V104) -> 0
B105: 1.49 | E105: 0 | F105: 0 | G105: =E105*F105 -> 0 | N105: 0 | O105: 0 | P105: 0 | Q105: 0 | R105: 0 | S105: 0 | T105: 0 | U105: 0 | V105: 0 | W105: =SUM(N105:V105) -> 0
B106: =$B$12 -> None 1.3 | G106: =SUBTOTAL(9,G107:G111) -> 0
B107: =B105+0.01 -> 1.5 | E107: 0 | F107: 0 | G107: =E107*F107 -> 0 | H107: n/a | N107: 0 | O107: 0 | P107: 0 | Q107: 0 | R107: 0 | S107: 0 | T107: 0 | U107: 0 | V107: 0 | W107: =SUM(N107:V107) -> 0
B108: 1.51 | E108: 0 | F108: 0 | G108: =E108*F108 -> 0 | H108: n/a | N108: 0 | O108: 0 | P108: 0 | Q108: 0 | R108: 0 | S108: 0 | T108: 0 | U108: 0 | V108: 0 | W108: =SUM(N108:V108) -> 0
B109: 1.52 | E109: 0 | F109: 0 | G109: =E109*F109 -> 0 | H109: n/a | N109: 0 | O109: 0 | P109: 0 | Q109: 0 | R109: 0 | S109: 0 | T109: 0 | U109: 0 | V109: 0 | W109: =SUM(N109:V109) -> 0
B110: =B109+0.01 -> 1.53 | E110: 0 | F110: 0 | G110: =E110*F110 -> 0 | H110: n/a | N110: 0 | O110: 0 | P110: 0 | Q110: 0 | R110: 0 | S110: 0 | T110: 0 | U110: 0 | V110: 0 | W110: =SUM(N110:V110) -> 0
B111: 1.54 | E111: 0 | F111: 0 | G111: =E111*F111 -> 0 | N111: 0 | O111: 0 | P111: 0 | Q111: 0 | R111: 0 | S111: 0 | T111: 0 | U111: 0 | V111: 0 | W111: =SUM(N111:V111) -> 0
B112: =$B$13 -> None 1.4 | G112: =SUBTOTAL(9,G113:G117) -> 0
B113: =B111+0.01 -> 1.55 | E113: 0 | F113: 0 | G113: =E113*F113 -> 0 | H113: n/a | N113: 0 | O113: 0 | P113: 0 | Q113: 0 | R113: 0 | S113: 0 | T113: 0 | U113: 0 | V113: 0 | W113: =SUM(N113:V113) -> 0
B114: 1.56 | E114: 0 | F114: 0 | G114: =E114*F114 -> 0 | H114: n/a | N114: 0 | O114: 0 | P114: 0 | Q114: 0 | R114: 0 | S114: 0 | T114: 0 | U114: 0 | V114: 0 | W114: =SUM(N114:V114) -> 0
B115: 1.57 | E115: 0 | F115: 0 | G115: =E115*F115 -> 0 | H115: n/a | N115: 0 | O115: 0 | P115: 0 | Q115: 0 | R115: 0 | S115: 0 | T115: 0 | U115: 0 | V115: 0 | W115: =SUM(N115:V115) -> 0
B116: 1.58 | E116: 0 | F116: 0 | G116: =E116*F116 -> 0 | H116: n/a | N116: 0 | O116: 0 | P116: 0 | Q116: 0 | R116: 0 | S116: 0 | T116: 0 | U116: 0 | V116: 0 | W116: =SUM(N116:V116) -> 0
B117: =B116+0.01 -> 1.59 | E117: 0 | F117: 0 | G117: =E117*F117 -> 0 | N117: 0 | O117: 0 | P117: 0 | Q117: 0 | R117: 0 | S117: 0 | T117: 0 | U117: 0 | V117: 0 | W117: =SUM(N117:V117) -> 0
B119: ="Training/Meetings: " & $B$9 -> Training/Meetings: B2.1. Strengthening the web-based India-WRIS portal for WR information | F119: Cost per Unit (₹ lakhs) | G119: Total | N119: FY15 | O119: FY16 | P119: FY17 | Q119: FY18 | R119: FY19 | S119: FY20 | T119: FY21 | U119: FY22 | V119: FY23 | W119: Total
C120: Items | D120: Activity | E120: Number | G120: =SUBTOTAL(9,G122:G144) -> 5 | I120: Remarks | M120: Total Annual Outlay (₹ lakhs) | N120: =SUM($G122:$G144*N122:N144) -> 0 | O120: =SUM($G122:$G144*O122:O144) -> 0 | P120: =SUM($G122:$G144*P122:P144) -> 1.25 | Q120: =SUM($G122:$G144*Q122:Q144) -> 1.25 | R120: =SUM($G122:$G144*R122:R144) -> 1.25 | S120: =SUM($G122:$G144*S122:S144) -> 1.25 | T120: =SUM($G122:$G144*T122:T144) -> 0 | U120: =SUM($G122:$G144*U122:U144) -> 0 | V120: =SUM($G122:$G144*V122:V144) -> 0 | W120: =SUM(N120:V120) -> 5
B121: =$B$10 -> Strengthen and expand India-WRIS | G121: =SUBTOTAL(9,G122:G126) -> 0
B122: =B117+0.01 -> 1.6 | E122: 0 | F122: 0 | G122: =E122*F122 -> 0 | H122: n/a | N122: 0 | O122: 0 | P122: 0 | Q122: 0 | R122: 0 | S122: 0 | T122: 0 | U122: 0 | V122: 0 | W122: =SUM(N122:V122) -> 0
B123: =B122+0.01 -> 1.61 | E123: 0 | F123: 0 | G123: =E123*F123 -> 0 | H123: n/a | N123: 0 | O123: 0 | P123: 0 | Q123: 0 | R123: 0 | S123: 0 | T123: 0 | U123: 0 | V123: 0 | W123: =SUM(N123:V123) -> 0
B124: =B123+0.01 -> 1.62 | E124: 0 | F124: 0 | G124: =E124*F124 -> 0 | H124: n/a | N124: 0 | O124: 0 | P124: 0 | Q124: 0 | R124: 0 | S124: 0 | T124: 0 | U124: 0 | V124: 0 | W124: =SUM(N124:V124) -> 0
B125: 1.63 | E125: 0 | F125: 0 | G125: =E125*F125 -> 0 | H125: n/a | N125: 0 | O125: 0 | P125: 0 | Q125: 0 | R125: 0 | S125: 0 | T125: 0 | U125: 0 | V125: 0 | W125: =SUM(N125:V125) -> 0
B126: 1.64 | E126: 0 | F126: 0 | G126: =E126*F126 -> 0 | N126: 0 | O126: 0 | P126: 0 | Q126: 0 | R126: 0 | S126: 0 | T126: 0 | U126: 0 | V126: 0 | W126: =SUM(N126:V126) -> 0
B127: =$B$11 -> Create State Chapters of India-WRIS | G127: =SUBTOTAL(9,G128:G132) -> 5
B128: =B126+0.01 -> 1.65 | C128: Training courses for IAs | D128: B2.1.2 | E128: 1 | F128: 5 | G128: =E128*F128 -> 5 | H128: Putting India-WRIS to use in States through vendor training courses | N128: 0 | O128: 0 | P128: 0.25 | Q128: 0.25 | R128: 0.25 | S128: 0.25 | T128: 0 | U128: 0 | V128: 0 | W128: =SUM(N128:V128) -> 1
B129: =B128+0.01 -> 1.66 | E129: 0 | F129: 0 | G129: =E129*F129 -> 0 | H129: n/a | N129: 0 | O129: 0 | P129: 0 | Q129: 0 | R129: 0 | S129: 0 | T129: 0 | U129: 0 | V129: 0 | W129: =SUM(N129:V129) -> 0
B130: 1.67 | E130: 0 | F130: 0 | G130: =E130*F130 -> 0 | H130: n/a | N130: 0 | O130: 0 | P130: 0 | Q130: 0 | R130: 0 | S130: 0 | T130: 0 | U130: 0 | V130: 0 | W130: =SUM(N130:V130) -> 0
B131: 1.68 | E131: 0 | F131: 0 | G131: =E131*F131 -> 0 | H131: n/a | N131: 0 | O131: 0 | P131: 0 | Q131: 0 | R131: 0 | S131: 0 | T131: 0 | U131: 0 | V131: 0 | W131: =SUM(N131:V131) -> 0
B132: 1.69 | E132: 0 | F132: 0 | G132: =E132*F132 -> 0 | N132: 0 | O132: 0 | P132: 0 | Q132: 0 | R132: 0 | S132: 0 | T132: 0 | U132: 0 | V132: 0 | W132: =SUM(N132:V132) -> 0
B133: =$B$12 -> None 1.3 | G133: =SUBTOTAL(9,G134:G138) -> 0
B134: =B132+0.01 -> 1.7 | E134: 0 | F134: 0 | G134: =E134*F134 -> 0 | H134: n/a | N134: 0 | O134: 0 | P134: 0 | Q134: 0 | R134: 0 | S134: 0 | T134: 0 | U134: 0 | V134: 0 | W134: =SUM(N134:V134) -> 0
B135: 1.71 | E135: 0 | F135: 0 | G135: =E135*F135 -> 0 | H135: n/a | N135: 0 | O135: 0 | P135: 0 | Q135: 0 | R135: 0 | S135: 0 | T135: 0 | U135: 0 | V135: 0 | W135: =SUM(N135:V135) -> 0
B136: 1.72 | E136: 0 | F136: 0 | G136: =E136*F136 -> 0 | H136: n/a | N136: 0 | O136: 0 | P136: 0 | Q136: 0 | R136: 0 | S136: 0 | T136: 0 | U136: 0 | V136: 0 | W136: =SUM(N136:V136) -> 0
B137: =B136+0.01 -> 1.73 | E137: 0 | F137: 0 | G137: =E137*F137 -> 0 | H137: n/a | N137: 0 | O137: 0 | P137: 0 | Q137: 0 | R137: 0 | S137: 0 | T137: 0 | U137: 0 | V137: 0 | W137: =SUM(N137:V137) -> 0
B138: 1.74 | E138: 0 | F138: 0 | G138: =E138*F138 -> 0 | N138: 0 | O138: 0 | P138: 0 | Q138: 0 | R138: 0 | S138: 0 | T138: 0 | U138: 0 | V138: 0 | W138: =SUM(N138:V138) -> 0
B139: =$B$13 -> None 1.4 | G139: =SUBTOTAL(9,G140:G144) -> 0
B140: =B138+0.01 -> 1.75 | E140: 0 | F140: 0 | G140: =E140*F140 -> 0 | H140: n/a | N140: 0 | O140: 0 | P140: 0 | Q140: 0 | R140: 0 | S140: 0 | T140: 0 | U140: 0 | V140: 0 | W140: =SUM(N140:V140) -> 0
B141: 1.76 | E141: 0 | F141: 0 | G141: =E141*F141 -> 0 | H141: n/a | N141: 0 | O141: 0 | P141: 0 | Q141: 0 | R141: 0 | S141: 0 | T141: 0 | U141: 0 | V141: 0 | W141: =SUM(N141:V141) -> 0
B142: 1.77 | E142: 0 | F142: 0 | G142: =E142*F142 -> 0 | H142: n/a | N142: 0 | O142: 0 | P142: 0 | Q142: 0 | R142: 0 | S142: 0 | T142: 0 | U142: 0 | V142: 0 | W142: =SUM(N142:V142) -> 0
B143: 1.78 | E143: 0 | F143: 0 | G143: =E143*F143 -> 0 | H143: n/a | N143: 0 | O143: 0 | P143: 0 | Q143: 0 | R143: 0 | S143: 0 | T143: 0 | U143: 0 | V143: 0 | W143: =SUM(N143:V143) -> 0
B144: =B143+0.01 -> 1.79 | E144: 0 | F144: 0 | G144: =E144*F144 -> 0 | N144: 0 | O144: 0 | P144: 0 | Q144: 0 | R144: 0 | S144: 0 | T144: 0 | U144: 0 | V144: 0 | W144: =SUM(N144:V144) -> 0
B146: ="Operational Costs: " & $B$9 -> Operational Costs: B2.1. Strengthening the web-based India-WRIS portal for WR information | F146: Cost per Unit (₹ lakhs) | G146: Total | N146: FY15 | O146: FY16 | P146: FY17 | Q146: FY18 | R146: FY19 | S146: FY20 | T146: FY21 | U146: FY22 | V146: FY23 | W146: Total
C147: Items | D147: Activity | E147: Number | G147: =SUBTOTAL(9,G149:G171) -> 0 | I147: Remarks | M147: Total Annual Outlay (₹ lakhs) | N147: =SUM($G149:$G171*N149:N171) -> 0 | O147: =SUM($G149:$G171*O149:O171) -> 0 | P147: =SUM($G149:$G171*P149:P171) -> 0 | Q147: =SUM($G149:$G171*Q149:Q171) -> 0 | R147: =SUM($G149:$G171*R149:R171) -> 0 | S147: =SUM($G149:$G171*S149:S171) -> 0 | T147: =SUM($G149:$G171*T149:T171) -> 0 | U147: =SUM($G149:$G171*U149:U171) -> 0 | V147: =SUM($G149:$G171*V149:V171) -> 0 | W147: =SUM(N147:V147) -> 0
B148: =$B$10 -> Strengthen and expand India-WRIS | G148: =SUBTOTAL(9,G149:G153) -> 0
B149: =B144+0.01 -> 1.8 | C149: Annual Maintenance (AMC) | D149: B2.1.1 | E149: 0 | F149: 0 | G149: =E149*F149 -> 0 | H149: Central AMC through CWC | N149: 0 | O149: 0 | P149: 0 | Q149: 0 | R149: 0 | S149: 0 | T149: 0 | U149: 0 | V149: 0 | W149: =SUM(N149:V149) -> 0
B150: =B149+0.01 -> 1.81 | E150: 0 | F150: 0 | G150: =E150*F150 -> 0 | H150: n/a | N150: 0 | O150: 0 | P150: 0 | Q150: 0 | R150: 0 | S150: 0 | T150: 0 | U150: 0 | V150: 0 | W150: =SUM(N150:V150) -> 0
B151: =B150+0.01 -> 1.82 | E151: 0 | F151: 0 | G151: =E151*F151 -> 0 | H151: n/a | N151: 0 | O151: 0 | P151: 0 | Q151: 0 | R151: 0 | S151: 0 | T151: 0 | U151: 0 | V151: 0 | W151: =SUM(N151:V151) -> 0
B152: 1.83 | E152: 0 | F152: 0 | G152: =E152*F152 -> 0 | H152: n/a | N152: 0 | O152: 0 | P152: 0 | Q152: 0 | R152: 0 | S152: 0 | T152: 0 | U152: 0 | V152: 0 | W152: =SUM(N152:V152) -> 0
B153: 1.84 | E153: 0 | F153: 0 | G153: =E153*F153 -> 0 | N153: 0 | O153: 0 | P153: 0 | Q153: 0 | R153: 0 | S153: 0 | T153: 0 | U153: 0 | V153: 0 | W153: =SUM(N153:V153) -> 0
B154: =$B$11 -> Create State Chapters of India-WRIS | G154: =SUBTOTAL(9,G155:G159) -> 0
B155: =B153+0.01 -> 1.85 | C155: AMC computers | D155: B2.1.2 | E155: 0 | F155: 0 | G155: =E155*F155 -> 0 | H155: n/a | N155: 0 | O155: 0 | P155: 0 | Q155: 0 | R155: 0 | S155: 0 | T155: 0 | U155: 0 | V155: 0 | W155: =SUM(N155:V155) -> 0
B156: =B155+0.01 -> 1.86 | E156: 0 | F156: 0 | G156: =E156*F156 -> 0 | H156: n/a | N156: 0 | O156: 0 | P156: 0 | Q156: 0 | R156: 0 | S156: 0 | T156: 0 | U156: 0 | V156: 0 | W156: =SUM(N156:V156) -> 0
B157: 1.87 | E157: 0 | F157: 0 | G157: =E157*F157 -> 0 | H157: n/a | N157: 0 | O157: 0 | P157: 0 | Q157: 0 | R157: 0 | S157: 0 | T157: 0 | U157: 0 | V157: 0 | W157: =SUM(N157:V157) -> 0
B158: 1.88 | E158: 0 | F158: 0 | G158: =E158*F158 -> 0 | H158: n/a | N158: 0 | O158: 0 | P158: 0 | Q158: 0 | R158: 0 | S158: 0 | T158: 0 | U158: 0 | V158: 0 | W158: =SUM(N158:V158) -> 0
B159: 1.89 | E159: 0 | F159: 0 | G159: =E159*F159 -> 0 | N159: 0 | O159: 0 | P159: 0 | Q159: 0 | R159: 0 | S159: 0 | T159: 0 | U159: 0 | V159: 0 | W159: =SUM(N159:V159) -> 0
B160: =$B$12 -> None 1.3 | G160: =SUBTOTAL(9,G161:G165) -> 0
B161: =B159+0.01 -> 1.9 | E161: 0 | F161: 0 | G161: =E161*F161 -> 0 | H161: n/a | N161: 0 | O161: 0 | P161: 0 | Q161: 0 | R161: 0 | S161: 0 | T161: 0 | U161: 0 | V161: 0 | W161: =SUM(N161:V161) -> 0
B162: 1.91 | E162: 0 | F162: 0 | G162: =E162*F162 -> 0 | H162: n/a | N162: 0 | O162: 0 | P162: 0 | Q162: 0 | R162: 0 | S162: 0 | T162: 0 | U162: 0 | V162: 0 | W162: =SUM(N162:V162) -> 0
B163: 1.92 | E163: 0 | F163: 0 | G163: =E163*F163 -> 0 | H163: n/a | N163: 0 | O163: 0 | P163: 0 | Q163: 0 | R163: 0 | S163: 0 | T163: 0 | U163: 0 | V163: 0 | W163: =SUM(N163:V163) -> 0
B164: =B163+0.01 -> 1.93 | E164: 0 | F164: 0 | G164: =E164*F164 -> 0 | H164: n/a | N164: 0 | O164: 0 | P164: 0 | Q164: 0 | R164: 0 | S164: 0 | T164: 0 | U164: 0 | V164: 0 | W164: =SUM(N164:V164) -> 0
B165: 1.94 | E165: 0 | F165: 0 | G165: =E165*F165 -> 0 | N165: 0 | O165: 0 | P165: 0 | Q165: 0 | R165: 0 | S165: 0 | T165: 0 | U165: 0 | V165: 0 | W165: =SUM(N165:V165) -> 0
B166: =$B$13 -> None 1.4 | G166: =SUBTOTAL(9,G167:G171) -> 0
B167: =B165+0.01 -> 1.95 | E167: 0 | F167: 0 | G167: =E167*F167 -> 0 | H167: n/a | N167: 0 | O167: 0 | P167: 0 | Q167: 0 | R167: 0 | S167: 0 | T167: 0 | U167: 0 | V167: 0 | W167: =SUM(N167:V167) -> 0
B168: 1.96 | E168: 0 | F168: 0 | G168: =E168*F168 -> 0 | H168: n/a | N168: 0 | O168: 0 | P168: 0 | Q168: 0 | R168: 0 | S168: 0 | T168: 0 | U168: 0 | V168: 0 | W168: =SUM(N168:V168) -> 0
B169: 1.97 | E169: 0 | F169: 0 | G169: =E169*F169 -> 0 | H169: n/a | N169: 0 | O169: 0 | P169: 0 | Q169: 0 | R169: 0 | S169: 0 | T169: 0 | U169: 0 | V169: 0 | W169: =SUM(N169:V169) -> 0
B170: 1.98 | E170: 0 | F170: 0 | G170: =E170*F170 -> 0 | H170: n/a | N170: 0 | O170: 0 | P170: 0 | Q170: 0 | R170: 0 | S170: 0 | T170: 0 | U170: 0 | V170: 0 | W170: =SUM(N170:V170) -> 0
B171: =B170+0.01 -> 1.99 | E171: 0 | F171: 0 | G171: =E171*F171 -> 0 | N171: 0 | O171: 0 | P171: 0 | Q171: 0 | R171: 0 | S171: 0 | T171: 0 | U171: 0 | V171: 0 | W171: =SUM(N171:V171) -> 0
B173: =B14 -> B2.2. Development of a country-wide and web-based hydrological modelling system
B174: ="Goods: " & $B$14 -> Goods: B2.2. Development of a country-wide and web-based hydrological modelling system | F174: Cost per Unit (₹ lakhs) | G174: Total | H174: Telemetry Type | N174: FY15 | O174: FY16 | P174: FY17 | Q174: FY18 | R174: FY19 | S174: FY20 | T174: FY21 | U174: FY22 | V174: FY23 | W174: Total
C175: Items | D175: Activity | E175: Number | G175: =SUBTOTAL(9,G177:G199) -> 0 | H175: Telemetry Type | I175: Remarks | M175: Total Annual Outlay (₹ lakhs) | N175: =SUM($G177:$G199*N177:N199) -> 0 | O175: =SUM($G177:$G199*O177:O199) -> 0 | P175: =SUM($G177:$G199*P177:P199) -> 0 | Q175: =SUM($G177:$G199*Q177:Q199) -> 0 | R175: =SUM($G177:$G199*R177:R199) -> 0 | S175: =SUM($G177:$G199*S177:S199) -> 0 | T175: =SUM($G177:$G199*T177:T199) -> 0 | U175: =SUM($G177:$G199*U177:U199) -> 0 | V175: =SUM($G177:$G199*V177:V199) -> 0 | W175: =SUM(N175:V175) -> 0
B176: =$B$15 -> Web-based hydrological model for India | G176: =SUBTOTAL(9,G177:G181) -> 0
B177: 2 | C177: Server | D177: B2.2.1 | E177: 0 | F177: 0 | G177: =E177*F177 -> 0 | H177: n/a | N177: 0 | O177: 0 | P177: 0 | Q177: 0 | R177: 0 | S177: 0 | T177: 0 | U177: 0 | V177: 0 | W177: =SUM(N177:V177) -> 0
B178: =B177+0.01 -> 2.01 | C178: Computers | D178: B2.2.1 | E178: 0 | F178: 0 | G178: =E178*F178 -> 0 | H178: n/a | N178: 0 | O178: 0 | P178: 0 | Q178: 0 | R178: 0 | S178: 0 | T178: 0 | U178: 0 | V178: 0 | W178: =SUM(N178:V178) -> 0
B179: =B178+0.01 -> 2.02 | C179: S/w licenses | D179: B2.2.1 | E179: 0 | F179: 0 | G179: =E179*F179 -> 0 | H179: n/a | N179: 0 | O179: 0 | P179: 0 | Q179: 0 | R179: 0 | S179: 0 | T179: 0 | U179: 0 | V179: 0 | W179: =SUM(N179:V179) -> 0
B180: 2.03 | E180: 0 | F180: 0 | G180: =E180*F180 -> 0 | H180: n/a | N180: 0 | O180: 0 | P180: 0 | Q180: 0 | R180: 0 | S180: 0 | T180: 0 | U180: 0 | V180: 0 | W180: =SUM(N180:V180) -> 0
B181: 2.04 | E181: 0 | F181: 0 | G181: =E181*F181 -> 0 | H181: n/a | N181: 0 | O181: 0 | P181: 0 | Q181: 0 | R181: 0 | S181: 0 | T181: 0 | U181: 0 | V181: 0 | W181: =SUM(N181:V181) -> 0
B182: =$B$16 -> None 2.1 | G182: =SUBTOTAL(9,G183:G187) -> 0
B183: =B181+0.01 -> 2.05 | E183: 0 | F183: 0 | G183: =E183*F183 -> 0 | H183: n/a | N183: 0 | O183: 0 | P183: 0 | Q183: 0 | R183: 0 | S183: 0 | T183: 0 | U183: 0 | V183: 0 | W183: =SUM(N183:V183) -> 0
B184: =B183+0.01 -> 2.06 | E184: 0 | F184: 0 | G184: =E184*F184 -> 0 | H184: n/a | N184: 0 | O184: 0 | P184: 0 | Q184: 0 | R184: 0 | S184: 0 | T184: 0 | U184: 0 | V184: 0 | W184: =SUM(N184:V184) -> 0
B185: 2.07 | E185: 0 | F185: 0 | G185: =E185*F185 -> 0 | H185: n/a | N185: 0 | O185: 0 | P185: 0 | Q185: 0 | R185: 0 | S185: 0 | T185: 0 | U185: 0 | V185: 0 | W185: =SUM(N185:V185) -> 0
B186: 2.08 | E186: 0 | F186: 0 | G186: =E186*F186 -> 0 | H186: n/a | N186: 0 | O186: 0 | P186: 0 | Q186: 0 | R186: 0 | S186: 0 | T186: 0 | U186: 0 | V186: 0 | W186: =SUM(N186:V186) -> 0
B187: 2.09 | E187: 0 | F187: 0 | G187: =E187*F187 -> 0 | H187: n/a | N187: 0 | O187: 0 | P187: 0 | Q187: 0 | R187: 0 | S187: 0 | T187: 0 | U187: 0 | V187: 0 | W187: =SUM(N187:V187) -> 0
B188: =$B$17 -> None 2.3 | G188: =SUBTOTAL(9,G189:G193) -> 0
B189: =B187+0.01 -> 2.1 | E189: 0 | F189: 0 | G189: =E189*F189 -> 0 | H189: n/a | N189: 0 | O189: 0 | P189: 0 | Q189: 0 | R189: 0 | S189: 0 | T189: 0 | U189: 0 | V189: 0 | W189: =SUM(N189:V189) -> 0
B190: 2.11 | E190: 0 | F190: 0 | G190: =E190*F190 -> 0 | H190: n/a | N190: 0 | O190: 0 | P190: 0 | Q190: 0 | R190: 0 | S190: 0 | T190: 0 | U190: 0 | V190: 0 | W190: =SUM(N190:V190) -> 0
B191: 2.12 | E191: 0 | F191: 0 | G191: =E191*F191 -> 0 | H191: n/a | N191: 0 | O191: 0 | P191: 0 | Q191: 0 | R191: 0 | S191: 0 | T191: 0 | U191: 0 | V191: 0 | W191: =SUM(N191:V191) -> 0
B192: =B191+0.01 -> 2.13 | E192: 0 | F192: 0 | G192: =E192*F192 -> 0 | H192: n/a | N192: 0 | O192: 0 | P192: 0 | Q192: 0 | R192: 0 | S192: 0 | T192: 0 | U192: 0 | V192: 0 | W192: =SUM(N192:V192) -> 0
B193: 2.14 | E193: 0 | F193: 0 | G193: =E193*F193 -> 0 | H193: n/a | N193: 0 | O193: 0 | P193: 0 | Q193: 0 | R193: 0 | S193: 0 | T193: 0 | U193: 0 | V193: 0 | W193: =SUM(N193:V193) -> 0
B194: =$B$18 -> None 2.4 | G194: =SUBTOTAL(9,G195:G199) -> 0
B195: =B193+0.01 -> 2.15 | E195: 0 | F195: 0 | G195: =E195*F195 -> 0 | H195: n/a | N195: 0 | O195: 0 | P195: 0 | Q195: 0 | R195: 0 | S195: 0 | T195: 0 | U195: 0 | V195: 0 | W195: =SUM(N195:V195) -> 0
B196: 2.16 | E196: 0 | F196: 0 | G196: =E196*F196 -> 0 | H196: n/a | N196: 0 | O196: 0 | P196: 0 | Q196: 0 | R196: 0 | S196: 0 | T196: 0 | U196: 0 | V196: 0 | W196: =SUM(N196:V196) -> 0
B197: 2.17 | E197: 0 | F197: 0 | G197: =E197*F197 -> 0 | H197: n/a | N197: 0 | O197: 0 | P197: 0 | Q197: 0 | R197: 0 | S197: 0 | T197: 0 | U197: 0 | V197: 0 | W197: =SUM(N197:V197) -> 0
B198: 2.18 | E198: 0 | F198: 0 | G198: =E198*F198 -> 0 | H198: n/a | N198: 0 | O198: 0 | P198: 0 | Q198: 0 | R198: 0 | S198: 0 | T198: 0 | U198: 0 | V198: 0 | W198: =SUM(N198:V198) -> 0
B199: =B198+0.01 -> 2.19 | E199: 0 | F199: 0 | G199: =E199*F199 -> 0 | H199: n/a | N199: 0 | O199: 0 | P199: 0 | Q199: 0 | R199: 0 | S199: 0 | T199: 0 | U199: 0 | V199: 0 | W199: =SUM(N199:V199) -> 0
B201: ="Civil Works: " & $B$14 -> Civil Works: B2.2. Development of a country-wide and web-based hydrological modelling system | F201: Cost per Unit (₹ lakhs) | G201: Total | N201: FY15 | O201: FY16 | P201: FY17 | Q201: FY18 | R201: FY19 | S201: FY20 | T201: FY21 | U201: FY22 | V201: FY23 | W201: Total
C202: Items | D202: Activity | E202: Number | G202: =SUBTOTAL(9,G204:G226) -> 0 | I202: Remarks | M202: Total Annual Outlay (₹ lakhs) | N202: =SUM($G204:$G226*N204:N226) -> 0 | O202: =SUM($G204:$G226*O204:O226) -> 0 | P202: =SUM($G204:$G226*P204:P226) -> 0 | Q202: =SUM($G204:$G226*Q204:Q226) -> 0 | R202: =SUM($G204:$G226*R204:R226) -> 0 | S202: =SUM($G204:$G226*S204:S226) -> 0 | T202: =SUM($G204:$G226*T204:T226) -> 0 | U202: =SUM($G204:$G226*U204:U226) -> 0 | V202: =SUM($G204:$G226*V204:V226) -> 0 | W202: =SUM(N202:V202) -> 0
B203: =$B$15 -> Web-based hydrological model for India | G203: =SUBTOTAL(9,G204:G208) -> 0
B204: =B199+0.01 -> 2.2 | E204: 0 | F204: 0 | G204: =E204*F204 -> 0 | H204: n/a | N204: 0 | O204: 0 | P204: 0 | Q204: 0 | R204: 0 | S204: 0 | T204: 0 | U204: 0 | V204: 0 | W204: =SUM(N204:V204) -> 0
B205: =B204+0.01 -> 2.21 | E205: 0 | F205: 0 | G205: =E205*F205 -> 0 | H205: n/a | N205: 0 | O205: 0 | P205: 0 | Q205: 0 | R205: 0 | S205: 0 | T205: 0 | U205: 0 | V205: 0 | W205: =SUM(N205:V205) -> 0
B206: =B205+0.01 -> 2.22 | E206: 0 | F206: 0 | G206: =E206*F206 -> 0 | H206: n/a | N206: 0 | O206: 0 | P206: 0 | Q206: 0 | R206: 0 | S206: 0 | T206: 0 | U206: 0 | V206: 0 | W206: =SUM(N206:V206) -> 0
B207: 2.23 | E207: 0 | F207: 0 | G207: =E207*F207 -> 0 | H207: n/a | N207: 0 | O207: 0 | P207: 0 | Q207: 0 | R207: 0 | S207: 0 | T207: 0 | U207: 0 | V207: 0 | W207: =SUM(N207:V207) -> 0
... 359 more rows

Sheet B3
A1: Cost Estimate for HP-III
B2: Component | C2: B: Improving Water Resources Information Systems (WRIS)
B3: Sub-Component | C3: B3: Provide public-domain information services
B4: Prefix | C4: B3
C5: Go to Abstract | E5: Go to Legend
B6: Cost Summary | E6: Total cost | F6: Procurement Categories (₹ lakhs) | K6: Remarks/ description
B7: Decription | D7: No. | E7: ₹ lakhs | F7: Goods | G7: Civil Works | H7: Consultant Services | I7: Training/ Meetings | J7: Operation Costs
B8: Subcomponents and Activities | E8: =SUM(F8:J8) -> 33 | F8: =SUBTOTAL(9,F9:F28) -> 8 | G8: =SUBTOTAL(9,G9:G28) -> 0 | H8: =SUBTOTAL(9,H9:H28) -> 15 | I8: =SUBTOTAL(9,I9:I28) -> 10 | J8: =SUBTOTAL(9,J9:J28) -> 0
B9: B3.1: Public-Domain Services | E9: =SUM(F9:J9) -> 33 | F9: =SUBTOTAL(9,F10:F13) -> 8 | G9: =SUBTOTAL(9,G10:G13) -> 0 | H9: =SUBTOTAL(9,H10:H13) -> 15 | I9: =SUBTOTAL(9,I10:I13) -> 10 | J9: =SUBTOTAL(9,J10:J13) -> 0
B10: 1.1 Web-portal for public-domain info services | D10: =$C$4 & ".1.1" -> B3.1.1 | E10: 23 | F10: =G40 -> 8 | G10: =G67 -> 0 | H10: =G94 -> 10 | I10: =G119 -> 5 | J10: =G146 -> 0
B11: 1.2 Knowledge portals and mobile Apps | D11: =$C$4 & ".1.2" -> B3.1.2 | E11: 0 | F11: =G46 -> 0 | G11: =G73 -> 0 | H11: =G99 -> 0 | I11: =G125 -> 0 | J11: =G151 -> 0
B12: 1.3 Create on-line library of relevant documents | D12: =$C$4 & ".1.3" -> B3.1.3 | E12: 10 | F12: =G52 -> 0 | G12: =G79 -> 0 | H12: =G104 -> 5 | I12: =G131 -> 5 | J12: =G156 -> 0
B13: None 1.4 | D13: =$C$4 & ".1.4" -> B3.1.4 | E13: 0 | F13: =G58 -> 0 | G13: =G85 -> 0 | H13: =G110 -> 0 | I13: =G137 -> 0 | J13: =G162 -> 0
B14: Extra | E14: 0 | F14: =SUBTOTAL(9,F15:F18) -> 0 | G14: =SUBTOTAL(9,G15:G18) -> 0 | H14: =SUBTOTAL(9,H15:H18) -> 0 | I14: =SUBTOTAL(9,I15:I18) -> 0 | J14: =SUBTOTAL(9,J15:J18) -> 0
B15: None 2.1 | D15: =$C$4 & ".2.1" -> B3.2.1 | E15: 0 | F15: =G172 -> 0 | G15: =G199 -> 0 | H15: =G226 -> 0 | I15: =G253 -> 0 | J15: =G280 -> 0
B16: None 2.2 | D16: =$C$4 & ".2.2" -> B3.2.2 | E16: 0 | F16: =G178 -> 0 | G16: =G205 -> 0 | H16: =G232 -> 0 | I16: =G259 -> 0 | J16: =G286 -> 0
B17: None 2.3 | D17: =$C$4 & ".2.3" -> B3.2.3 | E17: 0 | F17: =G184 -> 0 | G17: =G211 -> 0 | H17: =G238 -> 0 | I17: =G265 -> 0 | J17: =G292 -> 0
B18: None 2.4 | D18: =$C$4 & ".2.4" -> B3.2.4 | E18: 0 | F18: =G190 -> 0 | G18: =G217 -> 0 | H18: =G244 -> 0 | I18: =G271 -> 0 | J18: =G298 -> 0
B19: Extra | E19: =SUM(F19:J19) -> 0 | F19: =SUBTOTAL(9,F20:F23) -> 0 | G19: =SUBTOTAL(9,G20:G23) -> 0 | H19: =SUBTOTAL(9,H20:H23) -> 0 | I19: =SUBTOTAL(9,I20:I23) -> 0 | J19: =SUBTOTAL(9,J20:J23) -> 0
B20: None 3.1 | D20: =$C$4 & ".3.1" -> B3.3.1 | E20: 0 | F20: =G308 -> 0 | G20: =G335 -> 0 | H20: =G362 -> 0 | I20: =G389 -> 0 | J20: =G416 -> 0
B21: None 3.2 | D21: =$C$4 & ".3.2" -> B3.3.2 | E21: 0 | F21: =G314 -> 0 | G21: =G341 -> 0 | H21: =G368 -> 0 | I21: =G395 -> 0 | J21: =G422 -> 0
B22: None 3.3 | D22: =$C$4 & ".3.3" -> B3.3.3 | E22: 0 | F22: =G320 -> 0 | G22: =G347 -> 0 | H22: =G374 -> 0 | I22: =G401 -> 0 | J22: =G428 -> 0
B23: None 3.4 | D23: =$C$4 & ".3.4" -> B3.3.4 | E23: 0 | F23: =G326 -> 0 | G23: =G353 -> 0 | H23: =G380 -> 0 | I23: =G407 -> 0 | J23: =G434 -> 0
B24: Extra | E24: =SUM(F24:J24) -> 0 | F24: =SUBTOTAL(9,F25:F28) -> 0 | G24: =SUBTOTAL(9,G25:G28) -> 0 | H24: =SUBTOTAL(9,H25:H28) -> 0 | I24: =SUBTOTAL(9,I25:I28) -> 0 | J24: =SUBTOTAL(9,J25:J28) -> 0
B25: None 4.1 | D25: =$C$4 & ".4.1" -> B3.4.1 | E25: 0 | F25: =G444 -> 0 | G25: =G471 -> 0 | H25: =G498 -> 0 | I25: =G525 -> 0 | J25: =G552 -> 0
B26: None 4.2 | D26: =$C$4 & ".4.2" -> B3.4.2 | E26: 0 | F26: =G450 -> 0 | G26: =G477 -> 0 | H26: =G504 -> 0 | I26: =G531 -> 0 | J26: =G558 -> 0
B27: None 4.3 | D27: =$C$4 & ".4.3" -> B3.4.3 | E27: 0 | F27: =G456 -> 0 | G27: =G483 -> 0 | H27: =G510 -> 0 | I27: =G537 -> 0 | J27: =G564 -> 0
B28: None 4.4 | D28: =$C$4 & ".4.4" -> B3.4.4 | E28: 0 | F28: =G462 -> 0 | G28: =G489 -> 0 | H28: =G516 -> 0 | I28: =G543 -> 0 | J28: =G570 -> 0
C29: Financial Year | D29: FY 15 | E29: FY 16 | F29: FY 17 | G29: FY 18 | H29: FY 19 | I29: FY 20 | J29: FY 21 | K29: FY 22 | L29: FY 23
C30: Cost Outlay | D30: =SUM(D31:D34) -> 0 | E30: =SUM(E31:E34) -> 0 | F30: 5.142857143 | G30: 9.642857143 | H30: 4.892857143 | I30: 7.392857143 | J30: 1.142857143 | K30: 3.642857143 | L30: 1.142857143
C31: =$C$4 & ".1" -> B3.1 | D31: =N39+N66+N93+N118+N145 -> 0 | E31: 0 | F31: 5.142857143 | G31: 9.642857143 | H31: 4.892857143 | I31: 7.392857143 | J31: 1.142857143 | K31: 3.642857143 | L31: 1.142857143
C32: =$C$4 & ".2" -> B3.2 | D32: =N171+N198+N225+N252+N279 -> 0 | E32: =O171+O198+O225+O252+O279 -> 0 | F32: 0 | G32: 0 | H32: 0 | I32: 0 | J32: 0 | K32: 0 | L32: 0
C33: =$C$4 & ".3" -> B3.3 | D33: =N307+N334+N361+N388+N415 -> 0 | E33: =O307+O334+O361+O388+O415 -> 0 | F33: 0 | G33: 0 | H33: 0 | I33: 0 | J33: 0 | K33: 0 | L33: 0
C34: =$C$4 & ".4" -> B3.4 | D34: =N443+N470+N497+N524+N551 -> 0 | E34: =O443+O470+O497+O524+O551 -> 0 | F34: 0 | G34: 0 | H34: 0 | I34: 0 | J34: 0 | K34: 0 | L34: 0
B36: Worksheets
B37: =B9 -> B3.1: Public-Domain Services
B38: ="Goods: " & $B$9 -> Goods: B3.1: Public-Domain Services | F38: Cost per Unit (₹ lakhs) | G38: Total | H38: Telemetry Type | N38: FY15 | O38: FY16 | P38: FY17 | Q38: FY18 | R38: FY19 | S38: FY20 | T38: FY21 | U38: FY22 | V38: FY23 | W38: Total
C39: Items | D39: Activity | E39: Number | G39: =SUBTOTAL(9,G41:G63) -> 8 | H39: Telemetry Type | I39: Remarks | M39: Total Annual Outlay (₹ lakhs) | N39: =SUM($G41:$G63*N41:N63) -> 0 | O39: =SUM($G41:$G63*O41:O63) -> 0 | P39: =SUM($G41:$G63*P41:P63) -> 1.142857143 | Q39: =SUM($G41:$G63*Q41:Q63) -> 1.142857143 | R39: =SUM($G41:$G63*R41:R63) -> 1.142857143 | S39: =SUM($G41:$G63*S41:S63) -> 1.142857143 | T39: =SUM($G41:$G63*T41:T63) -> 1.142857143 | U39: =SUM($G41:$G63*U41:U63) -> 1.142857143 | V39: =SUM($G41:$G63*V41:V63) -> 1.142857143 | W39: =SUM(N39:V39) -> 8
B40: =$B$10 -> 1.1 Web-portal for public-domain info services | G40: =SUBTOTAL(9,G41:G45) -> 8
B41: 1 | C41: Domain registration etc | D41: B3.1.1 | E41: 8 | F41: 1 | G41: =E41*F41 -> 8 | H41: n/a | N41: 0 | O41: 0 | P41: =1/7 -> 0.1428571429 | Q41: =1/7 -> 0.1428571429 | R41: 0.1428571429 | S41: 0.1428571429 | T41: 0.1428571429 | U41: 0.1428571429 | V41: 0.1428571429 | W41: =SUM(N41:V41) -> 1
B42: =B41+0.01 -> 1.01 | E42: 0 | F42: 0 | G42: 0 | H42: n/a | N42: 0 | O42: 0 | P42: 0 | Q42: 0 | R42: 0 | S42: 0 | T42: 0 | U42: 0 | V42: 0 | W42: =SUM(N42:V42) -> 0
B43: =B42+0.01 -> 1.02 | E43: 0 | F43: 0 | G43: 0 | H43: n/a | N43: 0 | O43: 0 | P43: 0 | Q43: 0 | R43: 0 | S43: 0 | T43: 0 | U43: 0 | V43: 0 | W43: 0
B44: 1.03 | E44: 0 | F44: 0 | G44: 0 | H44: n/a | N44: 0 | O44: 0 | P44: 0 | Q44: 0 | R44: 0 | S44: 0 | T44: 0 | U44: 0 | V44: 0 | W44: 0
B45: 1.04 | E45: 0 | F45: 0 | G45: 0 | H45: n/a | N45: 0 | O45: 0 | P45: 0 | Q45: 0 | R45: 0 | S45: 0 | T45: 0 | U45: 0 | V45: 0 | W45: 0
B46: =$B$11 -> 1.2 Knowledge portals and mobile Apps | G46: =SUBTOTAL(9,G47:G51) -> 0
B47: =B45+0.01 -> 1.05 | C47: Equipments | D47: B3.1.2 | E47: 0 | F47: 15 | G47: =E47*F47 -> 0 | H47: n/a | N47: 0 | O47: 0 | P47: 0 | Q47: 0 | R47: 0 | S47: 0 | T47: 0 | U47: 0 | V47: 0 | W47: =SUM(N47:V47) -> 0
B48: =B47+0.01 -> 1.06 | E48: 0 | F48: 0 | G48: =E48*F48 -> 0 | H48: n/a | N48: 0 | O48: 0 | P48: 0 | Q48: 0 | R48: 0 | S48: 0 | T48: 0 | U48: 0 | V48: 0 | W48: =SUM(N48:V48) -> 0
B49: 1.07 | E49: 0 | F49: 0 | G49: =E49*F49 -> 0 | H49: n/a | N49: 0 | O49: 0 | P49: 0 | Q49: 0 | R49: 0 | S49: 0 | T49: 0 | U49: 0 | V49: 0 | W49: =SUM(N49:V49) -> 0
B50: 1.08 | E50: 0 | F50: 0 | G50: =E50*F50 -> 0 | H50: n/a | N50: 0 | O50: 0 | P50: 0 | Q50: 0 | R50: 0 | S50: 0 | T50: 0 | U50: 0 | V50: 0 | W50: =SUM(N50:V50) -> 0
B51: 1.09 | E51: 0 | F51: 0 | G51: =E51*F51 -> 0 | H51: n/a | N51: 0 | O51: 0 | P51: 0 | Q51: 0 | R51: 0 | S51: 0 | T51: 0 | U51: 0 | V51: 0 | W51: =SUM(N51:V51) -> 0
B52: =$B$12 -> 1.3 Create on-line library of relevant documents | G52: =SUBTOTAL(9,G53:G57) -> 0
B53: =B51+0.01 -> 1.1 | E53: 0 | F53: 0 | G53: 0 | H53: n/a | N53: 0 | O53: 0 | P53: 0 | Q53: 0 | R53: 0 | S53: 0 | T53: 0 | U53: 0 | V53: 0 | W53: 0
B54: 1.11 | E54: 0 | F54: 0 | G54: 0 | H54: n/a | N54: 0 | O54: 0 | P54: 0 | Q54: 0 | R54: 0 | S54: 0 | T54: 0 | U54: 0 | V54: 0 | W54: 0
B55: 1.12 | E55: 0 | F55: 0 | G55: 0 | H55: n/a | N55: 0 | O55: 0 | P55: 0 | Q55: 0 | R55: 0 | S55: 0 | T55: 0 | U55: 0 | V55: 0 | W55: 0
B56: =B55+0.01 -> 1.13 | E56: 0 | F56: 0 | G56: 0 | H56: n/a | N56: 0 | O56: 0 | P56: 0 | Q56: 0 | R56: 0 | S56: 0 | T56: 0 | U56: 0 | V56: 0 | W56: 0
B57: 1.14 | E57: 0 | F57: 0 | G57: 0 | H57: n/a | N57: 0 | O57: 0 | P57: 0 | Q57: 0 | R57: 0 | S57: 0 | T57: 0 | U57: 0 | V57: 0 | W57: 0
B58: =$B$13 -> None 1.4 | G58: =SUBTOTAL(9,G59:G63) -> 0
B59: =B57+0.01 -> 1.15 | E59: 0 | F59: 0 | G59: 0 | H59: n/a | N59: 0 | O59: 0 | P59: 0 | Q59: 0 | R59: 0 | S59: 0 | T59: 0 | U59: 0 | V59: 0 | W59: 0
B60: 1.16 | E60: 0 | F60: 0 | G60: 0 | H60: n/a | N60: 0 | O60: 0 | P60: 0 | Q60: 0 | R60: 0 | S60: 0 | T60: 0 | U60: 0 | V60: 0 | W60: 0
B61: 1.17 | E61: 0 | F61: 0 | G61: 0 | H61: n/a | N61: 0 | O61: 0 | P61: 0 | Q61: 0 | R61: 0 | S61: 0 | T61: 0 | U61: 0 | V61: 0 | W61: 0
B62: 1.18 | E62: 0 | F62: 0 | G62: 0 | H62: n/a | N62: 0 | O62: 0 | P62: 0 | Q62: 0 | R62: 0 | S62: 0 | T62: 0 | U62: 0 | V62: 0 | W62: 0
B63: =B62+0.01 -> 1.19 | E63: 0 | F63: 0 | G63: 0 | H63: n/a | N63: 0 | O63: 0 | P63: 0 | Q63: 0 | R63: 0 | S63: 0 | T63: 0 | U63: 0 | V63: 0 | W63: 0
B65: ="Civil Works: " & $B$9 -> Civil Works: B3.1: Public-Domain Services | F65: Cost per Unit (₹ lakhs) | G65: Total | N65: FY15 | O65: FY16 | P65: FY17 | Q65: FY18 | R65: FY19 | S65: FY20 | T65: FY21 | U65: FY22 | V65: FY23 | W65: Total
C66: Items | D66: Activity | E66: Number | G66: =SUBTOTAL(9,G68:G90) -> 0 | I66: Remarks | M66: Total Annual Outlay (₹ lakhs) | N66: =SUM($G68:$G90*N68:N90) -> 0 | O66: =SUM($G68:$G90*O68:O90) -> 0 | P66: =SUM($G68:$G90*P68:P90) -> 0 | Q66: =SUM($G68:$G90*Q68:Q90) -> 0 | R66: =SUM($G68:$G90*R68:R90) -> 0 | S66: =SUM($G68:$G90*S68:S90) -> 0 | T66: =SUM($G68:$G90*T68:T90) -> 0 | U66: =SUM($G68:$G90*U68:U90) -> 0 | V66: =SUM($G68:$G90*V68:V90) -> 0 | W66: =SUM(N66:V66) -> 0
B67: =$B$10 -> 1.1 Web-portal for public-domain info services | G67: =SUBTOTAL(9,G68:G72) -> 0
B68: =B63+0.01 -> 1.2 | E68: 0 | F68: 50 | G68: =E68*F68 -> 0 | H68: n/a | N68: 0 | O68: 0 | P68: 0 | Q68: 0 | R68: 0 | S68: 0 | T68: 0 | U68: 0 | V68: 0 | W68: =SUM(N68:V68) -> 0
B69: =B68+0.01 -> 1.21 | E69: 0 | F69: 0 | G69: 0 | H69: n/a | N69: 0 | O69: 0 | P69: 0 | Q69: 0 | R69: 0 | S69: 0 | T69: 0 | U69: 0 | V69: 0 | W69: =SUM(N69:V69) -> 0
B70: =B69+0.01 -> 1.22 | E70: 0 | F70: 0 | G70: 0 | H70: n/a | N70: 0 | O70: 0 | P70: 0 | Q70: 0 | R70: 0 | S70: 0 | T70: 0 | U70: 0 | V70: 0 | W70: =SUM(N70:V70) -> 0
B71: 1.23 | E71: 0 | F71: 0 | G71: 0 | H71: n/a | N71: 0 | O71: 0 | P71: 0 | Q71: 0 | R71: 0 | S71: 0 | T71: 0 | U71: 0 | V71: 0 | W71: =SUM(N71:V71) -> 0
B72: 1.24 | E72: 0 | F72: 0 | G72: 0 | N72: 0 | O72: 0 | P72: 0 | Q72: 0 | R72: 0 | S72: 0 | T72: 0 | U72: 0 | V72: 0 | W72: =SUM(N72:V72) -> 0
B73: =$B$11 -> 1.2 Knowledge portals and mobile Apps | G73: =SUBTOTAL(9,G74:G78) -> 0
B74: =B72+0.01 -> 1.25 | E74: 0 | F74: 50 | G74: =E74*F74 -> 0 | H74: n/a | N74: 0 | O74: 0 | P74: 0 | Q74: 0 | R74: 0 | S74: 0 | T74: 0 | U74: 0 | V74: 0 | W74: =SUM(N74:V74) -> 0
B75: =B74+0.01 -> 1.26 | E75: 0 | F75: 0 | G75: =E75*F75 -> 0 | H75: n/a | N75: 0 | O75: 0 | P75: 0 | Q75: 0 | R75: 0 | S75: 0 | T75: 0 | U75: 0 | V75: 0 | W75: =SUM(N75:V75) -> 0
B76: 1.27 | E76: 0 | F76: 0 | G76: =E76*F76 -> 0 | H76: n/a | N76: 0 | O76: 0 | P76: 0 | Q76: 0 | R76: 0 | S76: 0 | T76: 0 | U76: 0 | V76: 0 | W76: =SUM(N76:V76) -> 0
B77: 1.28 | E77: 0 | F77: 0 | G77: =E77*F77 -> 0 | H77: n/a | N77: 0 | O77: 0 | P77: 0 | Q77: 0 | R77: 0 | S77: 0 | T77: 0 | U77: 0 | V77: 0 | W77: =SUM(N77:V77) -> 0
B78: 1.29 | E78: 0 | F78: 0 | G78: =E78*F78 -> 0 | N78: 0 | O78: 0 | P78: 0 | Q78: 0 | R78: 0 | S78: 0 | T78: 0 | U78: 0 | V78: 0 | W78: =SUM(N78:V78) -> 0
B79: =$B$12 -> 1.3 Create on-line library of relevant documents | G79: =SUBTOTAL(9,G80:G84) -> 0
B80: =B78+0.01 -> 1.3 | E80: 0 | F80: 0 | G80: 0 | H80: n/a | N80: 0 | O80: 0 | P80: 0 | Q80: 0 | R80: 0 | S80: 0 | T80: 0 | U80: 0 | V80: 0 | W80: =SUM(N80:V80) -> 0
B81: 1.31 | E81: 0 | F81: 0 | G81: 0 | H81: n/a | N81: 0 | O81: 0 | P81: 0 | Q81: 0 | R81: 0 | S81: 0 | T81: 0 | U81: 0 | V81: 0 | W81: =SUM(N81:V81) -> 0
B82: 1.32 | E82: 0 | F82: 0 | G82: 0 | H82: n/a | N82: 0 | O82: 0 | P82: 0 | Q82: 0 | R82: 0 | S82: 0 | T82: 0 | U82: 0 | V82: 0 | W82: =SUM(N82:V82) -> 0
B83: =B82+0.01 -> 1.33 | E83: 0 | F83: 0 | G83: 0 | H83: n/a | N83: 0 | O83: 0 | P83: 0 | Q83: 0 | R83: 0 | S83: 0 | T83: 0 | U83: 0 | V83: 0 | W83: =SUM(N83:V83) -> 0
B84: 1.34 | E84: 0 | F84: 0 | G84: 0 | N84: 0 | O84: 0 | P84: 0 | Q84: 0 | R84: 0 | S84: 0 | T84: 0 | U84: 0 | V84: 0 | W84: =SUM(N84:V84) -> 0
B85: =$B$13 -> None 1.4 | G85: =SUBTOTAL(9,G86:G90) -> 0
B86: =B84+0.01 -> 1.35 | E86: 0 | F86: 0 | G86: 0 | H86: n/a | N86: 0 | O86: 0 | P86: 0 | Q86: 0 | R86: 0 | S86: 0 | T86: 0 | U86: 0 | V86: 0 | W86: =SUM(N86:V86) -> 0
B87: 1.36 | E87: 0 | F87: 0 | G87: 0 | H87: n/a | N87: 0 | O87: 0 | P87: 0 | Q87: 0 | R87: 0 | S87: 0 | T87: 0 | U87: 0 | V87: 0 | W87: =SUM(N87:V87) -> 0
B88: 1.37 | E88: 0 | F88: 0 | G88: 0 | H88: n/a | N88: 0 | O88: 0 | P88: 0 | Q88: 0 | R88: 0 | S88: 0 | T88: 0 | U88: 0 | V88: 0 | W88: =SUM(N88:V88) -> 0
B89: 1.38 | E89: 0 | F89: 0 | G89: 0 | H89: n/a | N89: 0 | O89: 0 | P89: 0 | Q89: 0 | R89: 0 | S89: 0 | T89: 0 | U89: 0 | V89: 0 | W89: =SUM(N89:V89) -> 0
B90: =B89+0.01 -> 1.39 | E90: 0 | F90: 0 | G90: 0 | N90: 0 | O90: 0 | P90: 0 | Q90: 0 | R90: 0 | S90: 0 | T90: 0 | U90: 0 | V90: 0 | W90: =SUM(N90:V90) -> 0
B92: ="Consultancy: " & $B$9 -> Consultancy: B3.1: Public-Domain Services | F92: Cost per Unit (₹ lakhs) | G92: Total | N92: FY15 | O92: FY16 | P92: FY17 | Q92: FY18 | R92: FY19 | S92: FY20 | T92: FY21 | U92: FY22 | V92: FY23 | W92: Total
C93: Items | D93: Activity | E93: Number | G93: =SUBTOTAL(9,G95:G115) -> 15 | I93: Remarks | M93: Total Annual Outlay (₹ lakhs) | N93: =SUM($G95:$G115*N95:N115) -> 0 | O93: =SUM($G95:$G115*O95:O115) -> 0 | P93: =SUM($G95:$G115*P95:P115) -> 1.5 | Q93: =SUM($G95:$G115*Q95:Q115) -> 6 | R93: =SUM($G95:$G115*R95:R115) -> 3.75 | S93: =SUM($G95:$G115*S95:S115) -> 3.75 | T93: =SUM($G95:$G115*T95:T115) -> 0 | U93: =SUM($G95:$G115*U95:U115) -> 0 | V93: =SUM($G95:$G115*V95:V115) -> 0 | W93: =SUM(N93:V93) -> 15
B94: =$B$10 -> 1.1 Web-portal for public-domain info services | G94: =SUBTOTAL(9,G95:G98) -> 10
B95: =B90+0.01 -> 1.4 | C95: System development | D95: B3.1.1 | E95: 1 | F95: 10 | G95: =E95*F95 -> 10 | N95: 0 | O95: 0 | P95: 0.1 | Q95: 0.4 | R95: 0.25 | S95: 0.25 | T95: 0 | U95: 0 | V95: 0 | W95: =SUM(N95:V95) -> 1
B96: =B95+0.01 -> 1.41 | E96: 0 | F96: 0 | G96: =E96*F96 -> 0 | N96: 0 | O96: 0 | P96: 0 | Q96: 0 | R96: 0 | S96: 0 | T96: 0 | U96: 0 | V96: 0 | W96: =SUM(N96:V96) -> 0
B97: =B96+0.01 -> 1.42 | E97: 0 | F97: 0 | G97: =E97*F97 -> 0 | N97: 0 | O97: 0 | P97: 0 | Q97: 0 | R97: 0 | S97: 0 | T97: 0 | U97: 0 | V97: 0 | W97: =SUM(N97:V97) -> 0
B98: =B97+0.01 -> 1.43 | E98: 0 | F98: 0 | G98: =E98*F98 -> 0 | N98: 0 | O98: 0 | P98: 0 | Q98: 0 | R98: 0 | S98: 0 | T98: 0 | U98: 0 | V98: 0 | W98: =SUM(N98:V98) -> 0
B99: =$B$11 -> 1.2 Knowledge portals and mobile Apps | G99: =SUBTOTAL(9,G100:G103) -> 0
B100: =B98+0.01 -> 1.44 | C100: System development | D100: B3.1.2 | E100: 0 | F100: 10 | G100: =E100*F100 -> 0 | N100: 0 | O100: 0 | P100: 0.1 | Q100: 0.4 | R100: 0.25 | S100: 0.25 | T100: 0 | U100: 0 | V100: 0 | W100: =SUM(N100:V100) -> 1
B101: =B100+0.01 -> 1.45 | E101: 0 | F101: 0 | G101: =E101*F101 -> 0 | H101: n/a | N101: 0 | O101: 0 | P101: 0 | Q101: 0 | R101: 0 | S101: 0 | T101: 0 | U101: 0 | V101: 0 | W101: =SUM(N101:V101) -> 0
B102: =B101+0.01 -> 1.46 | E102: 0 | F102: 0 | G102: =E102*F102 -> 0 | H102: n/a | N102: 0 | O102: 0 | P102: 0 | Q102: 0 | R102: 0 | S102: 0 | T102: 0 | U102: 0 | V102: 0 | W102: =SUM(N102:V102) -> 0
B103: 1.47 | E103: 0 | F103: 0 | G103: =E103*F103 -> 0 | N103: 0 | O103: 0 | P103: 0 | Q103: 0 | R103: 0 | S103: 0 | T103: 0 | U103: 0 | V103: 0 | W103: =SUM(N103:V103) -> 0
B104: =$B$12 -> 1.3 Create on-line library of relevant documents | G104: =SUBTOTAL(9,G105:G109) -> 5
B105: =B103+0.01 -> 1.48 | C105: System Development | D105: B3.1.3 | E105: 1 | F105: 5 | G105: =E105*F105 -> 5 | H105: n/a | N105: 0 | O105: 0 | P105: 0.1 | Q105: 0.4 | R105: 0.25 | S105: 0.25 | T105: 0 | U105: 0 | V105: 0 | W105: =SUM(N105:V105) -> 1
B106: 1.49 | E106: 0 | F106: 0 | G106: =E106*F106 -> 0 | H106: n/a | N106: 0 | O106: 0 | P106: 0 | Q106: 0 | R106: 0 | S106: 0 | T106: 0 | U106: 0 | V106: 0 | W106: =SUM(N106:V106) -> 0
B107: 1.5 | E107: 0 | F107: 0 | G107: =E107*F107 -> 0 | H107: n/a | N107: 0 | O107: 0 | P107: 0 | Q107: 0 | R107: 0 | S107: 0 | T107: 0 | U107: 0 | V107: 0 | W107: =SUM(N107:V107) -> 0
B108: =B107+0.01 -> 1.51 | E108: 0 | F108: 0 | G108: =E108*F108 -> 0 | H108: n/a | N108: 0 | O108: 0 | P108: 0 | Q108: 0 | R108: 0 | S108: 0 | T108: 0 | U108: 0 | V108: 0 | W108: =SUM(N108:V108) -> 0
B109: 1.52 | E109: 0 | F109: 0 | G109: =E109*F109 -> 0 | N109: 0 | O109: 0 | P109: 0 | Q109: 0 | R109: 0 | S109: 0 | T109: 0 | U109: 0 | V109: 0 | W109: =SUM(N109:V109) -> 0
B110: =$B$13 -> None 1.4 | G110: =SUBTOTAL(9,G111:G115) -> 0
B111: =B109+0.01 -> 1.53 | E111: 0 | F111: 0 | G111: =E111*F111 -> 0 | H111: n/a | N111: 0 | O111: 0 | P111: 0 | Q111: 0 | R111: 0 | S111: 0 | T111: 0 | U111: 0 | V111: 0 | W111: =SUM(N111:V111) -> 0
B112: 1.54 | E112: 0 | F112: 0 | G112: =E112*F112 -> 0 | H112: n/a | N112: 0 | O112: 0 | P112: 0 | Q112: 0 | R112: 0 | S112: 0 | T112: 0 | U112: 0 | V112: 0 | W112: =SUM(N112:V112) -> 0
B113: 1.55 | E113: 0 | F113: 0 | G113: =E113*F113 -> 0 | H113: n/a | N113: 0 | O113: 0 | P113: 0 | Q113: 0 | R113: 0 | S113: 0 | T113: 0 | U113: 0 | V113: 0 | W113: =SUM(N113:V113) -> 0
B114: 1.56 | E114: 0 | F114: 0 | G114: =E114*F114 -> 0 | H114: n/a | N114: 0 | O114: 0 | P114: 0 | Q114: 0 | R114: 0 | S114: 0 | T114: 0 | U114: 0 | V114: 0 | W114: =SUM(N114:V114) -> 0
B115: =B114+0.01 -> 1.57 | E115: 0 | F115: 0 | G115: =E115*F115 -> 0 | N115: 0 | O115: 0 | P115: 0 | Q115: 0 | R115: 0 | S115: 0 | T115: 0 | U115: 0 | V115: 0 | W115: =SUM(N115:V115) -> 0
B117: ="Training/Meetings: " & $B$9 -> Training/Meetings: B3.1: Public-Domain Services | F117: Cost per Unit (₹ lakhs) | G117: Total | N117: FY15 | O117: FY16 | P117: FY17 | Q117: FY18 | R117: FY19 | S117: FY20 | T117: FY21 | U117: FY22 | V117: FY23 | W117: Total
C118: Items | D118: Activity | E118: Number | G118: =SUBTOTAL(9,G120:G142) -> 10 | I118: Remarks | M118: Total Annual Outlay (₹ lakhs) | N118: =SUM($G120:$G142*N120:N142) -> 0 | O118: =SUM($G120:$G142*O120:O142) -> 0 | P118: =SUM($G120:$G142*P120:P142) -> 2.5 | Q118: =SUM($G120:$G142*Q120:Q142) -> 2.5 | R118: =SUM($G120:$G142*R120:R142) -> 0 | S118: =SUM($G120:$G142*S120:S142) -> 2.5 | T118: =SUM($G120:$G142*T120:T142) -> 0 | U118: =SUM($G120:$G142*U120:U142) -> 2.5 | V118: =SUM($G120:$G142*V120:V142) -> 0 | W118: =SUM(N118:V118) -> 10
B119: =$B$10 -> 1.1 Web-portal for public-domain info services | G119: =SUBTOTAL(9,G120:G124) -> 5
B120: =B115+0.01 -> 1.58 | C120: Training | D120: B3.1.1 | E120: 1 | F120: 5 | G120: =E120*F120 -> 5 | N120: 0 | O120: 0 | P120: 0.25 | Q120: 0.25 | R120: 0 | S120: 0.25 | T120: 0 | U120: 0.25 | V120: 0 | W120: =SUM(N120:V120) -> 1
B121: =B120+0.01 -> 1.59 | E121: 0 | F121: 0 | G121: =E121*F121 -> 0 | N121: 0 | O121: 0 | P121: 0 | Q121: 0 | R121: 0 | S121: 0 | T121: 0 | U121: 0 | V121: 0 | W121: =SUM(N121:V121) -> 0
B122: =B121+0.01 -> 1.6 | E122: 0 | F122: 0 | G122: =E122*F122 -> 0 | N122: 0 | O122: 0 | P122: 0 | Q122: 0 | R122: 0 | S122: 0 | T122: 0 | U122: 0 | V122: 0 | W122: =SUM(N122:V122) -> 0
B123: 1.61 | E123: 0 | F123: 0 | G123: =E123*F123 -> 0 | N123: 0 | O123: 0 | P123: 0 | Q123: 0 | R123: 0 | S123: 0 | T123: 0 | U123: 0 | V123: 0 | W123: =SUM(N123:V123) -> 0
B124: 1.62 | E124: 0 | F124: 0 | G124: =E124*F124 -> 0 | N124: 0 | O124: 0 | P124: 0 | Q124: 0 | R124: 0 | S124: 0 | T124: 0 | U124: 0 | V124: 0 | W124: =SUM(N124:V124) -> 0
B125: =$B$11 -> 1.2 Knowledge portals and mobile Apps | G125: =SUBTOTAL(9,G126:G130) -> 0
B126: =B124+0.01 -> 1.63 | E126: 0 | F126: 5 | G126: =E126*F126 -> 0 | N126: 0 | O126: 0 | P126: 0 | Q126: 0 | R126: 0 | S126: 0 | T126: 0 | U126: 0 | V126: 0 | W126: =SUM(N126:V126) -> 0
B127: =B126+0.01 -> 1.64 | E127: 0 | F127: 0 | G127: =E127*F127 -> 0 | N127: 0 | O127: 0 | P127: 0 | Q127: 0 | R127: 0 | S127: 0 | T127: 0 | U127: 0 | V127: 0 | W127: =SUM(N127:V127) -> 0
B128: 1.65 | E128: 0 | F128: 0 | G128: =E128*F128 -> 0 | N128: 0 | O128: 0 | P128: 0 | Q128: 0 | R128: 0 | S128: 0 | T128: 0 | U128: 0 | V128: 0 | W128: =SUM(N128:V128) -> 0
B129: 1.66 | E129: 0 | F129: 0 | G129: =E129*F129 -> 0 | N129: 0 | O129: 0 | P129: 0 | Q129: 0 | R129: 0 | S129: 0 | T129: 0 | U129: 0 | V129: 0 | W129: =SUM(N129:V129) -> 0
B130: 1.67 | E130: 0 | F130: 0 | G130: =E130*F130 -> 0 | N130: 0 | O130: 0 | P130: 0 | Q130: 0 | R130: 0 | S130: 0 | T130: 0 | U130: 0 | V130: 0 | W130: =SUM(N130:V130) -> 0
B131: =$B$12 -> 1.3 Create on-line library of relevant documents | G131: =SUBTOTAL(9,G132:G136) -> 5
B132: =B130+0.01 -> 1.68 | C132: Training | D132: B3.1.3 | E132: 1 | F132: 5 | G132: =E132*F132 -> 5 | N132: 0 | O132: 0 | P132: 0.25 | Q132: 0.25 | R132: 0 | S132: 0.25 | T132: 0 | U132: 0.25 | V132: 0 | W132: =SUM(N132:V132) -> 1
B133: 1.69 | E133: 0 | F133: 0 | G133: =E133*F133 -> 0 | N133: 0 | O133: 0 | P133: 0 | Q133: 0 | R133: 0 | S133: 0 | T133: 0 | U133: 0 | V133: 0 | W133: =SUM(N133:V133) -> 0
B134: 1.7 | E134: 0 | F134: 0 | G134: =E134*F134 -> 0 | N134: 0 | O134: 0 | P134: 0 | Q134: 0 | R134: 0 | S134: 0 | T134: 0 | U134: 0 | V134: 0 | W134: =SUM(N134:V134) -> 0
B135: =B134+0.01 -> 1.71 | E135: 0 | F135: 0 | G135: =E135*F135 -> 0 | N135: 0 | O135: 0 | P135: 0 | Q135: 0 | R135: 0 | S135: 0 | T135: 0 | U135: 0 | V135: 0 | W135: =SUM(N135:V135) -> 0
B136: 1.72 | E136: 0 | F136: 0 | G136: =E136*F136 -> 0 | N136: 0 | O136: 0 | P136: 0 | Q136: 0 | R136: 0 | S136: 0 | T136: 0 | U136: 0 | V136: 0 | W136: =SUM(N136:V136) -> 0
B137: =$B$13 -> None 1.4 | G137: =SUBTOTAL(9,G138:G142) -> 0
B138: =B136+0.01 -> 1.73 | E138: 0 | F138: 0 | G138: =E138*F138 -> 0 | N138: 0 | O138: 0 | P138: 0 | Q138: 0 | R138: 0 | S138: 0 | T138: 0 | U138: 0 | V138: 0 | W138: =SUM(N138:V138) -> 0
B139: 1.74 | E139: 0 | F139: 0 | G139: =E139*F139 -> 0 | N139: 0 | O139: 0 | P139: 0 | Q139: 0 | R139: 0 | S139: 0 | T139: 0 | U139: 0 | V139: 0 | W139: =SUM(N139:V139) -> 0
B140: 1.75 | E140: 0 | F140: 0 | G140: =E140*F140 -> 0 | N140: 0 | O140: 0 | P140: 0 | Q140: 0 | R140: 0 | S140: 0 | T140: 0 | U140: 0 | V140: 0 | W140: =SUM(N140:V140) -> 0
B141: 1.76 | E141: 0 | F141: 0 | G141: =E141*F141 -> 0 | N141: 0 | O141: 0 | P141: 0 | Q141: 0 | R141: 0 | S141: 0 | T141: 0 | U141: 0 | V141: 0 | W141: =SUM(N141:V141) -> 0
B142: =B141+0.01 -> 1.77 | E142: 0 | F142: 0 | G142: =E142*F142 -> 0 | N142: 0 | O142: 0 | P142: 0 | Q142: 0 | R142: 0 | S142: 0 | T142: 0 | U142: 0 | V142: 0 | W142: =SUM(N142:V142) -> 0
B144: ="Operational Costs: " & $B$9 -> Operational Costs: B3.1: Public-Domain Services | F144: Cost per Unit (₹ lakhs) | G144: Total | N144: FY15 | O144: FY16 | P144: FY17 | Q144: FY18 | R144: FY19 | S144: FY20 | T144: FY21 | U144: FY22 | V144: FY23 | W144: Total
C145: Items | D145: Activity | E145: Number | G145: =SUBTOTAL(9,G147:G167) -> 0 | I145: Remarks | M145: Total Annual Outlay (₹ lakhs) | N145: =SUM($G147:$G167*N147:N167) -> 0 | O145: =SUM($G147:$G167*O147:O167) -> 0 | P145: =SUM($G147:$G167*P147:P167) -> 0 | Q145: =SUM($G147:$G167*Q147:Q167) -> 0 | R145: =SUM($G147:$G167*R147:R167) -> 0 | S145: =SUM($G147:$G167*S147:S167) -> 0 | T145: =SUM($G147:$G167*T147:T167) -> 0 | U145: =SUM($G147:$G167*U147:U167) -> 0 | V145: =SUM($G147:$G167*V147:V167) -> 0 | W145: =SUM(N145:V145) -> 0
B146: =$B$10 -> 1.1 Web-portal for public-domain info services | G146: =SUBTOTAL(9,G147:G150) -> 0
B147: =B142+0.01 -> 1.78 | C147: Annual Maintenance | D147: B3.1.1 | E147: 0 | F147: 5 | G147: =E147*F147 -> 0 | N147: 0 | O147: 0 | P147: 0 | Q147: 0 | R147: 0 | S147: 0 | T147: 0 | U147: 0 | V147: 0 | W147: =SUM(N147:V147) -> 0
B148: =B147+0.01 -> 1.79 | E148: 0 | F148: 0 | G148: =E148*F148 -> 0 | H148: n/a | N148: 0 | O148: 0 | P148: 0 | Q148: 0 | R148: 0 | S148: 0 | T148: 0 | U148: 0 | V148: 0 | W148: =SUM(N148:V148) -> 0
B149: =B148+0.01 -> 1.8 | E149: 0 | F149: 0 | G149: =E149*F149 -> 0 | H149: n/a | N149: 0 | O149: 0 | P149: 0 | Q149: 0 | R149: 0 | S149: 0 | T149: 0 | U149: 0 | V149: 0 | W149: =SUM(N149:V149) -> 0
B150: =B149+0.01 -> 1.81 | E150: 0 | F150: 0 | G150: =E150*F150 -> 0 | N150: 0 | O150: 0 | P150: 0 | Q150: 0 | R150: 0 | S150: 0 | T150: 0 | U150: 0 | V150: 0 | W150: =SUM(N150:V150) -> 0
B151: =$B$11 -> 1.2 Knowledge portals and mobile Apps | G151: =SUBTOTAL(9,G152:G155) -> 0
B152: =B150+0.01 -> 1.82 | C152: Annual Maintenance | D152: B3.1.2 | E152: 0 | F152: 5 | G152: =E152*F152 -> 0 | H152: n/a | N152: 0 | O152: 0 | P152: 0 | Q152: 0 | R152: 0 | S152: 0 | T152: 0 | U152: 0 | V152: 0 | W152: =SUM(N152:V152) -> 0
B153: =B152+0.01 -> 1.83 | E153: 0 | F153: 0 | G153: =E153*F153 -> 0 | H153: n/a | N153: 0 | O153: 0 | P153: 0 | Q153: 0 | R153: 0 | S153: 0 | T153: 0 | U153: 0 | V153: 0 | W153: =SUM(N153:V153) -> 0
B154: =B153+0.01 -> 1.84 | E154: 0 | F154: 0 | G154: =E154*F154 -> 0 | H154: n/a | N154: 0 | O154: 0 | P154: 0 | Q154: 0 | R154: 0 | S154: 0 | T154: 0 | U154: 0 | V154: 0 | W154: =SUM(N154:V154) -> 0
B155: 1.85 | E155: 0 | F155: 0 | G155: =E155*F155 -> 0 | N155: 0 | O155: 0 | P155: 0 | Q155: 0 | R155: 0 | S155: 0 | T155: 0 | U155: 0 | V155: 0 | W155: =SUM(N155:V155) -> 0
B156: =$B$12 -> 1.3 Create on-line library of relevant documents | G156: =SUBTOTAL(9,G157:G161) -> 0
B157: =B155+0.01 -> 1.86 | E157: 0 | F157: 0 | G157: =E157*F157 -> 0 | H157: n/a | N157: 0 | O157: 0 | P157: 0 | Q157: 0 | R157: 0 | S157: 0 | T157: 0 | U157: 0 | V157: 0 | W157: =SUM(N157:V157) -> 0
B158: 1.87 | E158: 0 | F158: 0 | G158: =E158*F158 -> 0 | H158: n/a | N158: 0 | O158: 0 | P158: 0 | Q158: 0 | R158: 0 | S158: 0 | T158: 0 | U158: 0 | V158: 0 | W158: =SUM(N158:V158) -> 0
B159: 1.88 | E159: 0 | F159: 0 | G159: =E159*F159 -> 0 | H159: n/a | N159: 0 | O159: 0 | P159: 0 | Q159: 0 | R159: 0 | S159: 0 | T159: 0 | U159: 0 | V159: 0 | W159: =SUM(N159:V159) -> 0
B160: =B159+0.01 -> 1.89 | E160: 0 | F160: 0 | G160: =E160*F160 -> 0 | H160: n/a | N160: 0 | O160: 0 | P160: 0 | Q160: 0 | R160: 0 | S160: 0 | T160: 0 | U160: 0 | V160: 0 | W160: =SUM(N160:V160) -> 0
B161: 1.9 | E161: 0 | F161: 0 | G161: =E161*F161 -> 0 | N161: 0 | O161: 0 | P161: 0 | Q161: 0 | R161: 0 | S161: 0 | T161: 0 | U161: 0 | V161: 0 | W161: =SUM(N161:V161) -> 0
B162: =$B$13 -> None 1.4 | G162: =SUBTOTAL(9,G163:G167) -> 0
B163: =B161+0.01 -> 1.91 | E163: 0 | F163: 0 | G163: =E163*F163 -> 0 | H163: n/a | N163: 0 | O163: 0 | P163: 0 | Q163: 0 | R163: 0 | S163: 0 | T163: 0 | U163: 0 | V163: 0 | W163: =SUM(N163:V163) -> 0
B164: 1.92 | E164: 0 | F164: 0 | G164: =E164*F164 -> 0 | H164: n/a | N164: 0 | O164: 0 | P164: 0 | Q164: 0 | R164: 0 | S164: 0 | T164: 0 | U164: 0 | V164: 0 | W164: =SUM(N164:V164) -> 0
B165: 1.93 | E165: 0 | F165: 0 | G165: =E165*F165 -> 0 | H165: n/a | N165: 0 | O165: 0 | P165: 0 | Q165: 0 | R165: 0 | S165: 0 | T165: 0 | U165: 0 | V165: 0 | W165: =SUM(N165:V165) -> 0
B166: 1.94 | E166: 0 | F166: 0 | G166: =E166*F166 -> 0 | H166: n/a | N166: 0 | O166: 0 | P166: 0 | Q166: 0 | R166: 0 | S166: 0 | T166: 0 | U166: 0 | V166: 0 | W166: =SUM(N166:V166) -> 0
B167: =B166+0.01 -> 1.95 | E167: 0 | F167: 0 | G167: =E167*F167 -> 0 | N167: 0 | O167: 0 | P167: 0 | Q167: 0 | R167: 0 | S167: 0 | T167: 0 | U167: 0 | V167: 0 | W167: =SUM(N167:V167) -> 0
B169: =B14 -> Extra
B170: ="Goods: " & $B$14 -> Goods: Extra | F170: Cost per Unit (₹ lakhs) | G170: Total | H170: Telemetry Type | N170: FY15 | O170: FY16 | P170: FY17 | Q170: FY18 | R170: FY19 | S170: FY20 | T170: FY21 | U170: FY22 | V170: FY23 | W170: Total
C171: Items | D171: Activity | E171: Number | G171: =SUBTOTAL(9,G173:G195) -> 0 | H171: Telemetry Type | I171: Remarks | M171: Total Annual Outlay (₹ lakhs) | N171: =SUM($G173:$G195*N173:N195) -> 0 | O171: =SUM($G173:$G195*O173:O195) -> 0 | P171: =SUM($G173:$G195*P173:P195) -> 0 | Q171: =SUM($G173:$G195*Q173:Q195) -> 0 | R171: =SUM($G173:$G195*R173:R195) -> 0 | S171: =SUM($G173:$G195*S173:S195) -> 0 | T171: =SUM($G173:$G195*T173:T195) -> 0 | U171: =SUM($G173:$G195*U173:U195) -> 0 | V171: =SUM($G173:$G195*V173:V195) -> 0 | W171: =SUM(N171:V171) -> 0
B172: =$B$15 -> None 2.1 | G172: =SUBTOTAL(9,G173:G177) -> 0
B173: 2 | E173: 0 | F173: 0 | G173: =E173*F173 -> 0 | H173: n/a | N173: 0 | O173: 0 | P173: 0 | Q173: 0 | R173: 0 | S173: 0 | T173: 0 | U173: 0 | V173: 0 | W173: =SUM(N173:V173) -> 0
B174: =B173+0.01 -> 2.01 | E174: 0 | F174: 0 | G174: =E174*F174 -> 0 | H174: n/a | N174: 0 | O174: 0 | P174: 0 | Q174: 0 | R174: 0 | S174: 0 | T174: 0 | U174: 0 | V174: 0 | W174: =SUM(N174:V174) -> 0
B175: =B174+0.01 -> 2.02 | E175: 0 | F175: 0 | G175: =E175*F175 -> 0 | H175: n/a | N175: 0 | O175: 0 | P175: 0 | Q175: 0 | R175: 0 | S175: 0 | T175: 0 | U175: 0 | V175: 0 | W175: =SUM(N175:V175) -> 0
B176: 2.03 | E176: 0 | F176: 0 | G176: =E176*F176 -> 0 | H176: n/a | N176: 0 | O176: 0 | P176: 0 | Q176: 0 | R176: 0 | S176: 0 | T176: 0 | U176: 0 | V176: 0 | W176: =SUM(N176:V176) -> 0
B177: 2.04 | E177: 0 | F177: 0 | G177: =E177*F177 -> 0 | H177: n/a | N177: 0 | O177: 0 | P177: 0 | Q177: 0 | R177: 0 | S177: 0 | T177: 0 | U177: 0 | V177: 0 | W177: =SUM(N177:V177) -> 0
B178: =$B$16 -> None 2.2 | G178: =SUBTOTAL(9,G179:G183) -> 0
B179: =B177+0.01 -> 2.05 | E179: 0 | F179: 0 | G179: =E179*F179 -> 0 | H179: n/a | N179: 0 | O179: 0 | P179: 0 | Q179: 0 | R179: 0 | S179: 0 | T179: 0 | U179: 0 | V179: 0 | W179: =SUM(N179:V179) -> 0
B180: =B179+0.01 -> 2.06 | E180: 0 | F180: 0 | G180: =E180*F180 -> 0 | H180: n/a | N180: 0 | O180: 0 | P180: 0 | Q180: 0 | R180: 0 | S180: 0 | T180: 0 | U180: 0 | V180: 0 | W180: =SUM(N180:V180) -> 0
B181: 2.07 | E181: 0 | F181: 0 | G181: =E181*F181 -> 0 | H181: n/a | N181: 0 | O181: 0 | P181: 0 | Q181: 0 | R181: 0 | S181: 0 | T181: 0 | U181: 0 | V181: 0 | W181: =SUM(N181:V181) -> 0
B182: 2.08 | E182: 0 | F182: 0 | G182: =E182*F182 -> 0 | H182: n/a | N182: 0 | O182: 0 | P182: 0 | Q182: 0 | R182: 0 | S182: 0 | T182: 0 | U182: 0 | V182: 0 | W182: =SUM(N182:V182) -> 0
B183: 2.09 | E183: 0 | F183: 0 | G183: =E183*F183 -> 0 | H183: n/a | N183: 0 | O183: 0 | P183: 0 | Q183: 0 | R183: 0 | S183: 0 | T183: 0 | U183: 0 | V183: 0 | W183: =SUM(N183:V183) -> 0
B184: =$B$17 -> None 2.3 | G184: =SUBTOTAL(9,G185:G189) -> 0
B185: =B183+0.01 -> 2.1 | E185: 0 | F185: 0 | G185: =E185*F185 -> 0 | H185: n/a | N185: 0 | O185: 0 | P185: 0 | Q185: 0 | R185: 0 | S185: 0 | T185: 0 | U185: 0 | V185: 0 | W185: =SUM(N185:V185) -> 0
B186: 2.11 | E186: 0 | F186: 0 | G186: =E186*F186 -> 0 | H186: n/a | N186: 0 | O186: 0 | P186: 0 | Q186: 0 | R186: 0 | S186: 0 | T186: 0 | U186: 0 | V186: 0 | W186: =SUM(N186:V186) -> 0
B187: 2.12 | E187: 0 | F187: 0 | G187: =E187*F187 -> 0 | H187: n/a | N187: 0 | O187: 0 | P187: 0 | Q187: 0 | R187: 0 | S187: 0 | T187: 0 | U187: 0 | V187: 0 | W187: =SUM(N187:V187) -> 0
B188: =B187+0.01 -> 2.13 | E188: 0 | F188: 0 | G188: =E188*F188 -> 0 | H188: n/a | N188: 0 | O188: 0 | P188: 0 | Q188: 0 | R188: 0 | S188: 0 | T188: 0 | U188: 0 | V188: 0 | W188: =SUM(N188:V188) -> 0
B189: 2.14 | E189: 0 | F189: 0 | G189: =E189*F189 -> 0 | H189: n/a | N189: 0 | O189: 0 | P189: 0 | Q189: 0 | R189: 0 | S189: 0 | T189: 0 | U189: 0 | V189: 0 | W189: =SUM(N189:V189) -> 0
B190: =$B$18 -> None 2.4 | G190: =SUBTOTAL(9,G191:G195) -> 0
B191: =B189+0.01 -> 2.15 | E191: 0 | F191: 0 | G191: =E191*F191 -> 0 | H191: n/a | N191: 0 | O191: 0 | P191: 0 | Q191: 0 | R191: 0 | S191: 0 | T191: 0 | U191: 0 | V191: 0 | W191: =SUM(N191:V191) -> 0
B192: 2.16 | E192: 0 | F192: 0 | G192: =E192*F192 -> 0 | H192: n/a | N192: 0 | O192: 0 | P192: 0 | Q192: 0 | R192: 0 | S192: 0 | T192: 0 | U192: 0 | V192: 0 | W192: =SUM(N192:V192) -> 0
B193: 2.17 | E193: 0 | F193: 0 | G193: =E193*F193 -> 0 | H193: n/a | N193: 0 | O193: 0 | P193: 0 | Q193: 0 | R193: 0 | S193: 0 | T193: 0 | U193: 0 | V193: 0 | W193: =SUM(N193:V193) -> 0
B194: 2.18 | E194: 0 | F194: 0 | G194: =E194*F194 -> 0 | H194: n/a | N194: 0 | O194: 0 | P194: 0 | Q194: 0 | R194: 0 | S194: 0 | T194: 0 | U194: 0 | V194: 0 | W194: =SUM(N194:V194) -> 0
B195: =B194+0.01 -> 2.19 | E195: 0 | F195: 0 | G195: =E195*F195 -> 0 | H195: n/a | N195: 0 | O195: 0 | P195: 0 | Q195: 0 | R195: 0 | S195: 0 | T195: 0 | U195: 0 | V195: 0 | W195: =SUM(N195:V195) -> 0
B197: ="Civil Works: " & $B$14 -> Civil Works: Extra | F197: Cost per Unit (₹ lakhs) | G197: Total | N197: FY15 | O197: FY16 | P197: FY17 | Q197: FY18 | R197: FY19 | S197: FY20 | T197: FY21 | U197: FY22 | V197: FY23 | W197: Total
C198: Items | D198: Activity | E198: Number | G198: =SUBTOTAL(9,G200:G222) -> 0 | I198: Remarks | M198: Total Annual Outlay (₹ lakhs) | N198: =SUM($G200:$G222*N200:N222) -> 0 | O198: =SUM($G200:$G222*O200:O222) -> 0 | P198: =SUM($G200:$G222*P200:P222) -> 0 | Q198: =SUM($G200:$G222*Q200:Q222) -> 0 | R198: =SUM($G200:$G222*R200:R222) -> 0 | S198: =SUM($G200:$G222*S200:S222) -> 0 | T198: =SUM($G200:$G222*T200:T222) -> 0 | U198: =SUM($G200:$G222*U200:U222) -> 0 | V198: =SUM($G200:$G222*V200:V222) -> 0 | W198: =SUM(N198:V198) -> 0
B199: =$B$15 -> None 2.1 | G199: =SUBTOTAL(9,G200:G204) -> 0
B200: =B195+0.01 -> 2.2 | E200: 0 | F200: 0 | G200: =E200*F200 -> 0 | H200: n/a | N200: 0 | O200: 0 | P200: 0 | Q200: 0 | R200: 0 | S200: 0 | T200: 0 | U200: 0 | V200: 0 | W200: =SUM(N200:V200) -> 0
B201: =B200+0.01 -> 2.21 | E201: 0 | F201: 0 | G201: =E201*F201 -> 0 | H201: n/a | N201: 0 | O201: 0 | P201: 0 | Q201: 0 | R201: 0 | S201: 0 | T201: 0 | U201: 0 | V201: 0 | W201: =SUM(N201:V201) -> 0
B202: =B201+0.01 -> 2.22 | E202: 0 | F202: 0 | G202: =E202*F202 -> 0 | H202: n/a | N202: 0 | O202: 0 | P202: 0 | Q202: 0 | R202: 0 | S202: 0 | T202: 0 | U202: 0 | V202: 0 | W202: =SUM(N202:V202) -> 0
B203: 2.23 | E203: 0 | F203: 0 | G203: =E203*F203 -> 0 | H203: n/a | N203: 0 | O203: 0 | P203: 0 | Q203: 0 | R203: 0 | S203: 0 | T203: 0 | U203: 0 | V203: 0 | W203: =SUM(N203:V203) -> 0
B204: 2.24 | E204: 0 | F204: 0 | G204: =E204*F204 -> 0 | N204: 0 | O204: 0 | P204: 0 | Q204: 0 | R204: 0 | S204: 0 | T204: 0 | U204: 0 | V204: 0 | W204: =SUM(N204:V204) -> 0
B205: =$B$16 -> None 2.2 | G205: =SUBTOTAL(9,G206:G210) -> 0
B206: =B204+0.01 -> 2.25 | E206: 0 | F206: 0 | G206: =E206*F206 -> 0 | H206: n/a | N206: 0 | O206: 0 | P206: 0 | Q206: 0 | R206: 0 | S206: 0 | T206: 0 | U206: 0 | V206: 0 | W206: =SUM(N206:V206) -> 0
B207: =B206+0.01 -> 2.26 | E207: 0 | F207: 0 | G207: =E207*F207 -> 0 | H207: n/a | N207: 0 | O207: 0 | P207: 0 | Q207: 0 | R207: 0 | S207: 0 | T207: 0 | U207: 0 | V207: 0 | W207: =SUM(N207:V207) -> 0
... 355 more rows

Sheet C1
A1: Cost Estimate for HP-III
B2: Component | C2: C: Water Resources Management Applications (WRMA)
B3: Sub-Component | C3: C1: Water Resources Management Tools
B4: Prefix | C4: C1
C5: Go to Abstract | E5: Go to Legend
B6: Cost Summary | E6: Total cost | F6: Procurement Categories (₹ lakhs) | K6: Remarks/ description
B7: Decription | D7: No. | E7: ₹ lakhs | F7: Goods | G7: Civil Works | H7: Consultant Services | I7: Training/ Meetings | J7: Operation Costs
B8: Subcomponents and Activities | E8: =SUM(F8:J8) -> 155 | F8: =SUBTOTAL(9,F9:F28) -> 0 | G8: =SUBTOTAL(9,G9:G28) -> 0 | H8: =SUBTOTAL(9,H9:H28) -> 150 | I8: =SUBTOTAL(9,I9:I28) -> 5 | J8: =SUBTOTAL(9,J9:J28) -> 0
B9: C1.1. Planning, Design and Decision Support Systems | E9: =SUM(F9:J9) -> 100 | F9: =SUBTOTAL(9,F10:F13) -> 0 | G9: =SUBTOTAL(9,G10:G13) -> 0 | H9: =SUBTOTAL(9,H10:H13) -> 100 | I9: =SUBTOTAL(9,I10:I13) -> 0 | J9: =SUBTOTAL(9,J10:J13) -> 0
B10: 1. Planning and decision support system | D10: =$C$4 & ".1.1" -> C1.1.1 | E10: 0 | F10: =G40 -> 0 | G10: =G68 -> 0 | H10: =G95 -> 0 | I10: =G122 -> 0 | J10: =G149 -> 0 | K10: CWC
B11: 2. Community based GW and WQ management | D11: =$C$4 & ".1.2" -> C1.1.2 | E11: 0 | F11: =G44 -> 0 | G11: =G74 -> 0 | H11: =G101 -> 0 | I11: =G128 -> 0 | J11: =G155 -> 0 | K11: CGWB/CPCB
B12: 3. Application of DSS-Planning systems (SW, GW, WQ) | D12: =$C$4 & ".1.3" -> C1.1.3 | E12: 50 | F12: =G53 -> 0 | G12: =G80 -> 0 | H12: =G107 -> 50 | I12: =G134 -> 0 | J12: =G161 -> 0 | K12: All IAs
B13: 4. Water balance assessment for Basin 1 | D13: =$C$4 & ".1.4" -> C1.1.4 | E13: 50 | F13: =G59 -> 0 | G13: =G86 -> 0 | H13: =G113 -> 50 | I13: =G140 -> 0 | J13: =G167 -> 0
B14: C1.2. Stream flow and flood forecasting systems for short-term and seasonal forecasts | E14: 55 | F14: =SUBTOTAL(9,F15:F18) -> 0 | G14: =SUBTOTAL(9,G15:G18) -> 0 | H14: =SUBTOTAL(9,H15:H18) -> 50 | I14: =SUBTOTAL(9,I15:I18) -> 5 | J14: =SUBTOTAL(9,J15:J18) -> 0
B15: 1. Flood Forecasting and Early Warning system Basin 1 | D15: =$C$4 & ".2.1" -> C1.2.1 | E15: 55 | F15: =G177 -> 0 | G15: =G225 -> 0 | H15: =G252 -> 50 | I15: =G279 -> 5 | J15: =G306 -> 0
B16: 2. Seasonal flow forecasting Basin 2 | D16: =$C$4 & ".2.2" -> C1.2.2 | E16: 0 | F16: =G190 -> 0 | G16: =G231 -> 0 | H16: =G258 -> 0 | I16: =G285 -> 0 | J16: =G312 -> 0
B17: 3. Drought forecasting and EW system Basin 3 | D17: =$C$4 & ".2.3" -> C1.2.3 | E17: 0 | F17: =G203 -> 0 | G17: =G237 -> 0 | H17: =G264 -> 0 | I17: =G291 -> 0 | J17: =G318 -> 0
B18: 4. To be defined | D18: =$C$4 & ".2.4" -> C1.2.4 | E18: 0 | F18: =G216 -> 0 | G18: =G243 -> 0 | H18: =G270 -> 0 | I18: =G297 -> 0 | J18: =G324 -> 0
B19: C1.3. Operational and Management Systems (OMS) | E19: =SUM(F19:J19) -> 0 | F19: =SUBTOTAL(9,F20:F23) -> 0 | G19: =SUBTOTAL(9,G20:G23) -> 0 | H19: =SUBTOTAL(9,H20:H23) -> 0 | I19: =SUBTOTAL(9,I20:I23) -> 0 | J19: =SUBTOTAL(9,J20:J23) -> 0
B20: Multiple reservoir OMS for Basin 1 | D20: =$C$4 & ".3.1" -> C1.3.1 | E20: 0 | F20: =G334 -> 0 | G20: =G361 -> 0 | H20: =G388 -> 0 | I20: =G415 -> 0 | J20: =G442 -> 0
B21: Multiple reservoir OMS for Basin 2 | D21: =$C$4 & ".3.2" -> C1.3.2 | E21: 0 | F21: =G340 -> 0 | G21: =G367 -> 0 | H21: =G394 -> 0 | I21: =G421 -> 0 | J21: =G448 -> 0
B22: SCADA system for Irrigation System 1 | D22: =$C$4 & ".3.3" -> C1.3.3 | E22: 0 | F22: =G346 -> 0 | G22: =G373 -> 0 | H22: =G400 -> 0 | I22: =G427 -> 0 | J22: =G454 -> 0
B23: SCADA system for Irrigation System 2 | D23: =$C$4 & ".3.4" -> C1.3.4 | E23: 0 | F23: =G352 -> 0 | G23: =G379 -> 0 | H23: =G406 -> 0 | I23: =G433 -> 0 | J23: =G460 -> 0
B24: Extra | E24: =SUM(F24:J24) -> 0 | F24: =SUBTOTAL(9,F25:F28) -> 0 | G24: =SUBTOTAL(9,G25:G28) -> 0 | H24: =SUBTOTAL(9,H25:H28) -> 0 | I24: =SUBTOTAL(9,I25:I28) -> 0 | J24: =SUBTOTAL(9,J25:J28) -> 0
B25: None 4.1 | D25: =$C$4 & ".4.1" -> C1.4.1 | E25: 0 | F25: =G470 -> 0 | G25: =G497 -> 0 | H25: =G524 -> 0 | I25: =G551 -> 0 | J25: =G578 -> 0
B26: None 4.2 | D26: =$C$4 & ".4.2" -> C1.4.2 | E26: 0 | F26: =G476 -> 0 | G26: =G503 -> 0 | H26: =G530 -> 0 | I26: =G557 -> 0 | J26: =G584 -> 0
B27: None 4.3 | D27: =$C$4 & ".4.3" -> C1.4.3 | E27: 0 | F27: =G482 -> 0 | G27: =G509 -> 0 | H27: =G536 -> 0 | I27: =G563 -> 0 | J27: =G590 -> 0
B28: None 4.4 | D28: =$C$4 & ".4.4" -> C1.4.4 | E28: 0 | F28: =G488 -> 0 | G28: =G515 -> 0 | H28: =G542 -> 0 | I28: =G569 -> 0 | J28: =G596 -> 0
C29: Financial Year | D29: FY 15 | E29: FY 16 | F29: FY 17 | G29: FY 18 | H29: FY 19 | I29: FY 20 | J29: FY 21 | K29: FY 22 | L29: FY 23
C30: Cost Outlay | D30: =SUM(D31:D34) -> 0 | E30: 0 | F30: 0 | G30: 0 | H30: 5.5 | I30: 52.5 | J30: 47 | K30: 25 | L30: 25
C31: =$C$4 & ".1" -> C1.1 | D31: =N39+N67+N94+N121+N148 -> 0 | E31: =O39+O67+O94+O121+O148 -> 0 | F31: 0 | G31: 0 | H31: 0 | I31: 25 | J31: 25 | K31: 25 | L31: 25
C32: =$C$4 & ".2" -> C1.2 | D32: =N176+N224+N251+N278+N305 -> 0 | E32: =O176+O224+O251+O278+O305 -> 0 | F32: =P176+P224+P251+P278+P305 -> 0 | G32: 0 | H32: 5.5 | I32: 27.5 | J32: 22 | K32: 0 | L32: 0
C33: =$C$4 & ".3" -> C1.3 | D33: =N333+N360+N387+N414+N441 -> 0 | E33: =O333+O360+O387+O414+O441 -> 0 | F33: =P333+P360+P387+P414+P441 -> 0 | G33: 0 | H33: 0 | I33: 0 | J33: 0 | K33: 0 | L33: 0
C34: =$C$4 & ".4" -> C1.4 | D34: =N469+N496+N523+N550+N577 -> 0 | E34: =O469+O496+O523+O550+O577 -> 0 | F34: 0 | G34: 0 | H34: 0 | I34: 0 | J34: 0 | K34: 0 | L34: 0
B36: Worksheets
B37: =B9 -> C1.1. Planning, Design and Decision Support Systems
B38: ="Goods: " & $B$9 -> Goods: C1.1. Planning, Design and Decision Support Systems | F38: Cost per Unit (₹ lakhs) | G38: Total | H38: Telemetry Type | N38: FY15 | O38: FY16 | P38: FY17 | Q38: FY18 | R38: FY19 | S38: FY20 | T38: FY21 | U38: FY22 | V38: FY23 | W38: Total
C39: Items | D39: Activity | E39: Number | G39: =SUBTOTAL(9,G41:G64) -> 0 | H39: Telemetry Type | I39: Remarks | M39: Total Annual Outlay (₹ lakhs) | N39: =SUM($G41:$G64*N41:N64) -> 0 | O39: =SUM($G41:$G64*O41:O64) -> 0 | P39: =SUM($G41:$G64*P41:P64) -> 0 | Q39: =SUM($G41:$G64*Q41:Q64) -> 0 | R39: =SUM($G41:$G64*R41:R64) -> 0 | S39: =SUM($G41:$G64*S41:S64) -> 0 | T39: =SUM($G41:$G64*T41:T64) -> 0 | U39: =SUM($G41:$G64*U41:U64) -> 0 | V39: =SUM($G41:$G64*V41:V64) -> 0 | W39: =SUM(N39:V39) -> 0
B40: =$B$10 -> 1. Planning and decision support system | G40: =SUBTOTAL(9,G41:G43) -> 0
B41: 1 | C41: Software licenses, if any | D41: C1.1.1 | E41: 0 | F41: 0 | G41: =E41*F41 -> 0 | I41: Computers can be bought under component D | N41: 0 | O41: 0 | P41: 0 | Q41: 0 | R41: 0 | S41: 0 | T41: 0 | U41: 0 | V41: 0 | W41: =SUM(N41:V41) -> 0
B42: =B41+0.01 -> 1.01 | E42: 0 | F42: 0 | G42: 0 | N42: 0 | O42: 0 | P42: 0 | Q42: 0 | R42: 0 | S42: 0 | T42: 0 | U42: 0 | V42: 0 | W42: =SUM(N42:V42) -> 0
B43: =B42+0.01 -> 1.02 | E43: 0 | F43: 0 | G43: 0 | N43: 0 | O43: 0 | P43: 0 | Q43: 0 | R43: 0 | S43: 0 | T43: 0 | U43: 0 | V43: 0 | W43: 0
B44: =$B$11 -> 2. Community based GW and WQ management | G44: =SUBTOTAL(9,G45:G52) -> 0
B45: =B43+0.01 -> 1.03 | C45: Software licenses, if any | D45: C1.1.2 | E45: 0 | F45: 0 | G45: =E45*F45 -> 0 | N45: 0 | O45: 0 | P45: 0 | Q45: 0 | R45: 0 | S45: 0 | T45: 0 | U45: 0 | V45: 0 | W45: =SUM(N45:V45) -> 0
B46: 1.04 | C46: Computers for communities | D46: C1.1.2 | E46: 0 | F46: 0 | G46: =E46*F46 -> 0 | N46: 0 | O46: 0 | P46: 0 | Q46: 0 | R46: 0 | S46: 0 | T46: 0 | U46: 0 | V46: 0 | W46: 0
B47: 1.05 | C47: Producton of info materials | D47: C1.1.2 | E47: 0 | F47: 0 | G47: =E47*F47 -> 0 | N47: 0 | O47: 0 | P47: 0 | Q47: 0 | R47: 0 | S47: 0 | T47: 0 | U47: 0 | V47: 0 | W47: 0
B48: 1.06 | C48: Community infrastructure | D48: C1.1.2 | E48: 0 | F48: 0 | G48: =E48*F48 -> 0 | N48: 0 | O48: 0 | P48: 0 | Q48: 0 | R48: 0 | S48: 0 | T48: 0 | U48: 0 | V48: 0 | W48: 0
B49: 1.07 | C49: WQ kits for communities | D49: C1.1.2 | E49: 0 | F49: 0 | G49: 0 | N49: 0 | O49: 0 | P49: 0 | Q49: 0 | R49: 0 | S49: 0 | T49: 0 | U49: 0 | V49: 0 | W49: 0
B50: 1.08 | C50: Vehicles for communities | D50: C1.1.2 | E50: 0 | F50: 0 | G50: 0 | N50: 0 | O50: 0 | P50: 0 | Q50: 0 | R50: 0 | S50: 0 | T50: 0 | U50: 0 | V50: 0 | W50: 0
B51: 1.09 | E51: 0 | F51: 0 | G51: 0 | N51: 0 | O51: 0 | P51: 0 | Q51: 0 | R51: 0 | S51: 0 | T51: 0 | U51: 0 | V51: 0 | W51: 0
B52: 1.1 | E52: 0 | F52: 0 | G52: 0 | N52: 0 | O52: 0 | P52: 0 | Q52: 0 | R52: 0 | S52: 0 | T52: 0 | U52: 0 | V52: 0 | W52: 0
B53: =$B$12 -> 3. Application of DSS-Planning systems (SW, GW, WQ) | G53: =SUBTOTAL(9,G54:G58) -> 0
B54: =B52+0.01 -> 1.11 | C54: Software licenses, if any | D54: C1.1.3 | E54: 0 | F54: 0 | G54: 0 | I54: Central licenses through NIH | N54: 0 | O54: 0 | P54: 0 | Q54: 0 | R54: 0 | S54: 0 | T54: 0 | U54: 0 | V54: 0 | W54: 0
B55: 1.12 | C55: Satellite data products | D55: C1.1.3 | E55: 0 | F55: 0 | G55: 0 | I55: Computers are bought under component D | N55: 0 | O55: 0 | P55: 0 | Q55: 0 | R55: 0 | S55: 0 | T55: 0 | U55: 0 | V55: 0 | W55: 0
B56: 1.13 | C56: Procurement of other data | D56: C1.1.3 | E56: 0 | F56: 0 | G56: 0 | N56: 0 | O56: 0 | P56: 0 | Q56: 0 | R56: 0 | S56: 0 | T56: 0 | U56: 0 | V56: 0 | W56: 0
B57: =B56+0.01 -> 1.14 | E57: 0 | F57: 0 | G57: 0 | N57: 0 | O57: 0 | P57: 0 | Q57: 0 | R57: 0 | S57: 0 | T57: 0 | U57: 0 | V57: 0 | W57: 0
B58: 1.15 | E58: 0 | F58: 0 | G58: 0 | N58: 0 | O58: 0 | P58: 0 | Q58: 0 | R58: 0 | S58: 0 | T58: 0 | U58: 0 | V58: 0 | W58: 0
B59: =$B$13 -> 4. Water balance assessment for Basin 1 | G59: =SUBTOTAL(9,G60:G64) -> 0
B60: =B58+0.01 -> 1.16 | C60: Surveys and field data | D60: C1.1.4 | E60: 0 | F60: 0 | G60: 0 | N60: 0 | O60: 0 | P60: 0 | Q60: 0 | R60: 0 | S60: 0 | T60: 0 | U60: 0 | V60: 0 | W60: 0
B61: 1.17 | D61: C1.1.4 | E61: 0 | F61: 0 | G61: 0 | N61: 0 | O61: 0 | P61: 0 | Q61: 0 | R61: 0 | S61: 0 | T61: 0 | U61: 0 | V61: 0 | W61: 0
B62: 1.18 | E62: 0 | F62: 0 | G62: 0 | N62: 0 | O62: 0 | P62: 0 | Q62: 0 | R62: 0 | S62: 0 | T62: 0 | U62: 0 | V62: 0 | W62: 0
B63: 1.19 | E63: 0 | F63: 0 | G63: 0 | N63: 0 | O63: 0 | P63: 0 | Q63: 0 | R63: 0 | S63: 0 | T63: 0 | U63: 0 | V63: 0 | W63: 0
B64: =B63+0.01 -> 1.2 | E64: 0 | F64: 0 | G64: 0 | N64: 0 | O64: 0 | P64: 0 | Q64: 0 | R64: 0 | S64: 0 | T64: 0 | U64: 0 | V64: 0 | W64: 0
B66: ="Civil Works: " & $B$9 -> Civil Works: C1.1. Planning, Design and Decision Support Systems | F66: Cost per Unit (₹ lakhs) | G66: Total | N66: FY15 | O66: FY16 | P66: FY17 | Q66: FY18 | R66: FY19 | S66: FY20 | T66: FY21 | U66: FY22 | V66: FY23 | W66: Total
C67: Items | D67: Activity | E67: Number | G67: =SUBTOTAL(9,G69:G91) -> 0 | I67: Remarks | M67: Total Annual Outlay (₹ lakhs) | N67: =SUM($G69:$G91*N69:N91) -> 0 | O67: =SUM($G69:$G91*O69:O91) -> 0 | P67: =SUM($G69:$G91*P69:P91) -> 0 | Q67: =SUM($G69:$G91*Q69:Q91) -> 0 | R67: =SUM($G69:$G91*R69:R91) -> 0 | S67: =SUM($G69:$G91*S69:S91) -> 0 | T67: =SUM($G69:$G91*T69:T91) -> 0 | U67: =SUM($G69:$G91*U69:U91) -> 0 | V67: =SUM($G69:$G91*V69:V91) -> 0 | W67: =SUM(N67:V67) -> 0
B68: =$B$10 -> 1. Planning and decision support system | G68: =SUBTOTAL(9,G69:G73) -> 0
B69: =B64+0.01 -> 1.21 | C69: N/A | E69: 0 | F69: 0 | G69: =E69*F69 -> 0 | N69: 0 | O69: 0 | P69: 0 | Q69: 0 | R69: 0 | S69: 0 | T69: 0 | U69: 0 | V69: 0 | W69: =SUM(N69:V69) -> 0
B70: =B69+0.01 -> 1.22 | E70: 0 | F70: 0 | G70: =E70*F70 -> 0 | N70: 0 | O70: 0 | P70: 0 | Q70: 0 | R70: 0 | S70: 0 | T70: 0 | U70: 0 | V70: 0 | W70: =SUM(N70:V70) -> 0
B71: =B70+0.01 -> 1.23 | E71: 0 | F71: 0 | G71: =E71*F71 -> 0 | N71: 0 | O71: 0 | P71: 0 | Q71: 0 | R71: 0 | S71: 0 | T71: 0 | U71: 0 | V71: 0 | W71: =SUM(N71:V71) -> 0
B72: 1.24 | E72: 0 | F72: 0 | G72: =E72*F72 -> 0 | N72: 0 | O72: 0 | P72: 0 | Q72: 0 | R72: 0 | S72: 0 | T72: 0 | U72: 0 | V72: 0 | W72: =SUM(N72:V72) -> 0
B73: 1.25 | E73: 0 | F73: 0 | G73: =E73*F73 -> 0 | N73: 0 | O73: 0 | P73: 0 | Q73: 0 | R73: 0 | S73: 0 | T73: 0 | U73: 0 | V73: 0 | W73: =SUM(N73:V73) -> 0
B74: =$B$11 -> 2. Community based GW and WQ management | G74: =SUBTOTAL(9,G75:G79) -> 0
B75: =B73+0.01 -> 1.26 | C75: Additional GW observ. wells | D75: C1.1.2 | E75: 0 | F75: 0 | G75: =E75*F75 -> 0 | N75: 0 | O75: 0 | P75: 0 | Q75: 0 | R75: 0 | S75: 0 | T75: 0 | U75: 0 | V75: 0 | W75: =SUM(N75:V75) -> 0
B76: =B75+0.01 -> 1.27 | E76: 0 | F76: 0 | G76: =E76*F76 -> 0 | N76: 0 | O76: 0 | P76: 0 | Q76: 0 | R76: 0 | S76: 0 | T76: 0 | U76: 0 | V76: 0 | W76: =SUM(N76:V76) -> 0
B77: 1.28 | E77: 0 | F77: 0 | G77: =E77*F77 -> 0 | N77: 0 | O77: 0 | P77: 0 | Q77: 0 | R77: 0 | S77: 0 | T77: 0 | U77: 0 | V77: 0 | W77: =SUM(N77:V77) -> 0
B78: 1.29 | E78: 0 | F78: 0 | G78: =E78*F78 -> 0 | N78: 0 | O78: 0 | P78: 0 | Q78: 0 | R78: 0 | S78: 0 | T78: 0 | U78: 0 | V78: 0 | W78: =SUM(N78:V78) -> 0
B79: 1.3 | E79: 0 | F79: 0 | G79: =E79*F79 -> 0 | N79: 0 | O79: 0 | P79: 0 | Q79: 0 | R79: 0 | S79: 0 | T79: 0 | U79: 0 | V79: 0 | W79: =SUM(N79:V79) -> 0
B80: =$B$12 -> 3. Application of DSS-Planning systems (SW, GW, WQ) | G80: =SUBTOTAL(9,G81:G85) -> 0
B81: =B79+0.01 -> 1.31 | C81: N/A | E81: 0 | F81: 0 | G81: =E81*F81 -> 0 | N81: 0 | O81: 0 | P81: 0 | Q81: 0 | R81: 0 | S81: 0 | T81: 0 | U81: 0 | V81: 0 | W81: =SUM(N81:V81) -> 0
B82: 1.32 | E82: 0 | F82: 0 | G82: =E82*F82 -> 0 | N82: 0 | O82: 0 | P82: 0 | Q82: 0 | R82: 0 | S82: 0 | T82: 0 | U82: 0 | V82: 0 | W82: =SUM(N82:V82) -> 0
B83: 1.33 | E83: 0 | F83: 0 | G83: =E83*F83 -> 0 | N83: 0 | O83: 0 | P83: 0 | Q83: 0 | R83: 0 | S83: 0 | T83: 0 | U83: 0 | V83: 0 | W83: =SUM(N83:V83) -> 0
B84: =B83+0.01 -> 1.34 | E84: 0 | F84: 0 | G84: =E84*F84 -> 0 | N84: 0 | O84: 0 | P84: 0 | Q84: 0 | R84: 0 | S84: 0 | T84: 0 | U84: 0 | V84: 0 | W84: =SUM(N84:V84) -> 0
B85: 1.35 | E85: 0 | F85: 0 | G85: =E85*F85 -> 0 | N85: 0 | O85: 0 | P85: 0 | Q85: 0 | R85: 0 | S85: 0 | T85: 0 | U85: 0 | V85: 0 | W85: =SUM(N85:V85) -> 0
B86: =$B$13 -> 4. Water balance assessment for Basin 1 | G86: =SUBTOTAL(9,G87:G91) -> 0
B87: =B85+0.01 -> 1.36 | C87: Works for addit. HIS sites | E87: 0 | F87: 0 | G87: =E87*F87 -> 0 | N87: 0 | O87: 0 | P87: 0 | Q87: 0 | R87: 0 | S87: 0 | T87: 0 | U87: 0 | V87: 0 | W87: =SUM(N87:V87) -> 0
B88: 1.37 | E88: 0 | F88: 0 | G88: =E88*F88 -> 0 | N88: 0 | O88: 0 | P88: 0 | Q88: 0 | R88: 0 | S88: 0 | T88: 0 | U88: 0 | V88: 0 | W88: =SUM(N88:V88) -> 0
B89: 1.38 | E89: 0 | F89: 0 | G89: =E89*F89 -> 0 | N89: 0 | O89: 0 | P89: 0 | Q89: 0 | R89: 0 | S89: 0 | T89: 0 | U89: 0 | V89: 0 | W89: =SUM(N89:V89) -> 0
B90: 1.39 | E90: 0 | F90: 0 | G90: =E90*F90 -> 0 | N90: 0 | O90: 0 | P90: 0 | Q90: 0 | R90: 0 | S90: 0 | T90: 0 | U90: 0 | V90: 0 | W90: =SUM(N90:V90) -> 0
